Workbook

Sheet Data_Tech
A1: мес | B1: год | C1: изд | D1: партия | E1: коэф | F1: Ф. И. О. | G1: р/р | H1: 1 | I1: 2 | J1: 3 | K1: 4 | L1: 5 | M1: 6 | N1: 7 | O1: 8 | P1: 9 | Q1: 10 | R1: 11 | S1: 12 | T1: 13 | U1: 14 | V1: 15 | W1: 16 | X1: 17 | Y1: 18 | Z1: 19 | AA1: 20 | AB1: 21 | AC1: 22 | AD1: 23 | AE1: 24 | AF1: 25 | AG1: 26 | AH1: 27 | AI1: 28 | AJ1: 29 | AK1: 30 | AL1: 31 | AM1: сумма | AN1: Столбец1
A2: месяц | B2: год | C2: изд | D2: партия | E2: коэф | F2: Ф. И. О. | G2: р/р | H2: =--(1&A6&B6) -> 2026-01-01 | I2: =IF(($H$2+COLUMN(A:A))>EOMONTH($H$2,0),0,$H$2+COLUMN(A:A)) -> 2026-01-02 | J2: 2026-01-03 | K2: 2026-01-04 | L2: 2026-01-05 | M2: 2026-01-06 | N2: 2026-01-07 | O2: 2026-01-08 | P2: 2026-01-09 | Q2: 2026-01-10 | R2: 2026-01-11 | S2: 2026-01-12 | T2: 2026-01-13 | U2: 2026-01-14 | V2: 2026-01-15 | W2: 2026-01-16 | X2: 2026-01-17 | Y2: 2026-01-18 | Z2: 2026-01-19 | AA2: 2026-01-20 | AB2: 2026-01-21 | AC2: =IF(($H$2+COLUMN(U:U))>EOMONTH($H$2,0),0,$H$2+COLUMN(U:U)) -> 2026-01-22 | AD2: =IF(($H$2+COLUMN(V:V))>EOMONTH($H$2,0),0,$H$2+COLUMN(V:V)) -> 2026-01-23 | AE2: 2026-01-24 | AF2: 2026-01-25 | AG2: 2026-01-26 | AH2: 2026-01-27 | AI2: 2026-01-28 | AJ2: 2026-01-29 | AK2: 2026-01-30 | AL2: 2026-01-31 | AM2: сумма | AN2: сумма2
A3: январь | B3: год | C3: изд | D3: партия | E3: коэф | F3: Ф. И. О. | G3: р/р | H3: 1 | I3: 2 | J3: 3 | K3: 4 | L3: 5 | M3: 6 | N3: 7 | O3: 8 | P3: 9 | Q3: 10 | R3: 11 | S3: 12 | T3: 13 | U3: 14 | V3: 15 | W3: 16 | X3: 17 | Y3: 18 | Z3: 19 | AA3: 20 | AB3: 21 | AC3: 22 | AD3: 23 | AE3: 24 | AF3: 25 | AG3: 26 | AH3: 27 | AI3: 28 | AJ3: 29 | AK3: 30 | AL3: 31 | AM3: сумма | AN3: Столбец1
A4: январь | B4: 2026 | C4: 1 | D4: 1-25 | E4: 1 | F4: Шишина Наталья Александровна | G4: 2а | J4: 7 | K4: 6 | M4: 7 | S4: 7.2 | X4: 7 | Z4: 7.2 | AA4: 7.2 | AM4: =SUM(Таблица1[[#This Row],[1]:[31]])-Таблица1[[#This Row],[Столбец1]] -> 21.6 | AN4: =SUM(IFERROR(WEEKDAY($H$2:$AL$2,2)>5,)*H4:AL4)+Таблица1[[#This Row],[2]]+Таблица1[[#This Row],[5]]+Таблица1[[#This Row],[6]]+Таблица1[[#This Row],[8]]+Таблица1[[#This Row],[7]]+Таблица1[[#This Row],[9]] -> 27
A5: январь | B5: 2026 | C5: 8Б | D5: 1-26 | E5: 1,5 | F5: Егорова Татьяна Владимировна | G5: 4/8 | J5: 6 | K5: 6 | M5: 6 | N5: 6 | P5: 7 | S5: 7.2 | T5: 7.2 | U5: 7.2 | V5: 7.2 | W5: 7.2 | X5: 6 | Z5: 7.2 | AA5: 7.2 | AC5: 7.2 | AD5: 7.2 | AE5: 6 | AG5: 7.2 | AH5: 7.2 | AI5: 7.2 | AK5: 7.2 | AL5: 6 | AM5: =SUM(Таблица1[[#This Row],[1]:[31]])-Таблица1[[#This Row],[Столбец1]] -> 93.6 | AN5: =SUM(IFERROR(WEEKDAY($H$2:$AL$2,2)>5,)*H5:AL5)+Таблица1[[#This Row],[2]]+Таблица1[[#This Row],[5]]+Таблица1[[#This Row],[6]]+Таблица1[[#This Row],[8]]+Таблица1[[#This Row],[7]]+Таблица1[[#This Row],[9]] -> 49
A6: январь | B6: 2026 | C6: 1 | D6: 1-25 | E6: 1,5 | F6: Авдеева Елена Николаевна | G6: 4/8 | J6: 7 | K6: 7 | M6: 2 | N6: 7 | O6: 2 | P6: 7 | Q6: 7 | S6: 7.2 | AC6: 7.2 | AD6: 7.2 | AE6: 7 | AG6: 7.2 | AH6: 7.2 | AI6: 7.2 | AJ6: 7.2 | AK6: 7.2 | AL6: 7 | AM6: =SUM(Таблица1[[#This Row],[1]:[31]])-Таблица1[[#This Row],[Столбец1]] -> 57.6 | AN6: =SUM(IFERROR(WEEKDAY($H$2:$AL$2,2)>5,)*H6:AL6)+Таблица1[[#This Row],[2]]+Таблица1[[#This Row],[5]]+Таблица1[[#This Row],[6]]+Таблица1[[#This Row],[8]]+Таблица1[[#This Row],[7]]+Таблица1[[#This Row],[9]] -> 53
A7: январь | B7: 2026 | C7: 75 | D7: 1-26 | E7: 1,5 | F7: Иванова Екатерина Борисовна | G7: 4/8 | J7: 7 | K7: 4 | L7: 6 | M7: 1 | O7: 5 | S7: 7.2 | U7: 7.2 | V7: 7.2 | W7: 7.2 | AA7: 7.2 | AB7: 7.2 | AE7: 6 | AG7: 7.2 | AI7: 7.2 | AJ7: 7.2 | AK7: 7.2 | AL7: 6 | AM7: =SUM(Таблица1[[#This Row],[1]:[31]])-Таблица1[[#This Row],[Столбец1]] -> 72 | AN7: =SUM(IFERROR(WEEKDAY($H$2:$AL$2,2)>5,)*H7:AL7)+Таблица1[[#This Row],[2]]+Таблица1[[#This Row],[5]]+Таблица1[[#This Row],[6]]+Таблица1[[#This Row],[8]]+Таблица1[[#This Row],[7]]+Таблица1[[#This Row],[9]] -> 35
A8: январь | B8: 2026 | C8: 75 | D8: 1-26 | E8: 1 | F8: Иванова Екатерина Борисовна | G8: 2а | K8: 2 | M8: 3 | O8: 5 | AM8: =SUM(Таблица1[[#This Row],[1]:[31]])-Таблица1[[#This Row],[Столбец1]] -> 0 | AN8: =SUM(IFERROR(WEEKDAY($H$2:$AL$2,2)>5,)*H8:AL8)+Таблица1[[#This Row],[2]]+Таблица1[[#This Row],[5]]+Таблица1[[#This Row],[6]]+Таблица1[[#This Row],[8]]+Таблица1[[#This Row],[7]]+Таблица1[[#This Row],[9]] -> 10
A9: январь | B9: 2026 | C9: 8Б | D9: 1-26 | E9: 1,5 | F9: Королёва Надежда Игоревна | G9: 4/8 | J9: 6 | K9: 6 | M9: 6 | N9: 6 | P9: 5 | Q9: 7 | S9: 7.2 | T9: 7.2 | U9: 7.2 | V9: 7.2 | X9: 6 | Z9: 7.2 | AA9: 7.2 | AB9: 7.2 | AC9: 7.2 | AD9: 7.2 | AE9: 6 | AH9: 7.2 | AI9: 7.2 | AJ9: 7.2 | AK9: 7.2 | AL9: 6 | AM9: =SUM(Таблица1[[#This Row],[1]:[31]])-Таблица1[[#This Row],[Столбец1]] -> 93.6 | AN9: =SUM(IFERROR(WEEKDAY($H$2:$AL$2,2)>5,)*H9:AL9)+Таблица1[[#This Row],[2]]+Таблица1[[#This Row],[5]]+Таблица1[[#This Row],[6]]+Таблица1[[#This Row],[8]]+Таблица1[[#This Row],[7]]+Таблица1[[#This Row],[9]] -> 54
A10: январь | B10: 2026 | C10: 8Б | D10: 1-26 | E10: 1 | F10: Королёва Надежда Игоревна | G10: 4/8 | J10: 6 | K10: 6 | M10: 6 | N10: 6 | P10: 5 | Q10: 7 | S10: 7.2 | T10: 7.2 | U10: 7.2 | V10: 7.2 | X10: 6 | Z10: 7.2 | AA10: 7.2 | AB10: 7.2 | AC10: 7.2 | AD10: 7.2 | AE10: 6 | AH10: 7.2 | AI10: 7.2 | AJ10: 7.2 | AK10: 7.2 | AL10: 6 | AM10: =SUM(Таблица1[[#This Row],[1]:[31]])-Таблица1[[#This Row],[Столбец1]] -> 93.6 | AN10: =SUM(IFERROR(WEEKDAY($H$2:$AL$2,2)>5,)*H10:AL10)+Таблица1[[#This Row],[2]]+Таблица1[[#This Row],[5]]+Таблица1[[#This Row],[6]]+Таблица1[[#This Row],[8]]+Таблица1[[#This Row],[7]]+Таблица1[[#This Row],[9]] -> 54
A11: январь | B11: 2026 | C11: 60 | D11: 1-26 | E11: 1,5 | F11: Зайка Ирина Сергеевна | G11: 4/8 | L11: 7 | T11: 7.2 | AM11: =SUM(Таблица1[[#This Row],[1]:[31]])-Таблица1[[#This Row],[Столбец1]] -> 7.2 | AN11: =SUM(IFERROR(WEEKDAY($H$2:$AL$2,2)>5,)*H11:AL11)+Таблица1[[#This Row],[2]]+Таблица1[[#This Row],[5]]+Таблица1[[#This Row],[6]]+Таблица1[[#This Row],[8]]+Таблица1[[#This Row],[7]]+Таблица1[[#This Row],[9]] -> 7
A12: январь | B12: 2026 | C12: 1 | D12: 1-25 | E12: 1 | F12: Ложкина Елена Сергеевна | G12: 2а | L12: 2.5 | AM12: =SUM(Таблица1[[#This Row],[1]:[31]])-Таблица1[[#This Row],[Столбец1]] -> 0 | AN12: =SUM(IFERROR(WEEKDAY($H$2:$AL$2,2)>5,)*H12:AL12)+Таблица1[[#This Row],[2]]+Таблица1[[#This Row],[5]]+Таблица1[[#This Row],[6]]+Таблица1[[#This Row],[8]]+Таблица1[[#This Row],[7]]+Таблица1[[#This Row],[9]] -> 2.5
A13: январь | B13: 2026 | C13: 60 | D13: 1-26 | E13: 1 | F13: Ложкина Елена Сергеевна | G13: 2а | L13: 7 | AM13: =SUM(Таблица1[[#This Row],[1]:[31]])-Таблица1[[#This Row],[Столбец1]] -> 0 | AN13: =SUM(IFERROR(WEEKDAY($H$2:$AL$2,2)>5,)*H13:AL13)+Таблица1[[#This Row],[2]]+Таблица1[[#This Row],[5]]+Таблица1[[#This Row],[6]]+Таблица1[[#This Row],[8]]+Таблица1[[#This Row],[7]]+Таблица1[[#This Row],[9]] -> 7
A14: январь | B14: 2026 | C14: 60 | D14: 1-26 | E14: 1,4 | F14: Ложкина Елена Сергеевна | G14: 2а | M14: 6 | AM14: =SUM(Таблица1[[#This Row],[1]:[31]])-Таблица1[[#This Row],[Столбец1]] -> 0 | AN14: =SUM(IFERROR(WEEKDAY($H$2:$AL$2,2)>5,)*H14:AL14)+Таблица1[[#This Row],[2]]+Таблица1[[#This Row],[5]]+Таблица1[[#This Row],[6]]+Таблица1[[#This Row],[8]]+Таблица1[[#This Row],[7]]+Таблица1[[#This Row],[9]] -> 6
A15: январь | B15: 2026 | C15: 8Б | D15: 1-26 | E15: 1,4 | F15: Алешкина Лариса Алексеевна | G15: 3/2 | M15: 7 | N15: 7 | O15: 7 | P15: 7 | T15: 7.2 | U15: 7.2 | V15: 5.2 | W15: 7.2 | X15: 6 | Z15: 7.2 | AA15: 7.2 | AB15: 7.2 | AC15: 7.2 | AD15: 7.2 | AE15: 7 | AG15: 7.2 | AH15: 7.2 | AI15: 7.2 | AJ15: 7.2 | AK15: 7.2 | AL15: 7 | AM15: =SUM(Таблица1[[#This Row],[1]:[31]])-Таблица1[[#This Row],[Столбец1]] -> 98.8 | AN15: =SUM(IFERROR(WEEKDAY($H$2:$AL$2,2)>5,)*H15:AL15)+Таблица1[[#This Row],[2]]+Таблица1[[#This Row],[5]]+Таблица1[[#This Row],[6]]+Таблица1[[#This Row],[8]]+Таблица1[[#This Row],[7]]+Таблица1[[#This Row],[9]] -> 48
A16: январь | B16: 2026 | C16: 75 | D16: 1-26 | E16: 1 | F16: Иванова Инна Игоревна | G16: 2а | L16: 6.5 | O16: 3 | S16: 7.2 | T16: 7.2 | V16: 7.2 | AA16: 7.2 | AC16: 7.2 | AD16: 7.2 | AG16: 7.2 | AJ16: 7.2 | AK16: 7.2 | AL16: 6.5 | AM16: =SUM(Таблица1[[#This Row],[1]:[31]])-Таблица1[[#This Row],[Столбец1]] -> 64.8 | AN16: =SUM(IFERROR(WEEKDAY($H$2:$AL$2,2)>5,)*H16:AL16)+Таблица1[[#This Row],[2]]+Таблица1[[#This Row],[5]]+Таблица1[[#This Row],[6]]+Таблица1[[#This Row],[8]]+Таблица1[[#This Row],[7]]+Таблица1[[#This Row],[9]] -> 16
A17: январь | B17: 2026 | C17: 60 | D17: 1-26 | E17: 1 | F17: Иванова Инна Игоревна | G17: 2а | M17: 2.5 | N17: 6.5 | O17: 7 | Z17: 7.2 | AB17: 7.2 | AM17: =SUM(Таблица1[[#This Row],[1]:[31]])-Таблица1[[#This Row],[Столбец1]] -> 14.4 | AN17: =SUM(IFERROR(WEEKDAY($H$2:$AL$2,2)>5,)*H17:AL17)+Таблица1[[#This Row],[2]]+Таблица1[[#This Row],[5]]+Таблица1[[#This Row],[6]]+Таблица1[[#This Row],[8]]+Таблица1[[#This Row],[7]]+Таблица1[[#This Row],[9]] -> 16
A18: январь | B18: 2026 | C18: 75 | D18: 1-26 | E18: 1 | F18: Гриша Ольга Викторовна | G18: 2а | M18: 7 | T18: 7.2 | U18: 7.2 | V18: 7.2 | AB18: 7.2 | AC18: 7.2 | AI18: 7.2 | AJ18: 7.2 | AK18: 7.2 | AL18: 7 | AM18: =SUM(Таблица1[[#This Row],[1]:[31]])-Таблица1[[#This Row],[Столбец1]] -> 57.6 | AN18: =SUM(IFERROR(WEEKDAY($H$2:$AL$2,2)>5,)*H18:AL18)+Таблица1[[#This Row],[2]]+Таблица1[[#This Row],[5]]+Таблица1[[#This Row],[6]]+Таблица1[[#This Row],[8]]+Таблица1[[#This Row],[7]]+Таблица1[[#This Row],[9]] -> 14
A19: январь | B19: 2026 | C19: 60 | D19: 1-26 | E19: 1,5 | F19: Иванова Екатерина Борисовна | G19: 4/8 | L19: 3.5 | P19: 5 | T19: 7.2 | AC19: 7.2 | AD19: 7.2 | AM19: =SUM(Таблица1[[#This Row],[1]:[31]])-Таблица1[[#This Row],[Столбец1]] -> 21.6 | AN19: =SUM(IFERROR(WEEKDAY($H$2:$AL$2,2)>5,)*H19:AL19)+Таблица1[[#This Row],[2]]+Таблица1[[#This Row],[5]]+Таблица1[[#This Row],[6]]+Таблица1[[#This Row],[8]]+Таблица1[[#This Row],[7]]+Таблица1[[#This Row],[9]] -> 8.5
A20: январь | B20: 2026 | C20: 1 | D20: 1-25 | E20: 1 | F20: Попова Виктория | G20: 2а | J20: 7.2 | L20: 3 | M20: 7.2 | N20: 7.2 | O20: 5 | T20: 7.2 | U20: 7.2 | V20: 7.2 | W20: 7.2 | X20: 7 | Z20: 7.2 | AM20: =SUM(Таблица1[[#This Row],[1]:[31]])-Таблица1[[#This Row],[Столбец1]] -> 36 | AN20: =SUM(IFERROR(WEEKDAY($H$2:$AL$2,2)>5,)*H20:AL20)+Таблица1[[#This Row],[2]]+Таблица1[[#This Row],[5]]+Таблица1[[#This Row],[6]]+Таблица1[[#This Row],[8]]+Таблица1[[#This Row],[7]]+Таблица1[[#This Row],[9]] -> 36.6
A21: январь | B21: 2026 | C21: 31 | D21: 1-26 | E21: 1 | F21: Груздь Олеся Иванна | G21: 4/8 | O21: 6 | AM21: =SUM(Таблица1[[#This Row],[1]:[31]])-Таблица1[[#This Row],[Столбец1]] -> 0 | AN21: =SUM(IFERROR(WEEKDAY($H$2:$AL$2,2)>5,)*H21:AL21)+Таблица1[[#This Row],[2]]+Таблица1[[#This Row],[5]]+Таблица1[[#This Row],[6]]+Таблица1[[#This Row],[8]]+Таблица1[[#This Row],[7]]+Таблица1[[#This Row],[9]] -> 6
A22: январь | B22: 2026 | C22: 8Б | D22: 1-26 | E22: 1 | F22: Гриша Ольга Викторовна | G22: 2а | O22: 7.2 | P22: 7 | X22: 7 | Z22: 7.2 | AE22: 7 | AH22: 7.2 | AM22: =SUM(Таблица1[[#This Row],[1]:[31]])-Таблица1[[#This Row],[Столбец1]] -> 14.4 | AN22: =SUM(IFERROR(WEEKDAY($H$2:$AL$2,2)>5,)*H22:AL22)+Таблица1[[#This Row],[2]]+Таблица1[[#This Row],[5]]+Таблица1[[#This Row],[6]]+Таблица1[[#This Row],[8]]+Таблица1[[#This Row],[7]]+Таблица1[[#This Row],[9]] -> 28.2
A23: январь | B23: 2026 | C23: 1 | D23: 1-25 | E23: 1,4 | F23: Оленева Анна Викторовна | G23: 3/2 | O23: 5 | P23: 6 | AM23: =SUM(Таблица1[[#This Row],[1]:[31]])-Таблица1[[#This Row],[Столбец1]] -> 0 | AN23: =SUM(IFERROR(WEEKDAY($H$2:$AL$2,2)>5,)*H23:AL23)+Таблица1[[#This Row],[2]]+Таблица1[[#This Row],[5]]+Таблица1[[#This Row],[6]]+Таблица1[[#This Row],[8]]+Таблица1[[#This Row],[7]]+Таблица1[[#This Row],[9]] -> 11
A24: январь | B24: 2026 | C24: 31 | D24: 1-26 | E24: 1,5 | F24: Груздь Олеся Иванна | G24: 4/8 | P24: 6 | S24: 7.2 | T24: 7.2 | AM24: =SUM(Таблица1[[#This Row],[1]:[31]])-Таблица1[[#This Row],[Столбец1]] -> 14.4 | AN24: =SUM(IFERROR(WEEKDAY($H$2:$AL$2,2)>5,)*H24:AL24)+Таблица1[[#This Row],[2]]+Таблица1[[#This Row],[5]]+Таблица1[[#This Row],[6]]+Таблица1[[#This Row],[8]]+Таблица1[[#This Row],[7]]+Таблица1[[#This Row],[9]] -> 6
A25: январь | B25: 2026 | C25: 8Б | D25: 1-26 | E25: 1 | F25: Иванова Инна Игоревна | G25: 3/2 | P25: 3 | AM25: =SUM(Таблица1[[#This Row],[1]:[31]])-Таблица1[[#This Row],[Столбец1]] -> 0 | AN25: =SUM(IFERROR(WEEKDAY($H$2:$AL$2,2)>5,)*H25:AL25)+Таблица1[[#This Row],[2]]+Таблица1[[#This Row],[5]]+Таблица1[[#This Row],[6]]+Таблица1[[#This Row],[8]]+Таблица1[[#This Row],[7]]+Таблица1[[#This Row],[9]] -> 3
A26: январь | B26: 2026 | C26: 1 | D26: 1-25 | E26: 1,4 | F26: Борода Ирина Борисовна | G26: 2а | P26: 6 | AB26: 4 | AH26: 7.2 | AK26: 7.2 | AM26: =SUM(Таблица1[[#This Row],[1]:[31]])-Таблица1[[#This Row],[Столбец1]] -> 18.4 | AN26: =SUM(IFERROR(WEEKDAY($H$2:$AL$2,2)>5,)*H26:AL26)+Таблица1[[#This Row],[2]]+Таблица1[[#This Row],[5]]+Таблица1[[#This Row],[6]]+Таблица1[[#This Row],[8]]+Таблица1[[#This Row],[7]]+Таблица1[[#This Row],[9]] -> 6
A27: январь | B27: 2026 | C27: 1 | D27: 1-25 | E27: 1 | F27: Хан Наталия Григорьевна | G27: 3/2 | S27: 7.2 | AM27: =SUM(Таблица1[[#This Row],[1]:[31]])-Таблица1[[#This Row],[Столбец1]] -> 7.2 | AN27: =SUM(IFERROR(WEEKDAY($H$2:$AL$2,2)>5,)*H27:AL27)+Таблица1[[#This Row],[2]]+Таблица1[[#This Row],[5]]+Таблица1[[#This Row],[6]]+Таблица1[[#This Row],[8]]+Таблица1[[#This Row],[7]]+Таблица1[[#This Row],[9]] -> 0
A28: январь | B28: 2026 | C28: 75 | D28: 1-26 | E28: 1 | F28: Попова Виктория | G28: 2а | P28: 3 | Q28: 7 | S28: 7.2 | AM28: =SUM(Таблица1[[#This Row],[1]:[31]])-Таблица1[[#This Row],[Столбец1]] -> 7.2 | AN28: =SUM(IFERROR(WEEKDAY($H$2:$AL$2,2)>5,)*H28:AL28)+Таблица1[[#This Row],[2]]+Таблица1[[#This Row],[5]]+Таблица1[[#This Row],[6]]+Таблица1[[#This Row],[8]]+Таблица1[[#This Row],[7]]+Таблица1[[#This Row],[9]] -> 10
A29: январь | B29: 2026 | C29: 60 | D29: 1-26 | E29: 1 | F29: Гриша Ольга Викторовна | G29: 2а | S29: 7.2 | AM29: =SUM(Таблица1[[#This Row],[1]:[31]])-Таблица1[[#This Row],[Столбец1]] -> 7.2 | AN29: =SUM(IFERROR(WEEKDAY($H$2:$AL$2,2)>5,)*H29:AL29)+Таблица1[[#This Row],[2]]+Таблица1[[#This Row],[5]]+Таблица1[[#This Row],[6]]+Таблица1[[#This Row],[8]]+Таблица1[[#This Row],[7]]+Таблица1[[#This Row],[9]] -> 0
A30: январь | B30: 2026 | C30: 60 | D30: 1-26 | E30: 1 | F30: Иванова Екатерина Борисовна | G30: 2а | Q30: 7 | AM30: =SUM(Таблица1[[#This Row],[1]:[31]])-Таблица1[[#This Row],[Столбец1]] -> 0 | AN30: =SUM(IFERROR(WEEKDAY($H$2:$AL$2,2)>5,)*H30:AL30)+Таблица1[[#This Row],[2]]+Таблица1[[#This Row],[5]]+Таблица1[[#This Row],[6]]+Таблица1[[#This Row],[8]]+Таблица1[[#This Row],[7]]+Таблица1[[#This Row],[9]] -> 7
A31: январь | B31: 2026 | C31: 8Б | D31: 1-26 | E31: 1,4 | F31: Жукова Машка Валентинна | G31: 3/2 | S31: 7.2 | T31: 7.2 | U31: 7.2 | V31: 7.2 | W31: 7.2 | Z31: 7.2 | AA31: 7.2 | AB31: 7.2 | AC31: 7.2 | AD31: 7.2 | AG31: 7.2 | AH31: 7.2 | AI31: 7.2 | AJ31: 7.2 | AK31: 7.2 | AM31: =SUM(Таблица1[[#This Row],[1]:[31]])-Таблица1[[#This Row],[Столбец1]] -> 108 | AN31: =SUM(IFERROR(WEEKDAY($H$2:$AL$2,2)>5,)*H31:AL31)+Таблица1[[#This Row],[2]]+Таблица1[[#This Row],[5]]+Таблица1[[#This Row],[6]]+Таблица1[[#This Row],[8]]+Таблица1[[#This Row],[7]]+Таблица1[[#This Row],[9]] -> 0
A32: январь | B32: 2026 | C32: 75 | D32: 1-26 | E32: 1,5 | F32: Зайка Ирина Сергеевна | G32: 4/8 | S32: 7.2 | V32: 7.2 | W32: 7.2 | AJ32: 7.2 | AK32: 7.2 | AM32: =SUM(Таблица1[[#This Row],[1]:[31]])-Таблица1[[#This Row],[Столбец1]] -> 36 | AN32: =SUM(IFERROR(WEEKDAY($H$2:$AL$2,2)>5,)*H32:AL32)+Таблица1[[#This Row],[2]]+Таблица1[[#This Row],[5]]+Таблица1[[#This Row],[6]]+Таблица1[[#This Row],[8]]+Таблица1[[#This Row],[7]]+Таблица1[[#This Row],[9]] -> 0
A33: январь | B33: 2026 | C33: 1 | D33: 1-25 | E33: 1 | F33: Борода Ирина Борисовна | G33: 2а | S33: 7.2 | AM33: =SUM(Таблица1[[#This Row],[1]:[31]])-Таблица1[[#This Row],[Столбец1]] -> 7.2 | AN33: =SUM(IFERROR(WEEKDAY($H$2:$AL$2,2)>5,)*H33:AL33)+Таблица1[[#This Row],[2]]+Таблица1[[#This Row],[5]]+Таблица1[[#This Row],[6]]+Таблица1[[#This Row],[8]]+Таблица1[[#This Row],[7]]+Таблица1[[#This Row],[9]] -> 0
A34: январь | B34: 2026 | C34: 60 | D34: 1-26 | E34: 1 | F34: Носова Мария Андреевна | G34: 2а | S34: 7.2 | T34: 7.2 | AM34: =SUM(Таблица1[[#This Row],[1]:[31]])-Таблица1[[#This Row],[Столбец1]] -> 14.4 | AN34: =SUM(IFERROR(WEEKDAY($H$2:$AL$2,2)>5,)*H34:AL34)+Таблица1[[#This Row],[2]]+Таблица1[[#This Row],[5]]+Таблица1[[#This Row],[6]]+Таблица1[[#This Row],[8]]+Таблица1[[#This Row],[7]]+Таблица1[[#This Row],[9]] -> 0
A35: январь | B35: 2026 | C35: 8Б | D35: 1-26 | E35: 1 | F35: Яблокова Дарья Александровна | G35: 3/2 | O35: 3 | S35: 7.2 | T35: 7.2 | U35: 7.2 | V35: 7.2 | W35: 7.2 | X35: 6 | Z35: 7.2 | AA35: 7.2 | AB35: 7.2 | AC35: 7.2 | AD35: 7.2 | AE35: 6 | AG35: 7.2 | AH35: 7.2 | AI35: 7.2 | AJ35: 7.2 | AK35: 7.2 | AM35: =SUM(Таблица1[[#This Row],[1]:[31]])-Таблица1[[#This Row],[Столбец1]] -> 108 | AN35: =SUM(IFERROR(WEEKDAY($H$2:$AL$2,2)>5,)*H35:AL35)+Таблица1[[#This Row],[2]]+Таблица1[[#This Row],[5]]+Таблица1[[#This Row],[6]]+Таблица1[[#This Row],[8]]+Таблица1[[#This Row],[7]]+Таблица1[[#This Row],[9]] -> 15
A36: январь | B36: 2026 | C36: 1 | D36: 1-25 | E36: 1 | F36: Яблокова Дарья Александровна | G36: 2а | O36: 7 | AM36: =SUM(Таблица1[[#This Row],[1]:[31]])-Таблица1[[#This Row],[Столбец1]] -> 0 | AN36: =SUM(IFERROR(WEEKDAY($H$2:$AL$2,2)>5,)*H36:AL36)+Таблица1[[#This Row],[2]]+Таблица1[[#This Row],[5]]+Таблица1[[#This Row],[6]]+Таблица1[[#This Row],[8]]+Таблица1[[#This Row],[7]]+Таблица1[[#This Row],[9]] -> 7
A37: январь | B37: 2026 | C37: 8Б | D37: 1-26 | E37: 1 | F37: Шишина Наталья Александровна | G37: 2а | T37: 7.2 | AE37: 7 | AG37: 7.2 | AH37: 7.2 | AI37: 7.2 | AJ37: 7.2 | AK37: 7.2 | AL37: 7 | AM37: =SUM(Таблица1[[#This Row],[1]:[31]])-Таблица1[[#This Row],[Столбец1]] -> 43.2 | AN37: =SUM(IFERROR(WEEKDAY($H$2:$AL$2,2)>5,)*H37:AL37)+Таблица1[[#This Row],[2]]+Таблица1[[#This Row],[5]]+Таблица1[[#This Row],[6]]+Таблица1[[#This Row],[8]]+Таблица1[[#This Row],[7]]+Таблица1[[#This Row],[9]] -> 14
A38: январь | B38: 2026 | C38: 8Б | D38: 1-26 | E38: 1 | F38: Хан Наталия Григорьевна | G38: 3/1 | T38: 7.2 | U38: 4.2 | V38: 6 | Z38: 7.2 | AA38: 7.2 | AB38: 7.2 | AC38: 7.2 | AG38: 7.2 | AH38: 5 | AM38: =SUM(Таблица1[[#This Row],[1]:[31]])-Таблица1[[#This Row],[Столбец1]] -> 58.4 | AN38: =SUM(IFERROR(WEEKDAY($H$2:$AL$2,2)>5,)*H38:AL38)+Таблица1[[#This Row],[2]]+Таблица1[[#This Row],[5]]+Таблица1[[#This Row],[6]]+Таблица1[[#This Row],[8]]+Таблица1[[#This Row],[7]]+Таблица1[[#This Row],[9]] -> 0
A39: январь | B39: 2026 | C39: 8Б | D39: 1-26 | E39: 1,5 | F39: Ефремова Юлия Сергеевна | G39: 4/8 | S39: 7.2 | T39: 7.2 | U39: 7.2 | V39: 7.2 | W39: 7.2 | X39: 6 | Z39: 7.2 | AA39: 7.2 | AB39: 7.2 | AC39: 7.2 | AE39: 6 | AG39: 7.2 | AH39: 7.2 | AI39: 7.2 | AJ39: 7.2 | AK39: 7.2 | AL39: 6 | AM39: =SUM(Таблица1[[#This Row],[1]:[31]])-Таблица1[[#This Row],[Столбец1]] -> 100.8 | AN39: =SUM(IFERROR(WEEKDAY($H$2:$AL$2,2)>5,)*H39:AL39)+Таблица1[[#This Row],[2]]+Таблица1[[#This Row],[5]]+Таблица1[[#This Row],[6]]+Таблица1[[#This Row],[8]]+Таблица1[[#This Row],[7]]+Таблица1[[#This Row],[9]] -> 18
A40: январь | B40: 2026 | C40: 75 | D40: 1-26 | E40: 1 | F40: Кузнецова Алина Дмитриевна | G40: 3/1 | T40: 7.2 | U40: 7.2 | W40: 7.2 | AH40: 7.2 | AI40: 7.2 | AJ40: 7.2 | AK40: 7.2 | AL40: 6 | AM40: =SUM(Таблица1[[#This Row],[1]:[31]])-Таблица1[[#This Row],[Столбец1]] -> 50.4 | AN40: =SUM(IFERROR(WEEKDAY($H$2:$AL$2,2)>5,)*H40:AL40)+Таблица1[[#This Row],[2]]+Таблица1[[#This Row],[5]]+Таблица1[[#This Row],[6]]+Таблица1[[#This Row],[8]]+Таблица1[[#This Row],[7]]+Таблица1[[#This Row],[9]] -> 6
A41: январь | B41: 2026 | C41: 60 | D41: 1-26 | E41: 1 | F41: Кузнецова Алина Дмитриевна | G41: 3/1 | S41: 7.2 | AM41: =SUM(Таблица1[[#This Row],[1]:[31]])-Таблица1[[#This Row],[Столбец1]] -> 7.2 | AN41: =SUM(IFERROR(WEEKDAY($H$2:$AL$2,2)>5,)*H41:AL41)+Таблица1[[#This Row],[2]]+Таблица1[[#This Row],[5]]+Таблица1[[#This Row],[6]]+Таблица1[[#This Row],[8]]+Таблица1[[#This Row],[7]]+Таблица1[[#This Row],[9]] -> 0
A42: январь | B42: 2026 | C42: 75 | D42: 1-26 | E42: 1,4 | F42: Борода Ирина Борисовна | G42: 3/1 | T42: 7.2 | W42: 7.2 | AA42: 3.2 | AJ42: 7.2 | AM42: =SUM(Таблица1[[#This Row],[1]:[31]])-Таблица1[[#This Row],[Столбец1]] -> 24.8 | AN42: =SUM(IFERROR(WEEKDAY($H$2:$AL$2,2)>5,)*H42:AL42)+Таблица1[[#This Row],[2]]+Таблица1[[#This Row],[5]]+Таблица1[[#This Row],[6]]+Таблица1[[#This Row],[8]]+Таблица1[[#This Row],[7]]+Таблица1[[#This Row],[9]] -> 0
A43: январь | B43: 2026 | C43: 8Б | D43: 1-26 | E43: 1 | F43: Носова Мария Андреевна | G43: 3/1 | U43: 7.2 | W43: 3.8 | AM43: =SUM(Таблица1[[#This Row],[1]:[31]])-Таблица1[[#This Row],[Столбец1]] -> 11 | AN43: =SUM(IFERROR(WEEKDAY($H$2:$AL$2,2)>5,)*H43:AL43)+Таблица1[[#This Row],[2]]+Таблица1[[#This Row],[5]]+Таблица1[[#This Row],[6]]+Таблица1[[#This Row],[8]]+Таблица1[[#This Row],[7]]+Таблица1[[#This Row],[9]] -> 0
A44: январь | B44: 2026 | C44: 1 | D44: 1-25 | E44: 1,5 | F44: Груздь Олеся Иванна | G44: 4/8 | U44: 7.2 | V44: 7.2 | W44: 7.2 | X44: 6 | Z44: 7.2 | AA44: 7.2 | AB44: 7.2 | AC44: 7.2 | AD44: 7.2 | AE44: 6 | AG44: 7.2 | AH44: 7.2 | AI44: 7.2 | AJ44: 7.2 | AK44: 7.2 | AL44: 6 | AM44: =SUM(Таблица1[[#This Row],[1]:[31]])-Таблица1[[#This Row],[Столбец1]] -> 93.6 | AN44: =SUM(IFERROR(WEEKDAY($H$2:$AL$2,2)>5,)*H44:AL44)+Таблица1[[#This Row],[2]]+Таблица1[[#This Row],[5]]+Таблица1[[#This Row],[6]]+Таблица1[[#This Row],[8]]+Таблица1[[#This Row],[7]]+Таблица1[[#This Row],[9]] -> 18
A45: январь | B45: 2026 | C45: 8Б | D45: 1-26 | E45: 1 | F45: Хан Наталия Григорьевна | G45: 3/2 | U45: 3 | AD45: 7.2 | AH45: 2.2 | AM45: =SUM(Таблица1[[#This Row],[1]:[31]])-Таблица1[[#This Row],[Столбец1]] -> 12.4 | AN45: =SUM(IFERROR(WEEKDAY($H$2:$AL$2,2)>5,)*H45:AL45)+Таблица1[[#This Row],[2]]+Таблица1[[#This Row],[5]]+Таблица1[[#This Row],[6]]+Таблица1[[#This Row],[8]]+Таблица1[[#This Row],[7]]+Таблица1[[#This Row],[9]] -> 0
A46: январь | B46: 2026 | C46: 8Б | D46: 1-26 | E46: 1 | F46: Шишина Наталья Александровна | G46: 3/1 | U46: 7.2 | V46: 7.2 | W46: 7.2 | AD46: 7.2 | AM46: =SUM(Таблица1[[#This Row],[1]:[31]])-Таблица1[[#This Row],[Столбец1]] -> 28.8 | AN46: =SUM(IFERROR(WEEKDAY($H$2:$AL$2,2)>5,)*H46:AL46)+Таблица1[[#This Row],[2]]+Таблица1[[#This Row],[5]]+Таблица1[[#This Row],[6]]+Таблица1[[#This Row],[8]]+Таблица1[[#This Row],[7]]+Таблица1[[#This Row],[9]] -> 0
A47: январь | B47: 2026 | C47: 31 | D47: 1-26 | E47: 1,4 | F47: Борода Ирина Борисовна | G47: 3/1 | U47: 7.2 | V47: 7.2 | AM47: =SUM(Таблица1[[#This Row],[1]:[31]])-Таблица1[[#This Row],[Столбец1]] -> 14.4 | AN47: =SUM(IFERROR(WEEKDAY($H$2:$AL$2,2)>5,)*H47:AL47)+Таблица1[[#This Row],[2]]+Таблица1[[#This Row],[5]]+Таблица1[[#This Row],[6]]+Таблица1[[#This Row],[8]]+Таблица1[[#This Row],[7]]+Таблица1[[#This Row],[9]] -> 0
A48: январь | B48: 2026 | C48: 60 | D48: 1-26 | E48: 1,5 | F48: Зайка Ирина Сергеевна | G48: 4/8 | U48: 7.2 | AM48: =SUM(Таблица1[[#This Row],[1]:[31]])-Таблица1[[#This Row],[Столбец1]] -> 7.2 | AN48: =SUM(IFERROR(WEEKDAY($H$2:$AL$2,2)>5,)*H48:AL48)+Таблица1[[#This Row],[2]]+Таблица1[[#This Row],[5]]+Таблица1[[#This Row],[6]]+Таблица1[[#This Row],[8]]+Таблица1[[#This Row],[7]]+Таблица1[[#This Row],[9]] -> 0
A49: январь | B49: 2026 | C49: 8Б | D49: 1-26 | E49: 1 | F49: Марко Ирина Вячеславовна | G49: 3/1 | U49: 7.2 | V49: 2.2 | AH49: 5.2 | AM49: =SUM(Таблица1[[#This Row],[1]:[31]])-Таблица1[[#This Row],[Столбец1]] -> 14.6 | AN49: =SUM(IFERROR(WEEKDAY($H$2:$AL$2,2)>5,)*H49:AL49)+Таблица1[[#This Row],[2]]+Таблица1[[#This Row],[5]]+Таблица1[[#This Row],[6]]+Таблица1[[#This Row],[8]]+Таблица1[[#This Row],[7]]+Таблица1[[#This Row],[9]] -> 0
A50: январь | B50: 2026 | C50: 60 | D50: 1-26 | E50: 1 | F50: Марко Ирина Вячеславовна | G50: 3/1 | S50: 7.2 | T50: 7.2 | AM50: =SUM(Таблица1[[#This Row],[1]:[31]])-Таблица1[[#This Row],[Столбец1]] -> 14.4 | AN50: =SUM(IFERROR(WEEKDAY($H$2:$AL$2,2)>5,)*H50:AL50)+Таблица1[[#This Row],[2]]+Таблица1[[#This Row],[5]]+Таблица1[[#This Row],[6]]+Таблица1[[#This Row],[8]]+Таблица1[[#This Row],[7]]+Таблица1[[#This Row],[9]] -> 0
A51: январь | B51: 2026 | C51: 75 | D51: 1-26 | E51: 1,4 | F51: Носова Мария Андреевна | G51: 3/1 | V51: 3.2 | W51: 3.4 | Z51: 7.2 | AA51: 7.2 | AC51: 7.2 | AD51: 7.2 | AG51: 3.3 | AH51: 3.2 | AI51: 7.2 | AJ51: 3.2 | AK51: 7.2 | AL51: 7 | AM51: =SUM(Таблица1[[#This Row],[1]:[31]])-Таблица1[[#This Row],[Столбец1]] -> 59.5 | AN51: =SUM(IFERROR(WEEKDAY($H$2:$AL$2,2)>5,)*H51:AL51)+Таблица1[[#This Row],[2]]+Таблица1[[#This Row],[5]]+Таблица1[[#This Row],[6]]+Таблица1[[#This Row],[8]]+Таблица1[[#This Row],[7]]+Таблица1[[#This Row],[9]] -> 7
A52: январь | B52: 2026 | C52: 75 | D52: 1-26 | E52: 1,5 | F52: Кузнецова Алина Дмитриевна | G52: 4/8 | V52: 7.2 | X52: 6 | AG52: 7.2 | AM52: =SUM(Таблица1[[#This Row],[1]:[31]])-Таблица1[[#This Row],[Столбец1]] -> 14.4 | AN52: =SUM(IFERROR(WEEKDAY($H$2:$AL$2,2)>5,)*H52:AL52)+Таблица1[[#This Row],[2]]+Таблица1[[#This Row],[5]]+Таблица1[[#This Row],[6]]+Таблица1[[#This Row],[8]]+Таблица1[[#This Row],[7]]+Таблица1[[#This Row],[9]] -> 6
A53: январь | B53: 2026 | C53: 75 | D53: 1-26 | E53: 1 | F53: Алешкина Лариса Алексеевна | G53: 3/1 | V53: 2 | AM53: =SUM(Таблица1[[#This Row],[1]:[31]])-Таблица1[[#This Row],[Столбец1]] -> 2 | AN53: =SUM(IFERROR(WEEKDAY($H$2:$AL$2,2)>5,)*H53:AL53)+Таблица1[[#This Row],[2]]+Таблица1[[#This Row],[5]]+Таблица1[[#This Row],[6]]+Таблица1[[#This Row],[8]]+Таблица1[[#This Row],[7]]+Таблица1[[#This Row],[9]] -> 0
A54: январь | B54: 2026 | C54: 60 | D54: 1-26 | E54: 1 | F54: Гриша Ольга Викторовна | G54: 3/1 | W54: 7.2 | AD54: 7.2 | AG54: 7.2 | AM54: =SUM(Таблица1[[#This Row],[1]:[31]])-Таблица1[[#This Row],[Столбец1]] -> 21.6 | AN54: =SUM(IFERROR(WEEKDAY($H$2:$AL$2,2)>5,)*H54:AL54)+Таблица1[[#This Row],[2]]+Таблица1[[#This Row],[5]]+Таблица1[[#This Row],[6]]+Таблица1[[#This Row],[8]]+Таблица1[[#This Row],[7]]+Таблица1[[#This Row],[9]] -> 0
A55: январь | B55: 2026 | C55: 1 | D55: 1-25 | E55: 1,4 | F55: Хан Наталия Григорьевна | G55: 3/2 | W55: 7.2 | AM55: =SUM(Таблица1[[#This Row],[1]:[31]])-Таблица1[[#This Row],[Столбец1]] -> 7.2 | AN55: =SUM(IFERROR(WEEKDAY($H$2:$AL$2,2)>5,)*H55:AL55)+Таблица1[[#This Row],[2]]+Таблица1[[#This Row],[5]]+Таблица1[[#This Row],[6]]+Таблица1[[#This Row],[8]]+Таблица1[[#This Row],[7]]+Таблица1[[#This Row],[9]] -> 0
A56: январь | B56: 2026 | C56: 31 | D56: 1-26 | E56: 1 | F56: Марко Ирина Вячеславовна | G56: 3/1 | V56: 5 | W56: 7.2 | X56: 6 | Z56: 7.2 | AA56: 7.2 | AB56: 7.2 | AC56: 7.2 | AD56: 7.2 | AG56: 7.2 | AH56: 2 | AM56: =SUM(Таблица1[[#This Row],[1]:[31]])-Таблица1[[#This Row],[Столбец1]] -> 57.4 | AN56: =SUM(IFERROR(WEEKDAY($H$2:$AL$2,2)>5,)*H56:AL56)+Таблица1[[#This Row],[2]]+Таблица1[[#This Row],[5]]+Таблица1[[#This Row],[6]]+Таблица1[[#This Row],[8]]+Таблица1[[#This Row],[7]]+Таблица1[[#This Row],[9]] -> 6
A57: январь | B57: 2026 | C57: 1 | D57: 1-25 | E57: 1,5 | F57: Королёва Надежда Игоревна | G57: 4/8 | W57: 7.2 | AG57: 7.2 | AM57: =SUM(Таблица1[[#This Row],[1]:[31]])-Таблица1[[#This Row],[Столбец1]] -> 14.4 | AN57: =SUM(IFERROR(WEEKDAY($H$2:$AL$2,2)>5,)*H57:AL57)+Таблица1[[#This Row],[2]]+Таблица1[[#This Row],[5]]+Таблица1[[#This Row],[6]]+Таблица1[[#This Row],[8]]+Таблица1[[#This Row],[7]]+Таблица1[[#This Row],[9]] -> 0
A58: январь | B58: 2026 | C58: 1 | D58: 1-25 | E58: 1 | F58: Иванова Инна Игоревна | G58: 3/2 | W58: 7.2 | AM58: =SUM(Таблица1[[#This Row],[1]:[31]])-Таблица1[[#This Row],[Столбец1]] -> 7.2 | AN58: =SUM(IFERROR(WEEKDAY($H$2:$AL$2,2)>5,)*H58:AL58)+Таблица1[[#This Row],[2]]+Таблица1[[#This Row],[5]]+Таблица1[[#This Row],[6]]+Таблица1[[#This Row],[8]]+Таблица1[[#This Row],[7]]+Таблица1[[#This Row],[9]] -> 0
A59: январь | B59: 2026 | C59: 1 | D59: 1-25 | E59: 1,4 | F59: Носова Мария Андреевна | G59: 3/1 | X59: 7 | AE59: 7.2 | AM59: =SUM(Таблица1[[#This Row],[1]:[31]])-Таблица1[[#This Row],[Столбец1]] -> 0 | AN59: =SUM(IFERROR(WEEKDAY($H$2:$AL$2,2)>5,)*H59:AL59)+Таблица1[[#This Row],[2]]+Таблица1[[#This Row],[5]]+Таблица1[[#This Row],[6]]+Таблица1[[#This Row],[8]]+Таблица1[[#This Row],[7]]+Таблица1[[#This Row],[9]] -> 14.2
A60: январь | B60: 2026 | C60: 60 | D60: 1-26 | E60: 1 | F60: Ложкина Елена Сергеевна | G60: 3/1 | S60: 7.2 | AM60: =SUM(Таблица1[[#This Row],[1]:[31]])-Таблица1[[#This Row],[Столбец1]] -> 7.2 | AN60: =SUM(IFERROR(WEEKDAY($H$2:$AL$2,2)>5,)*H60:AL60)+Таблица1[[#This Row],[2]]+Таблица1[[#This Row],[5]]+Таблица1[[#This Row],[6]]+Таблица1[[#This Row],[8]]+Таблица1[[#This Row],[7]]+Таблица1[[#This Row],[9]] -> 0
A61: январь | B61: 2026 | C61: 60 | D61: 1-26 | E61: 1,5 | F61: Иванова Екатерина Борисовна | G61: 4/8 | Z61: 7.2 | AM61: =SUM(Таблица1[[#This Row],[1]:[31]])-Таблица1[[#This Row],[Столбец1]] -> 7.2 | AN61: =SUM(IFERROR(WEEKDAY($H$2:$AL$2,2)>5,)*H61:AL61)+Таблица1[[#This Row],[2]]+Таблица1[[#This Row],[5]]+Таблица1[[#This Row],[6]]+Таблица1[[#This Row],[8]]+Таблица1[[#This Row],[7]]+Таблица1[[#This Row],[9]] -> 0
A62: январь | B62: 2026 | C62: 8Б | D62: 1-26 | E62: 1 | F62: Кузнецова Алина Дмитриевна | G62: 3/1 | Z62: 7.2 | AD62: 7.2 | AM62: =SUM(Таблица1[[#This Row],[1]:[31]])-Таблица1[[#This Row],[Столбец1]] -> 14.4 | AN62: =SUM(IFERROR(WEEKDAY($H$2:$AL$2,2)>5,)*H62:AL62)+Таблица1[[#This Row],[2]]+Таблица1[[#This Row],[5]]+Таблица1[[#This Row],[6]]+Таблица1[[#This Row],[8]]+Таблица1[[#This Row],[7]]+Таблица1[[#This Row],[9]] -> 0
A63: январь | B63: 2026 | C63: 75 | D63: 1-26 | E63: 1 | F63: Борода Ирина Борисовна | G63: 3/1 | Z63: 7.2 | AA63: 4 | AC63: 7.2 | AM63: =SUM(Таблица1[[#This Row],[1]:[31]])-Таблица1[[#This Row],[Столбец1]] -> 18.4 | AN63: =SUM(IFERROR(WEEKDAY($H$2:$AL$2,2)>5,)*H63:AL63)+Таблица1[[#This Row],[2]]+Таблица1[[#This Row],[5]]+Таблица1[[#This Row],[6]]+Таблица1[[#This Row],[8]]+Таблица1[[#This Row],[7]]+Таблица1[[#This Row],[9]] -> 0
A64: январь | B64: 2026 | C64: 60 | D64: 1-26 | E64: 1 | F64: Кузнецова Алина Дмитриевна | G64: 3/1 | AA64: 7.2 | AM64: =SUM(Таблица1[[#This Row],[1]:[31]])-Таблица1[[#This Row],[Столбец1]] -> 7.2 | AN64: =SUM(IFERROR(WEEKDAY($H$2:$AL$2,2)>5,)*H64:AL64)+Таблица1[[#This Row],[2]]+Таблица1[[#This Row],[5]]+Таблица1[[#This Row],[6]]+Таблица1[[#This Row],[8]]+Таблица1[[#This Row],[7]]+Таблица1[[#This Row],[9]] -> 0
A65: январь | B65: 2026 | C65: 60 | D65: 1-26 | E65: 1 | F65: Попова Виктория | G65: 3/1 | AA65: 7.2 | AB65: 7.2 | AD65: 7.2 | AE65: 7 | AG65: 7.2 | AH65: 7.2 | AI65: 7.2 | AJ65: 7.2 | AK65: 7.2 | AM65: =SUM(Таблица1[[#This Row],[1]:[31]])-Таблица1[[#This Row],[Столбец1]] -> 57.6 | AN65: =SUM(IFERROR(WEEKDAY($H$2:$AL$2,2)>5,)*H65:AL65)+Таблица1[[#This Row],[2]]+Таблица1[[#This Row],[5]]+Таблица1[[#This Row],[6]]+Таблица1[[#This Row],[8]]+Таблица1[[#This Row],[7]]+Таблица1[[#This Row],[9]] -> 7
A66: январь | B66: 2026 | C66: 60 | D66: 1-26 | E66: 1,4 | F66: Носова Мария Андреевна | G66: 3/1 | AB66: 7.2 | AM66: =SUM(Таблица1[[#This Row],[1]:[31]])-Таблица1[[#This Row],[Столбец1]] -> 7.2 | AN66: =SUM(IFERROR(WEEKDAY($H$2:$AL$2,2)>5,)*H66:AL66)+Таблица1[[#This Row],[2]]+Таблица1[[#This Row],[5]]+Таблица1[[#This Row],[6]]+Таблица1[[#This Row],[8]]+Таблица1[[#This Row],[7]]+Таблица1[[#This Row],[9]] -> 0
A67: январь | B67: 2026 | C67: 75 | D67: 1-26 | E67: 1 | F67: Шишина Наталья Александровна | G67: 3/1 | AB67: 7.2 | AC67: 7.2 | AM67: =SUM(Таблица1[[#This Row],[1]:[31]])-Таблица1[[#This Row],[Столбец1]] -> 14.4 | AN67: =SUM(IFERROR(WEEKDAY($H$2:$AL$2,2)>5,)*H67:AL67)+Таблица1[[#This Row],[2]]+Таблица1[[#This Row],[5]]+Таблица1[[#This Row],[6]]+Таблица1[[#This Row],[8]]+Таблица1[[#This Row],[7]]+Таблица1[[#This Row],[9]] -> 0
A68: январь | B68: 2026 | C68: 1 | D68: 1-25 | E68: 1 | F68: Гриша Ольга Викторовна | G68: 3/1 | AA68: 7.2 | AM68: =SUM(Таблица1[[#This Row],[1]:[31]])-Таблица1[[#This Row],[Столбец1]] -> 7.2 | AN68: =SUM(IFERROR(WEEKDAY($H$2:$AL$2,2)>5,)*H68:AL68)+Таблица1[[#This Row],[2]]+Таблица1[[#This Row],[5]]+Таблица1[[#This Row],[6]]+Таблица1[[#This Row],[8]]+Таблица1[[#This Row],[7]]+Таблица1[[#This Row],[9]] -> 0
A69: январь | B69: 2026 | C69: 8Б | D69: 1-26 | E69: 1 | F69: Борода Ирина Борисовна | G69: 3/1 | AB69: 3.2 | AD69: 4 | AM69: =SUM(Таблица1[[#This Row],[1]:[31]])-Таблица1[[#This Row],[Столбец1]] -> 7.2 | AN69: =SUM(IFERROR(WEEKDAY($H$2:$AL$2,2)>5,)*H69:AL69)+Таблица1[[#This Row],[2]]+Таблица1[[#This Row],[5]]+Таблица1[[#This Row],[6]]+Таблица1[[#This Row],[8]]+Таблица1[[#This Row],[7]]+Таблица1[[#This Row],[9]] -> 0
A70: январь | B70: 2026 | C70: 75 | D70: 1-26 | E70: 1 | F70: Кузнецова Алина Дмитриевна | G70: 3/1 | AB70: 7.2 | AC70: 7.2 | AM70: =SUM(Таблица1[[#This Row],[1]:[31]])-Таблица1[[#This Row],[Столбец1]] -> 14.4 | AN70: =SUM(IFERROR(WEEKDAY($H$2:$AL$2,2)>5,)*H70:AL70)+Таблица1[[#This Row],[2]]+Таблица1[[#This Row],[5]]+Таблица1[[#This Row],[6]]+Таблица1[[#This Row],[8]]+Таблица1[[#This Row],[7]]+Таблица1[[#This Row],[9]] -> 0
A71: январь | B71: 2026 | C71: 1 | D71: 1-25 | E71: 1 | F71: Кузнецова Алина Дмитриевна | G71: 3/1 | AE71: 6 | AM71: =SUM(Таблица1[[#This Row],[1]:[31]])-Таблица1[[#This Row],[Столбец1]] -> 0 | AN71: =SUM(IFERROR(WEEKDAY($H$2:$AL$2,2)>5,)*H71:AL71)+Таблица1[[#This Row],[2]]+Таблица1[[#This Row],[5]]+Таблица1[[#This Row],[6]]+Таблица1[[#This Row],[8]]+Таблица1[[#This Row],[7]]+Таблица1[[#This Row],[9]] -> 6
A72: январь | B72: 2026 | C72: 8Б | D72: 1-26 | E72: 1 | F72: Ефремова Юлия Сергеевна | G72: 3/1 | AD72: 7.2 | AM72: =SUM(Таблица1[[#This Row],[1]:[31]])-Таблица1[[#This Row],[Столбец1]] -> 7.2 | AN72: =SUM(IFERROR(WEEKDAY($H$2:$AL$2,2)>5,)*H72:AL72)+Таблица1[[#This Row],[2]]+Таблица1[[#This Row],[5]]+Таблица1[[#This Row],[6]]+Таблица1[[#This Row],[8]]+Таблица1[[#This Row],[7]]+Таблица1[[#This Row],[9]] -> 0
A73: январь | B73: 2026 | C73: 60 | D73: 1-26 | E73: 1,4 | F73: Борода Ирина Борисовна | G73: 3/1 | AD73: 3.2 | AG73: 7.2 | AM73: =SUM(Таблица1[[#This Row],[1]:[31]])-Таблица1[[#This Row],[Столбец1]] -> 10.4 | AN73: =SUM(IFERROR(WEEKDAY($H$2:$AL$2,2)>5,)*H73:AL73)+Таблица1[[#This Row],[2]]+Таблица1[[#This Row],[5]]+Таблица1[[#This Row],[6]]+Таблица1[[#This Row],[8]]+Таблица1[[#This Row],[7]]+Таблица1[[#This Row],[9]] -> 0
A74: январь | B74: 2026 | C74: 75 | D74: 1-26 | E74: 1 | F74: Ложкина Елена Сергеевна | G74: 3/1 | AG74: 7.2 | AI74: 7.2 | AJ74: 4.2 | AK74: 4.2 | AM74: =SUM(Таблица1[[#This Row],[1]:[31]])-Таблица1[[#This Row],[Столбец1]] -> 22.8 | AN74: =SUM(IFERROR(WEEKDAY($H$2:$AL$2,2)>5,)*H74:AL74)+Таблица1[[#This Row],[2]]+Таблица1[[#This Row],[5]]+Таблица1[[#This Row],[6]]+Таблица1[[#This Row],[8]]+Таблица1[[#This Row],[7]]+Таблица1[[#This Row],[9]] -> 0
A75: январь | B75: 2026 | C75: 60 | D75: 1-26 | E75: 1 | F75: Иванова Екатерина Борисовна | G75: 4/8 | AH75: 7.2 | AM75: =SUM(Таблица1[[#This Row],[1]:[31]])-Таблица1[[#This Row],[Столбец1]] -> 7.2 | AN75: =SUM(IFERROR(WEEKDAY($H$2:$AL$2,2)>5,)*H75:AL75)+Таблица1[[#This Row],[2]]+Таблица1[[#This Row],[5]]+Таблица1[[#This Row],[6]]+Таблица1[[#This Row],[8]]+Таблица1[[#This Row],[7]]+Таблица1[[#This Row],[9]] -> 0
A76: январь | B76: 2026 | C76: 60 | D76: 1-26 | E76: 1 | F76: Борода Ирина Борисовна | G76: 3/1 | AI76: 7.2 | AM76: =SUM(Таблица1[[#This Row],[1]:[31]])-Таблица1[[#This Row],[Столбец1]] -> 7.2 | AN76: =SUM(IFERROR(WEEKDAY($H$2:$AL$2,2)>5,)*H76:AL76)+Таблица1[[#This Row],[2]]+Таблица1[[#This Row],[5]]+Таблица1[[#This Row],[6]]+Таблица1[[#This Row],[8]]+Таблица1[[#This Row],[7]]+Таблица1[[#This Row],[9]] -> 0
A77: январь | B77: 2026 | C77: 75 | D77: 1-26 | E77: 1,4 | F77: Ложкина Елена Сергеевна | G77: 3/1 | AH77: 3 | AJ77: 3 | AK77: 3 | AL77: 7 | AM77: =SUM(Таблица1[[#This Row],[1]:[31]])-Таблица1[[#This Row],[Столбец1]] -> 9 | AN77: =SUM(IFERROR(WEEKDAY($H$2:$AL$2,2)>5,)*H77:AL77)+Таблица1[[#This Row],[2]]+Таблица1[[#This Row],[5]]+Таблица1[[#This Row],[6]]+Таблица1[[#This Row],[8]]+Таблица1[[#This Row],[7]]+Таблица1[[#This Row],[9]] -> 7
A78: январь | B78: 2026 | C78: 1 | D78: 1-25 | E78: 1 | F78: Носова Мария Андреевна | G78: 3/1 | AH78: 4 | AM78: =SUM(Таблица1[[#This Row],[1]:[31]])-Таблица1[[#This Row],[Столбец1]] -> 4 | AN78: =SUM(IFERROR(WEEKDAY($H$2:$AL$2,2)>5,)*H78:AL78)+Таблица1[[#This Row],[2]]+Таблица1[[#This Row],[5]]+Таблица1[[#This Row],[6]]+Таблица1[[#This Row],[8]]+Таблица1[[#This Row],[7]]+Таблица1[[#This Row],[9]] -> 0
A79: январь | B79: 2026 | C79: 75 | D79: 1-26 | E79: 1 | F79: Ложкина Елена Сергеевна | G79: 3/1 | AH79: 4.2 | AM79: =SUM(Таблица1[[#This Row],[1]:[31]])-Таблица1[[#This Row],[Столбец1]] -> 4.2 | AN79: =SUM(IFERROR(WEEKDAY($H$2:$AL$2,2)>5,)*H79:AL79)+Таблица1[[#This Row],[2]]+Таблица1[[#This Row],[5]]+Таблица1[[#This Row],[6]]+Таблица1[[#This Row],[8]]+Таблица1[[#This Row],[7]]+Таблица1[[#This Row],[9]] -> 0
A80: январь | B80: 2026 | C80: 75 | D80: 1-26 | E80: 1 | F80: Носова Мария Андреевна | G80: 3/1 | AJ80: 4 | AM80: =SUM(Таблица1[[#This Row],[1]:[31]])-Таблица1[[#This Row],[Столбец1]] -> 4 | AN80: =SUM(IFERROR(WEEKDAY($H$2:$AL$2,2)>5,)*H80:AL80)+Таблица1[[#This Row],[2]]+Таблица1[[#This Row],[5]]+Таблица1[[#This Row],[6]]+Таблица1[[#This Row],[8]]+Таблица1[[#This Row],[7]]+Таблица1[[#This Row],[9]] -> 0
A81: январь | B81: 2026 | C81: 60 | D81: 1-26 | E81: 1 | F81: Зайка Ирина Сергеевна | G81: 4/8 | AH81: 7.2 | AI81: 7.2 | AM81: =SUM(Таблица1[[#This Row],[1]:[31]])-Таблица1[[#This Row],[Столбец1]] -> 14.4 | AN81: =SUM(IFERROR(WEEKDAY($H$2:$AL$2,2)>5,)*H81:AL81)+Таблица1[[#This Row],[2]]+Таблица1[[#This Row],[5]]+Таблица1[[#This Row],[6]]+Таблица1[[#This Row],[8]]+Таблица1[[#This Row],[7]]+Таблица1[[#This Row],[9]] -> 0
A82: январь | B82: 2026 | C82: 75 | D82: 1-26 | E82: 1 | F82: Марко Ирина Вячеславовна | G82: 3/1 | AI82: 7.2 | AJ82: 7.2 | AK82: 7.2 | AL82: 6 | AM82: =SUM(Таблица1[[#This Row],[1]:[31]])-Таблица1[[#This Row],[Столбец1]] -> 21.6 | AN82: =SUM(IFERROR(WEEKDAY($H$2:$AL$2,2)>5,)*H82:AL82)+Таблица1[[#This Row],[2]]+Таблица1[[#This Row],[5]]+Таблица1[[#This Row],[6]]+Таблица1[[#This Row],[8]]+Таблица1[[#This Row],[7]]+Таблица1[[#This Row],[9]] -> 6
A83: январь | B83: 2026 | AM83: =SUM(Таблица1[[#This Row],[1]:[31]])-Таблица1[[#This Row],[Столбец1]] -> 0 | AN83: =SUM(IFERROR(WEEKDAY($H$2:$AL$2,2)>5,)*H83:AL83)+Таблица1[[#This Row],[2]]+Таблица1[[#This Row],[5]]+Таблица1[[#This Row],[6]]+Таблица1[[#This Row],[8]]+Таблица1[[#This Row],[7]]+Таблица1[[#This Row],[9]] -> 0
A84: январь | B84: 2026 | AM84: =SUM(Таблица1[[#This Row],[1]:[31]])-Таблица1[[#This Row],[Столбец1]] -> 0 | AN84: =SUM(IFERROR(WEEKDAY($H$2:$AL$2,2)>5,)*H84:AL84)+Таблица1[[#This Row],[2]]+Таблица1[[#This Row],[5]]+Таблица1[[#This Row],[6]]+Таблица1[[#This Row],[8]]+Таблица1[[#This Row],[7]]+Таблица1[[#This Row],[9]] -> 0
A85: январь | B85: 2026 | AM85: =SUM(Таблица1[[#This Row],[1]:[31]])-Таблица1[[#This Row],[Столбец1]] -> 0 | AN85: =SUM(IFERROR(WEEKDAY($H$2:$AL$2,2)>5,)*H85:AL85)+Таблица1[[#This Row],[2]]+Таблица1[[#This Row],[5]]+Таблица1[[#This Row],[6]]+Таблица1[[#This Row],[8]]+Таблица1[[#This Row],[7]]+Таблица1[[#This Row],[9]] -> 0
A86: январь | B86: 2026 | AM86: =SUM(Таблица1[[#This Row],[1]:[31]])-Таблица1[[#This Row],[Столбец1]] -> 0 | AN86: =SUM(IFERROR(WEEKDAY($H$2:$AL$2,2)>5,)*H86:AL86)+Таблица1[[#This Row],[2]]+Таблица1[[#This Row],[5]]+Таблица1[[#This Row],[6]]+Таблица1[[#This Row],[8]]+Таблица1[[#This Row],[7]]+Таблица1[[#This Row],[9]] -> 0
A87: январь | B87: 2026 | AM87: =SUM(Таблица1[[#This Row],[1]:[31]])-Таблица1[[#This Row],[Столбец1]] -> 0 | AN87: =SUM(IFERROR(WEEKDAY($H$2:$AL$2,2)>5,)*H87:AL87)+Таблица1[[#This Row],[2]]+Таблица1[[#This Row],[5]]+Таблица1[[#This Row],[6]]+Таблица1[[#This Row],[8]]+Таблица1[[#This Row],[7]]+Таблица1[[#This Row],[9]] -> 0
A88: январь | B88: 2026 | AM88: =SUM(Таблица1[[#This Row],[1]:[31]])-Таблица1[[#This Row],[Столбец1]] -> 0 | AN88: =SUM(IFERROR(WEEKDAY($H$2:$AL$2,2)>5,)*H88:AL88)+Таблица1[[#This Row],[2]]+Таблица1[[#This Row],[5]]+Таблица1[[#This Row],[6]]+Таблица1[[#This Row],[8]]+Таблица1[[#This Row],[7]]+Таблица1[[#This Row],[9]] -> 0
A89: январь | B89: 2026 | AM89: =SUM(Таблица1[[#This Row],[1]:[31]])-Таблица1[[#This Row],[Столбец1]] -> 0 | AN89: =SUM(IFERROR(WEEKDAY($H$2:$AL$2,2)>5,)*H89:AL89)+Таблица1[[#This Row],[2]]+Таблица1[[#This Row],[5]]+Таблица1[[#This Row],[6]]+Таблица1[[#This Row],[8]]+Таблица1[[#This Row],[7]]+Таблица1[[#This Row],[9]] -> 0
A90: январь | B90: 2026 | AM90: =SUM(Таблица1[[#This Row],[1]:[31]])-Таблица1[[#This Row],[Столбец1]] -> 0 | AN90: =SUM(IFERROR(WEEKDAY($H$2:$AL$2,2)>5,)*H90:AL90)+Таблица1[[#This Row],[2]]+Таблица1[[#This Row],[5]]+Таблица1[[#This Row],[6]]+Таблица1[[#This Row],[8]]+Таблица1[[#This Row],[7]]+Таблица1[[#This Row],[9]] -> 0
A91: январь | B91: 2026 | AM91: =SUM(Таблица1[[#This Row],[1]:[31]])-Таблица1[[#This Row],[Столбец1]] -> 0 | AN91: =SUM(IFERROR(WEEKDAY($H$2:$AL$2,2)>5,)*H91:AL91)+Таблица1[[#This Row],[2]]+Таблица1[[#This Row],[5]]+Таблица1[[#This Row],[6]]+Таблица1[[#This Row],[8]]+Таблица1[[#This Row],[7]]+Таблица1[[#This Row],[9]] -> 0
A92: январь | B92: 2026 | AM92: =SUM(Таблица1[[#This Row],[1]:[31]])-Таблица1[[#This Row],[Столбец1]] -> 0 | AN92: =SUM(IFERROR(WEEKDAY($H$2:$AL$2,2)>5,)*H92:AL92)+Таблица1[[#This Row],[2]]+Таблица1[[#This Row],[5]]+Таблица1[[#This Row],[6]]+Таблица1[[#This Row],[8]]+Таблица1[[#This Row],[7]]+Таблица1[[#This Row],[9]] -> 0
A93: январь | B93: 2026 | AM93: =SUM(Таблица1[[#This Row],[1]:[31]])-Таблица1[[#This Row],[Столбец1]] -> 0 | AN93: =SUM(IFERROR(WEEKDAY($H$2:$AL$2,2)>5,)*H93:AL93)+Таблица1[[#This Row],[2]]+Таблица1[[#This Row],[5]]+Таблица1[[#This Row],[6]]+Таблица1[[#This Row],[8]]+Таблица1[[#This Row],[7]]+Таблица1[[#This Row],[9]] -> 0
A94: январь | B94: 2026 | AM94: =SUM(Таблица1[[#This Row],[1]:[31]])-Таблица1[[#This Row],[Столбец1]] -> 0 | AN94: =SUM(IFERROR(WEEKDAY($H$2:$AL$2,2)>5,)*H94:AL94)+Таблица1[[#This Row],[2]]+Таблица1[[#This Row],[5]]+Таблица1[[#This Row],[6]]+Таблица1[[#This Row],[8]]+Таблица1[[#This Row],[7]]+Таблица1[[#This Row],[9]] -> 0
A95: январь | B95: 2026 | AM95: =SUM(Таблица1[[#This Row],[1]:[31]])-Таблица1[[#This Row],[Столбец1]] -> 0 | AN95: =SUM(IFERROR(WEEKDAY($H$2:$AL$2,2)>5,)*H95:AL95)+Таблица1[[#This Row],[2]]+Таблица1[[#This Row],[5]]+Таблица1[[#This Row],[6]]+Таблица1[[#This Row],[8]]+Таблица1[[#This Row],[7]]+Таблица1[[#This Row],[9]] -> 0
A96: январь | B96: 2026 | AM96: =SUM(Таблица1[[#This Row],[1]:[31]])-Таблица1[[#This Row],[Столбец1]] -> 0 | AN96: =SUM(IFERROR(WEEKDAY($H$2:$AL$2,2)>5,)*H96:AL96)+Таблица1[[#This Row],[2]]+Таблица1[[#This Row],[5]]+Таблица1[[#This Row],[6]]+Таблица1[[#This Row],[8]]+Таблица1[[#This Row],[7]]+Таблица1[[#This Row],[9]] -> 0
A97: январь | B97: 2026 | AM97: =SUM(Таблица1[[#This Row],[1]:[31]])-Таблица1[[#This Row],[Столбец1]] -> 0 | AN97: =SUM(IFERROR(WEEKDAY($H$2:$AL$2,2)>5,)*H97:AL97)+Таблица1[[#This Row],[2]]+Таблица1[[#This Row],[5]]+Таблица1[[#This Row],[6]]+Таблица1[[#This Row],[8]]+Таблица1[[#This Row],[7]]+Таблица1[[#This Row],[9]] -> 0
A98: январь | B98: 2026 | AM98: =SUM(Таблица1[[#This Row],[1]:[31]])-Таблица1[[#This Row],[Столбец1]] -> 0 | AN98: =SUM(IFERROR(WEEKDAY($H$2:$AL$2,2)>5,)*H98:AL98)+Таблица1[[#This Row],[2]]+Таблица1[[#This Row],[5]]+Таблица1[[#This Row],[6]]+Таблица1[[#This Row],[8]]+Таблица1[[#This Row],[7]]+Таблица1[[#This Row],[9]] -> 0
A99: январь | B99: 2026 | AM99: =SUM(Таблица1[[#This Row],[1]:[31]])-Таблица1[[#This Row],[Столбец1]] -> 0 | AN99: =SUM(IFERROR(WEEKDAY($H$2:$AL$2,2)>5,)*H99:AL99)+Таблица1[[#This Row],[2]]+Таблица1[[#This Row],[5]]+Таблица1[[#This Row],[6]]+Таблица1[[#This Row],[8]]+Таблица1[[#This Row],[7]]+Таблица1[[#This Row],[9]] -> 0
A100: январь | B100: 2026 | AM100: =SUM(Таблица1[[#This Row],[1]:[31]])-Таблица1[[#This Row],[Столбец1]] -> 0 | AN100: =SUM(IFERROR(WEEKDAY($H$2:$AL$2,2)>5,)*H100:AL100)+Таблица1[[#This Row],[2]]+Таблица1[[#This Row],[5]]+Таблица1[[#This Row],[6]]+Таблица1[[#This Row],[8]]+Таблица1[[#This Row],[7]]+Таблица1[[#This Row],[9]] -> 0

Sheet сверхур
A1: месяц | B1: год | C1: изд | D1: партия | E1: коэф | F1: Ф. И. О. | G1: р/р | H1: 1 | I1: 2 | J1: 3 | K1: 4 | L1: 5 | M1: 6 | N1: 7 | O1: 8 | P1: 9 | Q1: 10 | R1: 11 | S1: 12 | T1: 13 | U1: 14 | V1: 15 | W1: 16 | X1: 17 | Y1: 18 | Z1: 19 | AA1: 20 | AB1: 21 | AC1: 22 | AD1: 23 | AE1: 24 | AF1: 25 | AG1: 26 | AH1: 27 | AI1: 28 | AJ1: 29 | AK1: 30 | AL1: 31 | AM1: часы | AN1: Столбец2
A2: =Data_Tech!A6 -> январь | B2: 2026 | C2: 8Б | D2: 1-26 | E2: 1,5 | F2: Егорова Татьяна Владимировна | G2: 4/8 | S2: 4 | T2: 1 | U2: 4 | V2: 1 | W2: 4 | Z2: 4 | AA2: 1 | AB2: 4 | AC2: 1 | AD2: 4 | AG2: 1 | AH2: 1 | AI2: 4 | AJ2: 1 | AK2: 4 | AM2: =SUM(H2:AL2) -> 39 | AN2: =#REF! -> 
A3: =Data_Tech!A7 -> январь | B3: 2026 | C3: 31 | D3: 1-26 | E3: 1 | F3: Груздь Олеся Иванна | G3: 4/8 | S3: 2 | AM3: 2 | AN3: =#REF! -> 
A4: =Data_Tech!A8 -> январь | B4: 2026 | C4: 1 | D4: 2026-01-25 | E4: 1 | F4: Хан Наталия Григорьевна | G4: 3/2 | S4: 1 | AM4: 1 | AN4: =#REF! -> 
A5: =Data_Tech!A9 -> январь | B5: 2026 | C5: 75 | D5: 1-26 | E5: 1 | F5: Попова Виктория | G5: 3/1 | S5: 4 | AM5: 4 | AN5: =#REF! -> 
A6: =Data_Tech!A10 -> январь | B6: 2026 | C6: 8Б | D6: 1-26 | E6: 1,5 | F6: Королёва Надежда Игоревна | G6: 4/8 | S6: 4 | U6: 4 | V6: 4 | W6: 4 | Z6: 2 | AA6: 4 | AB6: 4 | AC6: 4 | AD6: 4 | AG6: 4 | AH6: 4 | AM6: 42 | AN6: =#REF! -> 
A7: =Data_Tech!A11 -> январь | B7: 2026 | C7: 1 | D7: 2026-01-25 | E7: 1 | F7: Гриша Ольга Викторовна | G7: 3/1 | S7: 4 | AM7: 4 | AN7: =#REF! -> 
A8: =Data_Tech!A12 -> январь | B8: 2026 | C8: 75 | D8: 1-26 | E8: 1,5 | F8: Иванова Екатерина Борисовна | G8: 4/8 | S8: 4 | T8: 4 | W8: 4 | Z8: 3 | AA8: 3 | AB8: 4 | AC8: 4 | AD8: 4 | AG8: 4 | AJ8: 4 | AK8: 4 | AM8: 42 | AN8: =#REF! -> 
A9: =Data_Tech!A13 -> январь | B9: 2026 | C9: 8Б | D9: 1-26 | E9: 1,4 | F9: Алешкина Лариса Алексеевна | G9: 3/2 | S9: 4 | T9: 4 | U9: 4 | V9: 4 | W9: 4 | AB9: 4 | AC9: 2 | AD9: 3 | AH9: 4 | AI9: 4 | AJ9: 4 | AK9: 4 | AM9: 45 | AN9: =#REF! -> 
A10: =Data_Tech!A14 -> январь | B10: 2026 | C10: 8Б | D10: 1-26 | E10: 1 | F10: Марко Ирина Вячеславовна | G10: 3/1 | U10: 7.2 | V10: 2.2 | AH10: 5.2 | AM10: 14.6 | AN10: =#REF! -> 
A11: =Data_Tech!A15 -> январь | B11: 2026 | C11: 60 | D11: 1-26 | E11: 1,4 | F11: Марко Ирина Вячеславовна | G11: 3/1 | S11: 7.2 | T11: 7.2 | AM11: 14.4 | AN11: =#REF! -> 
A12: =Data_Tech!A16 -> январь | B12: 2026 | C12: 31 | D12: 1-26 | E12: 1 | F12: Марко Ирина Вячеславовна | G12: 3/1 | V12: 1 | W12: 3 | X12: 1.5 | Z12: 3 | AA12: 3 | AG12: 3 | AH12: 2 | AM12: 16.5 | AN12: =#REF! -> 
A13: =Data_Tech!A17 -> январь | B13: 2026 | C13: 75 | D13: 1-26 | E13: 1,4 | F13: Марко Ирина Вячеславовна | G13: 3/1 | AI13: 3.2 | AJ13: 3.1 | AK13: 1 | AL13: 6 | AM13: 13.3 | AN13: =#REF! -> 
A14: =Data_Tech!A18 -> январь | B14: 2026 | C14: 75 | D14: 1-26 | E14: 1,5 | F14: Зайка Ирина Сергеевна | G14: 4/8 | S14: 4 | AM14: 4 | AN14: =#REF! -> 
A15: =Data_Tech!A19 -> январь | B15: 2026 | C15: 60 | D15: 1-26 | E15: 1 | F15: Носова Мария Андреевна | G15: 3/1 | S15: 3.9 | AD15: 2 | AM15: 5.9 | AN15: =#REF! -> 
A16: =Data_Tech!A20 -> январь | B16: 2026 | C16: 1 | D16: 1-25 | E16: 1,4 | F16: Оленева Анна Викторовна | G16: 3/2 | S16: 2 | AD16: 2 | AG16: 3 | AH16: 3 | AJ16: 4 | AK16: 2 | AM16: 16 | AN16: =#REF! -> 
A17: =Data_Tech!A21 -> январь | B17: 2026 | C17: 8Б | D17: 1-26 | E17: 1 | F17: Яблокова Дарья Александровна | G17: 3/1 | S17: 1.5 | T17: 4 | AM17: 5.5 | AN17: =#REF! -> 
A18: =Data_Tech!A22 -> январь | B18: 2026 | C18: 8Б | D18: 1-26 | E18: 1 | F18: Яблокова Дарья Александровна | G18: 3/2 | S18: 2.5 | U18: 4 | V18: 4 | Z18: 4 | AA18: 4 | AB18: 4 | AC18: 4 | AD18: 4 | AG18: 4 | AH18: 4 | AI18: 4 | AJ18: 4 | AM18: 46.5 | AN18: =#REF! -> 
A19: =Data_Tech!A23 -> январь | B19: 2026 | C19: 8Б | D19: 1-26 | E19: 1 | F19: Груздь Олеся Иванна | G19: 3/1 | T19: 2 | AM19: 2 | AN19: =#REF! -> 
A20: =Data_Tech!A24 -> январь | B20: 2026 | C20: 1 | D20: 1-25 | E20: 1 | F20: Носова Мария Андреевна | G20: 3/1 | T20: 4 | AM20: 4 | AN20: =#REF! -> 
A21: =Data_Tech!A25 -> январь | B21: 2026 | C21: 8Б | D21: 1-26 | E21: 1 | F21: Кузнецова Алина Дмитриевна | G21: 3/1 | T21: 4 | U21: 2 | AG21: 1 | AH21: 4 | AM21: 11 | AN21: =#REF! -> 
A22: =Data_Tech!A26 -> январь | B22: 2026 | C22: 8Б | D22: 1-26 | E22: 1,4 | F22: Оленева Анна Викторовна | G22: 3/2 | T22: 4 | Z22: 3 | AA22: 4 | AB22: 3 | AI22: 4 | AM22: 18 | AN22: =#REF! -> 
A23: =Data_Tech!A27 -> январь | B23: 2026 | C23: 8Б | D23: 1-26 | E23: 1,4 | F23: Жукова Машка Валентинна | G23: 3/2 | T23: 4 | U23: 3 | AM23: 7 | AN23: =#REF! -> 
A24: =Data_Tech!A28 -> январь | B24: 2026 | C24: 75 | D24: 1-26 | E24: 1 | F24: Глинка Екатерина Юрьевна | G24: 3/2 | T24: 2.9 | V24: 3.3 | Z24: 4 | AA24: 4 | AC24: 2 | AG24: 1 | AI24: 4 | AJ24: 4 | AM24: 25.2 | AN24: =#REF! -> 
A25: =Data_Tech!A29 -> январь | B25: 2026 | C25: 8Б | D25: 1-26 | E25: 1 | F25: Борода Ирина Борисовна | G25: 3/1 | T25: 3 | W25: 2 | AI25: 2 | AM25: 7 | AN25: =#REF! -> 
A26: =Data_Tech!A30 -> январь | B26: 2026 | C26: 1 | D26: 1-25 | E26: 1 | F26: Попова Виктория | G26: 3/1 | T26: 4 | V26: 4 | W26: 4 | AM26: 12 | AN26: =#REF! -> 
A27: =Data_Tech!A31 -> январь | B27: 2026 | C27: 8Б | D27: 1-26 | E27: 1 | F27: Носова Мария Андреевна | G27: 3/1 | U27: 4 | Z27: 3 | AA27: 4 | AB27: 3.3 | AM27: 14.3 | AN27: =#REF! -> 
A28: =Data_Tech!A32 -> январь | B28: 2026 | C28: 8Б | D28: 1-26 | E28: 1 | F28: Хан Наталия Григорьевна | G28: 3/2 | U28: 1 | AB28: 3.3 | AD28: 2.5 | AM28: 6.8 | AN28: =#REF! -> 
A29: =Data_Tech!A33 -> январь | B29: 2026 | C29: 75 | D29: 1-26 | E29: 1 | F29: Иванова Инна Игоревна | G29: 3/1 | U29: 4 | V29: 3 | Z29: 4 | AA29: 4 | AC29: 4 | AD29: 4 | AJ29: 3 | AK29: 3 | AM29: 29 | AN29: =#REF! -> 
A30: =Data_Tech!A34 -> январь | B30: 2026 | C30: 31 | D30: 1-26 | E30: 1,3 | F30: Борода Ирина Борисовна | G30: 3/1 | U30: 3 | V30: 3 | AM30: 6 | AN30: =#REF! -> 
A31: =Data_Tech!A35 -> январь | B31: 2026 | C31: 60 | D31: 1-26 | E31: 1,4 | F31: Иванова Екатерина Борисовна | G31: 4/8 | U31: 4 | AM31: =SUM(H31:AL31) -> 4 | AN31: =#REF! -> 
A32: =Data_Tech!A36 -> январь | B32: 2026 | C32: 75 | D32: 1-26 | E32: 1,4 | F32: Носова Мария Андреевна | G32: 3/1 | V32: 4 | W32: 3.8 | AG32: 3.9 | AH32: 4 | AM32: 15.7 | AN32: =#REF! -> 
A33: =Data_Tech!A37 -> январь | B33: 2026 | C33: 75 | D33: 1-26 | E33: 1,5 | F33: Кузнецова Алина Дмитриевна | G33: 4/8 | V33: 2 | AM33: 2 | AN33: =#REF! -> 
A34: =Data_Tech!A38 -> январь | B34: 2026 | C34: 75 | D34: 1-26 | E34: 1 | F34: Гриша Ольга Викторовна | G34: 3/1 | U34: 4 | V34: 4 | W34: 2 | AB34: 4 | AI34: 4 | AJ34: 4 | AM34: 22 | AN34: =#REF! -> 
A35: =Data_Tech!A39 -> январь | B35: 2026 | C35: 75 | D35: 1-26 | E35: 1 | F35: Кузнецова Алина Дмитриевна | G35: 3/1 | W35: 3 | AA35: 4 | AB35: 4 | AM35: 11 | AN35: =#REF! -> 
A36: =Data_Tech!A40 -> январь | B36: 2026 | C36: 1 | D36: 1-25 | E36: 1 | F36: Иванова Инна Игоревна | G36: 3/2 | W36: 3 | AM36: 3 | AN36: =#REF! -> 
A37: =Data_Tech!A41 -> январь | B37: 2026 | C37: 1 | D37: 1-25 | E37: 1 | F37: Шишина Наталья Александровна | G37: 2б | Z37: 4 | AA37: 4 | AM37: 8 | AN37: =#REF! -> 
A38: =Data_Tech!A42 -> январь | B38: 2026 | C38: 8Б | D38: 1-26 | E38: 1 | F38: Гриша Ольга Викторовна | G38: 3/1 | Z38: 4 | AA38: 4 | AH38: 4 | AM38: 12 | AN38: =#REF! -> 
A39: =Data_Tech!A43 -> январь | B39: 2026 | C39: 1 | D39: 1-25 | E39: 1 | F39: Борода Ирина Борисовна | G39: 3/1 | Z39: 4 | AC39: 4 | AK39: 2 | AM39: 10 | AN39: =#REF! -> 
A40: =Data_Tech!A44 -> январь | B40: 2026 | C40: 8Б | D40: 1-26 | E40: 1 | F40: Хан Наталия Григорьевна | G40: 3/1 | Z40: 2.9 | AA40: 3.3 | AM40: 6.2 | AN40: =#REF! -> 
A41: =Data_Tech!A45 -> январь | B41: 2026 | C41: 1 | D41: 1-25 | E41: 1,5 | F41: Груздь Олеся Иванна | G41: 4/8 | AA41: 2 | AH41: 2 | AI41: 2 | AJ41: 2 | AM41: 8 | AN41: =#REF! -> 
A42: =Data_Tech!A46 -> январь | B42: 2026 | C42: 75 | D42: 1-26 | E42: 1,4 | F42: Борода Ирина Борисовна | G42: 3/1 | AA42: 4 | AM42: 4 | AN42: =#REF! -> 
A43: =Data_Tech!A47 -> январь | B43: 2026 | C43: 60 | D43: 1-26 | E43: 1 | F43: Попова Виктория | G43: 3/1 | Z43: 4 | AA43: 4 | AB43: 4 | AC43: 4 | AD43: 4 | AH43: 4 | AI43: 4 | AJ43: 4 | AK43: 4 | AM43: 36 | AN43: =#REF! -> 
A44: =Data_Tech!A48 -> январь | B44: 2026 | C44: 60 | D44: 1-26 | E44: 1 | F44: Глинка Екатерина Юрьевна | G44: 3/1 | AB44: 4 | AM44: 4 | AN44: =#REF! -> 
A45: =Data_Tech!A49 -> январь | B45: 2026 | C45: 75 | D45: 1-26 | E45: 1 | F45: Шишина Наталья Александровна | G45: 3/1 | AB45: 4 | AM45: 4 | AN45: =#REF! -> 
A46: =Data_Tech!A50 -> январь | B46: 2026 | C46: 1 | D46: 1-25 | E46: 1,4 | F46: Борода Ирина Борисовна | G46: 3/2 | AB46: 4 | AH46: 1 | AM46: 5 | AN46: =#REF! -> 
A47: =Data_Tech!A51 -> январь | B47: 2026 | C47: 60 | D47: 1-26 | E47: 1 | F47: Иванова Инна Игоревна | G47: 3/2 | AB47: 4 | AM47: 4 | AN47: =#REF! -> 
A48: =Data_Tech!A52 -> январь | B48: 2026 | C48: 1 | D48: 1-25 | E48: 1 | F48: Шишина Наталья Александровна | G48: 3/2 | AC48: 4 | AM48: 4 | AN48: =#REF! -> 
A49: =Data_Tech!A53 -> январь | B49: 2026 | C49: 60 | D49: 1-26 | E49: 1 | F49: Кузнецова Алина Дмитриевна | G49: 3/2 | AC49: 4 | AM49: 4 | AN49: =#REF! -> 
A50: =Data_Tech!A54 -> январь | B50: 2026 | C50: 1 | D50: 1-25 | E50: 1,5 | F50: Авдеева Елена Николаевна | G50: 4/8 | AC50: 4 | AD50: 4 | AG50: 2 | AH50: 2 | AI50: 3 | AJ50: 4 | AK50: 4 | AM50: 23 | AN50: =#REF! -> 
A51: =Data_Tech!A55 -> январь | B51: 2026 | C51: 1 | D51: 1-25 | E51: 1,4 | F51: Хан Наталия Григорьевна | G51: 3/2 | AC51: 3.2 | AM51: 3.2 | AN51: =#REF! -> 
A52: =Data_Tech!A56 -> январь | B52: 2026 | C52: 8Б | D52: 1-26 | E52: 1 | F52: Шишина Наталья Александровна | G52: 3/1 | AD52: 4 | AM52: =SUM(H52:AL52) -> 4 | AN52: =#REF! -> 
A53: =Data_Tech!A57 -> январь | B53: 2026 | C53: 60 | D53: 1-26 | E53: 1 | F53: Глинка Екатерина Юрьевна | G53: 3/1 | AD53: 4 | AM53: 4 | AN53: =#REF! -> 
A54: =Data_Tech!A58 -> январь | B54: 2026 | C54: 1 | D54: 1-25 | E54: 1 | F54: Кузнецова Алина Дмитриевна | G54: 3/2 | AD54: 4 | AM54: 4 | AN54: =#REF! -> 
A55: =Data_Tech!A59 -> январь | B55: 2026 | C55: 60 | D55: 1-26 | E55: 1,4 | F55: Борода Ирина Борисовна | G55: 3/2 | AD55: 4 | AM55: 4 | AN55: =#REF! -> 
A56: =Data_Tech!A60 -> январь | B56: 2026 | C56: 8Б | D56: 1-26 | E56: 1 | F56: Шишина Наталья Александровна | G56: 2а | AG56: 2.3 | AJ56: 4 | AK56: 4 | AM56: 10.3 | AN56: =#REF! -> 
A57: =Data_Tech!A61 -> январь | B57: 2026 | C57: 75 | D57: 1-26 | E57: 1,4 | F57: Ложкина Елена Сергеевна | G57: 3/2 | AH57: 4 | AJ57: 4 | AK57: 4 | AM57: 12 | AN57: =#REF! -> 
A58: =Data_Tech!A62 -> январь | B58: 2026 | C58: 75 | D58: 1-26 | E58: 1 | F58: Носова Мария Андреевна | G58: 3/2 | AI58: 4 | AK58: 4 | AM58: 8 | AN58: =#REF! -> 
A59: =Data_Tech!A63 -> январь | B59: 2026 | C59: 60 | D59: 1-26 | E59: 1,4 | F59: Носова Мария Андреевна | G59: 3/2 | AJ59: 4 | AM59: 4 | AN59: =#REF! -> 
A60: =Data_Tech!A64 -> январь | B60: 2026 | C60: 8Б | D60: 1-26 | E60: 1 | F60: Глинка Екатерина Юрьевна | G60: 3/1 | AH60: 2.1 | AM60: 2.1 | AN60: =#REF! -> 
A61: =Data_Tech!A65 -> январь | B61: 2026 | C61: 75 | D61: 1-26 | E61: 1 | F61: Ложкина Елена Сергеевна | G61: 3/2 | AI61: 4 | AM61: 4 | AN61: =#REF! -> 
A62: =Data_Tech!A66 -> январь | B62: 2026 | C62: 60 | D62: 1-26 | E62: 1,5 | F62: Иванова Екатерина Борисовна | G62: 4/8 | AI62: 4 | AM62: 4 | AN62: =#REF! -> 
A63: =Data_Tech!A67 -> январь | B63: 2026 | C63: 75 | D63: 1-26 | E63: 1 | F63: Кузнецова Алина Дмитриевна | G63: 3/2 | AJ63: 2 | AK63: 2 | AM63: 4 | AN63: =#REF! -> 
A64: =Data_Tech!A68 -> январь | B64: 2026 | C64: 1 | D64: 1-25 | E64: 1,3 | F64: Гриша Ольга Викторовна | G64: 3/1 | AA64: 4 | AM64: =SUM(H64:AL64) -> 4 | AN64: =#REF! -> 
A65: =Data_Tech!A69 -> январь | B65: 2026 | AM65: 0 | AN65: =#REF! -> 
A66: =Data_Tech!A70 -> январь | B66: 2026 | AM66: 0 | AN66: =#REF! -> 
A67: =Data_Tech!A71 -> январь | B67: 2026 | AM67: 0 | AN67: =#REF! -> 
A68: =Data_Tech!A72 -> январь | B68: 2026 | AM68: 0 | AN68: =#REF! -> 
A69: =Data_Tech!A73 -> январь | B69: 2026 | AM69: 0 | AN69: =#REF! -> 
A70: =Data_Tech!A74 -> январь | B70: 2026 | AM70: 0 | AN70: =#REF! -> 
A71: =Data_Tech!A75 -> январь | B71: 2026 | AM71: 0 | AN71: =#REF! -> 
A72: =Data_Tech!A76 -> январь | B72: 2026 | AM72: 0 | AN72: =#REF! -> 
A73: =Data_Tech!A77 -> январь | B73: 2026 | AM73: 0 | AN73: =#REF! -> 
A74: =Data_Tech!A78 -> январь | B74: 2026 | AM74: 0 | AN74: =#REF! -> 
A75: =Data_Tech!A79 -> январь | B75: 2026 | AM75: 0 | AN75: =#REF! -> 
A76: =Data_Tech!A80 -> январь | B76: 2026 | AM76: 0 | AN76: =#REF! -> 
A77: =Data_Tech!A81 -> январь | B77: 2026 | AM77: 0 | AN77: =#REF! -> 
A78: =Data_Tech!A82 -> январь | B78: 2026 | AM78: 0 | AN78: =#REF! -> 
A79: =Data_Tech!A83 -> январь | B79: 2026 | AM79: 0 | AN79: =#REF! -> 
A80: =Data_Tech!A84 -> январь | B80: 2026 | AM80: =SUM(H80:AL80) -> 0 | AN80: =#REF! -> 
A81: =Data_Tech!A85 -> январь | B81: 2026 | AM81: 0 | AN81: =#REF! -> 
A82: =Data_Tech!A86 -> январь | B82: 2026 | AM82: 0 | AN82: =#REF! -> 
A83: =Data_Tech!A87 -> январь | B83: 2026 | AM83: 0 | AN83: =#REF! -> 
A84: =Data_Tech!A88 -> январь | B84: 2026 | AM84: 0 | AN84: =#REF! -> 
A85: =Data_Tech!A89 -> январь | B85: 2026 | AM85: 0 | AN85: =#REF! -> 
A86: =Data_Tech!A90 -> январь | B86: 2026 | AM86: 0 | AN86: =#REF! -> 
A87: =Data_Tech!A91 -> январь | B87: 2026 | AM87: 0 | AN87: =#REF! -> 
A88: =Data_Tech!A92 -> январь | B88: 2026 | AM88: 0 | AN88: =#REF! -> 
A89: =Data_Tech!A93 -> январь | B89: 2026 | AM89: 0 | AN89: =#REF! -> 
A90: =Data_Tech!A94 -> январь | B90: 2026 | AM90: 0 | AN90: =#REF! -> 
A91: =Data_Tech!A95 -> январь | B91: 2026 | AM91: 0 | AN91: =#REF! -> 
A92: =Data_Tech!A96 -> январь | B92: 2026 | AM92: 0 | AN92: =#REF! -> 
A93: =Data_Tech!A97 -> январь | B93: 2026 | AM93: 0 | AN93: =#REF! -> 
A94: =Data_Tech!A98 -> январь | B94: 2026 | AM94: 0 | AN94: =#REF! -> 
A95: =Data_Tech!A99 -> январь | B95: 2026 | AM95: 0 | AN95: =#REF! -> 
A96: =Data_Tech!A100 -> январь | B96: 2026 | AM96: 0 | AN96: =#REF! -> 
A97: =Data_Tech!A101 -> 0 | B97: 2026 | AM97: 0 | AN97: =#REF! -> 
A98: =Data_Tech!A102 -> 0 | B98: 2026 | AM98: 0 | AN98: =#REF! -> 
A99: =Data_Tech!A103 -> 0 | B99: 2026 | AM99: 0 | AN99: =#REF! -> 
A100: =Data_Tech!A104 -> 0 | B100: 2026 | AM100: 0 | AN100: =#REF! -> 
A101: =Data_Tech!A105 -> 0 | B101: 2026 | AM101: 0 | AN101: =#REF! -> 
A102: =Data_Tech!A106 -> 0 | B102: 2026 | AM102: 0 | AN102: =#REF! -> 
A103: =Data_Tech!A107 -> 0 | B103: 2026 | AM103: 0 | AN103: =#REF! -> 
A104: =Data_Tech!A108 -> 0 | B104: 2026 | AM104: 0 | AN104: =#REF! -> 
A105: =Data_Tech!A109 -> 0 | B105: 2026 | AM105: 0 | AN105: =#REF! -> 
A106: =Data_Tech!A110 -> 0 | B106: 2026 | AM106: 0 | AN106: =#REF! -> 
A107: =Data_Tech!A111 -> 0 | B107: 2026 | AM107: 0 | AN107: =#REF! -> 
A108: =Data_Tech!A112 -> 0 | B108: 2026 | AM108: 0 | AN108: =#REF! -> 
A109: =Data_Tech!A113 -> 0 | B109: 2026 | AM109: 0 | AN109: =#REF! -> 
A110: =Data_Tech!A114 -> 0 | B110: 2026 | AM110: 0 | AN110: =#REF! -> 
A111: =Data_Tech!A115 -> 0 | B111: 2026 | AM111: 0 | AN111: =#REF! -> 
A112: =Data_Tech!A116 -> 0 | B112: 2026 | AM112: =SUM(H112:AL112) -> 0 | AN112: =#REF! -> 
A113: =Data_Tech!A117 -> 0 | B113: 2026 | AM113: 0 | AN113: =#REF! -> 
A114: =Data_Tech!A118 -> 0 | B114: 2026 | AM114: 0 | AN114: =#REF! -> 
A115: =Data_Tech!A119 -> 0 | B115: 2026 | AM115: 0 | AN115: =#REF! -> 
A116: =Data_Tech!A120 -> 0 | B116: 2026 | AM116: 0 | AN116: =#REF! -> 
A117: =Data_Tech!A121 -> 0 | B117: 2026 | AM117: 0 | AN117: =#REF! -> 
A118: =Data_Tech!A122 -> 0 | B118: 2026 | AM118: 0 | AN118: =#REF! -> 
A119: =Data_Tech!A123 -> 0 | B119: 2026 | AM119: 0 | AN119: =#REF! -> 
A120: =Data_Tech!A124 -> 0 | B120: 2026 | AM120: 0 | AN120: =#REF! -> 
A121: =Data_Tech!A125 -> 0 | B121: 2026 | AM121: 0 | AN121: =#REF! -> 
A122: =Data_Tech!A126 -> 0 | B122: 2026 | AM122: 0 | AN122: =#REF! -> 
A123: =Data_Tech!A127 -> 0 | B123: 2026 | AM123: 0 | AN123: =#REF! -> 
A124: =Data_Tech!A128 -> 0 | B124: 2026 | AM124: 0 | AN124: =#REF! -> 

Sheet 75-1-26
O1: Изделие № | W1: 75 | AK1: партия | AO1: 1-26
O5: =Data_Tech!A3 -> январь | S5: =Data_Tech!B4 -> 2026
B6: коэф | C6: Ф. И. О. | D6: р/р | E6: 1 | G6: 2 | I6: 3 | K6: 4 | M6: 5 | O6: 6 | Q6: 7 | S6: 8 | U6: 9 | W6: 10 | Y6: 11 | AA6: 12 | AC6: 13 | AE6: 14 | AG6: 15 | AI6: 16 | AK6: 17 | AM6: 18 | AO6: 19 | AQ6: 20 | AS6: 21 | AU6: 22 | AW6: 23 | AY6: 24 | BA6: 25 | BC6: 26 | BE6: 27 | BG6: 28 | BI6: 29 | BK6: 30 | BM6: 31
A7: 1 | B7: 1 | C7: Алешкина Лариса Алексеевна | D7: 3/1 | E7: =SUMIFS(Таблица14[1],Таблица14[партия],$AO$1,Таблица14[изд],$W$1,Таблица14[коэф],B7,Таблица14[р/р],D7,Таблица14[Ф. И. О.],C7) -> 0 | F7: =SUMIFS(Таблица14[1],Таблица14[партия],$AO$1,Таблица14[изд],$W$1,Таблица14[коэф],B7,Таблица14[р/р],D7,Таблица14[Ф. И. О.],C7) -> 0 | G7: =SUMIFS(Таблица1[1],Таблица1[партия],$AO$1,Таблица1[изд],$W$1,Таблица1[коэф],B7,Таблица1[р/р],D7,Таблица1[Ф. И. О.],C7) -> 0 | H7: =SUMIFS(Таблица14[2],Таблица14[партия],$AO$1,Таблица14[изд],$W$1,Таблица14[коэф],B7,Таблица14[р/р],D7,Таблица14[Ф. И. О.],C7) -> 0 | I7: =SUMIFS(Таблица1[3],Таблица1[партия],$AO$1,Таблица1[изд],$W$1,Таблица1[коэф],B7,Таблица1[р/р],D7,Таблица1[Ф. И. О.],C7) -> 0 | J7: =SUMIFS(Таблица14[3],Таблица14[партия],$AO$1,Таблица14[изд],$W$1,Таблица14[коэф],B7,Таблица14[р/р],D7,Таблица14[Ф. И. О.],C7) -> 0 | K7: =SUMIFS(Таблица1[4],Таблица1[партия],$AO$1,Таблица1[изд],$W$1,Таблица1[коэф],B7,Таблица1[р/р],D7,Таблица1[Ф. И. О.],C7) -> 0 | L7: =SUMIFS(Таблица14[4],Таблица14[партия],$AO$1,Таблица14[изд],$W$1,Таблица14[коэф],B7,Таблица14[р/р],D7,Таблица14[Ф. И. О.],C7) -> 0 | M7: =SUMIFS(Таблица1[5],Таблица1[партия],$AO$1,Таблица1[изд],$W$1,Таблица1[коэф],B7,Таблица1[р/р],D7,Таблица1[Ф. И. О.],C7) -> 0 | N7: =SUMIFS(Таблица14[5],Таблица14[партия],$AO$1,Таблица14[изд],$W$1,Таблица14[коэф],B7,Таблица14[р/р],D7,Таблица14[Ф. И. О.],C7) -> 0 | O7: =SUMIFS(Таблица1[6],Таблица1[партия],$AO$1,Таблица1[изд],$W$1,Таблица1[коэф],B7,Таблица1[р/р],D7,Таблица1[Ф. И. О.],C7) -> 0 | P7: =SUMIFS(Таблица14[6],Таблица14[партия],$AO$1,Таблица14[изд],$W$1,Таблица14[коэф],B7,Таблица14[р/р],D7,Таблица14[Ф. И. О.],C7) -> 0 | Q7: =SUMIFS(Таблица1[7],Таблица1[партия],$AO$1,Таблица1[изд],$W$1,Таблица1[коэф],B7,Таблица1[р/р],D7,Таблица1[Ф. И. О.],C7) -> 0 | R7: =SUMIFS(Таблица14[7],Таблица14[партия],$AO$1,Таблица14[изд],$W$1,Таблица14[коэф],B7,Таблица14[р/р],D7,Таблица14[Ф. И. О.],C7) -> 0 | S7: =SUMIFS(Таблица1[8],Таблица1[партия],$AO$1,Таблица1[изд],$W$1,Таблица1[коэф],B7,Таблица1[р/р],D7,Таблица1[Ф. И. О.],C7) -> 0 | T7: =SUMIFS(Таблица14[8],Таблица14[партия],$AO$1,Таблица14[изд],$W$1,Таблица14[коэф],B7,Таблица14[р/р],D7,Таблица14[Ф. И. О.],C7) -> 0 | U7: =SUMIFS(Таблица1[9],Таблица1[партия],$AO$1,Таблица1[изд],$W$1,Таблица1[коэф],B7,Таблица1[р/р],D7,Таблица1[Ф. И. О.],C7) -> 0 | V7: =SUMIFS(Таблица14[9],Таблица14[партия],$AO$1,Таблица14[изд],$W$1,Таблица14[коэф],B7,Таблица14[р/р],D7,Таблица14[Ф. И. О.],C7) -> 0 | W7: =SUMIFS(Таблица1[10],Таблица1[партия],$AO$1,Таблица1[изд],$W$1,Таблица1[коэф],B7,Таблица1[р/р],D7,Таблица1[Ф. И. О.],C7) -> 0 | X7: =SUMIFS(Таблица14[10],Таблица14[партия],$AO$1,Таблица14[изд],$W$1,Таблица14[коэф],B7,Таблица14[р/р],D7,Таблица14[Ф. И. О.],C7) -> 0 | Y7: =SUMIFS(Таблица1[11],Таблица1[партия],$AO$1,Таблица1[изд],$W$1,Таблица1[коэф],B7,Таблица1[р/р],D7,Таблица1[Ф. И. О.],C7) -> 0 | Z7: =SUMIFS(Таблица14[11],Таблица14[партия],$AO$1,Таблица14[изд],$W$1,Таблица14[коэф],B7,Таблица14[р/р],D7,Таблица14[Ф. И. О.],C7) -> 0 | AA7: =SUMIFS(Таблица1[12],Таблица1[партия],$AO$1,Таблица1[изд],$W$1,Таблица1[коэф],B7,Таблица1[р/р],D7,Таблица1[Ф. И. О.],C7) -> 0 | AB7: =SUMIFS(Таблица14[12],Таблица14[партия],$AO$1,Таблица14[изд],$W$1,Таблица14[коэф],B7,Таблица14[р/р],D7,Таблица14[Ф. И. О.],C7) -> 0 | AC7: =SUMIFS(Таблица1[13],Таблица1[партия],$AO$1,Таблица1[изд],$W$1,Таблица1[коэф],B7,Таблица1[р/р],D7,Таблица1[Ф. И. О.],C7) -> 0 | AD7: =SUMIFS(Таблица14[13],Таблица14[партия],$AO$1,Таблица14[изд],$W$1,Таблица14[коэф],B7,Таблица14[р/р],D7,Таблица14[Ф. И. О.],C7) -> 0 | AE7: =SUMIFS(Таблица1[14],Таблица1[партия],$AO$1,Таблица1[изд],$W$1,Таблица1[коэф],B7,Таблица1[р/р],D7,Таблица1[Ф. И. О.],C7) -> 0 | AF7: =SUMIFS(Таблица14[14],Таблица14[партия],$AO$1,Таблица14[изд],$W$1,Таблица14[коэф],B7,Таблица14[р/р],D7,Таблица14[Ф. И. О.],C7) -> 0 | AG7: =SUMIFS(Таблица1[15],Таблица1[партия],$AO$1,Таблица1[изд],$W$1,Таблица1[коэф],B7,Таблица1[р/р],D7,Таблица1[Ф. И. О.],C7) -> 2 | AH7: =SUMIFS(Таблица14[15],Таблица14[партия],$AO$1,Таблица14[изд],$W$1,Таблица14[коэф],B7,Таблица14[р/р],D7,Таблица14[Ф. И. О.],C7) -> 0 | AI7: =SUMIFS(Таблица1[16],Таблица1[партия],$AO$1,Таблица1[изд],$W$1,Таблица1[коэф],B7,Таблица1[р/р],D7,Таблица1[Ф. И. О.],C7) -> 0 | AJ7: =SUMIFS(Таблица14[16],Таблица14[партия],$AO$1,Таблица14[изд],$W$1,Таблица14[коэф],B7,Таблица14[р/р],D7,Таблица14[Ф. И. О.],C7) -> 0 | AK7: =SUMIFS(Таблица1[17],Таблица1[партия],$AO$1,Таблица1[изд],$W$1,Таблица1[коэф],B7,Таблица1[р/р],D7,Таблица1[Ф. И. О.],C7) -> 0 | AL7: =SUMIFS(Таблица14[17],Таблица14[партия],$AO$1,Таблица14[изд],$W$1,Таблица14[коэф],B7,Таблица14[р/р],D7,Таблица14[Ф. И. О.],C7) -> 0 | AM7: =SUMIFS(Таблица1[18],Таблица1[партия],$AO$1,Таблица1[изд],$W$1,Таблица1[коэф],B7,Таблица1[р/р],D7,Таблица1[Ф. И. О.],C7) -> 0 | AN7: =SUMIFS(Таблица14[18],Таблица14[партия],$AO$1,Таблица14[изд],$W$1,Таблица14[коэф],B7,Таблица14[р/р],D7,Таблица14[Ф. И. О.],C7) -> 0 | AO7: =SUMIFS(Таблица1[19],Таблица1[партия],$AO$1,Таблица1[изд],$W$1,Таблица1[коэф],B7,Таблица1[р/р],D7,Таблица1[Ф. И. О.],C7) -> 0 | AP7: =SUMIFS(Таблица14[19],Таблица14[партия],$AO$1,Таблица14[изд],$W$1,Таблица14[коэф],B7,Таблица14[р/р],D7,Таблица14[Ф. И. О.],C7) -> 0 | AQ7: =SUMIFS(Таблица1[20],Таблица1[партия],$AO$1,Таблица1[изд],$W$1,Таблица1[коэф],B7,Таблица1[р/р],D7,Таблица1[Ф. И. О.],C7) -> 0 | AR7: =SUMIFS(Таблица14[20],Таблица14[партия],$AO$1,Таблица14[изд],$W$1,Таблица14[коэф],B7,Таблица14[р/р],D7,Таблица14[Ф. И. О.],C7) -> 0 | AS7: =SUMIFS(Таблица1[21],Таблица1[партия],$AO$1,Таблица1[изд],$W$1,Таблица1[коэф],B7,Таблица1[р/р],D7,Таблица1[Ф. И. О.],C7) -> 0 | AT7: =SUMIFS(Таблица14[21],Таблица14[партия],$AO$1,Таблица14[изд],$W$1,Таблица14[коэф],B7,Таблица14[р/р],D7,Таблица14[Ф. И. О.],C7) -> 0 | AU7: =SUMIFS(Таблица1[22],Таблица1[партия],$AO$1,Таблица1[изд],$W$1,Таблица1[коэф],B7,Таблица1[р/р],D7,Таблица1[Ф. И. О.],C7) -> 0 | AV7: =SUMIFS(Таблица14[22],Таблица14[партия],$AO$1,Таблица14[изд],$W$1,Таблица14[коэф],B7,Таблица14[р/р],D7,Таблица14[Ф. И. О.],C7) -> 0 | AW7: =SUMIFS(Таблица1[23],Таблица1[партия],$AO$1,Таблица1[изд],$W$1,Таблица1[коэф],B7,Таблица1[р/р],D7,Таблица1[Ф. И. О.],C7) -> 0 | AX7: =SUMIFS(Таблица14[23],Таблица14[партия],$AO$1,Таблица14[изд],$W$1,Таблица14[коэф],B7,Таблица14[р/р],D7,Таблица14[Ф. И. О.],C7) -> 0 | AY7: =SUMIFS(Таблица1[24],Таблица1[партия],$AO$1,Таблица1[изд],$W$1,Таблица1[коэф],B7,Таблица1[р/р],D7,Таблица1[Ф. И. О.],C7) -> 0 | AZ7: =SUMIFS(Таблица14[24],Таблица14[партия],$AO$1,Таблица14[изд],$W$1,Таблица14[коэф],B7,Таблица14[р/р],D7,Таблица14[Ф. И. О.],C7) -> 0 | BA7: =SUMIFS(Таблица1[25],Таблица1[партия],$AO$1,Таблица1[изд],$W$1,Таблица1[коэф],B7,Таблица1[р/р],D7,Таблица1[Ф. И. О.],C7) -> 0 | BB7: =SUMIFS(Таблица14[25],Таблица14[партия],$AO$1,Таблица14[изд],$W$1,Таблица14[коэф],B7,Таблица14[р/р],D7,Таблица14[Ф. И. О.],C7) -> 0 | BC7: =SUMIFS(Таблица1[26],Таблица1[партия],$AO$1,Таблица1[изд],$W$1,Таблица1[коэф],B7,Таблица1[р/р],D7,Таблица1[Ф. И. О.],C7) -> 0 | BD7: =SUMIFS(Таблица14[26],Таблица14[партия],$AO$1,Таблица14[изд],$W$1,Таблица14[коэф],B7,Таблица14[р/р],D7,Таблица14[Ф. И. О.],C7) -> 0 | BE7: =SUMIFS(Таблица1[27],Таблица1[партия],$AO$1,Таблица1[изд],$W$1,Таблица1[коэф],B7,Таблица1[р/р],D7,Таблица1[Ф. И. О.],C7) -> 0 | BF7: =SUMIFS(Таблица14[27],Таблица14[партия],$AO$1,Таблица14[изд],$W$1,Таблица14[коэф],B7,Таблица14[р/р],D7,Таблица14[Ф. И. О.],C7) -> 0 | BG7: =SUMIFS(Таблица1[28],Таблица1[партия],$AO$1,Таблица1[изд],$W$1,Таблица1[коэф],B7,Таблица1[р/р],D7,Таблица1[Ф. И. О.],C7) -> 0 | BH7: =SUMIFS(Таблица14[28],Таблица14[партия],$AO$1,Таблица14[изд],$W$1,Таблица14[коэф],B7,Таблица14[р/р],D7,Таблица14[Ф. И. О.],C7) -> 0 | BI7: =SUMIFS(Таблица1[29],Таблица1[партия],$AO$1,Таблица1[изд],$W$1,Таблица1[коэф],B7,Таблица1[р/р],D7,Таблица1[Ф. И. О.],C7) -> 0 | BJ7: =SUMIFS(Таблица14[29],Таблица14[партия],$AO$1,Таблица14[изд],$W$1,Таблица14[коэф],B7,Таблица14[р/р],D7,Таблица14[Ф. И. О.],C7) -> 0 | BK7: =SUMIFS(Таблица1[30],Таблица1[партия],$AO$1,Таблица1[изд],$W$1,Таблица1[коэф],B7,Таблица1[р/р],D7,Таблица1[Ф. И. О.],C7) -> 0 | BL7: =SUMIFS(Таблица14[30],Таблица14[партия],$AO$1,Таблица14[изд],$W$1,Таблица14[коэф],B7,Таблица14[р/р],D7,Таблица14[Ф. И. О.],C7) -> 0 | BM7: =SUMIFS(Таблица1[31],Таблица1[партия],$AO$1,Таблица1[изд],$W$1,Таблица1[коэф],B7,Таблица1[р/р],D7,Таблица1[Ф. И. О.],C7) -> 0 | BN7: =SUMIFS(Таблица14[31],Таблица14[партия],$AO$1,Таблица14[изд],$W$1,Таблица14[коэф],B7,Таблица14[р/р],D7,Таблица14[Ф. И. О.],C7) -> 0 | BO7: =SUM(E7:BN7) -> 2 | BP7: =E7+G7+I7+K7+M7+O7+Q7+S7+U7+W7+Y7+AA7+AC7+AE7+AG7+AI7+AK7+AM7+AO7+AQ7+AS7+AU7+AW7+AY7+BA7+BC7+BE7+BG7+BI7+BK7+BM7 -> 2 | BQ7: =H7+F7+J7+L7+N7+P7+R7+T7+V7+X7+Z7+AB7+AD7+AF7+AH7+AJ7+AL7+AN7+AP7+AR7+AT7+AV7+AX7+AZ7+BB7+BD7+BF7+BH7+BJ7+BL7+BN7 -> 0
A8: 2 | B8: 1,4 | C8: Борода Ирина Борисовна | D8: 3/1 | E8: =SUMIFS(Таблица14[1],Таблица14[партия],$AO$1,Таблица14[изд],$W$1,Таблица14[коэф],B8,Таблица14[р/р],D8,Таблица14[Ф. И. О.],C8) -> 0 | F8: =SUMIFS(Таблица14[1],Таблица14[партия],$AO$1,Таблица14[изд],$W$1,Таблица14[коэф],B8,Таблица14[р/р],D8,Таблица14[Ф. И. О.],C8) -> 0 | G8: =SUMIFS(Таблица1[1],Таблица1[партия],$AO$1,Таблица1[изд],$W$1,Таблица1[коэф],B8,Таблица1[р/р],D8,Таблица1[Ф. И. О.],C8) -> 0 | H8: =SUMIFS(Таблица14[2],Таблица14[партия],$AO$1,Таблица14[изд],$W$1,Таблица14[коэф],B8,Таблица14[р/р],D8,Таблица14[Ф. И. О.],C8) -> 0 | I8: =SUMIFS(Таблица1[3],Таблица1[партия],$AO$1,Таблица1[изд],$W$1,Таблица1[коэф],B8,Таблица1[р/р],D8,Таблица1[Ф. И. О.],C8) -> 0 | J8: =SUMIFS(Таблица14[3],Таблица14[партия],$AO$1,Таблица14[изд],$W$1,Таблица14[коэф],B8,Таблица14[р/р],D8,Таблица14[Ф. И. О.],C8) -> 0 | K8: =SUMIFS(Таблица1[4],Таблица1[партия],$AO$1,Таблица1[изд],$W$1,Таблица1[коэф],B8,Таблица1[р/р],D8,Таблица1[Ф. И. О.],C8) -> 0 | L8: =SUMIFS(Таблица14[4],Таблица14[партия],$AO$1,Таблица14[изд],$W$1,Таблица14[коэф],B8,Таблица14[р/р],D8,Таблица14[Ф. И. О.],C8) -> 0 | M8: =SUMIFS(Таблица1[5],Таблица1[партия],$AO$1,Таблица1[изд],$W$1,Таблица1[коэф],B8,Таблица1[р/р],D8,Таблица1[Ф. И. О.],C8) -> 0 | N8: =SUMIFS(Таблица14[5],Таблица14[партия],$AO$1,Таблица14[изд],$W$1,Таблица14[коэф],B8,Таблица14[р/р],D8,Таблица14[Ф. И. О.],C8) -> 0 | O8: =SUMIFS(Таблица1[6],Таблица1[партия],$AO$1,Таблица1[изд],$W$1,Таблица1[коэф],B8,Таблица1[р/р],D8,Таблица1[Ф. И. О.],C8) -> 0 | P8: =SUMIFS(Таблица14[6],Таблица14[партия],$AO$1,Таблица14[изд],$W$1,Таблица14[коэф],B8,Таблица14[р/р],D8,Таблица14[Ф. И. О.],C8) -> 0 | Q8: =SUMIFS(Таблица1[7],Таблица1[партия],$AO$1,Таблица1[изд],$W$1,Таблица1[коэф],B8,Таблица1[р/р],D8,Таблица1[Ф. И. О.],C8) -> 0 | R8: =SUMIFS(Таблица14[7],Таблица14[партия],$AO$1,Таблица14[изд],$W$1,Таблица14[коэф],B8,Таблица14[р/р],D8,Таблица14[Ф. И. О.],C8) -> 0 | S8: =SUMIFS(Таблица1[8],Таблица1[партия],$AO$1,Таблица1[изд],$W$1,Таблица1[коэф],B8,Таблица1[р/р],D8,Таблица1[Ф. И. О.],C8) -> 0 | T8: =SUMIFS(Таблица14[8],Таблица14[партия],$AO$1,Таблица14[изд],$W$1,Таблица14[коэф],B8,Таблица14[р/р],D8,Таблица14[Ф. И. О.],C8) -> 0 | U8: =SUMIFS(Таблица1[9],Таблица1[партия],$AO$1,Таблица1[изд],$W$1,Таблица1[коэф],B8,Таблица1[р/р],D8,Таблица1[Ф. И. О.],C8) -> 0 | V8: =SUMIFS(Таблица14[9],Таблица14[партия],$AO$1,Таблица14[изд],$W$1,Таблица14[коэф],B8,Таблица14[р/р],D8,Таблица14[Ф. И. О.],C8) -> 0 | W8: =SUMIFS(Таблица1[10],Таблица1[партия],$AO$1,Таблица1[изд],$W$1,Таблица1[коэф],B8,Таблица1[р/р],D8,Таблица1[Ф. И. О.],C8) -> 0 | X8: =SUMIFS(Таблица14[10],Таблица14[партия],$AO$1,Таблица14[изд],$W$1,Таблица14[коэф],B8,Таблица14[р/р],D8,Таблица14[Ф. И. О.],C8) -> 0 | Y8: =SUMIFS(Таблица1[11],Таблица1[партия],$AO$1,Таблица1[изд],$W$1,Таблица1[коэф],B8,Таблица1[р/р],D8,Таблица1[Ф. И. О.],C8) -> 0 | Z8: =SUMIFS(Таблица14[11],Таблица14[партия],$AO$1,Таблица14[изд],$W$1,Таблица14[коэф],B8,Таблица14[р/р],D8,Таблица14[Ф. И. О.],C8) -> 0 | AA8: =SUMIFS(Таблица1[12],Таблица1[партия],$AO$1,Таблица1[изд],$W$1,Таблица1[коэф],B8,Таблица1[р/р],D8,Таблица1[Ф. И. О.],C8) -> 0 | AB8: =SUMIFS(Таблица14[12],Таблица14[партия],$AO$1,Таблица14[изд],$W$1,Таблица14[коэф],B8,Таблица14[р/р],D8,Таблица14[Ф. И. О.],C8) -> 0 | AC8: =SUMIFS(Таблица1[13],Таблица1[партия],$AO$1,Таблица1[изд],$W$1,Таблица1[коэф],B8,Таблица1[р/р],D8,Таблица1[Ф. И. О.],C8) -> 7.2 | AD8: =SUMIFS(Таблица14[13],Таблица14[партия],$AO$1,Таблица14[изд],$W$1,Таблица14[коэф],B8,Таблица14[р/р],D8,Таблица14[Ф. И. О.],C8) -> 0 | AE8: =SUMIFS(Таблица1[14],Таблица1[партия],$AO$1,Таблица1[изд],$W$1,Таблица1[коэф],B8,Таблица1[р/р],D8,Таблица1[Ф. И. О.],C8) -> 0 | AF8: =SUMIFS(Таблица14[14],Таблица14[партия],$AO$1,Таблица14[изд],$W$1,Таблица14[коэф],B8,Таблица14[р/р],D8,Таблица14[Ф. И. О.],C8) -> 0 | AG8: =SUMIFS(Таблица1[15],Таблица1[партия],$AO$1,Таблица1[изд],$W$1,Таблица1[коэф],B8,Таблица1[р/р],D8,Таблица1[Ф. И. О.],C8) -> 0 | AH8: =SUMIFS(Таблица14[15],Таблица14[партия],$AO$1,Таблица14[изд],$W$1,Таблица14[коэф],B8,Таблица14[р/р],D8,Таблица14[Ф. И. О.],C8) -> 0 | AI8: =SUMIFS(Таблица1[16],Таблица1[партия],$AO$1,Таблица1[изд],$W$1,Таблица1[коэф],B8,Таблица1[р/р],D8,Таблица1[Ф. И. О.],C8) -> 7.2 | AJ8: =SUMIFS(Таблица14[16],Таблица14[партия],$AO$1,Таблица14[изд],$W$1,Таблица14[коэф],B8,Таблица14[р/р],D8,Таблица14[Ф. И. О.],C8) -> 0 | AK8: =SUMIFS(Таблица1[17],Таблица1[партия],$AO$1,Таблица1[изд],$W$1,Таблица1[коэф],B8,Таблица1[р/р],D8,Таблица1[Ф. И. О.],C8) -> 0 | AL8: =SUMIFS(Таблица14[17],Таблица14[партия],$AO$1,Таблица14[изд],$W$1,Таблица14[коэф],B8,Таблица14[р/р],D8,Таблица14[Ф. И. О.],C8) -> 0 | AM8: =SUMIFS(Таблица1[18],Таблица1[партия],$AO$1,Таблица1[изд],$W$1,Таблица1[коэф],B8,Таблица1[р/р],D8,Таблица1[Ф. И. О.],C8) -> 0 | AN8: =SUMIFS(Таблица14[18],Таблица14[партия],$AO$1,Таблица14[изд],$W$1,Таблица14[коэф],B8,Таблица14[р/р],D8,Таблица14[Ф. И. О.],C8) -> 0 | AO8: =SUMIFS(Таблица1[19],Таблица1[партия],$AO$1,Таблица1[изд],$W$1,Таблица1[коэф],B8,Таблица1[р/р],D8,Таблица1[Ф. И. О.],C8) -> 0 | AP8: =SUMIFS(Таблица14[19],Таблица14[партия],$AO$1,Таблица14[изд],$W$1,Таблица14[коэф],B8,Таблица14[р/р],D8,Таблица14[Ф. И. О.],C8) -> 0 | AQ8: =SUMIFS(Таблица1[20],Таблица1[партия],$AO$1,Таблица1[изд],$W$1,Таблица1[коэф],B8,Таблица1[р/р],D8,Таблица1[Ф. И. О.],C8) -> 3.2 | AR8: =SUMIFS(Таблица14[20],Таблица14[партия],$AO$1,Таблица14[изд],$W$1,Таблица14[коэф],B8,Таблица14[р/р],D8,Таблица14[Ф. И. О.],C8) -> 4 | AS8: =SUMIFS(Таблица1[21],Таблица1[партия],$AO$1,Таблица1[изд],$W$1,Таблица1[коэф],B8,Таблица1[р/р],D8,Таблица1[Ф. И. О.],C8) -> 0 | AT8: =SUMIFS(Таблица14[21],Таблица14[партия],$AO$1,Таблица14[изд],$W$1,Таблица14[коэф],B8,Таблица14[р/р],D8,Таблица14[Ф. И. О.],C8) -> 0 | AU8: =SUMIFS(Таблица1[22],Таблица1[партия],$AO$1,Таблица1[изд],$W$1,Таблица1[коэф],B8,Таблица1[р/р],D8,Таблица1[Ф. И. О.],C8) -> 0 | AV8: =SUMIFS(Таблица14[22],Таблица14[партия],$AO$1,Таблица14[изд],$W$1,Таблица14[коэф],B8,Таблица14[р/р],D8,Таблица14[Ф. И. О.],C8) -> 0 | AW8: =SUMIFS(Таблица1[23],Таблица1[партия],$AO$1,Таблица1[изд],$W$1,Таблица1[коэф],B8,Таблица1[р/р],D8,Таблица1[Ф. И. О.],C8) -> 0 | AX8: =SUMIFS(Таблица14[23],Таблица14[партия],$AO$1,Таблица14[изд],$W$1,Таблица14[коэф],B8,Таблица14[р/р],D8,Таблица14[Ф. И. О.],C8) -> 0 | AY8: =SUMIFS(Таблица1[24],Таблица1[партия],$AO$1,Таблица1[изд],$W$1,Таблица1[коэф],B8,Таблица1[р/р],D8,Таблица1[Ф. И. О.],C8) -> 0 | AZ8: =SUMIFS(Таблица14[24],Таблица14[партия],$AO$1,Таблица14[изд],$W$1,Таблица14[коэф],B8,Таблица14[р/р],D8,Таблица14[Ф. И. О.],C8) -> 0 | BA8: =SUMIFS(Таблица1[25],Таблица1[партия],$AO$1,Таблица1[изд],$W$1,Таблица1[коэф],B8,Таблица1[р/р],D8,Таблица1[Ф. И. О.],C8) -> 0 | BB8: =SUMIFS(Таблица14[25],Таблица14[партия],$AO$1,Таблица14[изд],$W$1,Таблица14[коэф],B8,Таблица14[р/р],D8,Таблица14[Ф. И. О.],C8) -> 0 | BC8: =SUMIFS(Таблица1[26],Таблица1[партия],$AO$1,Таблица1[изд],$W$1,Таблица1[коэф],B8,Таблица1[р/р],D8,Таблица1[Ф. И. О.],C8) -> 0 | BD8: =SUMIFS(Таблица14[26],Таблица14[партия],$AO$1,Таблица14[изд],$W$1,Таблица14[коэф],B8,Таблица14[р/р],D8,Таблица14[Ф. И. О.],C8) -> 0 | BE8: =SUMIFS(Таблица1[27],Таблица1[партия],$AO$1,Таблица1[изд],$W$1,Таблица1[коэф],B8,Таблица1[р/р],D8,Таблица1[Ф. И. О.],C8) -> 0 | BF8: =SUMIFS(Таблица14[27],Таблица14[партия],$AO$1,Таблица14[изд],$W$1,Таблица14[коэф],B8,Таблица14[р/р],D8,Таблица14[Ф. И. О.],C8) -> 0 | BG8: =SUMIFS(Таблица1[28],Таблица1[партия],$AO$1,Таблица1[изд],$W$1,Таблица1[коэф],B8,Таблица1[р/р],D8,Таблица1[Ф. И. О.],C8) -> 0 | BH8: =SUMIFS(Таблица14[28],Таблица14[партия],$AO$1,Таблица14[изд],$W$1,Таблица14[коэф],B8,Таблица14[р/р],D8,Таблица14[Ф. И. О.],C8) -> 0 | BI8: =SUMIFS(Таблица1[29],Таблица1[партия],$AO$1,Таблица1[изд],$W$1,Таблица1[коэф],B8,Таблица1[р/р],D8,Таблица1[Ф. И. О.],C8) -> 7.2 | BJ8: =SUMIFS(Таблица14[29],Таблица14[партия],$AO$1,Таблица14[изд],$W$1,Таблица14[коэф],B8,Таблица14[р/р],D8,Таблица14[Ф. И. О.],C8) -> 0 | BK8: =SUMIFS(Таблица1[30],Таблица1[партия],$AO$1,Таблица1[изд],$W$1,Таблица1[коэф],B8,Таблица1[р/р],D8,Таблица1[Ф. И. О.],C8) -> 0 | BL8: =SUMIFS(Таблица14[30],Таблица14[партия],$AO$1,Таблица14[изд],$W$1,Таблица14[коэф],B8,Таблица14[р/р],D8,Таблица14[Ф. И. О.],C8) -> 0 | BM8: =SUMIFS(Таблица1[31],Таблица1[партия],$AO$1,Таблица1[изд],$W$1,Таблица1[коэф],B8,Таблица1[р/р],D8,Таблица1[Ф. И. О.],C8) -> 0 | BN8: =SUMIFS(Таблица14[31],Таблица14[партия],$AO$1,Таблица14[изд],$W$1,Таблица14[коэф],B8,Таблица14[р/р],D8,Таблица14[Ф. И. О.],C8) -> 0 | BO8: =SUM(E8:BN8) -> 28.8 | BP8: =E8+G8+I8+K8+M8+O8+Q8+S8+U8+W8+Y8+AA8+AC8+AE8+AG8+AI8+AK8+AM8+AO8+AQ8+AS8+AU8+AW8+AY8+BA8+BC8+BE8+BG8+BI8+BK8+BM8 -> 24.8 | BQ8: 4
A9: 3 | B9: 1 | C9: Борода Ирина Борисовна | D9: 3/1 | E9: =SUMIFS(Таблица14[1],Таблица14[партия],$AO$1,Таблица14[изд],$W$1,Таблица14[коэф],B9,Таблица14[р/р],D9,Таблица14[Ф. И. О.],C9) -> 0 | F9: =SUMIFS(Таблица14[1],Таблица14[партия],$AO$1,Таблица14[изд],$W$1,Таблица14[коэф],B9,Таблица14[р/р],D9,Таблица14[Ф. И. О.],C9) -> 0 | G9: =SUMIFS(Таблица1[1],Таблица1[партия],$AO$1,Таблица1[изд],$W$1,Таблица1[коэф],B9,Таблица1[р/р],D9,Таблица1[Ф. И. О.],C9) -> 0 | H9: =SUMIFS(Таблица14[2],Таблица14[партия],$AO$1,Таблица14[изд],$W$1,Таблица14[коэф],B9,Таблица14[р/р],D9,Таблица14[Ф. И. О.],C9) -> 0 | I9: =SUMIFS(Таблица1[3],Таблица1[партия],$AO$1,Таблица1[изд],$W$1,Таблица1[коэф],B9,Таблица1[р/р],D9,Таблица1[Ф. И. О.],C9) -> 0 | J9: =SUMIFS(Таблица14[3],Таблица14[партия],$AO$1,Таблица14[изд],$W$1,Таблица14[коэф],B9,Таблица14[р/р],D9,Таблица14[Ф. И. О.],C9) -> 0 | K9: =SUMIFS(Таблица1[4],Таблица1[партия],$AO$1,Таблица1[изд],$W$1,Таблица1[коэф],B9,Таблица1[р/р],D9,Таблица1[Ф. И. О.],C9) -> 0 | L9: =SUMIFS(Таблица14[4],Таблица14[партия],$AO$1,Таблица14[изд],$W$1,Таблица14[коэф],B9,Таблица14[р/р],D9,Таблица14[Ф. И. О.],C9) -> 0 | M9: =SUMIFS(Таблица1[5],Таблица1[партия],$AO$1,Таблица1[изд],$W$1,Таблица1[коэф],B9,Таблица1[р/р],D9,Таблица1[Ф. И. О.],C9) -> 0 | N9: =SUMIFS(Таблица14[5],Таблица14[партия],$AO$1,Таблица14[изд],$W$1,Таблица14[коэф],B9,Таблица14[р/р],D9,Таблица14[Ф. И. О.],C9) -> 0 | O9: =SUMIFS(Таблица1[6],Таблица1[партия],$AO$1,Таблица1[изд],$W$1,Таблица1[коэф],B9,Таблица1[р/р],D9,Таблица1[Ф. И. О.],C9) -> 0 | P9: =SUMIFS(Таблица14[6],Таблица14[партия],$AO$1,Таблица14[изд],$W$1,Таблица14[коэф],B9,Таблица14[р/р],D9,Таблица14[Ф. И. О.],C9) -> 0 | Q9: =SUMIFS(Таблица1[7],Таблица1[партия],$AO$1,Таблица1[изд],$W$1,Таблица1[коэф],B9,Таблица1[р/р],D9,Таблица1[Ф. И. О.],C9) -> 0 | R9: =SUMIFS(Таблица14[7],Таблица14[партия],$AO$1,Таблица14[изд],$W$1,Таблица14[коэф],B9,Таблица14[р/р],D9,Таблица14[Ф. И. О.],C9) -> 0 | S9: =SUMIFS(Таблица1[8],Таблица1[партия],$AO$1,Таблица1[изд],$W$1,Таблица1[коэф],B9,Таблица1[р/р],D9,Таблица1[Ф. И. О.],C9) -> 0 | T9: =SUMIFS(Таблица14[8],Таблица14[партия],$AO$1,Таблица14[изд],$W$1,Таблица14[коэф],B9,Таблица14[р/р],D9,Таблица14[Ф. И. О.],C9) -> 0 | U9: =SUMIFS(Таблица1[9],Таблица1[партия],$AO$1,Таблица1[изд],$W$1,Таблица1[коэф],B9,Таблица1[р/р],D9,Таблица1[Ф. И. О.],C9) -> 0 | V9: =SUMIFS(Таблица14[9],Таблица14[партия],$AO$1,Таблица14[изд],$W$1,Таблица14[коэф],B9,Таблица14[р/р],D9,Таблица14[Ф. И. О.],C9) -> 0 | W9: =SUMIFS(Таблица1[10],Таблица1[партия],$AO$1,Таблица1[изд],$W$1,Таблица1[коэф],B9,Таблица1[р/р],D9,Таблица1[Ф. И. О.],C9) -> 0 | X9: =SUMIFS(Таблица14[10],Таблица14[партия],$AO$1,Таблица14[изд],$W$1,Таблица14[коэф],B9,Таблица14[р/р],D9,Таблица14[Ф. И. О.],C9) -> 0 | Y9: =SUMIFS(Таблица1[11],Таблица1[партия],$AO$1,Таблица1[изд],$W$1,Таблица1[коэф],B9,Таблица1[р/р],D9,Таблица1[Ф. И. О.],C9) -> 0 | Z9: =SUMIFS(Таблица14[11],Таблица14[партия],$AO$1,Таблица14[изд],$W$1,Таблица14[коэф],B9,Таблица14[р/р],D9,Таблица14[Ф. И. О.],C9) -> 0 | AA9: =SUMIFS(Таблица1[12],Таблица1[партия],$AO$1,Таблица1[изд],$W$1,Таблица1[коэф],B9,Таблица1[р/р],D9,Таблица1[Ф. И. О.],C9) -> 0 | AB9: =SUMIFS(Таблица14[12],Таблица14[партия],$AO$1,Таблица14[изд],$W$1,Таблица14[коэф],B9,Таблица14[р/р],D9,Таблица14[Ф. И. О.],C9) -> 0 | AC9: =SUMIFS(Таблица1[13],Таблица1[партия],$AO$1,Таблица1[изд],$W$1,Таблица1[коэф],B9,Таблица1[р/р],D9,Таблица1[Ф. И. О.],C9) -> 0 | AD9: =SUMIFS(Таблица14[13],Таблица14[партия],$AO$1,Таблица14[изд],$W$1,Таблица14[коэф],B9,Таблица14[р/р],D9,Таблица14[Ф. И. О.],C9) -> 0 | AE9: =SUMIFS(Таблица1[14],Таблица1[партия],$AO$1,Таблица1[изд],$W$1,Таблица1[коэф],B9,Таблица1[р/р],D9,Таблица1[Ф. И. О.],C9) -> 0 | AF9: =SUMIFS(Таблица14[14],Таблица14[партия],$AO$1,Таблица14[изд],$W$1,Таблица14[коэф],B9,Таблица14[р/р],D9,Таблица14[Ф. И. О.],C9) -> 0 | AG9: =SUMIFS(Таблица1[15],Таблица1[партия],$AO$1,Таблица1[изд],$W$1,Таблица1[коэф],B9,Таблица1[р/р],D9,Таблица1[Ф. И. О.],C9) -> 0 | AH9: =SUMIFS(Таблица14[15],Таблица14[партия],$AO$1,Таблица14[изд],$W$1,Таблица14[коэф],B9,Таблица14[р/р],D9,Таблица14[Ф. И. О.],C9) -> 0 | AI9: =SUMIFS(Таблица1[16],Таблица1[партия],$AO$1,Таблица1[изд],$W$1,Таблица1[коэф],B9,Таблица1[р/р],D9,Таблица1[Ф. И. О.],C9) -> 0 | AJ9: =SUMIFS(Таблица14[16],Таблица14[партия],$AO$1,Таблица14[изд],$W$1,Таблица14[коэф],B9,Таблица14[р/р],D9,Таблица14[Ф. И. О.],C9) -> 0 | AK9: =SUMIFS(Таблица1[17],Таблица1[партия],$AO$1,Таблица1[изд],$W$1,Таблица1[коэф],B9,Таблица1[р/р],D9,Таблица1[Ф. И. О.],C9) -> 0 | AL9: =SUMIFS(Таблица14[17],Таблица14[партия],$AO$1,Таблица14[изд],$W$1,Таблица14[коэф],B9,Таблица14[р/р],D9,Таблица14[Ф. И. О.],C9) -> 0 | AM9: =SUMIFS(Таблица1[18],Таблица1[партия],$AO$1,Таблица1[изд],$W$1,Таблица1[коэф],B9,Таблица1[р/р],D9,Таблица1[Ф. И. О.],C9) -> 0 | AN9: =SUMIFS(Таблица14[18],Таблица14[партия],$AO$1,Таблица14[изд],$W$1,Таблица14[коэф],B9,Таблица14[р/р],D9,Таблица14[Ф. И. О.],C9) -> 0 | AO9: =SUMIFS(Таблица1[19],Таблица1[партия],$AO$1,Таблица1[изд],$W$1,Таблица1[коэф],B9,Таблица1[р/р],D9,Таблица1[Ф. И. О.],C9) -> 7.2 | AP9: =SUMIFS(Таблица14[19],Таблица14[партия],$AO$1,Таблица14[изд],$W$1,Таблица14[коэф],B9,Таблица14[р/р],D9,Таблица14[Ф. И. О.],C9) -> 0 | AQ9: =SUMIFS(Таблица1[20],Таблица1[партия],$AO$1,Таблица1[изд],$W$1,Таблица1[коэф],B9,Таблица1[р/р],D9,Таблица1[Ф. И. О.],C9) -> 4 | AR9: =SUMIFS(Таблица14[20],Таблица14[партия],$AO$1,Таблица14[изд],$W$1,Таблица14[коэф],B9,Таблица14[р/р],D9,Таблица14[Ф. И. О.],C9) -> 0 | AS9: =SUMIFS(Таблица1[21],Таблица1[партия],$AO$1,Таблица1[изд],$W$1,Таблица1[коэф],B9,Таблица1[р/р],D9,Таблица1[Ф. И. О.],C9) -> 0 | AT9: =SUMIFS(Таблица14[21],Таблица14[партия],$AO$1,Таблица14[изд],$W$1,Таблица14[коэф],B9,Таблица14[р/р],D9,Таблица14[Ф. И. О.],C9) -> 0 | AU9: =SUMIFS(Таблица1[22],Таблица1[партия],$AO$1,Таблица1[изд],$W$1,Таблица1[коэф],B9,Таблица1[р/р],D9,Таблица1[Ф. И. О.],C9) -> 7.2 | AV9: =SUMIFS(Таблица14[22],Таблица14[партия],$AO$1,Таблица14[изд],$W$1,Таблица14[коэф],B9,Таблица14[р/р],D9,Таблица14[Ф. И. О.],C9) -> 0 | AW9: =SUMIFS(Таблица1[23],Таблица1[партия],$AO$1,Таблица1[изд],$W$1,Таблица1[коэф],B9,Таблица1[р/р],D9,Таблица1[Ф. И. О.],C9) -> 0 | AX9: =SUMIFS(Таблица14[23],Таблица14[партия],$AO$1,Таблица14[изд],$W$1,Таблица14[коэф],B9,Таблица14[р/р],D9,Таблица14[Ф. И. О.],C9) -> 0 | AY9: =SUMIFS(Таблица1[24],Таблица1[партия],$AO$1,Таблица1[изд],$W$1,Таблица1[коэф],B9,Таблица1[р/р],D9,Таблица1[Ф. И. О.],C9) -> 0 | AZ9: =SUMIFS(Таблица14[24],Таблица14[партия],$AO$1,Таблица14[изд],$W$1,Таблица14[коэф],B9,Таблица14[р/р],D9,Таблица14[Ф. И. О.],C9) -> 0 | BA9: =SUMIFS(Таблица1[25],Таблица1[партия],$AO$1,Таблица1[изд],$W$1,Таблица1[коэф],B9,Таблица1[р/р],D9,Таблица1[Ф. И. О.],C9) -> 0 | BB9: =SUMIFS(Таблица14[25],Таблица14[партия],$AO$1,Таблица14[изд],$W$1,Таблица14[коэф],B9,Таблица14[р/р],D9,Таблица14[Ф. И. О.],C9) -> 0 | BC9: =SUMIFS(Таблица1[26],Таблица1[партия],$AO$1,Таблица1[изд],$W$1,Таблица1[коэф],B9,Таблица1[р/р],D9,Таблица1[Ф. И. О.],C9) -> 0 | BD9: =SUMIFS(Таблица14[26],Таблица14[партия],$AO$1,Таблица14[изд],$W$1,Таблица14[коэф],B9,Таблица14[р/р],D9,Таблица14[Ф. И. О.],C9) -> 0 | BE9: =SUMIFS(Таблица1[27],Таблица1[партия],$AO$1,Таблица1[изд],$W$1,Таблица1[коэф],B9,Таблица1[р/р],D9,Таблица1[Ф. И. О.],C9) -> 0 | BF9: =SUMIFS(Таблица14[27],Таблица14[партия],$AO$1,Таблица14[изд],$W$1,Таблица14[коэф],B9,Таблица14[р/р],D9,Таблица14[Ф. И. О.],C9) -> 0 | BG9: =SUMIFS(Таблица1[28],Таблица1[партия],$AO$1,Таблица1[изд],$W$1,Таблица1[коэф],B9,Таблица1[р/р],D9,Таблица1[Ф. И. О.],C9) -> 0 | BH9: =SUMIFS(Таблица14[28],Таблица14[партия],$AO$1,Таблица14[изд],$W$1,Таблица14[коэф],B9,Таблица14[р/р],D9,Таблица14[Ф. И. О.],C9) -> 0 | BI9: =SUMIFS(Таблица1[29],Таблица1[партия],$AO$1,Таблица1[изд],$W$1,Таблица1[коэф],B9,Таблица1[р/р],D9,Таблица1[Ф. И. О.],C9) -> 0 | BJ9: =SUMIFS(Таблица14[29],Таблица14[партия],$AO$1,Таблица14[изд],$W$1,Таблица14[коэф],B9,Таблица14[р/р],D9,Таблица14[Ф. И. О.],C9) -> 0 | BK9: =SUMIFS(Таблица1[30],Таблица1[партия],$AO$1,Таблица1[изд],$W$1,Таблица1[коэф],B9,Таблица1[р/р],D9,Таблица1[Ф. И. О.],C9) -> 0 | BL9: =SUMIFS(Таблица14[30],Таблица14[партия],$AO$1,Таблица14[изд],$W$1,Таблица14[коэф],B9,Таблица14[р/р],D9,Таблица14[Ф. И. О.],C9) -> 0 | BM9: =SUMIFS(Таблица1[31],Таблица1[партия],$AO$1,Таблица1[изд],$W$1,Таблица1[коэф],B9,Таблица1[р/р],D9,Таблица1[Ф. И. О.],C9) -> 0 | BN9: =SUMIFS(Таблица14[31],Таблица14[партия],$AO$1,Таблица14[изд],$W$1,Таблица14[коэф],B9,Таблица14[р/р],D9,Таблица14[Ф. И. О.],C9) -> 0 | BO9: 18.4 | BP9: 18.4 | BQ9: 0
A10: 4 | B10: 1 | C10: Глинка Екатерина Юрьевна | D10: 3/2 | E10: =SUMIFS(Таблица14[1],Таблица14[партия],$AO$1,Таблица14[изд],$W$1,Таблица14[коэф],B10,Таблица14[р/р],D10,Таблица14[Ф. И. О.],C10) -> 0 | F10: =SUMIFS(Таблица14[1],Таблица14[партия],$AO$1,Таблица14[изд],$W$1,Таблица14[коэф],B10,Таблица14[р/р],D10,Таблица14[Ф. И. О.],C10) -> 0 | G10: =SUMIFS(Таблица1[1],Таблица1[партия],$AO$1,Таблица1[изд],$W$1,Таблица1[коэф],B10,Таблица1[р/р],D10,Таблица1[Ф. И. О.],C10) -> 0 | H10: =SUMIFS(Таблица14[2],Таблица14[партия],$AO$1,Таблица14[изд],$W$1,Таблица14[коэф],B10,Таблица14[р/р],D10,Таблица14[Ф. И. О.],C10) -> 0 | I10: =SUMIFS(Таблица1[3],Таблица1[партия],$AO$1,Таблица1[изд],$W$1,Таблица1[коэф],B10,Таблица1[р/р],D10,Таблица1[Ф. И. О.],C10) -> 0 | J10: =SUMIFS(Таблица14[3],Таблица14[партия],$AO$1,Таблица14[изд],$W$1,Таблица14[коэф],B10,Таблица14[р/р],D10,Таблица14[Ф. И. О.],C10) -> 0 | K10: =SUMIFS(Таблица1[4],Таблица1[партия],$AO$1,Таблица1[изд],$W$1,Таблица1[коэф],B10,Таблица1[р/р],D10,Таблица1[Ф. И. О.],C10) -> 0 | L10: =SUMIFS(Таблица14[4],Таблица14[партия],$AO$1,Таблица14[изд],$W$1,Таблица14[коэф],B10,Таблица14[р/р],D10,Таблица14[Ф. И. О.],C10) -> 0 | M10: =SUMIFS(Таблица1[5],Таблица1[партия],$AO$1,Таблица1[изд],$W$1,Таблица1[коэф],B10,Таблица1[р/р],D10,Таблица1[Ф. И. О.],C10) -> 0 | N10: =SUMIFS(Таблица14[5],Таблица14[партия],$AO$1,Таблица14[изд],$W$1,Таблица14[коэф],B10,Таблица14[р/р],D10,Таблица14[Ф. И. О.],C10) -> 0 | O10: =SUMIFS(Таблица1[6],Таблица1[партия],$AO$1,Таблица1[изд],$W$1,Таблица1[коэф],B10,Таблица1[р/р],D10,Таблица1[Ф. И. О.],C10) -> 0 | P10: =SUMIFS(Таблица14[6],Таблица14[партия],$AO$1,Таблица14[изд],$W$1,Таблица14[коэф],B10,Таблица14[р/р],D10,Таблица14[Ф. И. О.],C10) -> 0 | Q10: =SUMIFS(Таблица1[7],Таблица1[партия],$AO$1,Таблица1[изд],$W$1,Таблица1[коэф],B10,Таблица1[р/р],D10,Таблица1[Ф. И. О.],C10) -> 0 | R10: =SUMIFS(Таблица14[7],Таблица14[партия],$AO$1,Таблица14[изд],$W$1,Таблица14[коэф],B10,Таблица14[р/р],D10,Таблица14[Ф. И. О.],C10) -> 0 | S10: =SUMIFS(Таблица1[8],Таблица1[партия],$AO$1,Таблица1[изд],$W$1,Таблица1[коэф],B10,Таблица1[р/р],D10,Таблица1[Ф. И. О.],C10) -> 0 | T10: =SUMIFS(Таблица14[8],Таблица14[партия],$AO$1,Таблица14[изд],$W$1,Таблица14[коэф],B10,Таблица14[р/р],D10,Таблица14[Ф. И. О.],C10) -> 0 | U10: =SUMIFS(Таблица1[9],Таблица1[партия],$AO$1,Таблица1[изд],$W$1,Таблица1[коэф],B10,Таблица1[р/р],D10,Таблица1[Ф. И. О.],C10) -> 0 | V10: =SUMIFS(Таблица14[9],Таблица14[партия],$AO$1,Таблица14[изд],$W$1,Таблица14[коэф],B10,Таблица14[р/р],D10,Таблица14[Ф. И. О.],C10) -> 0 | W10: =SUMIFS(Таблица1[10],Таблица1[партия],$AO$1,Таблица1[изд],$W$1,Таблица1[коэф],B10,Таблица1[р/р],D10,Таблица1[Ф. И. О.],C10) -> 0 | X10: =SUMIFS(Таблица14[10],Таблица14[партия],$AO$1,Таблица14[изд],$W$1,Таблица14[коэф],B10,Таблица14[р/р],D10,Таблица14[Ф. И. О.],C10) -> 0 | Y10: =SUMIFS(Таблица1[11],Таблица1[партия],$AO$1,Таблица1[изд],$W$1,Таблица1[коэф],B10,Таблица1[р/р],D10,Таблица1[Ф. И. О.],C10) -> 0 | Z10: =SUMIFS(Таблица14[11],Таблица14[партия],$AO$1,Таблица14[изд],$W$1,Таблица14[коэф],B10,Таблица14[р/р],D10,Таблица14[Ф. И. О.],C10) -> 0 | AA10: =SUMIFS(Таблица1[12],Таблица1[партия],$AO$1,Таблица1[изд],$W$1,Таблица1[коэф],B10,Таблица1[р/р],D10,Таблица1[Ф. И. О.],C10) -> 0 | AB10: =SUMIFS(Таблица14[12],Таблица14[партия],$AO$1,Таблица14[изд],$W$1,Таблица14[коэф],B10,Таблица14[р/р],D10,Таблица14[Ф. И. О.],C10) -> 0 | AC10: =SUMIFS(Таблица1[13],Таблица1[партия],$AO$1,Таблица1[изд],$W$1,Таблица1[коэф],B10,Таблица1[р/р],D10,Таблица1[Ф. И. О.],C10) -> 0 | AD10: =SUMIFS(Таблица14[13],Таблица14[партия],$AO$1,Таблица14[изд],$W$1,Таблица14[коэф],B10,Таблица14[р/р],D10,Таблица14[Ф. И. О.],C10) -> 2.9 | AE10: =SUMIFS(Таблица1[14],Таблица1[партия],$AO$1,Таблица1[изд],$W$1,Таблица1[коэф],B10,Таблица1[р/р],D10,Таблица1[Ф. И. О.],C10) -> 0 | AF10: =SUMIFS(Таблица14[14],Таблица14[партия],$AO$1,Таблица14[изд],$W$1,Таблица14[коэф],B10,Таблица14[р/р],D10,Таблица14[Ф. И. О.],C10) -> 0 | AG10: =SUMIFS(Таблица1[15],Таблица1[партия],$AO$1,Таблица1[изд],$W$1,Таблица1[коэф],B10,Таблица1[р/р],D10,Таблица1[Ф. И. О.],C10) -> 0 | AH10: =SUMIFS(Таблица14[15],Таблица14[партия],$AO$1,Таблица14[изд],$W$1,Таблица14[коэф],B10,Таблица14[р/р],D10,Таблица14[Ф. И. О.],C10) -> 3.3 | AI10: =SUMIFS(Таблица1[16],Таблица1[партия],$AO$1,Таблица1[изд],$W$1,Таблица1[коэф],B10,Таблица1[р/р],D10,Таблица1[Ф. И. О.],C10) -> 0 | AJ10: =SUMIFS(Таблица14[16],Таблица14[партия],$AO$1,Таблица14[изд],$W$1,Таблица14[коэф],B10,Таблица14[р/р],D10,Таблица14[Ф. И. О.],C10) -> 0 | AK10: =SUMIFS(Таблица1[17],Таблица1[партия],$AO$1,Таблица1[изд],$W$1,Таблица1[коэф],B10,Таблица1[р/р],D10,Таблица1[Ф. И. О.],C10) -> 0 | AL10: =SUMIFS(Таблица14[17],Таблица14[партия],$AO$1,Таблица14[изд],$W$1,Таблица14[коэф],B10,Таблица14[р/р],D10,Таблица14[Ф. И. О.],C10) -> 0 | AM10: =SUMIFS(Таблица1[18],Таблица1[партия],$AO$1,Таблица1[изд],$W$1,Таблица1[коэф],B10,Таблица1[р/р],D10,Таблица1[Ф. И. О.],C10) -> 0 | AN10: =SUMIFS(Таблица14[18],Таблица14[партия],$AO$1,Таблица14[изд],$W$1,Таблица14[коэф],B10,Таблица14[р/р],D10,Таблица14[Ф. И. О.],C10) -> 0 | AO10: =SUMIFS(Таблица1[19],Таблица1[партия],$AO$1,Таблица1[изд],$W$1,Таблица1[коэф],B10,Таблица1[р/р],D10,Таблица1[Ф. И. О.],C10) -> 0 | AP10: =SUMIFS(Таблица14[19],Таблица14[партия],$AO$1,Таблица14[изд],$W$1,Таблица14[коэф],B10,Таблица14[р/р],D10,Таблица14[Ф. И. О.],C10) -> 4 | AQ10: =SUMIFS(Таблица1[20],Таблица1[партия],$AO$1,Таблица1[изд],$W$1,Таблица1[коэф],B10,Таблица1[р/р],D10,Таблица1[Ф. И. О.],C10) -> 0 | AR10: =SUMIFS(Таблица14[20],Таблица14[партия],$AO$1,Таблица14[изд],$W$1,Таблица14[коэф],B10,Таблица14[р/р],D10,Таблица14[Ф. И. О.],C10) -> 4 | AS10: =SUMIFS(Таблица1[21],Таблица1[партия],$AO$1,Таблица1[изд],$W$1,Таблица1[коэф],B10,Таблица1[р/р],D10,Таблица1[Ф. И. О.],C10) -> 0 | AT10: =SUMIFS(Таблица14[21],Таблица14[партия],$AO$1,Таблица14[изд],$W$1,Таблица14[коэф],B10,Таблица14[р/р],D10,Таблица14[Ф. И. О.],C10) -> 0 | AU10: =SUMIFS(Таблица1[22],Таблица1[партия],$AO$1,Таблица1[изд],$W$1,Таблица1[коэф],B10,Таблица1[р/р],D10,Таблица1[Ф. И. О.],C10) -> 0 | AV10: =SUMIFS(Таблица14[22],Таблица14[партия],$AO$1,Таблица14[изд],$W$1,Таблица14[коэф],B10,Таблица14[р/р],D10,Таблица14[Ф. И. О.],C10) -> 2 | AW10: =SUMIFS(Таблица1[23],Таблица1[партия],$AO$1,Таблица1[изд],$W$1,Таблица1[коэф],B10,Таблица1[р/р],D10,Таблица1[Ф. И. О.],C10) -> 0 | AX10: =SUMIFS(Таблица14[23],Таблица14[партия],$AO$1,Таблица14[изд],$W$1,Таблица14[коэф],B10,Таблица14[р/р],D10,Таблица14[Ф. И. О.],C10) -> 0 | AY10: =SUMIFS(Таблица1[24],Таблица1[партия],$AO$1,Таблица1[изд],$W$1,Таблица1[коэф],B10,Таблица1[р/р],D10,Таблица1[Ф. И. О.],C10) -> 0 | AZ10: =SUMIFS(Таблица14[24],Таблица14[партия],$AO$1,Таблица14[изд],$W$1,Таблица14[коэф],B10,Таблица14[р/р],D10,Таблица14[Ф. И. О.],C10) -> 0 | BA10: =SUMIFS(Таблица1[25],Таблица1[партия],$AO$1,Таблица1[изд],$W$1,Таблица1[коэф],B10,Таблица1[р/р],D10,Таблица1[Ф. И. О.],C10) -> 0 | BB10: =SUMIFS(Таблица14[25],Таблица14[партия],$AO$1,Таблица14[изд],$W$1,Таблица14[коэф],B10,Таблица14[р/р],D10,Таблица14[Ф. И. О.],C10) -> 0 | BC10: =SUMIFS(Таблица1[26],Таблица1[партия],$AO$1,Таблица1[изд],$W$1,Таблица1[коэф],B10,Таблица1[р/р],D10,Таблица1[Ф. И. О.],C10) -> 0 | BD10: =SUMIFS(Таблица14[26],Таблица14[партия],$AO$1,Таблица14[изд],$W$1,Таблица14[коэф],B10,Таблица14[р/р],D10,Таблица14[Ф. И. О.],C10) -> 1 | BE10: =SUMIFS(Таблица1[27],Таблица1[партия],$AO$1,Таблица1[изд],$W$1,Таблица1[коэф],B10,Таблица1[р/р],D10,Таблица1[Ф. И. О.],C10) -> 0 | BF10: =SUMIFS(Таблица14[27],Таблица14[партия],$AO$1,Таблица14[изд],$W$1,Таблица14[коэф],B10,Таблица14[р/р],D10,Таблица14[Ф. И. О.],C10) -> 0 | BG10: =SUMIFS(Таблица1[28],Таблица1[партия],$AO$1,Таблица1[изд],$W$1,Таблица1[коэф],B10,Таблица1[р/р],D10,Таблица1[Ф. И. О.],C10) -> 0 | BH10: =SUMIFS(Таблица14[28],Таблица14[партия],$AO$1,Таблица14[изд],$W$1,Таблица14[коэф],B10,Таблица14[р/р],D10,Таблица14[Ф. И. О.],C10) -> 4 | BI10: =SUMIFS(Таблица1[29],Таблица1[партия],$AO$1,Таблица1[изд],$W$1,Таблица1[коэф],B10,Таблица1[р/р],D10,Таблица1[Ф. И. О.],C10) -> 0 | BJ10: =SUMIFS(Таблица14[29],Таблица14[партия],$AO$1,Таблица14[изд],$W$1,Таблица14[коэф],B10,Таблица14[р/р],D10,Таблица14[Ф. И. О.],C10) -> 4 | BK10: =SUMIFS(Таблица1[30],Таблица1[партия],$AO$1,Таблица1[изд],$W$1,Таблица1[коэф],B10,Таблица1[р/р],D10,Таблица1[Ф. И. О.],C10) -> 0 | BL10: =SUMIFS(Таблица14[30],Таблица14[партия],$AO$1,Таблица14[изд],$W$1,Таблица14[коэф],B10,Таблица14[р/р],D10,Таблица14[Ф. И. О.],C10) -> 0 | BM10: =SUMIFS(Таблица1[31],Таблица1[партия],$AO$1,Таблица1[изд],$W$1,Таблица1[коэф],B10,Таблица1[р/р],D10,Таблица1[Ф. И. О.],C10) -> 0 | BN10: =SUMIFS(Таблица14[31],Таблица14[партия],$AO$1,Таблица14[изд],$W$1,Таблица14[коэф],B10,Таблица14[р/р],D10,Таблица14[Ф. И. О.],C10) -> 0 | BO10: 25.2 | BP10: 0 | BQ10: 25.2
A11: 5 | B11: 1 | C11: Гриша Ольга Викторовна | D11: 2а | E11: =SUMIFS(Таблица14[1],Таблица14[партия],$AO$1,Таблица14[изд],$W$1,Таблица14[коэф],B11,Таблица14[р/р],D11,Таблица14[Ф. И. О.],C11) -> 0 | F11: =SUMIFS(Таблица14[1],Таблица14[партия],$AO$1,Таблица14[изд],$W$1,Таблица14[коэф],B11,Таблица14[р/р],D11,Таблица14[Ф. И. О.],C11) -> 0 | G11: =SUMIFS(Таблица1[1],Таблица1[партия],$AO$1,Таблица1[изд],$W$1,Таблица1[коэф],B11,Таблица1[р/р],D11,Таблица1[Ф. И. О.],C11) -> 0 | H11: =SUMIFS(Таблица14[2],Таблица14[партия],$AO$1,Таблица14[изд],$W$1,Таблица14[коэф],B11,Таблица14[р/р],D11,Таблица14[Ф. И. О.],C11) -> 0 | I11: =SUMIFS(Таблица1[3],Таблица1[партия],$AO$1,Таблица1[изд],$W$1,Таблица1[коэф],B11,Таблица1[р/р],D11,Таблица1[Ф. И. О.],C11) -> 0 | J11: =SUMIFS(Таблица14[3],Таблица14[партия],$AO$1,Таблица14[изд],$W$1,Таблица14[коэф],B11,Таблица14[р/р],D11,Таблица14[Ф. И. О.],C11) -> 0 | K11: =SUMIFS(Таблица1[4],Таблица1[партия],$AO$1,Таблица1[изд],$W$1,Таблица1[коэф],B11,Таблица1[р/р],D11,Таблица1[Ф. И. О.],C11) -> 0 | L11: =SUMIFS(Таблица14[4],Таблица14[партия],$AO$1,Таблица14[изд],$W$1,Таблица14[коэф],B11,Таблица14[р/р],D11,Таблица14[Ф. И. О.],C11) -> 0 | M11: =SUMIFS(Таблица1[5],Таблица1[партия],$AO$1,Таблица1[изд],$W$1,Таблица1[коэф],B11,Таблица1[р/р],D11,Таблица1[Ф. И. О.],C11) -> 0 | N11: =SUMIFS(Таблица14[5],Таблица14[партия],$AO$1,Таблица14[изд],$W$1,Таблица14[коэф],B11,Таблица14[р/р],D11,Таблица14[Ф. И. О.],C11) -> 0 | O11: =SUMIFS(Таблица1[6],Таблица1[партия],$AO$1,Таблица1[изд],$W$1,Таблица1[коэф],B11,Таблица1[р/р],D11,Таблица1[Ф. И. О.],C11) -> 7 | P11: =SUMIFS(Таблица14[6],Таблица14[партия],$AO$1,Таблица14[изд],$W$1,Таблица14[коэф],B11,Таблица14[р/р],D11,Таблица14[Ф. И. О.],C11) -> 0 | Q11: =SUMIFS(Таблица1[7],Таблица1[партия],$AO$1,Таблица1[изд],$W$1,Таблица1[коэф],B11,Таблица1[р/р],D11,Таблица1[Ф. И. О.],C11) -> 0 | R11: =SUMIFS(Таблица14[7],Таблица14[партия],$AO$1,Таблица14[изд],$W$1,Таблица14[коэф],B11,Таблица14[р/р],D11,Таблица14[Ф. И. О.],C11) -> 0 | S11: =SUMIFS(Таблица1[8],Таблица1[партия],$AO$1,Таблица1[изд],$W$1,Таблица1[коэф],B11,Таблица1[р/р],D11,Таблица1[Ф. И. О.],C11) -> 0 | T11: =SUMIFS(Таблица14[8],Таблица14[партия],$AO$1,Таблица14[изд],$W$1,Таблица14[коэф],B11,Таблица14[р/р],D11,Таблица14[Ф. И. О.],C11) -> 0 | U11: =SUMIFS(Таблица1[9],Таблица1[партия],$AO$1,Таблица1[изд],$W$1,Таблица1[коэф],B11,Таблица1[р/р],D11,Таблица1[Ф. И. О.],C11) -> 0 | V11: =SUMIFS(Таблица14[9],Таблица14[партия],$AO$1,Таблица14[изд],$W$1,Таблица14[коэф],B11,Таблица14[р/р],D11,Таблица14[Ф. И. О.],C11) -> 0 | W11: =SUMIFS(Таблица1[10],Таблица1[партия],$AO$1,Таблица1[изд],$W$1,Таблица1[коэф],B11,Таблица1[р/р],D11,Таблица1[Ф. И. О.],C11) -> 0 | X11: =SUMIFS(Таблица14[10],Таблица14[партия],$AO$1,Таблица14[изд],$W$1,Таблица14[коэф],B11,Таблица14[р/р],D11,Таблица14[Ф. И. О.],C11) -> 0 | Y11: =SUMIFS(Таблица1[11],Таблица1[партия],$AO$1,Таблица1[изд],$W$1,Таблица1[коэф],B11,Таблица1[р/р],D11,Таблица1[Ф. И. О.],C11) -> 0 | Z11: =SUMIFS(Таблица14[11],Таблица14[партия],$AO$1,Таблица14[изд],$W$1,Таблица14[коэф],B11,Таблица14[р/р],D11,Таблица14[Ф. И. О.],C11) -> 0 | AA11: =SUMIFS(Таблица1[12],Таблица1[партия],$AO$1,Таблица1[изд],$W$1,Таблица1[коэф],B11,Таблица1[р/р],D11,Таблица1[Ф. И. О.],C11) -> 0 | AB11: =SUMIFS(Таблица14[12],Таблица14[партия],$AO$1,Таблица14[изд],$W$1,Таблица14[коэф],B11,Таблица14[р/р],D11,Таблица14[Ф. И. О.],C11) -> 0 | AC11: =SUMIFS(Таблица1[13],Таблица1[партия],$AO$1,Таблица1[изд],$W$1,Таблица1[коэф],B11,Таблица1[р/р],D11,Таблица1[Ф. И. О.],C11) -> 7.2 | AD11: =SUMIFS(Таблица14[13],Таблица14[партия],$AO$1,Таблица14[изд],$W$1,Таблица14[коэф],B11,Таблица14[р/р],D11,Таблица14[Ф. И. О.],C11) -> 0 | AE11: =SUMIFS(Таблица1[14],Таблица1[партия],$AO$1,Таблица1[изд],$W$1,Таблица1[коэф],B11,Таблица1[р/р],D11,Таблица1[Ф. И. О.],C11) -> 7.2 | AF11: =SUMIFS(Таблица14[14],Таблица14[партия],$AO$1,Таблица14[изд],$W$1,Таблица14[коэф],B11,Таблица14[р/р],D11,Таблица14[Ф. И. О.],C11) -> 0 | AG11: =SUMIFS(Таблица1[15],Таблица1[партия],$AO$1,Таблица1[изд],$W$1,Таблица1[коэф],B11,Таблица1[р/р],D11,Таблица1[Ф. И. О.],C11) -> 7.2 | AH11: =SUMIFS(Таблица14[15],Таблица14[партия],$AO$1,Таблица14[изд],$W$1,Таблица14[коэф],B11,Таблица14[р/р],D11,Таблица14[Ф. И. О.],C11) -> 0 | AI11: =SUMIFS(Таблица1[16],Таблица1[партия],$AO$1,Таблица1[изд],$W$1,Таблица1[коэф],B11,Таблица1[р/р],D11,Таблица1[Ф. И. О.],C11) -> 0 | AJ11: =SUMIFS(Таблица14[16],Таблица14[партия],$AO$1,Таблица14[изд],$W$1,Таблица14[коэф],B11,Таблица14[р/р],D11,Таблица14[Ф. И. О.],C11) -> 0 | AK11: =SUMIFS(Таблица1[17],Таблица1[партия],$AO$1,Таблица1[изд],$W$1,Таблица1[коэф],B11,Таблица1[р/р],D11,Таблица1[Ф. И. О.],C11) -> 0 | AL11: =SUMIFS(Таблица14[17],Таблица14[партия],$AO$1,Таблица14[изд],$W$1,Таблица14[коэф],B11,Таблица14[р/р],D11,Таблица14[Ф. И. О.],C11) -> 0 | AM11: =SUMIFS(Таблица1[18],Таблица1[партия],$AO$1,Таблица1[изд],$W$1,Таблица1[коэф],B11,Таблица1[р/р],D11,Таблица1[Ф. И. О.],C11) -> 0 | AN11: =SUMIFS(Таблица14[18],Таблица14[партия],$AO$1,Таблица14[изд],$W$1,Таблица14[коэф],B11,Таблица14[р/р],D11,Таблица14[Ф. И. О.],C11) -> 0 | AO11: =SUMIFS(Таблица1[19],Таблица1[партия],$AO$1,Таблица1[изд],$W$1,Таблица1[коэф],B11,Таблица1[р/р],D11,Таблица1[Ф. И. О.],C11) -> 0 | AP11: =SUMIFS(Таблица14[19],Таблица14[партия],$AO$1,Таблица14[изд],$W$1,Таблица14[коэф],B11,Таблица14[р/р],D11,Таблица14[Ф. И. О.],C11) -> 0 | AQ11: =SUMIFS(Таблица1[20],Таблица1[партия],$AO$1,Таблица1[изд],$W$1,Таблица1[коэф],B11,Таблица1[р/р],D11,Таблица1[Ф. И. О.],C11) -> 0 | AR11: =SUMIFS(Таблица14[20],Таблица14[партия],$AO$1,Таблица14[изд],$W$1,Таблица14[коэф],B11,Таблица14[р/р],D11,Таблица14[Ф. И. О.],C11) -> 0 | AS11: =SUMIFS(Таблица1[21],Таблица1[партия],$AO$1,Таблица1[изд],$W$1,Таблица1[коэф],B11,Таблица1[р/р],D11,Таблица1[Ф. И. О.],C11) -> 7.2 | AT11: =SUMIFS(Таблица14[21],Таблица14[партия],$AO$1,Таблица14[изд],$W$1,Таблица14[коэф],B11,Таблица14[р/р],D11,Таблица14[Ф. И. О.],C11) -> 0 | AU11: =SUMIFS(Таблица1[22],Таблица1[партия],$AO$1,Таблица1[изд],$W$1,Таблица1[коэф],B11,Таблица1[р/р],D11,Таблица1[Ф. И. О.],C11) -> 7.2 | AV11: =SUMIFS(Таблица14[22],Таблица14[партия],$AO$1,Таблица14[изд],$W$1,Таблица14[коэф],B11,Таблица14[р/р],D11,Таблица14[Ф. И. О.],C11) -> 0 | AW11: =SUMIFS(Таблица1[23],Таблица1[партия],$AO$1,Таблица1[изд],$W$1,Таблица1[коэф],B11,Таблица1[р/р],D11,Таблица1[Ф. И. О.],C11) -> 0 | AX11: =SUMIFS(Таблица14[23],Таблица14[партия],$AO$1,Таблица14[изд],$W$1,Таблица14[коэф],B11,Таблица14[р/р],D11,Таблица14[Ф. И. О.],C11) -> 0 | AY11: =SUMIFS(Таблица1[24],Таблица1[партия],$AO$1,Таблица1[изд],$W$1,Таблица1[коэф],B11,Таблица1[р/р],D11,Таблица1[Ф. И. О.],C11) -> 0 | AZ11: =SUMIFS(Таблица14[24],Таблица14[партия],$AO$1,Таблица14[изд],$W$1,Таблица14[коэф],B11,Таблица14[р/р],D11,Таблица14[Ф. И. О.],C11) -> 0 | BA11: =SUMIFS(Таблица1[25],Таблица1[партия],$AO$1,Таблица1[изд],$W$1,Таблица1[коэф],B11,Таблица1[р/р],D11,Таблица1[Ф. И. О.],C11) -> 0 | BB11: =SUMIFS(Таблица14[25],Таблица14[партия],$AO$1,Таблица14[изд],$W$1,Таблица14[коэф],B11,Таблица14[р/р],D11,Таблица14[Ф. И. О.],C11) -> 0 | BC11: =SUMIFS(Таблица1[26],Таблица1[партия],$AO$1,Таблица1[изд],$W$1,Таблица1[коэф],B11,Таблица1[р/р],D11,Таблица1[Ф. И. О.],C11) -> 0 | BD11: =SUMIFS(Таблица14[26],Таблица14[партия],$AO$1,Таблица14[изд],$W$1,Таблица14[коэф],B11,Таблица14[р/р],D11,Таблица14[Ф. И. О.],C11) -> 0 | BE11: =SUMIFS(Таблица1[27],Таблица1[партия],$AO$1,Таблица1[изд],$W$1,Таблица1[коэф],B11,Таблица1[р/р],D11,Таблица1[Ф. И. О.],C11) -> 0 | BF11: =SUMIFS(Таблица14[27],Таблица14[партия],$AO$1,Таблица14[изд],$W$1,Таблица14[коэф],B11,Таблица14[р/р],D11,Таблица14[Ф. И. О.],C11) -> 0 | BG11: =SUMIFS(Таблица1[28],Таблица1[партия],$AO$1,Таблица1[изд],$W$1,Таблица1[коэф],B11,Таблица1[р/р],D11,Таблица1[Ф. И. О.],C11) -> 7.2 | BH11: =SUMIFS(Таблица14[28],Таблица14[партия],$AO$1,Таблица14[изд],$W$1,Таблица14[коэф],B11,Таблица14[р/р],D11,Таблица14[Ф. И. О.],C11) -> 0 | BI11: =SUMIFS(Таблица1[29],Таблица1[партия],$AO$1,Таблица1[изд],$W$1,Таблица1[коэф],B11,Таблица1[р/р],D11,Таблица1[Ф. И. О.],C11) -> 7.2 | BJ11: =SUMIFS(Таблица14[29],Таблица14[партия],$AO$1,Таблица14[изд],$W$1,Таблица14[коэф],B11,Таблица14[р/р],D11,Таблица14[Ф. И. О.],C11) -> 0 | BK11: =SUMIFS(Таблица1[30],Таблица1[партия],$AO$1,Таблица1[изд],$W$1,Таблица1[коэф],B11,Таблица1[р/р],D11,Таблица1[Ф. И. О.],C11) -> 7.2 | BL11: =SUMIFS(Таблица14[30],Таблица14[партия],$AO$1,Таблица14[изд],$W$1,Таблица14[коэф],B11,Таблица14[р/р],D11,Таблица14[Ф. И. О.],C11) -> 0 | BM11: =SUMIFS(Таблица1[31],Таблица1[партия],$AO$1,Таблица1[изд],$W$1,Таблица1[коэф],B11,Таблица1[р/р],D11,Таблица1[Ф. И. О.],C11) -> 7 | BN11: =SUMIFS(Таблица14[31],Таблица14[партия],$AO$1,Таблица14[изд],$W$1,Таблица14[коэф],B11,Таблица14[р/р],D11,Таблица14[Ф. И. О.],C11) -> 0 | BO11: 71.6 | BP11: 71.6 | BQ11: 0
A12: 6 | B12: 1 | C12: Гриша Ольга Викторовна | D12: 3/1 | E12: =SUMIFS(Таблица14[1],Таблица14[партия],$AO$1,Таблица14[изд],$W$1,Таблица14[коэф],B12,Таблица14[р/р],D12,Таблица14[Ф. И. О.],C12) -> 0 | F12: =SUMIFS(Таблица14[1],Таблица14[партия],$AO$1,Таблица14[изд],$W$1,Таблица14[коэф],B12,Таблица14[р/р],D12,Таблица14[Ф. И. О.],C12) -> 0 | G12: =SUMIFS(Таблица1[1],Таблица1[партия],$AO$1,Таблица1[изд],$W$1,Таблица1[коэф],B12,Таблица1[р/р],D12,Таблица1[Ф. И. О.],C12) -> 0 | H12: =SUMIFS(Таблица14[2],Таблица14[партия],$AO$1,Таблица14[изд],$W$1,Таблица14[коэф],B12,Таблица14[р/р],D12,Таблица14[Ф. И. О.],C12) -> 0 | I12: =SUMIFS(Таблица1[3],Таблица1[партия],$AO$1,Таблица1[изд],$W$1,Таблица1[коэф],B12,Таблица1[р/р],D12,Таблица1[Ф. И. О.],C12) -> 0 | J12: =SUMIFS(Таблица14[3],Таблица14[партия],$AO$1,Таблица14[изд],$W$1,Таблица14[коэф],B12,Таблица14[р/р],D12,Таблица14[Ф. И. О.],C12) -> 0 | K12: =SUMIFS(Таблица1[4],Таблица1[партия],$AO$1,Таблица1[изд],$W$1,Таблица1[коэф],B12,Таблица1[р/р],D12,Таблица1[Ф. И. О.],C12) -> 0 | L12: =SUMIFS(Таблица14[4],Таблица14[партия],$AO$1,Таблица14[изд],$W$1,Таблица14[коэф],B12,Таблица14[р/р],D12,Таблица14[Ф. И. О.],C12) -> 0 | M12: =SUMIFS(Таблица1[5],Таблица1[партия],$AO$1,Таблица1[изд],$W$1,Таблица1[коэф],B12,Таблица1[р/р],D12,Таблица1[Ф. И. О.],C12) -> 0 | N12: =SUMIFS(Таблица14[5],Таблица14[партия],$AO$1,Таблица14[изд],$W$1,Таблица14[коэф],B12,Таблица14[р/р],D12,Таблица14[Ф. И. О.],C12) -> 0 | O12: =SUMIFS(Таблица1[6],Таблица1[партия],$AO$1,Таблица1[изд],$W$1,Таблица1[коэф],B12,Таблица1[р/р],D12,Таблица1[Ф. И. О.],C12) -> 0 | P12: =SUMIFS(Таблица14[6],Таблица14[партия],$AO$1,Таблица14[изд],$W$1,Таблица14[коэф],B12,Таблица14[р/р],D12,Таблица14[Ф. И. О.],C12) -> 0 | Q12: =SUMIFS(Таблица1[7],Таблица1[партия],$AO$1,Таблица1[изд],$W$1,Таблица1[коэф],B12,Таблица1[р/р],D12,Таблица1[Ф. И. О.],C12) -> 0 | R12: =SUMIFS(Таблица14[7],Таблица14[партия],$AO$1,Таблица14[изд],$W$1,Таблица14[коэф],B12,Таблица14[р/р],D12,Таблица14[Ф. И. О.],C12) -> 0 | S12: =SUMIFS(Таблица1[8],Таблица1[партия],$AO$1,Таблица1[изд],$W$1,Таблица1[коэф],B12,Таблица1[р/р],D12,Таблица1[Ф. И. О.],C12) -> 0 | T12: =SUMIFS(Таблица14[8],Таблица14[партия],$AO$1,Таблица14[изд],$W$1,Таблица14[коэф],B12,Таблица14[р/р],D12,Таблица14[Ф. И. О.],C12) -> 0 | U12: =SUMIFS(Таблица1[9],Таблица1[партия],$AO$1,Таблица1[изд],$W$1,Таблица1[коэф],B12,Таблица1[р/р],D12,Таблица1[Ф. И. О.],C12) -> 0 | V12: =SUMIFS(Таблица14[9],Таблица14[партия],$AO$1,Таблица14[изд],$W$1,Таблица14[коэф],B12,Таблица14[р/р],D12,Таблица14[Ф. И. О.],C12) -> 0 | W12: =SUMIFS(Таблица1[10],Таблица1[партия],$AO$1,Таблица1[изд],$W$1,Таблица1[коэф],B12,Таблица1[р/р],D12,Таблица1[Ф. И. О.],C12) -> 0 | X12: =SUMIFS(Таблица14[10],Таблица14[партия],$AO$1,Таблица14[изд],$W$1,Таблица14[коэф],B12,Таблица14[р/р],D12,Таблица14[Ф. И. О.],C12) -> 0 | Y12: =SUMIFS(Таблица1[11],Таблица1[партия],$AO$1,Таблица1[изд],$W$1,Таблица1[коэф],B12,Таблица1[р/р],D12,Таблица1[Ф. И. О.],C12) -> 0 | Z12: =SUMIFS(Таблица14[11],Таблица14[партия],$AO$1,Таблица14[изд],$W$1,Таблица14[коэф],B12,Таблица14[р/р],D12,Таблица14[Ф. И. О.],C12) -> 0 | AA12: =SUMIFS(Таблица1[12],Таблица1[партия],$AO$1,Таблица1[изд],$W$1,Таблица1[коэф],B12,Таблица1[р/р],D12,Таблица1[Ф. И. О.],C12) -> 0 | AB12: =SUMIFS(Таблица14[12],Таблица14[партия],$AO$1,Таблица14[изд],$W$1,Таблица14[коэф],B12,Таблица14[р/р],D12,Таблица14[Ф. И. О.],C12) -> 0 | AC12: =SUMIFS(Таблица1[13],Таблица1[партия],$AO$1,Таблица1[изд],$W$1,Таблица1[коэф],B12,Таблица1[р/р],D12,Таблица1[Ф. И. О.],C12) -> 0 | AD12: =SUMIFS(Таблица14[13],Таблица14[партия],$AO$1,Таблица14[изд],$W$1,Таблица14[коэф],B12,Таблица14[р/р],D12,Таблица14[Ф. И. О.],C12) -> 0 | AE12: =SUMIFS(Таблица1[14],Таблица1[партия],$AO$1,Таблица1[изд],$W$1,Таблица1[коэф],B12,Таблица1[р/р],D12,Таблица1[Ф. И. О.],C12) -> 0 | AF12: =SUMIFS(Таблица14[14],Таблица14[партия],$AO$1,Таблица14[изд],$W$1,Таблица14[коэф],B12,Таблица14[р/р],D12,Таблица14[Ф. И. О.],C12) -> 4 | AG12: =SUMIFS(Таблица1[15],Таблица1[партия],$AO$1,Таблица1[изд],$W$1,Таблица1[коэф],B12,Таблица1[р/р],D12,Таблица1[Ф. И. О.],C12) -> 0 | AH12: =SUMIFS(Таблица14[15],Таблица14[партия],$AO$1,Таблица14[изд],$W$1,Таблица14[коэф],B12,Таблица14[р/р],D12,Таблица14[Ф. И. О.],C12) -> 4 | AI12: =SUMIFS(Таблица1[16],Таблица1[партия],$AO$1,Таблица1[изд],$W$1,Таблица1[коэф],B12,Таблица1[р/р],D12,Таблица1[Ф. И. О.],C12) -> 0 | AJ12: =SUMIFS(Таблица14[16],Таблица14[партия],$AO$1,Таблица14[изд],$W$1,Таблица14[коэф],B12,Таблица14[р/р],D12,Таблица14[Ф. И. О.],C12) -> 2 | AK12: =SUMIFS(Таблица1[17],Таблица1[партия],$AO$1,Таблица1[изд],$W$1,Таблица1[коэф],B12,Таблица1[р/р],D12,Таблица1[Ф. И. О.],C12) -> 0 | AL12: =SUMIFS(Таблица14[17],Таблица14[партия],$AO$1,Таблица14[изд],$W$1,Таблица14[коэф],B12,Таблица14[р/р],D12,Таблица14[Ф. И. О.],C12) -> 0 | AM12: =SUMIFS(Таблица1[18],Таблица1[партия],$AO$1,Таблица1[изд],$W$1,Таблица1[коэф],B12,Таблица1[р/р],D12,Таблица1[Ф. И. О.],C12) -> 0 | AN12: =SUMIFS(Таблица14[18],Таблица14[партия],$AO$1,Таблица14[изд],$W$1,Таблица14[коэф],B12,Таблица14[р/р],D12,Таблица14[Ф. И. О.],C12) -> 0 | AO12: =SUMIFS(Таблица1[19],Таблица1[партия],$AO$1,Таблица1[изд],$W$1,Таблица1[коэф],B12,Таблица1[р/р],D12,Таблица1[Ф. И. О.],C12) -> 0 | AP12: =SUMIFS(Таблица14[19],Таблица14[партия],$AO$1,Таблица14[изд],$W$1,Таблица14[коэф],B12,Таблица14[р/р],D12,Таблица14[Ф. И. О.],C12) -> 0 | AQ12: =SUMIFS(Таблица1[20],Таблица1[партия],$AO$1,Таблица1[изд],$W$1,Таблица1[коэф],B12,Таблица1[р/р],D12,Таблица1[Ф. И. О.],C12) -> 0 | AR12: =SUMIFS(Таблица14[20],Таблица14[партия],$AO$1,Таблица14[изд],$W$1,Таблица14[коэф],B12,Таблица14[р/р],D12,Таблица14[Ф. И. О.],C12) -> 0 | AS12: =SUMIFS(Таблица1[21],Таблица1[партия],$AO$1,Таблица1[изд],$W$1,Таблица1[коэф],B12,Таблица1[р/р],D12,Таблица1[Ф. И. О.],C12) -> 0 | AT12: =SUMIFS(Таблица14[21],Таблица14[партия],$AO$1,Таблица14[изд],$W$1,Таблица14[коэф],B12,Таблица14[р/р],D12,Таблица14[Ф. И. О.],C12) -> 4 | AU12: =SUMIFS(Таблица1[22],Таблица1[партия],$AO$1,Таблица1[изд],$W$1,Таблица1[коэф],B12,Таблица1[р/р],D12,Таблица1[Ф. И. О.],C12) -> 0 | AV12: =SUMIFS(Таблица14[22],Таблица14[партия],$AO$1,Таблица14[изд],$W$1,Таблица14[коэф],B12,Таблица14[р/р],D12,Таблица14[Ф. И. О.],C12) -> 0 | AW12: =SUMIFS(Таблица1[23],Таблица1[партия],$AO$1,Таблица1[изд],$W$1,Таблица1[коэф],B12,Таблица1[р/р],D12,Таблица1[Ф. И. О.],C12) -> 0 | AX12: =SUMIFS(Таблица14[23],Таблица14[партия],$AO$1,Таблица14[изд],$W$1,Таблица14[коэф],B12,Таблица14[р/р],D12,Таблица14[Ф. И. О.],C12) -> 0 | AY12: =SUMIFS(Таблица1[24],Таблица1[партия],$AO$1,Таблица1[изд],$W$1,Таблица1[коэф],B12,Таблица1[р/р],D12,Таблица1[Ф. И. О.],C12) -> 0 | AZ12: =SUMIFS(Таблица14[24],Таблица14[партия],$AO$1,Таблица14[изд],$W$1,Таблица14[коэф],B12,Таблица14[р/р],D12,Таблица14[Ф. И. О.],C12) -> 0 | BA12: =SUMIFS(Таблица1[25],Таблица1[партия],$AO$1,Таблица1[изд],$W$1,Таблица1[коэф],B12,Таблица1[р/р],D12,Таблица1[Ф. И. О.],C12) -> 0 | BB12: =SUMIFS(Таблица14[25],Таблица14[партия],$AO$1,Таблица14[изд],$W$1,Таблица14[коэф],B12,Таблица14[р/р],D12,Таблица14[Ф. И. О.],C12) -> 0 | BC12: =SUMIFS(Таблица1[26],Таблица1[партия],$AO$1,Таблица1[изд],$W$1,Таблица1[коэф],B12,Таблица1[р/р],D12,Таблица1[Ф. И. О.],C12) -> 0 | BD12: =SUMIFS(Таблица14[26],Таблица14[партия],$AO$1,Таблица14[изд],$W$1,Таблица14[коэф],B12,Таблица14[р/р],D12,Таблица14[Ф. И. О.],C12) -> 0 | BE12: =SUMIFS(Таблица1[27],Таблица1[партия],$AO$1,Таблица1[изд],$W$1,Таблица1[коэф],B12,Таблица1[р/р],D12,Таблица1[Ф. И. О.],C12) -> 0 | BF12: =SUMIFS(Таблица14[27],Таблица14[партия],$AO$1,Таблица14[изд],$W$1,Таблица14[коэф],B12,Таблица14[р/р],D12,Таблица14[Ф. И. О.],C12) -> 0 | BG12: =SUMIFS(Таблица1[28],Таблица1[партия],$AO$1,Таблица1[изд],$W$1,Таблица1[коэф],B12,Таблица1[р/р],D12,Таблица1[Ф. И. О.],C12) -> 0 | BH12: =SUMIFS(Таблица14[28],Таблица14[партия],$AO$1,Таблица14[изд],$W$1,Таблица14[коэф],B12,Таблица14[р/р],D12,Таблица14[Ф. И. О.],C12) -> 4 | BI12: =SUMIFS(Таблица1[29],Таблица1[партия],$AO$1,Таблица1[изд],$W$1,Таблица1[коэф],B12,Таблица1[р/р],D12,Таблица1[Ф. И. О.],C12) -> 0 | BJ12: =SUMIFS(Таблица14[29],Таблица14[партия],$AO$1,Таблица14[изд],$W$1,Таблица14[коэф],B12,Таблица14[р/р],D12,Таблица14[Ф. И. О.],C12) -> 4 | BK12: =SUMIFS(Таблица1[30],Таблица1[партия],$AO$1,Таблица1[изд],$W$1,Таблица1[коэф],B12,Таблица1[р/р],D12,Таблица1[Ф. И. О.],C12) -> 0 | BL12: =SUMIFS(Таблица14[30],Таблица14[партия],$AO$1,Таблица14[изд],$W$1,Таблица14[коэф],B12,Таблица14[р/р],D12,Таблица14[Ф. И. О.],C12) -> 0 | BM12: =SUMIFS(Таблица1[31],Таблица1[партия],$AO$1,Таблица1[изд],$W$1,Таблица1[коэф],B12,Таблица1[р/р],D12,Таблица1[Ф. И. О.],C12) -> 0 | BN12: =SUMIFS(Таблица14[31],Таблица14[партия],$AO$1,Таблица14[изд],$W$1,Таблица14[коэф],B12,Таблица14[р/р],D12,Таблица14[Ф. И. О.],C12) -> 0 | BO12: 22 | BP12: 0 | BQ12: 22
A13: 7 | B13: 1,5 | C13: Зайка Ирина Сергеевна | D13: 4/8 | E13: =SUMIFS(Таблица14[1],Таблица14[партия],$AO$1,Таблица14[изд],$W$1,Таблица14[коэф],B13,Таблица14[р/р],D13,Таблица14[Ф. И. О.],C13) -> 0 | F13: =SUMIFS(Таблица14[1],Таблица14[партия],$AO$1,Таблица14[изд],$W$1,Таблица14[коэф],B13,Таблица14[р/р],D13,Таблица14[Ф. И. О.],C13) -> 0 | G13: =SUMIFS(Таблица1[1],Таблица1[партия],$AO$1,Таблица1[изд],$W$1,Таблица1[коэф],B13,Таблица1[р/р],D13,Таблица1[Ф. И. О.],C13) -> 0 | H13: =SUMIFS(Таблица14[2],Таблица14[партия],$AO$1,Таблица14[изд],$W$1,Таблица14[коэф],B13,Таблица14[р/р],D13,Таблица14[Ф. И. О.],C13) -> 0 | I13: =SUMIFS(Таблица1[3],Таблица1[партия],$AO$1,Таблица1[изд],$W$1,Таблица1[коэф],B13,Таблица1[р/р],D13,Таблица1[Ф. И. О.],C13) -> 0 | J13: =SUMIFS(Таблица14[3],Таблица14[партия],$AO$1,Таблица14[изд],$W$1,Таблица14[коэф],B13,Таблица14[р/р],D13,Таблица14[Ф. И. О.],C13) -> 0 | K13: =SUMIFS(Таблица1[4],Таблица1[партия],$AO$1,Таблица1[изд],$W$1,Таблица1[коэф],B13,Таблица1[р/р],D13,Таблица1[Ф. И. О.],C13) -> 0 | L13: =SUMIFS(Таблица14[4],Таблица14[партия],$AO$1,Таблица14[изд],$W$1,Таблица14[коэф],B13,Таблица14[р/р],D13,Таблица14[Ф. И. О.],C13) -> 0 | M13: =SUMIFS(Таблица1[5],Таблица1[партия],$AO$1,Таблица1[изд],$W$1,Таблица1[коэф],B13,Таблица1[р/р],D13,Таблица1[Ф. И. О.],C13) -> 0 | N13: =SUMIFS(Таблица14[5],Таблица14[партия],$AO$1,Таблица14[изд],$W$1,Таблица14[коэф],B13,Таблица14[р/р],D13,Таблица14[Ф. И. О.],C13) -> 0 | O13: =SUMIFS(Таблица1[6],Таблица1[партия],$AO$1,Таблица1[изд],$W$1,Таблица1[коэф],B13,Таблица1[р/р],D13,Таблица1[Ф. И. О.],C13) -> 0 | P13: =SUMIFS(Таблица14[6],Таблица14[партия],$AO$1,Таблица14[изд],$W$1,Таблица14[коэф],B13,Таблица14[р/р],D13,Таблица14[Ф. И. О.],C13) -> 0 | Q13: =SUMIFS(Таблица1[7],Таблица1[партия],$AO$1,Таблица1[изд],$W$1,Таблица1[коэф],B13,Таблица1[р/р],D13,Таблица1[Ф. И. О.],C13) -> 0 | R13: =SUMIFS(Таблица14[7],Таблица14[партия],$AO$1,Таблица14[изд],$W$1,Таблица14[коэф],B13,Таблица14[р/р],D13,Таблица14[Ф. И. О.],C13) -> 0 | S13: =SUMIFS(Таблица1[8],Таблица1[партия],$AO$1,Таблица1[изд],$W$1,Таблица1[коэф],B13,Таблица1[р/р],D13,Таблица1[Ф. И. О.],C13) -> 0 | T13: =SUMIFS(Таблица14[8],Таблица14[партия],$AO$1,Таблица14[изд],$W$1,Таблица14[коэф],B13,Таблица14[р/р],D13,Таблица14[Ф. И. О.],C13) -> 0 | U13: =SUMIFS(Таблица1[9],Таблица1[партия],$AO$1,Таблица1[изд],$W$1,Таблица1[коэф],B13,Таблица1[р/р],D13,Таблица1[Ф. И. О.],C13) -> 0 | V13: =SUMIFS(Таблица14[9],Таблица14[партия],$AO$1,Таблица14[изд],$W$1,Таблица14[коэф],B13,Таблица14[р/р],D13,Таблица14[Ф. И. О.],C13) -> 0 | W13: =SUMIFS(Таблица1[10],Таблица1[партия],$AO$1,Таблица1[изд],$W$1,Таблица1[коэф],B13,Таблица1[р/р],D13,Таблица1[Ф. И. О.],C13) -> 0 | X13: =SUMIFS(Таблица14[10],Таблица14[партия],$AO$1,Таблица14[изд],$W$1,Таблица14[коэф],B13,Таблица14[р/р],D13,Таблица14[Ф. И. О.],C13) -> 0 | Y13: =SUMIFS(Таблица1[11],Таблица1[партия],$AO$1,Таблица1[изд],$W$1,Таблица1[коэф],B13,Таблица1[р/р],D13,Таблица1[Ф. И. О.],C13) -> 0 | Z13: =SUMIFS(Таблица14[11],Таблица14[партия],$AO$1,Таблица14[изд],$W$1,Таблица14[коэф],B13,Таблица14[р/р],D13,Таблица14[Ф. И. О.],C13) -> 0 | AA13: =SUMIFS(Таблица1[12],Таблица1[партия],$AO$1,Таблица1[изд],$W$1,Таблица1[коэф],B13,Таблица1[р/р],D13,Таблица1[Ф. И. О.],C13) -> 7.2 | AB13: =SUMIFS(Таблица14[12],Таблица14[партия],$AO$1,Таблица14[изд],$W$1,Таблица14[коэф],B13,Таблица14[р/р],D13,Таблица14[Ф. И. О.],C13) -> 4 | AC13: =SUMIFS(Таблица1[13],Таблица1[партия],$AO$1,Таблица1[изд],$W$1,Таблица1[коэф],B13,Таблица1[р/р],D13,Таблица1[Ф. И. О.],C13) -> 0 | AD13: =SUMIFS(Таблица14[13],Таблица14[партия],$AO$1,Таблица14[изд],$W$1,Таблица14[коэф],B13,Таблица14[р/р],D13,Таблица14[Ф. И. О.],C13) -> 0 | AE13: =SUMIFS(Таблица1[14],Таблица1[партия],$AO$1,Таблица1[изд],$W$1,Таблица1[коэф],B13,Таблица1[р/р],D13,Таблица1[Ф. И. О.],C13) -> 0 | AF13: =SUMIFS(Таблица14[14],Таблица14[партия],$AO$1,Таблица14[изд],$W$1,Таблица14[коэф],B13,Таблица14[р/р],D13,Таблица14[Ф. И. О.],C13) -> 0 | AG13: =SUMIFS(Таблица1[15],Таблица1[партия],$AO$1,Таблица1[изд],$W$1,Таблица1[коэф],B13,Таблица1[р/р],D13,Таблица1[Ф. И. О.],C13) -> 7.2 | AH13: =SUMIFS(Таблица14[15],Таблица14[партия],$AO$1,Таблица14[изд],$W$1,Таблица14[коэф],B13,Таблица14[р/р],D13,Таблица14[Ф. И. О.],C13) -> 0 | AI13: =SUMIFS(Таблица1[16],Таблица1[партия],$AO$1,Таблица1[изд],$W$1,Таблица1[коэф],B13,Таблица1[р/р],D13,Таблица1[Ф. И. О.],C13) -> 7.2 | AJ13: =SUMIFS(Таблица14[16],Таблица14[партия],$AO$1,Таблица14[изд],$W$1,Таблица14[коэф],B13,Таблица14[р/р],D13,Таблица14[Ф. И. О.],C13) -> 0 | AK13: =SUMIFS(Таблица1[17],Таблица1[партия],$AO$1,Таблица1[изд],$W$1,Таблица1[коэф],B13,Таблица1[р/р],D13,Таблица1[Ф. И. О.],C13) -> 0 | AL13: =SUMIFS(Таблица14[17],Таблица14[партия],$AO$1,Таблица14[изд],$W$1,Таблица14[коэф],B13,Таблица14[р/р],D13,Таблица14[Ф. И. О.],C13) -> 0 | AM13: =SUMIFS(Таблица1[18],Таблица1[партия],$AO$1,Таблица1[изд],$W$1,Таблица1[коэф],B13,Таблица1[р/р],D13,Таблица1[Ф. И. О.],C13) -> 0 | AN13: =SUMIFS(Таблица14[18],Таблица14[партия],$AO$1,Таблица14[изд],$W$1,Таблица14[коэф],B13,Таблица14[р/р],D13,Таблица14[Ф. И. О.],C13) -> 0 | AO13: =SUMIFS(Таблица1[19],Таблица1[партия],$AO$1,Таблица1[изд],$W$1,Таблица1[коэф],B13,Таблица1[р/р],D13,Таблица1[Ф. И. О.],C13) -> 0 | AP13: =SUMIFS(Таблица14[19],Таблица14[партия],$AO$1,Таблица14[изд],$W$1,Таблица14[коэф],B13,Таблица14[р/р],D13,Таблица14[Ф. И. О.],C13) -> 0 | AQ13: =SUMIFS(Таблица1[20],Таблица1[партия],$AO$1,Таблица1[изд],$W$1,Таблица1[коэф],B13,Таблица1[р/р],D13,Таблица1[Ф. И. О.],C13) -> 0 | AR13: =SUMIFS(Таблица14[20],Таблица14[партия],$AO$1,Таблица14[изд],$W$1,Таблица14[коэф],B13,Таблица14[р/р],D13,Таблица14[Ф. И. О.],C13) -> 0 | AS13: =SUMIFS(Таблица1[21],Таблица1[партия],$AO$1,Таблица1[изд],$W$1,Таблица1[коэф],B13,Таблица1[р/р],D13,Таблица1[Ф. И. О.],C13) -> 0 | AT13: =SUMIFS(Таблица14[21],Таблица14[партия],$AO$1,Таблица14[изд],$W$1,Таблица14[коэф],B13,Таблица14[р/р],D13,Таблица14[Ф. И. О.],C13) -> 0 | AU13: =SUMIFS(Таблица1[22],Таблица1[партия],$AO$1,Таблица1[изд],$W$1,Таблица1[коэф],B13,Таблица1[р/р],D13,Таблица1[Ф. И. О.],C13) -> 0 | AV13: =SUMIFS(Таблица14[22],Таблица14[партия],$AO$1,Таблица14[изд],$W$1,Таблица14[коэф],B13,Таблица14[р/р],D13,Таблица14[Ф. И. О.],C13) -> 0 | AW13: =SUMIFS(Таблица1[23],Таблица1[партия],$AO$1,Таблица1[изд],$W$1,Таблица1[коэф],B13,Таблица1[р/р],D13,Таблица1[Ф. И. О.],C13) -> 0 | AX13: =SUMIFS(Таблица14[23],Таблица14[партия],$AO$1,Таблица14[изд],$W$1,Таблица14[коэф],B13,Таблица14[р/р],D13,Таблица14[Ф. И. О.],C13) -> 0 | AY13: =SUMIFS(Таблица1[24],Таблица1[партия],$AO$1,Таблица1[изд],$W$1,Таблица1[коэф],B13,Таблица1[р/р],D13,Таблица1[Ф. И. О.],C13) -> 0 | AZ13: =SUMIFS(Таблица14[24],Таблица14[партия],$AO$1,Таблица14[изд],$W$1,Таблица14[коэф],B13,Таблица14[р/р],D13,Таблица14[Ф. И. О.],C13) -> 0 | BA13: =SUMIFS(Таблица1[25],Таблица1[партия],$AO$1,Таблица1[изд],$W$1,Таблица1[коэф],B13,Таблица1[р/р],D13,Таблица1[Ф. И. О.],C13) -> 0 | BB13: =SUMIFS(Таблица14[25],Таблица14[партия],$AO$1,Таблица14[изд],$W$1,Таблица14[коэф],B13,Таблица14[р/р],D13,Таблица14[Ф. И. О.],C13) -> 0 | BC13: =SUMIFS(Таблица1[26],Таблица1[партия],$AO$1,Таблица1[изд],$W$1,Таблица1[коэф],B13,Таблица1[р/р],D13,Таблица1[Ф. И. О.],C13) -> 0 | BD13: =SUMIFS(Таблица14[26],Таблица14[партия],$AO$1,Таблица14[изд],$W$1,Таблица14[коэф],B13,Таблица14[р/р],D13,Таблица14[Ф. И. О.],C13) -> 0 | BE13: =SUMIFS(Таблица1[27],Таблица1[партия],$AO$1,Таблица1[изд],$W$1,Таблица1[коэф],B13,Таблица1[р/р],D13,Таблица1[Ф. И. О.],C13) -> 0 | BF13: =SUMIFS(Таблица14[27],Таблица14[партия],$AO$1,Таблица14[изд],$W$1,Таблица14[коэф],B13,Таблица14[р/р],D13,Таблица14[Ф. И. О.],C13) -> 0 | BG13: =SUMIFS(Таблица1[28],Таблица1[партия],$AO$1,Таблица1[изд],$W$1,Таблица1[коэф],B13,Таблица1[р/р],D13,Таблица1[Ф. И. О.],C13) -> 0 | BH13: =SUMIFS(Таблица14[28],Таблица14[партия],$AO$1,Таблица14[изд],$W$1,Таблица14[коэф],B13,Таблица14[р/р],D13,Таблица14[Ф. И. О.],C13) -> 0 | BI13: =SUMIFS(Таблица1[29],Таблица1[партия],$AO$1,Таблица1[изд],$W$1,Таблица1[коэф],B13,Таблица1[р/р],D13,Таблица1[Ф. И. О.],C13) -> 7.2 | BJ13: =SUMIFS(Таблица14[29],Таблица14[партия],$AO$1,Таблица14[изд],$W$1,Таблица14[коэф],B13,Таблица14[р/р],D13,Таблица14[Ф. И. О.],C13) -> 0 | BK13: =SUMIFS(Таблица1[30],Таблица1[партия],$AO$1,Таблица1[изд],$W$1,Таблица1[коэф],B13,Таблица1[р/р],D13,Таблица1[Ф. И. О.],C13) -> 7.2 | BL13: =SUMIFS(Таблица14[30],Таблица14[партия],$AO$1,Таблица14[изд],$W$1,Таблица14[коэф],B13,Таблица14[р/р],D13,Таблица14[Ф. И. О.],C13) -> 0 | BM13: =SUMIFS(Таблица1[31],Таблица1[партия],$AO$1,Таблица1[изд],$W$1,Таблица1[коэф],B13,Таблица1[р/р],D13,Таблица1[Ф. И. О.],C13) -> 0 | BN13: =SUMIFS(Таблица14[31],Таблица14[партия],$AO$1,Таблица14[изд],$W$1,Таблица14[коэф],B13,Таблица14[р/р],D13,Таблица14[Ф. И. О.],C13) -> 0 | BO13: 40 | BP13: 36 | BQ13: 4
A14: 8 | B14: 1,5 | C14: Иванова Екатерина Борисовна | D14: 4/8 | E14: =SUMIFS(Таблица14[1],Таблица14[партия],$AO$1,Таблица14[изд],$W$1,Таблица14[коэф],B14,Таблица14[р/р],D14,Таблица14[Ф. И. О.],C14) -> 0 | F14: =SUMIFS(Таблица14[1],Таблица14[партия],$AO$1,Таблица14[изд],$W$1,Таблица14[коэф],B14,Таблица14[р/р],D14,Таблица14[Ф. И. О.],C14) -> 0 | G14: =SUMIFS(Таблица1[1],Таблица1[партия],$AO$1,Таблица1[изд],$W$1,Таблица1[коэф],B14,Таблица1[р/р],D14,Таблица1[Ф. И. О.],C14) -> 0 | H14: =SUMIFS(Таблица14[2],Таблица14[партия],$AO$1,Таблица14[изд],$W$1,Таблица14[коэф],B14,Таблица14[р/р],D14,Таблица14[Ф. И. О.],C14) -> 0 | I14: =SUMIFS(Таблица1[3],Таблица1[партия],$AO$1,Таблица1[изд],$W$1,Таблица1[коэф],B14,Таблица1[р/р],D14,Таблица1[Ф. И. О.],C14) -> 7 | J14: =SUMIFS(Таблица14[3],Таблица14[партия],$AO$1,Таблица14[изд],$W$1,Таблица14[коэф],B14,Таблица14[р/р],D14,Таблица14[Ф. И. О.],C14) -> 0 | K14: =SUMIFS(Таблица1[4],Таблица1[партия],$AO$1,Таблица1[изд],$W$1,Таблица1[коэф],B14,Таблица1[р/р],D14,Таблица1[Ф. И. О.],C14) -> 4 | L14: =SUMIFS(Таблица14[4],Таблица14[партия],$AO$1,Таблица14[изд],$W$1,Таблица14[коэф],B14,Таблица14[р/р],D14,Таблица14[Ф. И. О.],C14) -> 0 | M14: =SUMIFS(Таблица1[5],Таблица1[партия],$AO$1,Таблица1[изд],$W$1,Таблица1[коэф],B14,Таблица1[р/р],D14,Таблица1[Ф. И. О.],C14) -> 6 | N14: =SUMIFS(Таблица14[5],Таблица14[партия],$AO$1,Таблица14[изд],$W$1,Таблица14[коэф],B14,Таблица14[р/р],D14,Таблица14[Ф. И. О.],C14) -> 0 | O14: =SUMIFS(Таблица1[6],Таблица1[партия],$AO$1,Таблица1[изд],$W$1,Таблица1[коэф],B14,Таблица1[р/р],D14,Таблица1[Ф. И. О.],C14) -> 1 | P14: =SUMIFS(Таблица14[6],Таблица14[партия],$AO$1,Таблица14[изд],$W$1,Таблица14[коэф],B14,Таблица14[р/р],D14,Таблица14[Ф. И. О.],C14) -> 0 | Q14: =SUMIFS(Таблица1[7],Таблица1[партия],$AO$1,Таблица1[изд],$W$1,Таблица1[коэф],B14,Таблица1[р/р],D14,Таблица1[Ф. И. О.],C14) -> 0 | R14: =SUMIFS(Таблица14[7],Таблица14[партия],$AO$1,Таблица14[изд],$W$1,Таблица14[коэф],B14,Таблица14[р/р],D14,Таблица14[Ф. И. О.],C14) -> 0 | S14: =SUMIFS(Таблица1[8],Таблица1[партия],$AO$1,Таблица1[изд],$W$1,Таблица1[коэф],B14,Таблица1[р/р],D14,Таблица1[Ф. И. О.],C14) -> 5 | T14: =SUMIFS(Таблица14[8],Таблица14[партия],$AO$1,Таблица14[изд],$W$1,Таблица14[коэф],B14,Таблица14[р/р],D14,Таблица14[Ф. И. О.],C14) -> 0 | U14: =SUMIFS(Таблица1[9],Таблица1[партия],$AO$1,Таблица1[изд],$W$1,Таблица1[коэф],B14,Таблица1[р/р],D14,Таблица1[Ф. И. О.],C14) -> 0 | V14: =SUMIFS(Таблица14[9],Таблица14[партия],$AO$1,Таблица14[изд],$W$1,Таблица14[коэф],B14,Таблица14[р/р],D14,Таблица14[Ф. И. О.],C14) -> 0 | W14: =SUMIFS(Таблица1[10],Таблица1[партия],$AO$1,Таблица1[изд],$W$1,Таблица1[коэф],B14,Таблица1[р/р],D14,Таблица1[Ф. И. О.],C14) -> 0 | X14: =SUMIFS(Таблица14[10],Таблица14[партия],$AO$1,Таблица14[изд],$W$1,Таблица14[коэф],B14,Таблица14[р/р],D14,Таблица14[Ф. И. О.],C14) -> 0 | Y14: =SUMIFS(Таблица1[11],Таблица1[партия],$AO$1,Таблица1[изд],$W$1,Таблица1[коэф],B14,Таблица1[р/р],D14,Таблица1[Ф. И. О.],C14) -> 0 | Z14: =SUMIFS(Таблица14[11],Таблица14[партия],$AO$1,Таблица14[изд],$W$1,Таблица14[коэф],B14,Таблица14[р/р],D14,Таблица14[Ф. И. О.],C14) -> 0 | AA14: =SUMIFS(Таблица1[12],Таблица1[партия],$AO$1,Таблица1[изд],$W$1,Таблица1[коэф],B14,Таблица1[р/р],D14,Таблица1[Ф. И. О.],C14) -> 7.2 | AB14: =SUMIFS(Таблица14[12],Таблица14[партия],$AO$1,Таблица14[изд],$W$1,Таблица14[коэф],B14,Таблица14[р/р],D14,Таблица14[Ф. И. О.],C14) -> 4 | AC14: =SUMIFS(Таблица1[13],Таблица1[партия],$AO$1,Таблица1[изд],$W$1,Таблица1[коэф],B14,Таблица1[р/р],D14,Таблица1[Ф. И. О.],C14) -> 0 | AD14: =SUMIFS(Таблица14[13],Таблица14[партия],$AO$1,Таблица14[изд],$W$1,Таблица14[коэф],B14,Таблица14[р/р],D14,Таблица14[Ф. И. О.],C14) -> 4 | AE14: =SUMIFS(Таблица1[14],Таблица1[партия],$AO$1,Таблица1[изд],$W$1,Таблица1[коэф],B14,Таблица1[р/р],D14,Таблица1[Ф. И. О.],C14) -> 7.2 | AF14: =SUMIFS(Таблица14[14],Таблица14[партия],$AO$1,Таблица14[изд],$W$1,Таблица14[коэф],B14,Таблица14[р/р],D14,Таблица14[Ф. И. О.],C14) -> 0 | AG14: =SUMIFS(Таблица1[15],Таблица1[партия],$AO$1,Таблица1[изд],$W$1,Таблица1[коэф],B14,Таблица1[р/р],D14,Таблица1[Ф. И. О.],C14) -> 7.2 | AH14: =SUMIFS(Таблица14[15],Таблица14[партия],$AO$1,Таблица14[изд],$W$1,Таблица14[коэф],B14,Таблица14[р/р],D14,Таблица14[Ф. И. О.],C14) -> 0 | AI14: =SUMIFS(Таблица1[16],Таблица1[партия],$AO$1,Таблица1[изд],$W$1,Таблица1[коэф],B14,Таблица1[р/р],D14,Таблица1[Ф. И. О.],C14) -> 7.2 | AJ14: =SUMIFS(Таблица14[16],Таблица14[партия],$AO$1,Таблица14[изд],$W$1,Таблица14[коэф],B14,Таблица14[р/р],D14,Таблица14[Ф. И. О.],C14) -> 4 | AK14: =SUMIFS(Таблица1[17],Таблица1[партия],$AO$1,Таблица1[изд],$W$1,Таблица1[коэф],B14,Таблица1[р/р],D14,Таблица1[Ф. И. О.],C14) -> 0 | AL14: =SUMIFS(Таблица14[17],Таблица14[партия],$AO$1,Таблица14[изд],$W$1,Таблица14[коэф],B14,Таблица14[р/р],D14,Таблица14[Ф. И. О.],C14) -> 0 | AM14: =SUMIFS(Таблица1[18],Таблица1[партия],$AO$1,Таблица1[изд],$W$1,Таблица1[коэф],B14,Таблица1[р/р],D14,Таблица1[Ф. И. О.],C14) -> 0 | AN14: =SUMIFS(Таблица14[18],Таблица14[партия],$AO$1,Таблица14[изд],$W$1,Таблица14[коэф],B14,Таблица14[р/р],D14,Таблица14[Ф. И. О.],C14) -> 0 | AO14: =SUMIFS(Таблица1[19],Таблица1[партия],$AO$1,Таблица1[изд],$W$1,Таблица1[коэф],B14,Таблица1[р/р],D14,Таблица1[Ф. И. О.],C14) -> 0 | AP14: =SUMIFS(Таблица14[19],Таблица14[партия],$AO$1,Таблица14[изд],$W$1,Таблица14[коэф],B14,Таблица14[р/р],D14,Таблица14[Ф. И. О.],C14) -> 3 | AQ14: =SUMIFS(Таблица1[20],Таблица1[партия],$AO$1,Таблица1[изд],$W$1,Таблица1[коэф],B14,Таблица1[р/р],D14,Таблица1[Ф. И. О.],C14) -> 7.2 | AR14: =SUMIFS(Таблица14[20],Таблица14[партия],$AO$1,Таблица14[изд],$W$1,Таблица14[коэф],B14,Таблица14[р/р],D14,Таблица14[Ф. И. О.],C14) -> 3 | AS14: =SUMIFS(Таблица1[21],Таблица1[партия],$AO$1,Таблица1[изд],$W$1,Таблица1[коэф],B14,Таблица1[р/р],D14,Таблица1[Ф. И. О.],C14) -> 7.2 | AT14: =SUMIFS(Таблица14[21],Таблица14[партия],$AO$1,Таблица14[изд],$W$1,Таблица14[коэф],B14,Таблица14[р/р],D14,Таблица14[Ф. И. О.],C14) -> 4 | AU14: =SUMIFS(Таблица1[22],Таблица1[партия],$AO$1,Таблица1[изд],$W$1,Таблица1[коэф],B14,Таблица1[р/р],D14,Таблица1[Ф. И. О.],C14) -> 0 | AV14: =SUMIFS(Таблица14[22],Таблица14[партия],$AO$1,Таблица14[изд],$W$1,Таблица14[коэф],B14,Таблица14[р/р],D14,Таблица14[Ф. И. О.],C14) -> 4 | AW14: =SUMIFS(Таблица1[23],Таблица1[партия],$AO$1,Таблица1[изд],$W$1,Таблица1[коэф],B14,Таблица1[р/р],D14,Таблица1[Ф. И. О.],C14) -> 0 | AX14: =SUMIFS(Таблица14[23],Таблица14[партия],$AO$1,Таблица14[изд],$W$1,Таблица14[коэф],B14,Таблица14[р/р],D14,Таблица14[Ф. И. О.],C14) -> 4 | AY14: =SUMIFS(Таблица1[24],Таблица1[партия],$AO$1,Таблица1[изд],$W$1,Таблица1[коэф],B14,Таблица1[р/р],D14,Таблица1[Ф. И. О.],C14) -> 6 | AZ14: =SUMIFS(Таблица14[24],Таблица14[партия],$AO$1,Таблица14[изд],$W$1,Таблица14[коэф],B14,Таблица14[р/р],D14,Таблица14[Ф. И. О.],C14) -> 0 | BA14: =SUMIFS(Таблица1[25],Таблица1[партия],$AO$1,Таблица1[изд],$W$1,Таблица1[коэф],B14,Таблица1[р/р],D14,Таблица1[Ф. И. О.],C14) -> 0 | BB14: =SUMIFS(Таблица14[25],Таблица14[партия],$AO$1,Таблица14[изд],$W$1,Таблица14[коэф],B14,Таблица14[р/р],D14,Таблица14[Ф. И. О.],C14) -> 0 | BC14: =SUMIFS(Таблица1[26],Таблица1[партия],$AO$1,Таблица1[изд],$W$1,Таблица1[коэф],B14,Таблица1[р/р],D14,Таблица1[Ф. И. О.],C14) -> 7.2 | BD14: =SUMIFS(Таблица14[26],Таблица14[партия],$AO$1,Таблица14[изд],$W$1,Таблица14[коэф],B14,Таблица14[р/р],D14,Таблица14[Ф. И. О.],C14) -> 4 | BE14: =SUMIFS(Таблица1[27],Таблица1[партия],$AO$1,Таблица1[изд],$W$1,Таблица1[коэф],B14,Таблица1[р/р],D14,Таблица1[Ф. И. О.],C14) -> 0 | BF14: =SUMIFS(Таблица14[27],Таблица14[партия],$AO$1,Таблица14[изд],$W$1,Таблица14[коэф],B14,Таблица14[р/р],D14,Таблица14[Ф. И. О.],C14) -> 0 | BG14: =SUMIFS(Таблица1[28],Таблица1[партия],$AO$1,Таблица1[изд],$W$1,Таблица1[коэф],B14,Таблица1[р/р],D14,Таблица1[Ф. И. О.],C14) -> 7.2 | BH14: =SUMIFS(Таблица14[28],Таблица14[партия],$AO$1,Таблица14[изд],$W$1,Таблица14[коэф],B14,Таблица14[р/р],D14,Таблица14[Ф. И. О.],C14) -> 0 | BI14: =SUMIFS(Таблица1[29],Таблица1[партия],$AO$1,Таблица1[изд],$W$1,Таблица1[коэф],B14,Таблица1[р/р],D14,Таблица1[Ф. И. О.],C14) -> 7.2 | BJ14: =SUMIFS(Таблица14[29],Таблица14[партия],$AO$1,Таблица14[изд],$W$1,Таблица14[коэф],B14,Таблица14[р/р],D14,Таблица14[Ф. И. О.],C14) -> 4 | BK14: =SUMIFS(Таблица1[30],Таблица1[партия],$AO$1,Таблица1[изд],$W$1,Таблица1[коэф],B14,Таблица1[р/р],D14,Таблица1[Ф. И. О.],C14) -> 7.2 | BL14: =SUMIFS(Таблица14[30],Таблица14[партия],$AO$1,Таблица14[изд],$W$1,Таблица14[коэф],B14,Таблица14[р/р],D14,Таблица14[Ф. И. О.],C14) -> 4 | BM14: =SUMIFS(Таблица1[31],Таблица1[партия],$AO$1,Таблица1[изд],$W$1,Таблица1[коэф],B14,Таблица1[р/р],D14,Таблица1[Ф. И. О.],C14) -> 6 | BN14: =SUMIFS(Таблица14[31],Таблица14[партия],$AO$1,Таблица14[изд],$W$1,Таблица14[коэф],B14,Таблица14[р/р],D14,Таблица14[Ф. И. О.],C14) -> 0 | BO14: 149 | BP14: 107 | BQ14: 42
A15: 9 | B15: 1 | C15: Иванова Екатерина Борисовна | D15: 2а | E15: =SUMIFS(Таблица14[1],Таблица14[партия],$AO$1,Таблица14[изд],$W$1,Таблица14[коэф],B15,Таблица14[р/р],D15,Таблица14[Ф. И. О.],C15) -> 0 | F15: =SUMIFS(Таблица14[1],Таблица14[партия],$AO$1,Таблица14[изд],$W$1,Таблица14[коэф],B15,Таблица14[р/р],D15,Таблица14[Ф. И. О.],C15) -> 0 | G15: =SUMIFS(Таблица1[1],Таблица1[партия],$AO$1,Таблица1[изд],$W$1,Таблица1[коэф],B15,Таблица1[р/р],D15,Таблица1[Ф. И. О.],C15) -> 0 | H15: =SUMIFS(Таблица14[2],Таблица14[партия],$AO$1,Таблица14[изд],$W$1,Таблица14[коэф],B15,Таблица14[р/р],D15,Таблица14[Ф. И. О.],C15) -> 0 | I15: =SUMIFS(Таблица1[3],Таблица1[партия],$AO$1,Таблица1[изд],$W$1,Таблица1[коэф],B15,Таблица1[р/р],D15,Таблица1[Ф. И. О.],C15) -> 0 | J15: =SUMIFS(Таблица14[3],Таблица14[партия],$AO$1,Таблица14[изд],$W$1,Таблица14[коэф],B15,Таблица14[р/р],D15,Таблица14[Ф. И. О.],C15) -> 0 | K15: =SUMIFS(Таблица1[4],Таблица1[партия],$AO$1,Таблица1[изд],$W$1,Таблица1[коэф],B15,Таблица1[р/р],D15,Таблица1[Ф. И. О.],C15) -> 2 | L15: =SUMIFS(Таблица14[4],Таблица14[партия],$AO$1,Таблица14[изд],$W$1,Таблица14[коэф],B15,Таблица14[р/р],D15,Таблица14[Ф. И. О.],C15) -> 0 | M15: =SUMIFS(Таблица1[5],Таблица1[партия],$AO$1,Таблица1[изд],$W$1,Таблица1[коэф],B15,Таблица1[р/р],D15,Таблица1[Ф. И. О.],C15) -> 0 | N15: =SUMIFS(Таблица14[5],Таблица14[партия],$AO$1,Таблица14[изд],$W$1,Таблица14[коэф],B15,Таблица14[р/р],D15,Таблица14[Ф. И. О.],C15) -> 0 | O15: =SUMIFS(Таблица1[6],Таблица1[партия],$AO$1,Таблица1[изд],$W$1,Таблица1[коэф],B15,Таблица1[р/р],D15,Таблица1[Ф. И. О.],C15) -> 3 | P15: =SUMIFS(Таблица14[6],Таблица14[партия],$AO$1,Таблица14[изд],$W$1,Таблица14[коэф],B15,Таблица14[р/р],D15,Таблица14[Ф. И. О.],C15) -> 0 | Q15: =SUMIFS(Таблица1[7],Таблица1[партия],$AO$1,Таблица1[изд],$W$1,Таблица1[коэф],B15,Таблица1[р/р],D15,Таблица1[Ф. И. О.],C15) -> 0 | R15: =SUMIFS(Таблица14[7],Таблица14[партия],$AO$1,Таблица14[изд],$W$1,Таблица14[коэф],B15,Таблица14[р/р],D15,Таблица14[Ф. И. О.],C15) -> 0 | S15: =SUMIFS(Таблица1[8],Таблица1[партия],$AO$1,Таблица1[изд],$W$1,Таблица1[коэф],B15,Таблица1[р/р],D15,Таблица1[Ф. И. О.],C15) -> 5 | T15: =SUMIFS(Таблица14[8],Таблица14[партия],$AO$1,Таблица14[изд],$W$1,Таблица14[коэф],B15,Таблица14[р/р],D15,Таблица14[Ф. И. О.],C15) -> 0 | U15: =SUMIFS(Таблица1[9],Таблица1[партия],$AO$1,Таблица1[изд],$W$1,Таблица1[коэф],B15,Таблица1[р/р],D15,Таблица1[Ф. И. О.],C15) -> 0 | V15: =SUMIFS(Таблица14[9],Таблица14[партия],$AO$1,Таблица14[изд],$W$1,Таблица14[коэф],B15,Таблица14[р/р],D15,Таблица14[Ф. И. О.],C15) -> 0 | W15: =SUMIFS(Таблица1[10],Таблица1[партия],$AO$1,Таблица1[изд],$W$1,Таблица1[коэф],B15,Таблица1[р/р],D15,Таблица1[Ф. И. О.],C15) -> 0 | X15: =SUMIFS(Таблица14[10],Таблица14[партия],$AO$1,Таблица14[изд],$W$1,Таблица14[коэф],B15,Таблица14[р/р],D15,Таблица14[Ф. И. О.],C15) -> 0 | Y15: =SUMIFS(Таблица1[11],Таблица1[партия],$AO$1,Таблица1[изд],$W$1,Таблица1[коэф],B15,Таблица1[р/р],D15,Таблица1[Ф. И. О.],C15) -> 0 | Z15: =SUMIFS(Таблица14[11],Таблица14[партия],$AO$1,Таблица14[изд],$W$1,Таблица14[коэф],B15,Таблица14[р/р],D15,Таблица14[Ф. И. О.],C15) -> 0 | AA15: =SUMIFS(Таблица1[12],Таблица1[партия],$AO$1,Таблица1[изд],$W$1,Таблица1[коэф],B15,Таблица1[р/р],D15,Таблица1[Ф. И. О.],C15) -> 0 | AB15: =SUMIFS(Таблица14[12],Таблица14[партия],$AO$1,Таблица14[изд],$W$1,Таблица14[коэф],B15,Таблица14[р/р],D15,Таблица14[Ф. И. О.],C15) -> 0 | AC15: =SUMIFS(Таблица1[13],Таблица1[партия],$AO$1,Таблица1[изд],$W$1,Таблица1[коэф],B15,Таблица1[р/р],D15,Таблица1[Ф. И. О.],C15) -> 0 | AD15: =SUMIFS(Таблица14[13],Таблица14[партия],$AO$1,Таблица14[изд],$W$1,Таблица14[коэф],B15,Таблица14[р/р],D15,Таблица14[Ф. И. О.],C15) -> 0 | AE15: =SUMIFS(Таблица1[14],Таблица1[партия],$AO$1,Таблица1[изд],$W$1,Таблица1[коэф],B15,Таблица1[р/р],D15,Таблица1[Ф. И. О.],C15) -> 0 | AF15: =SUMIFS(Таблица14[14],Таблица14[партия],$AO$1,Таблица14[изд],$W$1,Таблица14[коэф],B15,Таблица14[р/р],D15,Таблица14[Ф. И. О.],C15) -> 0 | AG15: =SUMIFS(Таблица1[15],Таблица1[партия],$AO$1,Таблица1[изд],$W$1,Таблица1[коэф],B15,Таблица1[р/р],D15,Таблица1[Ф. И. О.],C15) -> 0 | AH15: =SUMIFS(Таблица14[15],Таблица14[партия],$AO$1,Таблица14[изд],$W$1,Таблица14[коэф],B15,Таблица14[р/р],D15,Таблица14[Ф. И. О.],C15) -> 0 | AI15: =SUMIFS(Таблица1[16],Таблица1[партия],$AO$1,Таблица1[изд],$W$1,Таблица1[коэф],B15,Таблица1[р/р],D15,Таблица1[Ф. И. О.],C15) -> 0 | AJ15: =SUMIFS(Таблица14[16],Таблица14[партия],$AO$1,Таблица14[изд],$W$1,Таблица14[коэф],B15,Таблица14[р/р],D15,Таблица14[Ф. И. О.],C15) -> 0 | AK15: =SUMIFS(Таблица1[17],Таблица1[партия],$AO$1,Таблица1[изд],$W$1,Таблица1[коэф],B15,Таблица1[р/р],D15,Таблица1[Ф. И. О.],C15) -> 0 | AL15: =SUMIFS(Таблица14[17],Таблица14[партия],$AO$1,Таблица14[изд],$W$1,Таблица14[коэф],B15,Таблица14[р/р],D15,Таблица14[Ф. И. О.],C15) -> 0 | AM15: =SUMIFS(Таблица1[18],Таблица1[партия],$AO$1,Таблица1[изд],$W$1,Таблица1[коэф],B15,Таблица1[р/р],D15,Таблица1[Ф. И. О.],C15) -> 0 | AN15: =SUMIFS(Таблица14[18],Таблица14[партия],$AO$1,Таблица14[изд],$W$1,Таблица14[коэф],B15,Таблица14[р/р],D15,Таблица14[Ф. И. О.],C15) -> 0 | AO15: =SUMIFS(Таблица1[19],Таблица1[партия],$AO$1,Таблица1[изд],$W$1,Таблица1[коэф],B15,Таблица1[р/р],D15,Таблица1[Ф. И. О.],C15) -> 0 | AP15: =SUMIFS(Таблица14[19],Таблица14[партия],$AO$1,Таблица14[изд],$W$1,Таблица14[коэф],B15,Таблица14[р/р],D15,Таблица14[Ф. И. О.],C15) -> 0 | AQ15: =SUMIFS(Таблица1[20],Таблица1[партия],$AO$1,Таблица1[изд],$W$1,Таблица1[коэф],B15,Таблица1[р/р],D15,Таблица1[Ф. И. О.],C15) -> 0 | AR15: =SUMIFS(Таблица14[20],Таблица14[партия],$AO$1,Таблица14[изд],$W$1,Таблица14[коэф],B15,Таблица14[р/р],D15,Таблица14[Ф. И. О.],C15) -> 0 | AS15: =SUMIFS(Таблица1[21],Таблица1[партия],$AO$1,Таблица1[изд],$W$1,Таблица1[коэф],B15,Таблица1[р/р],D15,Таблица1[Ф. И. О.],C15) -> 0 | AT15: =SUMIFS(Таблица14[21],Таблица14[партия],$AO$1,Таблица14[изд],$W$1,Таблица14[коэф],B15,Таблица14[р/р],D15,Таблица14[Ф. И. О.],C15) -> 0 | AU15: =SUMIFS(Таблица1[22],Таблица1[партия],$AO$1,Таблица1[изд],$W$1,Таблица1[коэф],B15,Таблица1[р/р],D15,Таблица1[Ф. И. О.],C15) -> 0 | AV15: =SUMIFS(Таблица14[22],Таблица14[партия],$AO$1,Таблица14[изд],$W$1,Таблица14[коэф],B15,Таблица14[р/р],D15,Таблица14[Ф. И. О.],C15) -> 0 | AW15: =SUMIFS(Таблица1[23],Таблица1[партия],$AO$1,Таблица1[изд],$W$1,Таблица1[коэф],B15,Таблица1[р/р],D15,Таблица1[Ф. И. О.],C15) -> 0 | AX15: =SUMIFS(Таблица14[23],Таблица14[партия],$AO$1,Таблица14[изд],$W$1,Таблица14[коэф],B15,Таблица14[р/р],D15,Таблица14[Ф. И. О.],C15) -> 0 | AY15: =SUMIFS(Таблица1[24],Таблица1[партия],$AO$1,Таблица1[изд],$W$1,Таблица1[коэф],B15,Таблица1[р/р],D15,Таблица1[Ф. И. О.],C15) -> 0 | AZ15: =SUMIFS(Таблица14[24],Таблица14[партия],$AO$1,Таблица14[изд],$W$1,Таблица14[коэф],B15,Таблица14[р/р],D15,Таблица14[Ф. И. О.],C15) -> 0 | BA15: =SUMIFS(Таблица1[25],Таблица1[партия],$AO$1,Таблица1[изд],$W$1,Таблица1[коэф],B15,Таблица1[р/р],D15,Таблица1[Ф. И. О.],C15) -> 0 | BB15: =SUMIFS(Таблица14[25],Таблица14[партия],$AO$1,Таблица14[изд],$W$1,Таблица14[коэф],B15,Таблица14[р/р],D15,Таблица14[Ф. И. О.],C15) -> 0 | BC15: =SUMIFS(Таблица1[26],Таблица1[партия],$AO$1,Таблица1[изд],$W$1,Таблица1[коэф],B15,Таблица1[р/р],D15,Таблица1[Ф. И. О.],C15) -> 0 | BD15: =SUMIFS(Таблица14[26],Таблица14[партия],$AO$1,Таблица14[изд],$W$1,Таблица14[коэф],B15,Таблица14[р/р],D15,Таблица14[Ф. И. О.],C15) -> 0 | BE15: =SUMIFS(Таблица1[27],Таблица1[партия],$AO$1,Таблица1[изд],$W$1,Таблица1[коэф],B15,Таблица1[р/р],D15,Таблица1[Ф. И. О.],C15) -> 0 | BF15: =SUMIFS(Таблица14[27],Таблица14[партия],$AO$1,Таблица14[изд],$W$1,Таблица14[коэф],B15,Таблица14[р/р],D15,Таблица14[Ф. И. О.],C15) -> 0 | BG15: =SUMIFS(Таблица1[28],Таблица1[партия],$AO$1,Таблица1[изд],$W$1,Таблица1[коэф],B15,Таблица1[р/р],D15,Таблица1[Ф. И. О.],C15) -> 0 | BH15: =SUMIFS(Таблица14[28],Таблица14[партия],$AO$1,Таблица14[изд],$W$1,Таблица14[коэф],B15,Таблица14[р/р],D15,Таблица14[Ф. И. О.],C15) -> 0 | BI15: =SUMIFS(Таблица1[29],Таблица1[партия],$AO$1,Таблица1[изд],$W$1,Таблица1[коэф],B15,Таблица1[р/р],D15,Таблица1[Ф. И. О.],C15) -> 0 | BJ15: =SUMIFS(Таблица14[29],Таблица14[партия],$AO$1,Таблица14[изд],$W$1,Таблица14[коэф],B15,Таблица14[р/р],D15,Таблица14[Ф. И. О.],C15) -> 0 | BK15: =SUMIFS(Таблица1[30],Таблица1[партия],$AO$1,Таблица1[изд],$W$1,Таблица1[коэф],B15,Таблица1[р/р],D15,Таблица1[Ф. И. О.],C15) -> 0 | BL15: =SUMIFS(Таблица14[30],Таблица14[партия],$AO$1,Таблица14[изд],$W$1,Таблица14[коэф],B15,Таблица14[р/р],D15,Таблица14[Ф. И. О.],C15) -> 0 | BM15: =SUMIFS(Таблица1[31],Таблица1[партия],$AO$1,Таблица1[изд],$W$1,Таблица1[коэф],B15,Таблица1[р/р],D15,Таблица1[Ф. И. О.],C15) -> 0 | BN15: =SUMIFS(Таблица14[31],Таблица14[партия],$AO$1,Таблица14[изд],$W$1,Таблица14[коэф],B15,Таблица14[р/р],D15,Таблица14[Ф. И. О.],C15) -> 0 | BO15: 10 | BP15: 10 | BQ15: 0
A16: 10 | B16: 1 | C16: Иванова Инна Игоревна | D16: 2а | E16: =SUMIFS(Таблица14[1],Таблица14[партия],$AO$1,Таблица14[изд],$W$1,Таблица14[коэф],B16,Таблица14[р/р],D16,Таблица14[Ф. И. О.],C16) -> 0 | F16: =SUMIFS(Таблица14[1],Таблица14[партия],$AO$1,Таблица14[изд],$W$1,Таблица14[коэф],B16,Таблица14[р/р],D16,Таблица14[Ф. И. О.],C16) -> 0 | G16: =SUMIFS(Таблица1[1],Таблица1[партия],$AO$1,Таблица1[изд],$W$1,Таблица1[коэф],B16,Таблица1[р/р],D16,Таблица1[Ф. И. О.],C16) -> 0 | H16: =SUMIFS(Таблица14[2],Таблица14[партия],$AO$1,Таблица14[изд],$W$1,Таблица14[коэф],B16,Таблица14[р/р],D16,Таблица14[Ф. И. О.],C16) -> 0 | I16: =SUMIFS(Таблица1[3],Таблица1[партия],$AO$1,Таблица1[изд],$W$1,Таблица1[коэф],B16,Таблица1[р/р],D16,Таблица1[Ф. И. О.],C16) -> 0 | J16: =SUMIFS(Таблица14[3],Таблица14[партия],$AO$1,Таблица14[изд],$W$1,Таблица14[коэф],B16,Таблица14[р/р],D16,Таблица14[Ф. И. О.],C16) -> 0 | K16: =SUMIFS(Таблица1[4],Таблица1[партия],$AO$1,Таблица1[изд],$W$1,Таблица1[коэф],B16,Таблица1[р/р],D16,Таблица1[Ф. И. О.],C16) -> 0 | L16: =SUMIFS(Таблица14[4],Таблица14[партия],$AO$1,Таблица14[изд],$W$1,Таблица14[коэф],B16,Таблица14[р/р],D16,Таблица14[Ф. И. О.],C16) -> 0 | M16: =SUMIFS(Таблица1[5],Таблица1[партия],$AO$1,Таблица1[изд],$W$1,Таблица1[коэф],B16,Таблица1[р/р],D16,Таблица1[Ф. И. О.],C16) -> 6.5 | N16: =SUMIFS(Таблица14[5],Таблица14[партия],$AO$1,Таблица14[изд],$W$1,Таблица14[коэф],B16,Таблица14[р/р],D16,Таблица14[Ф. И. О.],C16) -> 0 | O16: =SUMIFS(Таблица1[6],Таблица1[партия],$AO$1,Таблица1[изд],$W$1,Таблица1[коэф],B16,Таблица1[р/р],D16,Таблица1[Ф. И. О.],C16) -> 0 | P16: =SUMIFS(Таблица14[6],Таблица14[партия],$AO$1,Таблица14[изд],$W$1,Таблица14[коэф],B16,Таблица14[р/р],D16,Таблица14[Ф. И. О.],C16) -> 0 | Q16: =SUMIFS(Таблица1[7],Таблица1[партия],$AO$1,Таблица1[изд],$W$1,Таблица1[коэф],B16,Таблица1[р/р],D16,Таблица1[Ф. И. О.],C16) -> 0 | R16: =SUMIFS(Таблица14[7],Таблица14[партия],$AO$1,Таблица14[изд],$W$1,Таблица14[коэф],B16,Таблица14[р/р],D16,Таблица14[Ф. И. О.],C16) -> 0 | S16: =SUMIFS(Таблица1[8],Таблица1[партия],$AO$1,Таблица1[изд],$W$1,Таблица1[коэф],B16,Таблица1[р/р],D16,Таблица1[Ф. И. О.],C16) -> 3 | T16: =SUMIFS(Таблица14[8],Таблица14[партия],$AO$1,Таблица14[изд],$W$1,Таблица14[коэф],B16,Таблица14[р/р],D16,Таблица14[Ф. И. О.],C16) -> 0 | U16: =SUMIFS(Таблица1[9],Таблица1[партия],$AO$1,Таблица1[изд],$W$1,Таблица1[коэф],B16,Таблица1[р/р],D16,Таблица1[Ф. И. О.],C16) -> 0 | V16: =SUMIFS(Таблица14[9],Таблица14[партия],$AO$1,Таблица14[изд],$W$1,Таблица14[коэф],B16,Таблица14[р/р],D16,Таблица14[Ф. И. О.],C16) -> 0 | W16: =SUMIFS(Таблица1[10],Таблица1[партия],$AO$1,Таблица1[изд],$W$1,Таблица1[коэф],B16,Таблица1[р/р],D16,Таблица1[Ф. И. О.],C16) -> 0 | X16: =SUMIFS(Таблица14[10],Таблица14[партия],$AO$1,Таблица14[изд],$W$1,Таблица14[коэф],B16,Таблица14[р/р],D16,Таблица14[Ф. И. О.],C16) -> 0 | Y16: =SUMIFS(Таблица1[11],Таблица1[партия],$AO$1,Таблица1[изд],$W$1,Таблица1[коэф],B16,Таблица1[р/р],D16,Таблица1[Ф. И. О.],C16) -> 0 | Z16: =SUMIFS(Таблица14[11],Таблица14[партия],$AO$1,Таблица14[изд],$W$1,Таблица14[коэф],B16,Таблица14[р/р],D16,Таблица14[Ф. И. О.],C16) -> 0 | AA16: =SUMIFS(Таблица1[12],Таблица1[партия],$AO$1,Таблица1[изд],$W$1,Таблица1[коэф],B16,Таблица1[р/р],D16,Таблица1[Ф. И. О.],C16) -> 7.2 | AB16: =SUMIFS(Таблица14[12],Таблица14[партия],$AO$1,Таблица14[изд],$W$1,Таблица14[коэф],B16,Таблица14[р/р],D16,Таблица14[Ф. И. О.],C16) -> 0 | AC16: =SUMIFS(Таблица1[13],Таблица1[партия],$AO$1,Таблица1[изд],$W$1,Таблица1[коэф],B16,Таблица1[р/р],D16,Таблица1[Ф. И. О.],C16) -> 7.2 | AD16: =SUMIFS(Таблица14[13],Таблица14[партия],$AO$1,Таблица14[изд],$W$1,Таблица14[коэф],B16,Таблица14[р/р],D16,Таблица14[Ф. И. О.],C16) -> 0 | AE16: =SUMIFS(Таблица1[14],Таблица1[партия],$AO$1,Таблица1[изд],$W$1,Таблица1[коэф],B16,Таблица1[р/р],D16,Таблица1[Ф. И. О.],C16) -> 0 | AF16: =SUMIFS(Таблица14[14],Таблица14[партия],$AO$1,Таблица14[изд],$W$1,Таблица14[коэф],B16,Таблица14[р/р],D16,Таблица14[Ф. И. О.],C16) -> 0 | AG16: =SUMIFS(Таблица1[15],Таблица1[партия],$AO$1,Таблица1[изд],$W$1,Таблица1[коэф],B16,Таблица1[р/р],D16,Таблица1[Ф. И. О.],C16) -> 7.2 | AH16: =SUMIFS(Таблица14[15],Таблица14[партия],$AO$1,Таблица14[изд],$W$1,Таблица14[коэф],B16,Таблица14[р/р],D16,Таблица14[Ф. И. О.],C16) -> 0 | AI16: =SUMIFS(Таблица1[16],Таблица1[партия],$AO$1,Таблица1[изд],$W$1,Таблица1[коэф],B16,Таблица1[р/р],D16,Таблица1[Ф. И. О.],C16) -> 0 | AJ16: =SUMIFS(Таблица14[16],Таблица14[партия],$AO$1,Таблица14[изд],$W$1,Таблица14[коэф],B16,Таблица14[р/р],D16,Таблица14[Ф. И. О.],C16) -> 0 | AK16: =SUMIFS(Таблица1[17],Таблица1[партия],$AO$1,Таблица1[изд],$W$1,Таблица1[коэф],B16,Таблица1[р/р],D16,Таблица1[Ф. И. О.],C16) -> 0 | AL16: =SUMIFS(Таблица14[17],Таблица14[партия],$AO$1,Таблица14[изд],$W$1,Таблица14[коэф],B16,Таблица14[р/р],D16,Таблица14[Ф. И. О.],C16) -> 0 | AM16: =SUMIFS(Таблица1[18],Таблица1[партия],$AO$1,Таблица1[изд],$W$1,Таблица1[коэф],B16,Таблица1[р/р],D16,Таблица1[Ф. И. О.],C16) -> 0 | AN16: =SUMIFS(Таблица14[18],Таблица14[партия],$AO$1,Таблица14[изд],$W$1,Таблица14[коэф],B16,Таблица14[р/р],D16,Таблица14[Ф. И. О.],C16) -> 0 | AO16: =SUMIFS(Таблица1[19],Таблица1[партия],$AO$1,Таблица1[изд],$W$1,Таблица1[коэф],B16,Таблица1[р/р],D16,Таблица1[Ф. И. О.],C16) -> 0 | AP16: =SUMIFS(Таблица14[19],Таблица14[партия],$AO$1,Таблица14[изд],$W$1,Таблица14[коэф],B16,Таблица14[р/р],D16,Таблица14[Ф. И. О.],C16) -> 0 | AQ16: =SUMIFS(Таблица1[20],Таблица1[партия],$AO$1,Таблица1[изд],$W$1,Таблица1[коэф],B16,Таблица1[р/р],D16,Таблица1[Ф. И. О.],C16) -> 7.2 | AR16: =SUMIFS(Таблица14[20],Таблица14[партия],$AO$1,Таблица14[изд],$W$1,Таблица14[коэф],B16,Таблица14[р/р],D16,Таблица14[Ф. И. О.],C16) -> 0 | AS16: =SUMIFS(Таблица1[21],Таблица1[партия],$AO$1,Таблица1[изд],$W$1,Таблица1[коэф],B16,Таблица1[р/р],D16,Таблица1[Ф. И. О.],C16) -> 0 | AT16: =SUMIFS(Таблица14[21],Таблица14[партия],$AO$1,Таблица14[изд],$W$1,Таблица14[коэф],B16,Таблица14[р/р],D16,Таблица14[Ф. И. О.],C16) -> 0 | AU16: =SUMIFS(Таблица1[22],Таблица1[партия],$AO$1,Таблица1[изд],$W$1,Таблица1[коэф],B16,Таблица1[р/р],D16,Таблица1[Ф. И. О.],C16) -> 7.2 | AV16: =SUMIFS(Таблица14[22],Таблица14[партия],$AO$1,Таблица14[изд],$W$1,Таблица14[коэф],B16,Таблица14[р/р],D16,Таблица14[Ф. И. О.],C16) -> 0 | AW16: =SUMIFS(Таблица1[23],Таблица1[партия],$AO$1,Таблица1[изд],$W$1,Таблица1[коэф],B16,Таблица1[р/р],D16,Таблица1[Ф. И. О.],C16) -> 7.2 | AX16: =SUMIFS(Таблица14[23],Таблица14[партия],$AO$1,Таблица14[изд],$W$1,Таблица14[коэф],B16,Таблица14[р/р],D16,Таблица14[Ф. И. О.],C16) -> 0 | AY16: =SUMIFS(Таблица1[24],Таблица1[партия],$AO$1,Таблица1[изд],$W$1,Таблица1[коэф],B16,Таблица1[р/р],D16,Таблица1[Ф. И. О.],C16) -> 0 | AZ16: =SUMIFS(Таблица14[24],Таблица14[партия],$AO$1,Таблица14[изд],$W$1,Таблица14[коэф],B16,Таблица14[р/р],D16,Таблица14[Ф. И. О.],C16) -> 0 | BA16: =SUMIFS(Таблица1[25],Таблица1[партия],$AO$1,Таблица1[изд],$W$1,Таблица1[коэф],B16,Таблица1[р/р],D16,Таблица1[Ф. И. О.],C16) -> 0 | BB16: =SUMIFS(Таблица14[25],Таблица14[партия],$AO$1,Таблица14[изд],$W$1,Таблица14[коэф],B16,Таблица14[р/р],D16,Таблица14[Ф. И. О.],C16) -> 0 | BC16: =SUMIFS(Таблица1[26],Таблица1[партия],$AO$1,Таблица1[изд],$W$1,Таблица1[коэф],B16,Таблица1[р/р],D16,Таблица1[Ф. И. О.],C16) -> 7.2 | BD16: =SUMIFS(Таблица14[26],Таблица14[партия],$AO$1,Таблица14[изд],$W$1,Таблица14[коэф],B16,Таблица14[р/р],D16,Таблица14[Ф. И. О.],C16) -> 0 | BE16: =SUMIFS(Таблица1[27],Таблица1[партия],$AO$1,Таблица1[изд],$W$1,Таблица1[коэф],B16,Таблица1[р/р],D16,Таблица1[Ф. И. О.],C16) -> 0 | BF16: =SUMIFS(Таблица14[27],Таблица14[партия],$AO$1,Таблица14[изд],$W$1,Таблица14[коэф],B16,Таблица14[р/р],D16,Таблица14[Ф. И. О.],C16) -> 0 | BG16: =SUMIFS(Таблица1[28],Таблица1[партия],$AO$1,Таблица1[изд],$W$1,Таблица1[коэф],B16,Таблица1[р/р],D16,Таблица1[Ф. И. О.],C16) -> 0 | BH16: =SUMIFS(Таблица14[28],Таблица14[партия],$AO$1,Таблица14[изд],$W$1,Таблица14[коэф],B16,Таблица14[р/р],D16,Таблица14[Ф. И. О.],C16) -> 0 | BI16: =SUMIFS(Таблица1[29],Таблица1[партия],$AO$1,Таблица1[изд],$W$1,Таблица1[коэф],B16,Таблица1[р/р],D16,Таблица1[Ф. И. О.],C16) -> 7.2 | BJ16: =SUMIFS(Таблица14[29],Таблица14[партия],$AO$1,Таблица14[изд],$W$1,Таблица14[коэф],B16,Таблица14[р/р],D16,Таблица14[Ф. И. О.],C16) -> 0 | BK16: =SUMIFS(Таблица1[30],Таблица1[партия],$AO$1,Таблица1[изд],$W$1,Таблица1[коэф],B16,Таблица1[р/р],D16,Таблица1[Ф. И. О.],C16) -> 7.2 | BL16: =SUMIFS(Таблица14[30],Таблица14[партия],$AO$1,Таблица14[изд],$W$1,Таблица14[коэф],B16,Таблица14[р/р],D16,Таблица14[Ф. И. О.],C16) -> 0 | BM16: =SUMIFS(Таблица1[31],Таблица1[партия],$AO$1,Таблица1[изд],$W$1,Таблица1[коэф],B16,Таблица1[р/р],D16,Таблица1[Ф. И. О.],C16) -> 6.5 | BN16: =SUMIFS(Таблица14[31],Таблица14[партия],$AO$1,Таблица14[изд],$W$1,Таблица14[коэф],B16,Таблица14[р/р],D16,Таблица14[Ф. И. О.],C16) -> 0 | BO16: 80.8 | BP16: 80.8 | BQ16: 0
A17: 11 | B17: 1 | C17: Иванова Инна Игоревна | D17: 3/1 | E17: =SUMIFS(Таблица14[1],Таблица14[партия],$AO$1,Таблица14[изд],$W$1,Таблица14[коэф],B17,Таблица14[р/р],D17,Таблица14[Ф. И. О.],C17) -> 0 | F17: =SUMIFS(Таблица14[1],Таблица14[партия],$AO$1,Таблица14[изд],$W$1,Таблица14[коэф],B17,Таблица14[р/р],D17,Таблица14[Ф. И. О.],C17) -> 0 | G17: =SUMIFS(Таблица1[1],Таблица1[партия],$AO$1,Таблица1[изд],$W$1,Таблица1[коэф],B17,Таблица1[р/р],D17,Таблица1[Ф. И. О.],C17) -> 0 | H17: =SUMIFS(Таблица14[2],Таблица14[партия],$AO$1,Таблица14[изд],$W$1,Таблица14[коэф],B17,Таблица14[р/р],D17,Таблица14[Ф. И. О.],C17) -> 0 | I17: =SUMIFS(Таблица1[3],Таблица1[партия],$AO$1,Таблица1[изд],$W$1,Таблица1[коэф],B17,Таблица1[р/р],D17,Таблица1[Ф. И. О.],C17) -> 0 | J17: =SUMIFS(Таблица14[3],Таблица14[партия],$AO$1,Таблица14[изд],$W$1,Таблица14[коэф],B17,Таблица14[р/р],D17,Таблица14[Ф. И. О.],C17) -> 0 | K17: =SUMIFS(Таблица1[4],Таблица1[партия],$AO$1,Таблица1[изд],$W$1,Таблица1[коэф],B17,Таблица1[р/р],D17,Таблица1[Ф. И. О.],C17) -> 0 | L17: =SUMIFS(Таблица14[4],Таблица14[партия],$AO$1,Таблица14[изд],$W$1,Таблица14[коэф],B17,Таблица14[р/р],D17,Таблица14[Ф. И. О.],C17) -> 0 | M17: =SUMIFS(Таблица1[5],Таблица1[партия],$AO$1,Таблица1[изд],$W$1,Таблица1[коэф],B17,Таблица1[р/р],D17,Таблица1[Ф. И. О.],C17) -> 0 | N17: =SUMIFS(Таблица14[5],Таблица14[партия],$AO$1,Таблица14[изд],$W$1,Таблица14[коэф],B17,Таблица14[р/р],D17,Таблица14[Ф. И. О.],C17) -> 0 | O17: =SUMIFS(Таблица1[6],Таблица1[партия],$AO$1,Таблица1[изд],$W$1,Таблица1[коэф],B17,Таблица1[р/р],D17,Таблица1[Ф. И. О.],C17) -> 0 | P17: =SUMIFS(Таблица14[6],Таблица14[партия],$AO$1,Таблица14[изд],$W$1,Таблица14[коэф],B17,Таблица14[р/р],D17,Таблица14[Ф. И. О.],C17) -> 0 | Q17: =SUMIFS(Таблица1[7],Таблица1[партия],$AO$1,Таблица1[изд],$W$1,Таблица1[коэф],B17,Таблица1[р/р],D17,Таблица1[Ф. И. О.],C17) -> 0 | R17: =SUMIFS(Таблица14[7],Таблица14[партия],$AO$1,Таблица14[изд],$W$1,Таблица14[коэф],B17,Таблица14[р/р],D17,Таблица14[Ф. И. О.],C17) -> 0 | S17: =SUMIFS(Таблица1[8],Таблица1[партия],$AO$1,Таблица1[изд],$W$1,Таблица1[коэф],B17,Таблица1[р/р],D17,Таблица1[Ф. И. О.],C17) -> 0 | T17: =SUMIFS(Таблица14[8],Таблица14[партия],$AO$1,Таблица14[изд],$W$1,Таблица14[коэф],B17,Таблица14[р/р],D17,Таблица14[Ф. И. О.],C17) -> 0 | U17: =SUMIFS(Таблица1[9],Таблица1[партия],$AO$1,Таблица1[изд],$W$1,Таблица1[коэф],B17,Таблица1[р/р],D17,Таблица1[Ф. И. О.],C17) -> 0 | V17: =SUMIFS(Таблица14[9],Таблица14[партия],$AO$1,Таблица14[изд],$W$1,Таблица14[коэф],B17,Таблица14[р/р],D17,Таблица14[Ф. И. О.],C17) -> 0 | W17: =SUMIFS(Таблица1[10],Таблица1[партия],$AO$1,Таблица1[изд],$W$1,Таблица1[коэф],B17,Таблица1[р/р],D17,Таблица1[Ф. И. О.],C17) -> 0 | X17: =SUMIFS(Таблица14[10],Таблица14[партия],$AO$1,Таблица14[изд],$W$1,Таблица14[коэф],B17,Таблица14[р/р],D17,Таблица14[Ф. И. О.],C17) -> 0 | Y17: =SUMIFS(Таблица1[11],Таблица1[партия],$AO$1,Таблица1[изд],$W$1,Таблица1[коэф],B17,Таблица1[р/р],D17,Таблица1[Ф. И. О.],C17) -> 0 | Z17: =SUMIFS(Таблица14[11],Таблица14[партия],$AO$1,Таблица14[изд],$W$1,Таблица14[коэф],B17,Таблица14[р/р],D17,Таблица14[Ф. И. О.],C17) -> 0 | AA17: =SUMIFS(Таблица1[12],Таблица1[партия],$AO$1,Таблица1[изд],$W$1,Таблица1[коэф],B17,Таблица1[р/р],D17,Таблица1[Ф. И. О.],C17) -> 0 | AB17: =SUMIFS(Таблица14[12],Таблица14[партия],$AO$1,Таблица14[изд],$W$1,Таблица14[коэф],B17,Таблица14[р/р],D17,Таблица14[Ф. И. О.],C17) -> 0 | AC17: =SUMIFS(Таблица1[13],Таблица1[партия],$AO$1,Таблица1[изд],$W$1,Таблица1[коэф],B17,Таблица1[р/р],D17,Таблица1[Ф. И. О.],C17) -> 0 | AD17: =SUMIFS(Таблица14[13],Таблица14[партия],$AO$1,Таблица14[изд],$W$1,Таблица14[коэф],B17,Таблица14[р/р],D17,Таблица14[Ф. И. О.],C17) -> 0 | AE17: =SUMIFS(Таблица1[14],Таблица1[партия],$AO$1,Таблица1[изд],$W$1,Таблица1[коэф],B17,Таблица1[р/р],D17,Таблица1[Ф. И. О.],C17) -> 0 | AF17: =SUMIFS(Таблица14[14],Таблица14[партия],$AO$1,Таблица14[изд],$W$1,Таблица14[коэф],B17,Таблица14[р/р],D17,Таблица14[Ф. И. О.],C17) -> 4 | AG17: =SUMIFS(Таблица1[15],Таблица1[партия],$AO$1,Таблица1[изд],$W$1,Таблица1[коэф],B17,Таблица1[р/р],D17,Таблица1[Ф. И. О.],C17) -> 0 | AH17: =SUMIFS(Таблица14[15],Таблица14[партия],$AO$1,Таблица14[изд],$W$1,Таблица14[коэф],B17,Таблица14[р/р],D17,Таблица14[Ф. И. О.],C17) -> 3 | AI17: =SUMIFS(Таблица1[16],Таблица1[партия],$AO$1,Таблица1[изд],$W$1,Таблица1[коэф],B17,Таблица1[р/р],D17,Таблица1[Ф. И. О.],C17) -> 0 | AJ17: =SUMIFS(Таблица14[16],Таблица14[партия],$AO$1,Таблица14[изд],$W$1,Таблица14[коэф],B17,Таблица14[р/р],D17,Таблица14[Ф. И. О.],C17) -> 0 | AK17: =SUMIFS(Таблица1[17],Таблица1[партия],$AO$1,Таблица1[изд],$W$1,Таблица1[коэф],B17,Таблица1[р/р],D17,Таблица1[Ф. И. О.],C17) -> 0 | AL17: =SUMIFS(Таблица14[17],Таблица14[партия],$AO$1,Таблица14[изд],$W$1,Таблица14[коэф],B17,Таблица14[р/р],D17,Таблица14[Ф. И. О.],C17) -> 0 | AM17: =SUMIFS(Таблица1[18],Таблица1[партия],$AO$1,Таблица1[изд],$W$1,Таблица1[коэф],B17,Таблица1[р/р],D17,Таблица1[Ф. И. О.],C17) -> 0 | AN17: =SUMIFS(Таблица14[18],Таблица14[партия],$AO$1,Таблица14[изд],$W$1,Таблица14[коэф],B17,Таблица14[р/р],D17,Таблица14[Ф. И. О.],C17) -> 0 | AO17: =SUMIFS(Таблица1[19],Таблица1[партия],$AO$1,Таблица1[изд],$W$1,Таблица1[коэф],B17,Таблица1[р/р],D17,Таблица1[Ф. И. О.],C17) -> 0 | AP17: =SUMIFS(Таблица14[19],Таблица14[партия],$AO$1,Таблица14[изд],$W$1,Таблица14[коэф],B17,Таблица14[р/р],D17,Таблица14[Ф. И. О.],C17) -> 4 | AQ17: =SUMIFS(Таблица1[20],Таблица1[партия],$AO$1,Таблица1[изд],$W$1,Таблица1[коэф],B17,Таблица1[р/р],D17,Таблица1[Ф. И. О.],C17) -> 0 | AR17: =SUMIFS(Таблица14[20],Таблица14[партия],$AO$1,Таблица14[изд],$W$1,Таблица14[коэф],B17,Таблица14[р/р],D17,Таблица14[Ф. И. О.],C17) -> 4 | AS17: =SUMIFS(Таблица1[21],Таблица1[партия],$AO$1,Таблица1[изд],$W$1,Таблица1[коэф],B17,Таблица1[р/р],D17,Таблица1[Ф. И. О.],C17) -> 0 | AT17: =SUMIFS(Таблица14[21],Таблица14[партия],$AO$1,Таблица14[изд],$W$1,Таблица14[коэф],B17,Таблица14[р/р],D17,Таблица14[Ф. И. О.],C17) -> 0 | AU17: =SUMIFS(Таблица1[22],Таблица1[партия],$AO$1,Таблица1[изд],$W$1,Таблица1[коэф],B17,Таблица1[р/р],D17,Таблица1[Ф. И. О.],C17) -> 0 | AV17: =SUMIFS(Таблица14[22],Таблица14[партия],$AO$1,Таблица14[изд],$W$1,Таблица14[коэф],B17,Таблица14[р/р],D17,Таблица14[Ф. И. О.],C17) -> 4 | AW17: =SUMIFS(Таблица1[23],Таблица1[партия],$AO$1,Таблица1[изд],$W$1,Таблица1[коэф],B17,Таблица1[р/р],D17,Таблица1[Ф. И. О.],C17) -> 0 | AX17: =SUMIFS(Таблица14[23],Таблица14[партия],$AO$1,Таблица14[изд],$W$1,Таблица14[коэф],B17,Таблица14[р/р],D17,Таблица14[Ф. И. О.],C17) -> 4 | AY17: =SUMIFS(Таблица1[24],Таблица1[партия],$AO$1,Таблица1[изд],$W$1,Таблица1[коэф],B17,Таблица1[р/р],D17,Таблица1[Ф. И. О.],C17) -> 0 | AZ17: =SUMIFS(Таблица14[24],Таблица14[партия],$AO$1,Таблица14[изд],$W$1,Таблица14[коэф],B17,Таблица14[р/р],D17,Таблица14[Ф. И. О.],C17) -> 0 | BA17: =SUMIFS(Таблица1[25],Таблица1[партия],$AO$1,Таблица1[изд],$W$1,Таблица1[коэф],B17,Таблица1[р/р],D17,Таблица1[Ф. И. О.],C17) -> 0 | BB17: =SUMIFS(Таблица14[25],Таблица14[партия],$AO$1,Таблица14[изд],$W$1,Таблица14[коэф],B17,Таблица14[р/р],D17,Таблица14[Ф. И. О.],C17) -> 0 | BC17: =SUMIFS(Таблица1[26],Таблица1[партия],$AO$1,Таблица1[изд],$W$1,Таблица1[коэф],B17,Таблица1[р/р],D17,Таблица1[Ф. И. О.],C17) -> 0 | BD17: =SUMIFS(Таблица14[26],Таблица14[партия],$AO$1,Таблица14[изд],$W$1,Таблица14[коэф],B17,Таблица14[р/р],D17,Таблица14[Ф. И. О.],C17) -> 0 | BE17: =SUMIFS(Таблица1[27],Таблица1[партия],$AO$1,Таблица1[изд],$W$1,Таблица1[коэф],B17,Таблица1[р/р],D17,Таблица1[Ф. И. О.],C17) -> 0 | BF17: =SUMIFS(Таблица14[27],Таблица14[партия],$AO$1,Таблица14[изд],$W$1,Таблица14[коэф],B17,Таблица14[р/р],D17,Таблица14[Ф. И. О.],C17) -> 0 | BG17: =SUMIFS(Таблица1[28],Таблица1[партия],$AO$1,Таблица1[изд],$W$1,Таблица1[коэф],B17,Таблица1[р/р],D17,Таблица1[Ф. И. О.],C17) -> 0 | BH17: =SUMIFS(Таблица14[28],Таблица14[партия],$AO$1,Таблица14[изд],$W$1,Таблица14[коэф],B17,Таблица14[р/р],D17,Таблица14[Ф. И. О.],C17) -> 0 | BI17: =SUMIFS(Таблица1[29],Таблица1[партия],$AO$1,Таблица1[изд],$W$1,Таблица1[коэф],B17,Таблица1[р/р],D17,Таблица1[Ф. И. О.],C17) -> 0 | BJ17: =SUMIFS(Таблица14[29],Таблица14[партия],$AO$1,Таблица14[изд],$W$1,Таблица14[коэф],B17,Таблица14[р/р],D17,Таблица14[Ф. И. О.],C17) -> 3 | BK17: =SUMIFS(Таблица1[30],Таблица1[партия],$AO$1,Таблица1[изд],$W$1,Таблица1[коэф],B17,Таблица1[р/р],D17,Таблица1[Ф. И. О.],C17) -> 0 | BL17: =SUMIFS(Таблица14[30],Таблица14[партия],$AO$1,Таблица14[изд],$W$1,Таблица14[коэф],B17,Таблица14[р/р],D17,Таблица14[Ф. И. О.],C17) -> 3 | BM17: =SUMIFS(Таблица1[31],Таблица1[партия],$AO$1,Таблица1[изд],$W$1,Таблица1[коэф],B17,Таблица1[р/р],D17,Таблица1[Ф. И. О.],C17) -> 0 | BN17: =SUMIFS(Таблица14[31],Таблица14[партия],$AO$1,Таблица14[изд],$W$1,Таблица14[коэф],B17,Таблица14[р/р],D17,Таблица14[Ф. И. О.],C17) -> 0 | BO17: 29 | BP17: 0 | BQ17: 29
A18: 12 | B18: 1,5 | C18: Кузнецова Алина Дмитриевна | D18: 4/8 | E18: =SUMIFS(Таблица14[1],Таблица14[партия],$AO$1,Таблица14[изд],$W$1,Таблица14[коэф],B18,Таблица14[р/р],D18,Таблица14[Ф. И. О.],C18) -> 0 | F18: =SUMIFS(Таблица14[1],Таблица14[партия],$AO$1,Таблица14[изд],$W$1,Таблица14[коэф],B18,Таблица14[р/р],D18,Таблица14[Ф. И. О.],C18) -> 0 | G18: =SUMIFS(Таблица1[1],Таблица1[партия],$AO$1,Таблица1[изд],$W$1,Таблица1[коэф],B18,Таблица1[р/р],D18,Таблица1[Ф. И. О.],C18) -> 0 | H18: =SUMIFS(Таблица14[2],Таблица14[партия],$AO$1,Таблица14[изд],$W$1,Таблица14[коэф],B18,Таблица14[р/р],D18,Таблица14[Ф. И. О.],C18) -> 0 | I18: =SUMIFS(Таблица1[3],Таблица1[партия],$AO$1,Таблица1[изд],$W$1,Таблица1[коэф],B18,Таблица1[р/р],D18,Таблица1[Ф. И. О.],C18) -> 0 | J18: =SUMIFS(Таблица14[3],Таблица14[партия],$AO$1,Таблица14[изд],$W$1,Таблица14[коэф],B18,Таблица14[р/р],D18,Таблица14[Ф. И. О.],C18) -> 0 | K18: =SUMIFS(Таблица1[4],Таблица1[партия],$AO$1,Таблица1[изд],$W$1,Таблица1[коэф],B18,Таблица1[р/р],D18,Таблица1[Ф. И. О.],C18) -> 0 | L18: =SUMIFS(Таблица14[4],Таблица14[партия],$AO$1,Таблица14[изд],$W$1,Таблица14[коэф],B18,Таблица14[р/р],D18,Таблица14[Ф. И. О.],C18) -> 0 | M18: =SUMIFS(Таблица1[5],Таблица1[партия],$AO$1,Таблица1[изд],$W$1,Таблица1[коэф],B18,Таблица1[р/р],D18,Таблица1[Ф. И. О.],C18) -> 0 | N18: =SUMIFS(Таблица14[5],Таблица14[партия],$AO$1,Таблица14[изд],$W$1,Таблица14[коэф],B18,Таблица14[р/р],D18,Таблица14[Ф. И. О.],C18) -> 0 | O18: =SUMIFS(Таблица1[6],Таблица1[партия],$AO$1,Таблица1[изд],$W$1,Таблица1[коэф],B18,Таблица1[р/р],D18,Таблица1[Ф. И. О.],C18) -> 0 | P18: =SUMIFS(Таблица14[6],Таблица14[партия],$AO$1,Таблица14[изд],$W$1,Таблица14[коэф],B18,Таблица14[р/р],D18,Таблица14[Ф. И. О.],C18) -> 0 | Q18: =SUMIFS(Таблица1[7],Таблица1[партия],$AO$1,Таблица1[изд],$W$1,Таблица1[коэф],B18,Таблица1[р/р],D18,Таблица1[Ф. И. О.],C18) -> 0 | R18: =SUMIFS(Таблица14[7],Таблица14[партия],$AO$1,Таблица14[изд],$W$1,Таблица14[коэф],B18,Таблица14[р/р],D18,Таблица14[Ф. И. О.],C18) -> 0 | S18: =SUMIFS(Таблица1[8],Таблица1[партия],$AO$1,Таблица1[изд],$W$1,Таблица1[коэф],B18,Таблица1[р/р],D18,Таблица1[Ф. И. О.],C18) -> 0 | T18: =SUMIFS(Таблица14[8],Таблица14[партия],$AO$1,Таблица14[изд],$W$1,Таблица14[коэф],B18,Таблица14[р/р],D18,Таблица14[Ф. И. О.],C18) -> 0 | U18: =SUMIFS(Таблица1[9],Таблица1[партия],$AO$1,Таблица1[изд],$W$1,Таблица1[коэф],B18,Таблица1[р/р],D18,Таблица1[Ф. И. О.],C18) -> 0 | V18: =SUMIFS(Таблица14[9],Таблица14[партия],$AO$1,Таблица14[изд],$W$1,Таблица14[коэф],B18,Таблица14[р/р],D18,Таблица14[Ф. И. О.],C18) -> 0 | W18: =SUMIFS(Таблица1[10],Таблица1[партия],$AO$1,Таблица1[изд],$W$1,Таблица1[коэф],B18,Таблица1[р/р],D18,Таблица1[Ф. И. О.],C18) -> 0 | X18: =SUMIFS(Таблица14[10],Таблица14[партия],$AO$1,Таблица14[изд],$W$1,Таблица14[коэф],B18,Таблица14[р/р],D18,Таблица14[Ф. И. О.],C18) -> 0 | Y18: =SUMIFS(Таблица1[11],Таблица1[партия],$AO$1,Таблица1[изд],$W$1,Таблица1[коэф],B18,Таблица1[р/р],D18,Таблица1[Ф. И. О.],C18) -> 0 | Z18: =SUMIFS(Таблица14[11],Таблица14[партия],$AO$1,Таблица14[изд],$W$1,Таблица14[коэф],B18,Таблица14[р/р],D18,Таблица14[Ф. И. О.],C18) -> 0 | AA18: =SUMIFS(Таблица1[12],Таблица1[партия],$AO$1,Таблица1[изд],$W$1,Таблица1[коэф],B18,Таблица1[р/р],D18,Таблица1[Ф. И. О.],C18) -> 0 | AB18: =SUMIFS(Таблица14[12],Таблица14[партия],$AO$1,Таблица14[изд],$W$1,Таблица14[коэф],B18,Таблица14[р/р],D18,Таблица14[Ф. И. О.],C18) -> 0 | AC18: =SUMIFS(Таблица1[13],Таблица1[партия],$AO$1,Таблица1[изд],$W$1,Таблица1[коэф],B18,Таблица1[р/р],D18,Таблица1[Ф. И. О.],C18) -> 0 | AD18: =SUMIFS(Таблица14[13],Таблица14[партия],$AO$1,Таблица14[изд],$W$1,Таблица14[коэф],B18,Таблица14[р/р],D18,Таблица14[Ф. И. О.],C18) -> 0 | AE18: =SUMIFS(Таблица1[14],Таблица1[партия],$AO$1,Таблица1[изд],$W$1,Таблица1[коэф],B18,Таблица1[р/р],D18,Таблица1[Ф. И. О.],C18) -> 0 | AF18: =SUMIFS(Таблица14[14],Таблица14[партия],$AO$1,Таблица14[изд],$W$1,Таблица14[коэф],B18,Таблица14[р/р],D18,Таблица14[Ф. И. О.],C18) -> 0 | AG18: =SUMIFS(Таблица1[15],Таблица1[партия],$AO$1,Таблица1[изд],$W$1,Таблица1[коэф],B18,Таблица1[р/р],D18,Таблица1[Ф. И. О.],C18) -> 7.2 | AH18: =SUMIFS(Таблица14[15],Таблица14[партия],$AO$1,Таблица14[изд],$W$1,Таблица14[коэф],B18,Таблица14[р/р],D18,Таблица14[Ф. И. О.],C18) -> 2 | AI18: =SUMIFS(Таблица1[16],Таблица1[партия],$AO$1,Таблица1[изд],$W$1,Таблица1[коэф],B18,Таблица1[р/р],D18,Таблица1[Ф. И. О.],C18) -> 0 | AJ18: =SUMIFS(Таблица14[16],Таблица14[партия],$AO$1,Таблица14[изд],$W$1,Таблица14[коэф],B18,Таблица14[р/р],D18,Таблица14[Ф. И. О.],C18) -> 0 | AK18: =SUMIFS(Таблица1[17],Таблица1[партия],$AO$1,Таблица1[изд],$W$1,Таблица1[коэф],B18,Таблица1[р/р],D18,Таблица1[Ф. И. О.],C18) -> 6 | AL18: =SUMIFS(Таблица14[17],Таблица14[партия],$AO$1,Таблица14[изд],$W$1,Таблица14[коэф],B18,Таблица14[р/р],D18,Таблица14[Ф. И. О.],C18) -> 0 | AM18: =SUMIFS(Таблица1[18],Таблица1[партия],$AO$1,Таблица1[изд],$W$1,Таблица1[коэф],B18,Таблица1[р/р],D18,Таблица1[Ф. И. О.],C18) -> 0 | AN18: =SUMIFS(Таблица14[18],Таблица14[партия],$AO$1,Таблица14[изд],$W$1,Таблица14[коэф],B18,Таблица14[р/р],D18,Таблица14[Ф. И. О.],C18) -> 0 | AO18: =SUMIFS(Таблица1[19],Таблица1[партия],$AO$1,Таблица1[изд],$W$1,Таблица1[коэф],B18,Таблица1[р/р],D18,Таблица1[Ф. И. О.],C18) -> 0 | AP18: =SUMIFS(Таблица14[19],Таблица14[партия],$AO$1,Таблица14[изд],$W$1,Таблица14[коэф],B18,Таблица14[р/р],D18,Таблица14[Ф. И. О.],C18) -> 0 | AQ18: =SUMIFS(Таблица1[20],Таблица1[партия],$AO$1,Таблица1[изд],$W$1,Таблица1[коэф],B18,Таблица1[р/р],D18,Таблица1[Ф. И. О.],C18) -> 0 | AR18: =SUMIFS(Таблица14[20],Таблица14[партия],$AO$1,Таблица14[изд],$W$1,Таблица14[коэф],B18,Таблица14[р/р],D18,Таблица14[Ф. И. О.],C18) -> 0 | AS18: =SUMIFS(Таблица1[21],Таблица1[партия],$AO$1,Таблица1[изд],$W$1,Таблица1[коэф],B18,Таблица1[р/р],D18,Таблица1[Ф. И. О.],C18) -> 0 | AT18: =SUMIFS(Таблица14[21],Таблица14[партия],$AO$1,Таблица14[изд],$W$1,Таблица14[коэф],B18,Таблица14[р/р],D18,Таблица14[Ф. И. О.],C18) -> 0 | AU18: =SUMIFS(Таблица1[22],Таблица1[партия],$AO$1,Таблица1[изд],$W$1,Таблица1[коэф],B18,Таблица1[р/р],D18,Таблица1[Ф. И. О.],C18) -> 0 | AV18: =SUMIFS(Таблица14[22],Таблица14[партия],$AO$1,Таблица14[изд],$W$1,Таблица14[коэф],B18,Таблица14[р/р],D18,Таблица14[Ф. И. О.],C18) -> 0 | AW18: =SUMIFS(Таблица1[23],Таблица1[партия],$AO$1,Таблица1[изд],$W$1,Таблица1[коэф],B18,Таблица1[р/р],D18,Таблица1[Ф. И. О.],C18) -> 0 | AX18: =SUMIFS(Таблица14[23],Таблица14[партия],$AO$1,Таблица14[изд],$W$1,Таблица14[коэф],B18,Таблица14[р/р],D18,Таблица14[Ф. И. О.],C18) -> 0 | AY18: =SUMIFS(Таблица1[24],Таблица1[партия],$AO$1,Таблица1[изд],$W$1,Таблица1[коэф],B18,Таблица1[р/р],D18,Таблица1[Ф. И. О.],C18) -> 0 | AZ18: =SUMIFS(Таблица14[24],Таблица14[партия],$AO$1,Таблица14[изд],$W$1,Таблица14[коэф],B18,Таблица14[р/р],D18,Таблица14[Ф. И. О.],C18) -> 0 | BA18: =SUMIFS(Таблица1[25],Таблица1[партия],$AO$1,Таблица1[изд],$W$1,Таблица1[коэф],B18,Таблица1[р/р],D18,Таблица1[Ф. И. О.],C18) -> 0 | BB18: =SUMIFS(Таблица14[25],Таблица14[партия],$AO$1,Таблица14[изд],$W$1,Таблица14[коэф],B18,Таблица14[р/р],D18,Таблица14[Ф. И. О.],C18) -> 0 | BC18: =SUMIFS(Таблица1[26],Таблица1[партия],$AO$1,Таблица1[изд],$W$1,Таблица1[коэф],B18,Таблица1[р/р],D18,Таблица1[Ф. И. О.],C18) -> 7.2 | BD18: =SUMIFS(Таблица14[26],Таблица14[партия],$AO$1,Таблица14[изд],$W$1,Таблица14[коэф],B18,Таблица14[р/р],D18,Таблица14[Ф. И. О.],C18) -> 0 | BE18: =SUMIFS(Таблица1[27],Таблица1[партия],$AO$1,Таблица1[изд],$W$1,Таблица1[коэф],B18,Таблица1[р/р],D18,Таблица1[Ф. И. О.],C18) -> 0 | BF18: =SUMIFS(Таблица14[27],Таблица14[партия],$AO$1,Таблица14[изд],$W$1,Таблица14[коэф],B18,Таблица14[р/р],D18,Таблица14[Ф. И. О.],C18) -> 0 | BG18: =SUMIFS(Таблица1[28],Таблица1[партия],$AO$1,Таблица1[изд],$W$1,Таблица1[коэф],B18,Таблица1[р/р],D18,Таблица1[Ф. И. О.],C18) -> 0 | BH18: =SUMIFS(Таблица14[28],Таблица14[партия],$AO$1,Таблица14[изд],$W$1,Таблица14[коэф],B18,Таблица14[р/р],D18,Таблица14[Ф. И. О.],C18) -> 0 | BI18: =SUMIFS(Таблица1[29],Таблица1[партия],$AO$1,Таблица1[изд],$W$1,Таблица1[коэф],B18,Таблица1[р/р],D18,Таблица1[Ф. И. О.],C18) -> 0 | BJ18: =SUMIFS(Таблица14[29],Таблица14[партия],$AO$1,Таблица14[изд],$W$1,Таблица14[коэф],B18,Таблица14[р/р],D18,Таблица14[Ф. И. О.],C18) -> 0 | BK18: =SUMIFS(Таблица1[30],Таблица1[партия],$AO$1,Таблица1[изд],$W$1,Таблица1[коэф],B18,Таблица1[р/р],D18,Таблица1[Ф. И. О.],C18) -> 0 | BL18: =SUMIFS(Таблица14[30],Таблица14[партия],$AO$1,Таблица14[изд],$W$1,Таблица14[коэф],B18,Таблица14[р/р],D18,Таблица14[Ф. И. О.],C18) -> 0 | BM18: =SUMIFS(Таблица1[31],Таблица1[партия],$AO$1,Таблица1[изд],$W$1,Таблица1[коэф],B18,Таблица1[р/р],D18,Таблица1[Ф. И. О.],C18) -> 0 | BN18: =SUMIFS(Таблица14[31],Таблица14[партия],$AO$1,Таблица14[изд],$W$1,Таблица14[коэф],B18,Таблица14[р/р],D18,Таблица14[Ф. И. О.],C18) -> 0 | BO18: 22.4 | BP18: 20.4 | BQ18: 2
A19: 13 | B19: 1 | C19: Кузнецова Алина Дмитриевна | D19: 3/1 | E19: =SUMIFS(Таблица14[1],Таблица14[партия],$AO$1,Таблица14[изд],$W$1,Таблица14[коэф],B19,Таблица14[р/р],D19,Таблица14[Ф. И. О.],C19) -> 0 | F19: =SUMIFS(Таблица14[1],Таблица14[партия],$AO$1,Таблица14[изд],$W$1,Таблица14[коэф],B19,Таблица14[р/р],D19,Таблица14[Ф. И. О.],C19) -> 0 | G19: =SUMIFS(Таблица1[1],Таблица1[партия],$AO$1,Таблица1[изд],$W$1,Таблица1[коэф],B19,Таблица1[р/р],D19,Таблица1[Ф. И. О.],C19) -> 0 | H19: =SUMIFS(Таблица14[2],Таблица14[партия],$AO$1,Таблица14[изд],$W$1,Таблица14[коэф],B19,Таблица14[р/р],D19,Таблица14[Ф. И. О.],C19) -> 0 | I19: =SUMIFS(Таблица1[3],Таблица1[партия],$AO$1,Таблица1[изд],$W$1,Таблица1[коэф],B19,Таблица1[р/р],D19,Таблица1[Ф. И. О.],C19) -> 0 | J19: =SUMIFS(Таблица14[3],Таблица14[партия],$AO$1,Таблица14[изд],$W$1,Таблица14[коэф],B19,Таблица14[р/р],D19,Таблица14[Ф. И. О.],C19) -> 0 | K19: =SUMIFS(Таблица1[4],Таблица1[партия],$AO$1,Таблица1[изд],$W$1,Таблица1[коэф],B19,Таблица1[р/р],D19,Таблица1[Ф. И. О.],C19) -> 0 | L19: =SUMIFS(Таблица14[4],Таблица14[партия],$AO$1,Таблица14[изд],$W$1,Таблица14[коэф],B19,Таблица14[р/р],D19,Таблица14[Ф. И. О.],C19) -> 0 | M19: =SUMIFS(Таблица1[5],Таблица1[партия],$AO$1,Таблица1[изд],$W$1,Таблица1[коэф],B19,Таблица1[р/р],D19,Таблица1[Ф. И. О.],C19) -> 0 | N19: =SUMIFS(Таблица14[5],Таблица14[партия],$AO$1,Таблица14[изд],$W$1,Таблица14[коэф],B19,Таблица14[р/р],D19,Таблица14[Ф. И. О.],C19) -> 0 | O19: =SUMIFS(Таблица1[6],Таблица1[партия],$AO$1,Таблица1[изд],$W$1,Таблица1[коэф],B19,Таблица1[р/р],D19,Таблица1[Ф. И. О.],C19) -> 0 | P19: =SUMIFS(Таблица14[6],Таблица14[партия],$AO$1,Таблица14[изд],$W$1,Таблица14[коэф],B19,Таблица14[р/р],D19,Таблица14[Ф. И. О.],C19) -> 0 | Q19: =SUMIFS(Таблица1[7],Таблица1[партия],$AO$1,Таблица1[изд],$W$1,Таблица1[коэф],B19,Таблица1[р/р],D19,Таблица1[Ф. И. О.],C19) -> 0 | R19: =SUMIFS(Таблица14[7],Таблица14[партия],$AO$1,Таблица14[изд],$W$1,Таблица14[коэф],B19,Таблица14[р/р],D19,Таблица14[Ф. И. О.],C19) -> 0 | S19: =SUMIFS(Таблица1[8],Таблица1[партия],$AO$1,Таблица1[изд],$W$1,Таблица1[коэф],B19,Таблица1[р/р],D19,Таблица1[Ф. И. О.],C19) -> 0 | T19: =SUMIFS(Таблица14[8],Таблица14[партия],$AO$1,Таблица14[изд],$W$1,Таблица14[коэф],B19,Таблица14[р/р],D19,Таблица14[Ф. И. О.],C19) -> 0 | U19: =SUMIFS(Таблица1[9],Таблица1[партия],$AO$1,Таблица1[изд],$W$1,Таблица1[коэф],B19,Таблица1[р/р],D19,Таблица1[Ф. И. О.],C19) -> 0 | V19: =SUMIFS(Таблица14[9],Таблица14[партия],$AO$1,Таблица14[изд],$W$1,Таблица14[коэф],B19,Таблица14[р/р],D19,Таблица14[Ф. И. О.],C19) -> 0 | W19: =SUMIFS(Таблица1[10],Таблица1[партия],$AO$1,Таблица1[изд],$W$1,Таблица1[коэф],B19,Таблица1[р/р],D19,Таблица1[Ф. И. О.],C19) -> 0 | X19: =SUMIFS(Таблица14[10],Таблица14[партия],$AO$1,Таблица14[изд],$W$1,Таблица14[коэф],B19,Таблица14[р/р],D19,Таблица14[Ф. И. О.],C19) -> 0 | Y19: =SUMIFS(Таблица1[11],Таблица1[партия],$AO$1,Таблица1[изд],$W$1,Таблица1[коэф],B19,Таблица1[р/р],D19,Таблица1[Ф. И. О.],C19) -> 0 | Z19: =SUMIFS(Таблица14[11],Таблица14[партия],$AO$1,Таблица14[изд],$W$1,Таблица14[коэф],B19,Таблица14[р/р],D19,Таблица14[Ф. И. О.],C19) -> 0 | AA19: =SUMIFS(Таблица1[12],Таблица1[партия],$AO$1,Таблица1[изд],$W$1,Таблица1[коэф],B19,Таблица1[р/р],D19,Таблица1[Ф. И. О.],C19) -> 0 | AB19: =SUMIFS(Таблица14[12],Таблица14[партия],$AO$1,Таблица14[изд],$W$1,Таблица14[коэф],B19,Таблица14[р/р],D19,Таблица14[Ф. И. О.],C19) -> 0 | AC19: =SUMIFS(Таблица1[13],Таблица1[партия],$AO$1,Таблица1[изд],$W$1,Таблица1[коэф],B19,Таблица1[р/р],D19,Таблица1[Ф. И. О.],C19) -> 7.2 | AD19: =SUMIFS(Таблица14[13],Таблица14[партия],$AO$1,Таблица14[изд],$W$1,Таблица14[коэф],B19,Таблица14[р/р],D19,Таблица14[Ф. И. О.],C19) -> 0 | AE19: =SUMIFS(Таблица1[14],Таблица1[партия],$AO$1,Таблица1[изд],$W$1,Таблица1[коэф],B19,Таблица1[р/р],D19,Таблица1[Ф. И. О.],C19) -> 7.2 | AF19: =SUMIFS(Таблица14[14],Таблица14[партия],$AO$1,Таблица14[изд],$W$1,Таблица14[коэф],B19,Таблица14[р/р],D19,Таблица14[Ф. И. О.],C19) -> 0 | AG19: =SUMIFS(Таблица1[15],Таблица1[партия],$AO$1,Таблица1[изд],$W$1,Таблица1[коэф],B19,Таблица1[р/р],D19,Таблица1[Ф. И. О.],C19) -> 0 | AH19: =SUMIFS(Таблица14[15],Таблица14[партия],$AO$1,Таблица14[изд],$W$1,Таблица14[коэф],B19,Таблица14[р/р],D19,Таблица14[Ф. И. О.],C19) -> 0 | AI19: =SUMIFS(Таблица1[16],Таблица1[партия],$AO$1,Таблица1[изд],$W$1,Таблица1[коэф],B19,Таблица1[р/р],D19,Таблица1[Ф. И. О.],C19) -> 7.2 | AJ19: =SUMIFS(Таблица14[16],Таблица14[партия],$AO$1,Таблица14[изд],$W$1,Таблица14[коэф],B19,Таблица14[р/р],D19,Таблица14[Ф. И. О.],C19) -> 3 | AK19: =SUMIFS(Таблица1[17],Таблица1[партия],$AO$1,Таблица1[изд],$W$1,Таблица1[коэф],B19,Таблица1[р/р],D19,Таблица1[Ф. И. О.],C19) -> 0 | AL19: =SUMIFS(Таблица14[17],Таблица14[партия],$AO$1,Таблица14[изд],$W$1,Таблица14[коэф],B19,Таблица14[р/р],D19,Таблица14[Ф. И. О.],C19) -> 0 | AM19: =SUMIFS(Таблица1[18],Таблица1[партия],$AO$1,Таблица1[изд],$W$1,Таблица1[коэф],B19,Таблица1[р/р],D19,Таблица1[Ф. И. О.],C19) -> 0 | AN19: =SUMIFS(Таблица14[18],Таблица14[партия],$AO$1,Таблица14[изд],$W$1,Таблица14[коэф],B19,Таблица14[р/р],D19,Таблица14[Ф. И. О.],C19) -> 0 | AO19: =SUMIFS(Таблица1[19],Таблица1[партия],$AO$1,Таблица1[изд],$W$1,Таблица1[коэф],B19,Таблица1[р/р],D19,Таблица1[Ф. И. О.],C19) -> 0 | AP19: =SUMIFS(Таблица14[19],Таблица14[партия],$AO$1,Таблица14[изд],$W$1,Таблица14[коэф],B19,Таблица14[р/р],D19,Таблица14[Ф. И. О.],C19) -> 0 | AQ19: =SUMIFS(Таблица1[20],Таблица1[партия],$AO$1,Таблица1[изд],$W$1,Таблица1[коэф],B19,Таблица1[р/р],D19,Таблица1[Ф. И. О.],C19) -> 0 | AR19: =SUMIFS(Таблица14[20],Таблица14[партия],$AO$1,Таблица14[изд],$W$1,Таблица14[коэф],B19,Таблица14[р/р],D19,Таблица14[Ф. И. О.],C19) -> 4 | AS19: =SUMIFS(Таблица1[21],Таблица1[партия],$AO$1,Таблица1[изд],$W$1,Таблица1[коэф],B19,Таблица1[р/р],D19,Таблица1[Ф. И. О.],C19) -> 7.2 | AT19: =SUMIFS(Таблица14[21],Таблица14[партия],$AO$1,Таблица14[изд],$W$1,Таблица14[коэф],B19,Таблица14[р/р],D19,Таблица14[Ф. И. О.],C19) -> 4 | AU19: =SUMIFS(Таблица1[22],Таблица1[партия],$AO$1,Таблица1[изд],$W$1,Таблица1[коэф],B19,Таблица1[р/р],D19,Таблица1[Ф. И. О.],C19) -> 7.2 | AV19: =SUMIFS(Таблица14[22],Таблица14[партия],$AO$1,Таблица14[изд],$W$1,Таблица14[коэф],B19,Таблица14[р/р],D19,Таблица14[Ф. И. О.],C19) -> 0 | AW19: =SUMIFS(Таблица1[23],Таблица1[партия],$AO$1,Таблица1[изд],$W$1,Таблица1[коэф],B19,Таблица1[р/р],D19,Таблица1[Ф. И. О.],C19) -> 0 | AX19: =SUMIFS(Таблица14[23],Таблица14[партия],$AO$1,Таблица14[изд],$W$1,Таблица14[коэф],B19,Таблица14[р/р],D19,Таблица14[Ф. И. О.],C19) -> 0 | AY19: =SUMIFS(Таблица1[24],Таблица1[партия],$AO$1,Таблица1[изд],$W$1,Таблица1[коэф],B19,Таблица1[р/р],D19,Таблица1[Ф. И. О.],C19) -> 0 | AZ19: =SUMIFS(Таблица14[24],Таблица14[партия],$AO$1,Таблица14[изд],$W$1,Таблица14[коэф],B19,Таблица14[р/р],D19,Таблица14[Ф. И. О.],C19) -> 0 | BA19: =SUMIFS(Таблица1[25],Таблица1[партия],$AO$1,Таблица1[изд],$W$1,Таблица1[коэф],B19,Таблица1[р/р],D19,Таблица1[Ф. И. О.],C19) -> 0 | BB19: =SUMIFS(Таблица14[25],Таблица14[партия],$AO$1,Таблица14[изд],$W$1,Таблица14[коэф],B19,Таблица14[р/р],D19,Таблица14[Ф. И. О.],C19) -> 0 | BC19: =SUMIFS(Таблица1[26],Таблица1[партия],$AO$1,Таблица1[изд],$W$1,Таблица1[коэф],B19,Таблица1[р/р],D19,Таблица1[Ф. И. О.],C19) -> 0 | BD19: =SUMIFS(Таблица14[26],Таблица14[партия],$AO$1,Таблица14[изд],$W$1,Таблица14[коэф],B19,Таблица14[р/р],D19,Таблица14[Ф. И. О.],C19) -> 0 | BE19: =SUMIFS(Таблица1[27],Таблица1[партия],$AO$1,Таблица1[изд],$W$1,Таблица1[коэф],B19,Таблица1[р/р],D19,Таблица1[Ф. И. О.],C19) -> 7.2 | BF19: =SUMIFS(Таблица14[27],Таблица14[партия],$AO$1,Таблица14[изд],$W$1,Таблица14[коэф],B19,Таблица14[р/р],D19,Таблица14[Ф. И. О.],C19) -> 0 | BG19: =SUMIFS(Таблица1[28],Таблица1[партия],$AO$1,Таблица1[изд],$W$1,Таблица1[коэф],B19,Таблица1[р/р],D19,Таблица1[Ф. И. О.],C19) -> 7.2 | BH19: =SUMIFS(Таблица14[28],Таблица14[партия],$AO$1,Таблица14[изд],$W$1,Таблица14[коэф],B19,Таблица14[р/р],D19,Таблица14[Ф. И. О.],C19) -> 0 | BI19: =SUMIFS(Таблица1[29],Таблица1[партия],$AO$1,Таблица1[изд],$W$1,Таблица1[коэф],B19,Таблица1[р/р],D19,Таблица1[Ф. И. О.],C19) -> 7.2 | BJ19: =SUMIFS(Таблица14[29],Таблица14[партия],$AO$1,Таблица14[изд],$W$1,Таблица14[коэф],B19,Таблица14[р/р],D19,Таблица14[Ф. И. О.],C19) -> 0 | BK19: =SUMIFS(Таблица1[30],Таблица1[партия],$AO$1,Таблица1[изд],$W$1,Таблица1[коэф],B19,Таблица1[р/р],D19,Таблица1[Ф. И. О.],C19) -> 7.2 | BL19: =SUMIFS(Таблица14[30],Таблица14[партия],$AO$1,Таблица14[изд],$W$1,Таблица14[коэф],B19,Таблица14[р/р],D19,Таблица14[Ф. И. О.],C19) -> 0 | BM19: =SUMIFS(Таблица1[31],Таблица1[партия],$AO$1,Таблица1[изд],$W$1,Таблица1[коэф],B19,Таблица1[р/р],D19,Таблица1[Ф. И. О.],C19) -> 6 | BN19: =SUMIFS(Таблица14[31],Таблица14[партия],$AO$1,Таблица14[изд],$W$1,Таблица14[коэф],B19,Таблица14[р/р],D19,Таблица14[Ф. И. О.],C19) -> 0 | BO19: 81.8 | BP19: 70.8 | BQ19: 11
A20: 14 | B20: 1 | C20: Кузнецова Алина Дмитриевна | D20: 3/2 | E20: =SUMIFS(Таблица14[1],Таблица14[партия],$AO$1,Таблица14[изд],$W$1,Таблица14[коэф],B20,Таблица14[р/р],D20,Таблица14[Ф. И. О.],C20) -> 0 | F20: =SUMIFS(Таблица14[1],Таблица14[партия],$AO$1,Таблица14[изд],$W$1,Таблица14[коэф],B20,Таблица14[р/р],D20,Таблица14[Ф. И. О.],C20) -> 0 | G20: =SUMIFS(Таблица1[1],Таблица1[партия],$AO$1,Таблица1[изд],$W$1,Таблица1[коэф],B20,Таблица1[р/р],D20,Таблица1[Ф. И. О.],C20) -> 0 | H20: =SUMIFS(Таблица14[2],Таблица14[партия],$AO$1,Таблица14[изд],$W$1,Таблица14[коэф],B20,Таблица14[р/р],D20,Таблица14[Ф. И. О.],C20) -> 0 | I20: =SUMIFS(Таблица1[3],Таблица1[партия],$AO$1,Таблица1[изд],$W$1,Таблица1[коэф],B20,Таблица1[р/р],D20,Таблица1[Ф. И. О.],C20) -> 0 | J20: =SUMIFS(Таблица14[3],Таблица14[партия],$AO$1,Таблица14[изд],$W$1,Таблица14[коэф],B20,Таблица14[р/р],D20,Таблица14[Ф. И. О.],C20) -> 0 | K20: =SUMIFS(Таблица1[4],Таблица1[партия],$AO$1,Таблица1[изд],$W$1,Таблица1[коэф],B20,Таблица1[р/р],D20,Таблица1[Ф. И. О.],C20) -> 0 | L20: =SUMIFS(Таблица14[4],Таблица14[партия],$AO$1,Таблица14[изд],$W$1,Таблица14[коэф],B20,Таблица14[р/р],D20,Таблица14[Ф. И. О.],C20) -> 0 | M20: =SUMIFS(Таблица1[5],Таблица1[партия],$AO$1,Таблица1[изд],$W$1,Таблица1[коэф],B20,Таблица1[р/р],D20,Таблица1[Ф. И. О.],C20) -> 0 | N20: =SUMIFS(Таблица14[5],Таблица14[партия],$AO$1,Таблица14[изд],$W$1,Таблица14[коэф],B20,Таблица14[р/р],D20,Таблица14[Ф. И. О.],C20) -> 0 | O20: =SUMIFS(Таблица1[6],Таблица1[партия],$AO$1,Таблица1[изд],$W$1,Таблица1[коэф],B20,Таблица1[р/р],D20,Таблица1[Ф. И. О.],C20) -> 0 | P20: =SUMIFS(Таблица14[6],Таблица14[партия],$AO$1,Таблица14[изд],$W$1,Таблица14[коэф],B20,Таблица14[р/р],D20,Таблица14[Ф. И. О.],C20) -> 0 | Q20: =SUMIFS(Таблица1[7],Таблица1[партия],$AO$1,Таблица1[изд],$W$1,Таблица1[коэф],B20,Таблица1[р/р],D20,Таблица1[Ф. И. О.],C20) -> 0 | R20: =SUMIFS(Таблица14[7],Таблица14[партия],$AO$1,Таблица14[изд],$W$1,Таблица14[коэф],B20,Таблица14[р/р],D20,Таблица14[Ф. И. О.],C20) -> 0 | S20: =SUMIFS(Таблица1[8],Таблица1[партия],$AO$1,Таблица1[изд],$W$1,Таблица1[коэф],B20,Таблица1[р/р],D20,Таблица1[Ф. И. О.],C20) -> 0 | T20: =SUMIFS(Таблица14[8],Таблица14[партия],$AO$1,Таблица14[изд],$W$1,Таблица14[коэф],B20,Таблица14[р/р],D20,Таблица14[Ф. И. О.],C20) -> 0 | U20: =SUMIFS(Таблица1[9],Таблица1[партия],$AO$1,Таблица1[изд],$W$1,Таблица1[коэф],B20,Таблица1[р/р],D20,Таблица1[Ф. И. О.],C20) -> 0 | V20: =SUMIFS(Таблица14[9],Таблица14[партия],$AO$1,Таблица14[изд],$W$1,Таблица14[коэф],B20,Таблица14[р/р],D20,Таблица14[Ф. И. О.],C20) -> 0 | W20: =SUMIFS(Таблица1[10],Таблица1[партия],$AO$1,Таблица1[изд],$W$1,Таблица1[коэф],B20,Таблица1[р/р],D20,Таблица1[Ф. И. О.],C20) -> 0 | X20: =SUMIFS(Таблица14[10],Таблица14[партия],$AO$1,Таблица14[изд],$W$1,Таблица14[коэф],B20,Таблица14[р/р],D20,Таблица14[Ф. И. О.],C20) -> 0 | Y20: =SUMIFS(Таблица1[11],Таблица1[партия],$AO$1,Таблица1[изд],$W$1,Таблица1[коэф],B20,Таблица1[р/р],D20,Таблица1[Ф. И. О.],C20) -> 0 | Z20: =SUMIFS(Таблица14[11],Таблица14[партия],$AO$1,Таблица14[изд],$W$1,Таблица14[коэф],B20,Таблица14[р/р],D20,Таблица14[Ф. И. О.],C20) -> 0 | AA20: =SUMIFS(Таблица1[12],Таблица1[партия],$AO$1,Таблица1[изд],$W$1,Таблица1[коэф],B20,Таблица1[р/р],D20,Таблица1[Ф. И. О.],C20) -> 0 | AB20: =SUMIFS(Таблица14[12],Таблица14[партия],$AO$1,Таблица14[изд],$W$1,Таблица14[коэф],B20,Таблица14[р/р],D20,Таблица14[Ф. И. О.],C20) -> 0 | AC20: =SUMIFS(Таблица1[13],Таблица1[партия],$AO$1,Таблица1[изд],$W$1,Таблица1[коэф],B20,Таблица1[р/р],D20,Таблица1[Ф. И. О.],C20) -> 0 | AD20: =SUMIFS(Таблица14[13],Таблица14[партия],$AO$1,Таблица14[изд],$W$1,Таблица14[коэф],B20,Таблица14[р/р],D20,Таблица14[Ф. И. О.],C20) -> 0 | AE20: =SUMIFS(Таблица1[14],Таблица1[партия],$AO$1,Таблица1[изд],$W$1,Таблица1[коэф],B20,Таблица1[р/р],D20,Таблица1[Ф. И. О.],C20) -> 0 | AF20: =SUMIFS(Таблица14[14],Таблица14[партия],$AO$1,Таблица14[изд],$W$1,Таблица14[коэф],B20,Таблица14[р/р],D20,Таблица14[Ф. И. О.],C20) -> 0 | AG20: =SUMIFS(Таблица1[15],Таблица1[партия],$AO$1,Таблица1[изд],$W$1,Таблица1[коэф],B20,Таблица1[р/р],D20,Таблица1[Ф. И. О.],C20) -> 0 | AH20: =SUMIFS(Таблица14[15],Таблица14[партия],$AO$1,Таблица14[изд],$W$1,Таблица14[коэф],B20,Таблица14[р/р],D20,Таблица14[Ф. И. О.],C20) -> 0 | AI20: =SUMIFS(Таблица1[16],Таблица1[партия],$AO$1,Таблица1[изд],$W$1,Таблица1[коэф],B20,Таблица1[р/р],D20,Таблица1[Ф. И. О.],C20) -> 0 | AJ20: =SUMIFS(Таблица14[16],Таблица14[партия],$AO$1,Таблица14[изд],$W$1,Таблица14[коэф],B20,Таблица14[р/р],D20,Таблица14[Ф. И. О.],C20) -> 0 | AK20: =SUMIFS(Таблица1[17],Таблица1[партия],$AO$1,Таблица1[изд],$W$1,Таблица1[коэф],B20,Таблица1[р/р],D20,Таблица1[Ф. И. О.],C20) -> 0 | AL20: =SUMIFS(Таблица14[17],Таблица14[партия],$AO$1,Таблица14[изд],$W$1,Таблица14[коэф],B20,Таблица14[р/р],D20,Таблица14[Ф. И. О.],C20) -> 0 | AM20: =SUMIFS(Таблица1[18],Таблица1[партия],$AO$1,Таблица1[изд],$W$1,Таблица1[коэф],B20,Таблица1[р/р],D20,Таблица1[Ф. И. О.],C20) -> 0 | AN20: =SUMIFS(Таблица14[18],Таблица14[партия],$AO$1,Таблица14[изд],$W$1,Таблица14[коэф],B20,Таблица14[р/р],D20,Таблица14[Ф. И. О.],C20) -> 0 | AO20: =SUMIFS(Таблица1[19],Таблица1[партия],$AO$1,Таблица1[изд],$W$1,Таблица1[коэф],B20,Таблица1[р/р],D20,Таблица1[Ф. И. О.],C20) -> 0 | AP20: =SUMIFS(Таблица14[19],Таблица14[партия],$AO$1,Таблица14[изд],$W$1,Таблица14[коэф],B20,Таблица14[р/р],D20,Таблица14[Ф. И. О.],C20) -> 0 | AQ20: =SUMIFS(Таблица1[20],Таблица1[партия],$AO$1,Таблица1[изд],$W$1,Таблица1[коэф],B20,Таблица1[р/р],D20,Таблица1[Ф. И. О.],C20) -> 0 | AR20: =SUMIFS(Таблица14[20],Таблица14[партия],$AO$1,Таблица14[изд],$W$1,Таблица14[коэф],B20,Таблица14[р/р],D20,Таблица14[Ф. И. О.],C20) -> 0 | AS20: =SUMIFS(Таблица1[21],Таблица1[партия],$AO$1,Таблица1[изд],$W$1,Таблица1[коэф],B20,Таблица1[р/р],D20,Таблица1[Ф. И. О.],C20) -> 0 | AT20: =SUMIFS(Таблица14[21],Таблица14[партия],$AO$1,Таблица14[изд],$W$1,Таблица14[коэф],B20,Таблица14[р/р],D20,Таблица14[Ф. И. О.],C20) -> 0 | AU20: =SUMIFS(Таблица1[22],Таблица1[партия],$AO$1,Таблица1[изд],$W$1,Таблица1[коэф],B20,Таблица1[р/р],D20,Таблица1[Ф. И. О.],C20) -> 0 | AV20: =SUMIFS(Таблица14[22],Таблица14[партия],$AO$1,Таблица14[изд],$W$1,Таблица14[коэф],B20,Таблица14[р/р],D20,Таблица14[Ф. И. О.],C20) -> 0 | AW20: =SUMIFS(Таблица1[23],Таблица1[партия],$AO$1,Таблица1[изд],$W$1,Таблица1[коэф],B20,Таблица1[р/р],D20,Таблица1[Ф. И. О.],C20) -> 0 | AX20: =SUMIFS(Таблица14[23],Таблица14[партия],$AO$1,Таблица14[изд],$W$1,Таблица14[коэф],B20,Таблица14[р/р],D20,Таблица14[Ф. И. О.],C20) -> 0 | AY20: =SUMIFS(Таблица1[24],Таблица1[партия],$AO$1,Таблица1[изд],$W$1,Таблица1[коэф],B20,Таблица1[р/р],D20,Таблица1[Ф. И. О.],C20) -> 0 | AZ20: =SUMIFS(Таблица14[24],Таблица14[партия],$AO$1,Таблица14[изд],$W$1,Таблица14[коэф],B20,Таблица14[р/р],D20,Таблица14[Ф. И. О.],C20) -> 0 | BA20: =SUMIFS(Таблица1[25],Таблица1[партия],$AO$1,Таблица1[изд],$W$1,Таблица1[коэф],B20,Таблица1[р/р],D20,Таблица1[Ф. И. О.],C20) -> 0 | BB20: =SUMIFS(Таблица14[25],Таблица14[партия],$AO$1,Таблица14[изд],$W$1,Таблица14[коэф],B20,Таблица14[р/р],D20,Таблица14[Ф. И. О.],C20) -> 0 | BC20: =SUMIFS(Таблица1[26],Таблица1[партия],$AO$1,Таблица1[изд],$W$1,Таблица1[коэф],B20,Таблица1[р/р],D20,Таблица1[Ф. И. О.],C20) -> 0 | BD20: =SUMIFS(Таблица14[26],Таблица14[партия],$AO$1,Таблица14[изд],$W$1,Таблица14[коэф],B20,Таблица14[р/р],D20,Таблица14[Ф. И. О.],C20) -> 0 | BE20: =SUMIFS(Таблица1[27],Таблица1[партия],$AO$1,Таблица1[изд],$W$1,Таблица1[коэф],B20,Таблица1[р/р],D20,Таблица1[Ф. И. О.],C20) -> 0 | BF20: =SUMIFS(Таблица14[27],Таблица14[партия],$AO$1,Таблица14[изд],$W$1,Таблица14[коэф],B20,Таблица14[р/р],D20,Таблица14[Ф. И. О.],C20) -> 0 | BG20: =SUMIFS(Таблица1[28],Таблица1[партия],$AO$1,Таблица1[изд],$W$1,Таблица1[коэф],B20,Таблица1[р/р],D20,Таблица1[Ф. И. О.],C20) -> 0 | BH20: =SUMIFS(Таблица14[28],Таблица14[партия],$AO$1,Таблица14[изд],$W$1,Таблица14[коэф],B20,Таблица14[р/р],D20,Таблица14[Ф. И. О.],C20) -> 0 | BI20: =SUMIFS(Таблица1[29],Таблица1[партия],$AO$1,Таблица1[изд],$W$1,Таблица1[коэф],B20,Таблица1[р/р],D20,Таблица1[Ф. И. О.],C20) -> 0 | BJ20: =SUMIFS(Таблица14[29],Таблица14[партия],$AO$1,Таблица14[изд],$W$1,Таблица14[коэф],B20,Таблица14[р/р],D20,Таблица14[Ф. И. О.],C20) -> 2 | BK20: =SUMIFS(Таблица1[30],Таблица1[партия],$AO$1,Таблица1[изд],$W$1,Таблица1[коэф],B20,Таблица1[р/р],D20,Таблица1[Ф. И. О.],C20) -> 0 | BL20: =SUMIFS(Таблица14[30],Таблица14[партия],$AO$1,Таблица14[изд],$W$1,Таблица14[коэф],B20,Таблица14[р/р],D20,Таблица14[Ф. И. О.],C20) -> 2 | BM20: =SUMIFS(Таблица1[31],Таблица1[партия],$AO$1,Таблица1[изд],$W$1,Таблица1[коэф],B20,Таблица1[р/р],D20,Таблица1[Ф. И. О.],C20) -> 0 | BN20: =SUMIFS(Таблица14[31],Таблица14[партия],$AO$1,Таблица14[изд],$W$1,Таблица14[коэф],B20,Таблица14[р/р],D20,Таблица14[Ф. И. О.],C20) -> 0 | BO20: 4 | BP20: 0 | BQ20: 4
A21: 15 | B21: 1,4 | C21: Ложкина Елена Сергеевна | D21: 3/1 | E21: =SUMIFS(Таблица14[1],Таблица14[партия],$AO$1,Таблица14[изд],$W$1,Таблица14[коэф],B21,Таблица14[р/р],D21,Таблица14[Ф. И. О.],C21) -> 0 | F21: =SUMIFS(Таблица14[1],Таблица14[партия],$AO$1,Таблица14[изд],$W$1,Таблица14[коэф],B21,Таблица14[р/р],D21,Таблица14[Ф. И. О.],C21) -> 0 | G21: =SUMIFS(Таблица1[1],Таблица1[партия],$AO$1,Таблица1[изд],$W$1,Таблица1[коэф],B21,Таблица1[р/р],D21,Таблица1[Ф. И. О.],C21) -> 0 | H21: =SUMIFS(Таблица14[2],Таблица14[партия],$AO$1,Таблица14[изд],$W$1,Таблица14[коэф],B21,Таблица14[р/р],D21,Таблица14[Ф. И. О.],C21) -> 0 | I21: =SUMIFS(Таблица1[3],Таблица1[партия],$AO$1,Таблица1[изд],$W$1,Таблица1[коэф],B21,Таблица1[р/р],D21,Таблица1[Ф. И. О.],C21) -> 0 | J21: =SUMIFS(Таблица14[3],Таблица14[партия],$AO$1,Таблица14[изд],$W$1,Таблица14[коэф],B21,Таблица14[р/р],D21,Таблица14[Ф. И. О.],C21) -> 0 | K21: =SUMIFS(Таблица1[4],Таблица1[партия],$AO$1,Таблица1[изд],$W$1,Таблица1[коэф],B21,Таблица1[р/р],D21,Таблица1[Ф. И. О.],C21) -> 0 | L21: =SUMIFS(Таблица14[4],Таблица14[партия],$AO$1,Таблица14[изд],$W$1,Таблица14[коэф],B21,Таблица14[р/р],D21,Таблица14[Ф. И. О.],C21) -> 0 | M21: =SUMIFS(Таблица1[5],Таблица1[партия],$AO$1,Таблица1[изд],$W$1,Таблица1[коэф],B21,Таблица1[р/р],D21,Таблица1[Ф. И. О.],C21) -> 0 | N21: =SUMIFS(Таблица14[5],Таблица14[партия],$AO$1,Таблица14[изд],$W$1,Таблица14[коэф],B21,Таблица14[р/р],D21,Таблица14[Ф. И. О.],C21) -> 0 | O21: =SUMIFS(Таблица1[6],Таблица1[партия],$AO$1,Таблица1[изд],$W$1,Таблица1[коэф],B21,Таблица1[р/р],D21,Таблица1[Ф. И. О.],C21) -> 0 | P21: =SUMIFS(Таблица14[6],Таблица14[партия],$AO$1,Таблица14[изд],$W$1,Таблица14[коэф],B21,Таблица14[р/р],D21,Таблица14[Ф. И. О.],C21) -> 0 | Q21: =SUMIFS(Таблица1[7],Таблица1[партия],$AO$1,Таблица1[изд],$W$1,Таблица1[коэф],B21,Таблица1[р/р],D21,Таблица1[Ф. И. О.],C21) -> 0 | R21: =SUMIFS(Таблица14[7],Таблица14[партия],$AO$1,Таблица14[изд],$W$1,Таблица14[коэф],B21,Таблица14[р/р],D21,Таблица14[Ф. И. О.],C21) -> 0 | S21: =SUMIFS(Таблица1[8],Таблица1[партия],$AO$1,Таблица1[изд],$W$1,Таблица1[коэф],B21,Таблица1[р/р],D21,Таблица1[Ф. И. О.],C21) -> 0 | T21: =SUMIFS(Таблица14[8],Таблица14[партия],$AO$1,Таблица14[изд],$W$1,Таблица14[коэф],B21,Таблица14[р/р],D21,Таблица14[Ф. И. О.],C21) -> 0 | U21: =SUMIFS(Таблица1[9],Таблица1[партия],$AO$1,Таблица1[изд],$W$1,Таблица1[коэф],B21,Таблица1[р/р],D21,Таблица1[Ф. И. О.],C21) -> 0 | V21: =SUMIFS(Таблица14[9],Таблица14[партия],$AO$1,Таблица14[изд],$W$1,Таблица14[коэф],B21,Таблица14[р/р],D21,Таблица14[Ф. И. О.],C21) -> 0 | W21: =SUMIFS(Таблица1[10],Таблица1[партия],$AO$1,Таблица1[изд],$W$1,Таблица1[коэф],B21,Таблица1[р/р],D21,Таблица1[Ф. И. О.],C21) -> 0 | X21: =SUMIFS(Таблица14[10],Таблица14[партия],$AO$1,Таблица14[изд],$W$1,Таблица14[коэф],B21,Таблица14[р/р],D21,Таблица14[Ф. И. О.],C21) -> 0 | Y21: =SUMIFS(Таблица1[11],Таблица1[партия],$AO$1,Таблица1[изд],$W$1,Таблица1[коэф],B21,Таблица1[р/р],D21,Таблица1[Ф. И. О.],C21) -> 0 | Z21: =SUMIFS(Таблица14[11],Таблица14[партия],$AO$1,Таблица14[изд],$W$1,Таблица14[коэф],B21,Таблица14[р/р],D21,Таблица14[Ф. И. О.],C21) -> 0 | AA21: =SUMIFS(Таблица1[12],Таблица1[партия],$AO$1,Таблица1[изд],$W$1,Таблица1[коэф],B21,Таблица1[р/р],D21,Таблица1[Ф. И. О.],C21) -> 0 | AB21: =SUMIFS(Таблица14[12],Таблица14[партия],$AO$1,Таблица14[изд],$W$1,Таблица14[коэф],B21,Таблица14[р/р],D21,Таблица14[Ф. И. О.],C21) -> 0 | AC21: =SUMIFS(Таблица1[13],Таблица1[партия],$AO$1,Таблица1[изд],$W$1,Таблица1[коэф],B21,Таблица1[р/р],D21,Таблица1[Ф. И. О.],C21) -> 0 | AD21: =SUMIFS(Таблица14[13],Таблица14[партия],$AO$1,Таблица14[изд],$W$1,Таблица14[коэф],B21,Таблица14[р/р],D21,Таблица14[Ф. И. О.],C21) -> 0 | AE21: =SUMIFS(Таблица1[14],Таблица1[партия],$AO$1,Таблица1[изд],$W$1,Таблица1[коэф],B21,Таблица1[р/р],D21,Таблица1[Ф. И. О.],C21) -> 0 | AF21: =SUMIFS(Таблица14[14],Таблица14[партия],$AO$1,Таблица14[изд],$W$1,Таблица14[коэф],B21,Таблица14[р/р],D21,Таблица14[Ф. И. О.],C21) -> 0 | AG21: =SUMIFS(Таблица1[15],Таблица1[партия],$AO$1,Таблица1[изд],$W$1,Таблица1[коэф],B21,Таблица1[р/р],D21,Таблица1[Ф. И. О.],C21) -> 0 | AH21: =SUMIFS(Таблица14[15],Таблица14[партия],$AO$1,Таблица14[изд],$W$1,Таблица14[коэф],B21,Таблица14[р/р],D21,Таблица14[Ф. И. О.],C21) -> 0 | AI21: =SUMIFS(Таблица1[16],Таблица1[партия],$AO$1,Таблица1[изд],$W$1,Таблица1[коэф],B21,Таблица1[р/р],D21,Таблица1[Ф. И. О.],C21) -> 0 | AJ21: =SUMIFS(Таблица14[16],Таблица14[партия],$AO$1,Таблица14[изд],$W$1,Таблица14[коэф],B21,Таблица14[р/р],D21,Таблица14[Ф. И. О.],C21) -> 0 | AK21: =SUMIFS(Таблица1[17],Таблица1[партия],$AO$1,Таблица1[изд],$W$1,Таблица1[коэф],B21,Таблица1[р/р],D21,Таблица1[Ф. И. О.],C21) -> 0 | AL21: =SUMIFS(Таблица14[17],Таблица14[партия],$AO$1,Таблица14[изд],$W$1,Таблица14[коэф],B21,Таблица14[р/р],D21,Таблица14[Ф. И. О.],C21) -> 0 | AM21: =SUMIFS(Таблица1[18],Таблица1[партия],$AO$1,Таблица1[изд],$W$1,Таблица1[коэф],B21,Таблица1[р/р],D21,Таблица1[Ф. И. О.],C21) -> 0 | AN21: =SUMIFS(Таблица14[18],Таблица14[партия],$AO$1,Таблица14[изд],$W$1,Таблица14[коэф],B21,Таблица14[р/р],D21,Таблица14[Ф. И. О.],C21) -> 0 | AO21: =SUMIFS(Таблица1[19],Таблица1[партия],$AO$1,Таблица1[изд],$W$1,Таблица1[коэф],B21,Таблица1[р/р],D21,Таблица1[Ф. И. О.],C21) -> 0 | AP21: =SUMIFS(Таблица14[19],Таблица14[партия],$AO$1,Таблица14[изд],$W$1,Таблица14[коэф],B21,Таблица14[р/р],D21,Таблица14[Ф. И. О.],C21) -> 0 | AQ21: =SUMIFS(Таблица1[20],Таблица1[партия],$AO$1,Таблица1[изд],$W$1,Таблица1[коэф],B21,Таблица1[р/р],D21,Таблица1[Ф. И. О.],C21) -> 0 | AR21: =SUMIFS(Таблица14[20],Таблица14[партия],$AO$1,Таблица14[изд],$W$1,Таблица14[коэф],B21,Таблица14[р/р],D21,Таблица14[Ф. И. О.],C21) -> 0 | AS21: =SUMIFS(Таблица1[21],Таблица1[партия],$AO$1,Таблица1[изд],$W$1,Таблица1[коэф],B21,Таблица1[р/р],D21,Таблица1[Ф. И. О.],C21) -> 0 | AT21: =SUMIFS(Таблица14[21],Таблица14[партия],$AO$1,Таблица14[изд],$W$1,Таблица14[коэф],B21,Таблица14[р/р],D21,Таблица14[Ф. И. О.],C21) -> 0 | AU21: =SUMIFS(Таблица1[22],Таблица1[партия],$AO$1,Таблица1[изд],$W$1,Таблица1[коэф],B21,Таблица1[р/р],D21,Таблица1[Ф. И. О.],C21) -> 0 | AV21: =SUMIFS(Таблица14[22],Таблица14[партия],$AO$1,Таблица14[изд],$W$1,Таблица14[коэф],B21,Таблица14[р/р],D21,Таблица14[Ф. И. О.],C21) -> 0 | AW21: =SUMIFS(Таблица1[23],Таблица1[партия],$AO$1,Таблица1[изд],$W$1,Таблица1[коэф],B21,Таблица1[р/р],D21,Таблица1[Ф. И. О.],C21) -> 0 | AX21: =SUMIFS(Таблица14[23],Таблица14[партия],$AO$1,Таблица14[изд],$W$1,Таблица14[коэф],B21,Таблица14[р/р],D21,Таблица14[Ф. И. О.],C21) -> 0 | AY21: =SUMIFS(Таблица1[24],Таблица1[партия],$AO$1,Таблица1[изд],$W$1,Таблица1[коэф],B21,Таблица1[р/р],D21,Таблица1[Ф. И. О.],C21) -> 0 | AZ21: =SUMIFS(Таблица14[24],Таблица14[партия],$AO$1,Таблица14[изд],$W$1,Таблица14[коэф],B21,Таблица14[р/р],D21,Таблица14[Ф. И. О.],C21) -> 0 | BA21: =SUMIFS(Таблица1[25],Таблица1[партия],$AO$1,Таблица1[изд],$W$1,Таблица1[коэф],B21,Таблица1[р/р],D21,Таблица1[Ф. И. О.],C21) -> 0 | BB21: =SUMIFS(Таблица14[25],Таблица14[партия],$AO$1,Таблица14[изд],$W$1,Таблица14[коэф],B21,Таблица14[р/р],D21,Таблица14[Ф. И. О.],C21) -> 0 | BC21: =SUMIFS(Таблица1[26],Таблица1[партия],$AO$1,Таблица1[изд],$W$1,Таблица1[коэф],B21,Таблица1[р/р],D21,Таблица1[Ф. И. О.],C21) -> 0 | BD21: =SUMIFS(Таблица14[26],Таблица14[партия],$AO$1,Таблица14[изд],$W$1,Таблица14[коэф],B21,Таблица14[р/р],D21,Таблица14[Ф. И. О.],C21) -> 0 | BE21: =SUMIFS(Таблица1[27],Таблица1[партия],$AO$1,Таблица1[изд],$W$1,Таблица1[коэф],B21,Таблица1[р/р],D21,Таблица1[Ф. И. О.],C21) -> 3 | BF21: =SUMIFS(Таблица14[27],Таблица14[партия],$AO$1,Таблица14[изд],$W$1,Таблица14[коэф],B21,Таблица14[р/р],D21,Таблица14[Ф. И. О.],C21) -> 0 | BG21: =SUMIFS(Таблица1[28],Таблица1[партия],$AO$1,Таблица1[изд],$W$1,Таблица1[коэф],B21,Таблица1[р/р],D21,Таблица1[Ф. И. О.],C21) -> 0 | BH21: =SUMIFS(Таблица14[28],Таблица14[партия],$AO$1,Таблица14[изд],$W$1,Таблица14[коэф],B21,Таблица14[р/р],D21,Таблица14[Ф. И. О.],C21) -> 0 | BI21: =SUMIFS(Таблица1[29],Таблица1[партия],$AO$1,Таблица1[изд],$W$1,Таблица1[коэф],B21,Таблица1[р/р],D21,Таблица1[Ф. И. О.],C21) -> 3 | BJ21: =SUMIFS(Таблица14[29],Таблица14[партия],$AO$1,Таблица14[изд],$W$1,Таблица14[коэф],B21,Таблица14[р/р],D21,Таблица14[Ф. И. О.],C21) -> 0 | BK21: =SUMIFS(Таблица1[30],Таблица1[партия],$AO$1,Таблица1[изд],$W$1,Таблица1[коэф],B21,Таблица1[р/р],D21,Таблица1[Ф. И. О.],C21) -> 3 | BL21: =SUMIFS(Таблица14[30],Таблица14[партия],$AO$1,Таблица14[изд],$W$1,Таблица14[коэф],B21,Таблица14[р/р],D21,Таблица14[Ф. И. О.],C21) -> 0 | BM21: =SUMIFS(Таблица1[31],Таблица1[партия],$AO$1,Таблица1[изд],$W$1,Таблица1[коэф],B21,Таблица1[р/р],D21,Таблица1[Ф. И. О.],C21) -> 7 | BN21: =SUMIFS(Таблица14[31],Таблица14[партия],$AO$1,Таблица14[изд],$W$1,Таблица14[коэф],B21,Таблица14[р/р],D21,Таблица14[Ф. И. О.],C21) -> 0 | BO21: 16 | BP21: 16 | BQ21: 0
A22: 16 | B22: 1,4 | C22: Ложкина Елена Сергеевна | D22: 3/2 | E22: =SUMIFS(Таблица14[1],Таблица14[партия],$AO$1,Таблица14[изд],$W$1,Таблица14[коэф],B22,Таблица14[р/р],D22,Таблица14[Ф. И. О.],C22) -> 0 | F22: =SUMIFS(Таблица14[1],Таблица14[партия],$AO$1,Таблица14[изд],$W$1,Таблица14[коэф],B22,Таблица14[р/р],D22,Таблица14[Ф. И. О.],C22) -> 0 | G22: =SUMIFS(Таблица1[1],Таблица1[партия],$AO$1,Таблица1[изд],$W$1,Таблица1[коэф],B22,Таблица1[р/р],D22,Таблица1[Ф. И. О.],C22) -> 0 | H22: =SUMIFS(Таблица14[2],Таблица14[партия],$AO$1,Таблица14[изд],$W$1,Таблица14[коэф],B22,Таблица14[р/р],D22,Таблица14[Ф. И. О.],C22) -> 0 | I22: =SUMIFS(Таблица1[3],Таблица1[партия],$AO$1,Таблица1[изд],$W$1,Таблица1[коэф],B22,Таблица1[р/р],D22,Таблица1[Ф. И. О.],C22) -> 0 | J22: =SUMIFS(Таблица14[3],Таблица14[партия],$AO$1,Таблица14[изд],$W$1,Таблица14[коэф],B22,Таблица14[р/р],D22,Таблица14[Ф. И. О.],C22) -> 0 | K22: =SUMIFS(Таблица1[4],Таблица1[партия],$AO$1,Таблица1[изд],$W$1,Таблица1[коэф],B22,Таблица1[р/р],D22,Таблица1[Ф. И. О.],C22) -> 0 | L22: =SUMIFS(Таблица14[4],Таблица14[партия],$AO$1,Таблица14[изд],$W$1,Таблица14[коэф],B22,Таблица14[р/р],D22,Таблица14[Ф. И. О.],C22) -> 0 | M22: =SUMIFS(Таблица1[5],Таблица1[партия],$AO$1,Таблица1[изд],$W$1,Таблица1[коэф],B22,Таблица1[р/р],D22,Таблица1[Ф. И. О.],C22) -> 0 | N22: =SUMIFS(Таблица14[5],Таблица14[партия],$AO$1,Таблица14[изд],$W$1,Таблица14[коэф],B22,Таблица14[р/р],D22,Таблица14[Ф. И. О.],C22) -> 0 | O22: =SUMIFS(Таблица1[6],Таблица1[партия],$AO$1,Таблица1[изд],$W$1,Таблица1[коэф],B22,Таблица1[р/р],D22,Таблица1[Ф. И. О.],C22) -> 0 | P22: =SUMIFS(Таблица14[6],Таблица14[партия],$AO$1,Таблица14[изд],$W$1,Таблица14[коэф],B22,Таблица14[р/р],D22,Таблица14[Ф. И. О.],C22) -> 0 | Q22: =SUMIFS(Таблица1[7],Таблица1[партия],$AO$1,Таблица1[изд],$W$1,Таблица1[коэф],B22,Таблица1[р/р],D22,Таблица1[Ф. И. О.],C22) -> 0 | R22: =SUMIFS(Таблица14[7],Таблица14[партия],$AO$1,Таблица14[изд],$W$1,Таблица14[коэф],B22,Таблица14[р/р],D22,Таблица14[Ф. И. О.],C22) -> 0 | S22: =SUMIFS(Таблица1[8],Таблица1[партия],$AO$1,Таблица1[изд],$W$1,Таблица1[коэф],B22,Таблица1[р/р],D22,Таблица1[Ф. И. О.],C22) -> 0 | T22: =SUMIFS(Таблица14[8],Таблица14[партия],$AO$1,Таблица14[изд],$W$1,Таблица14[коэф],B22,Таблица14[р/р],D22,Таблица14[Ф. И. О.],C22) -> 0 | U22: =SUMIFS(Таблица1[9],Таблица1[партия],$AO$1,Таблица1[изд],$W$1,Таблица1[коэф],B22,Таблица1[р/р],D22,Таблица1[Ф. И. О.],C22) -> 0 | V22: =SUMIFS(Таблица14[9],Таблица14[партия],$AO$1,Таблица14[изд],$W$1,Таблица14[коэф],B22,Таблица14[р/р],D22,Таблица14[Ф. И. О.],C22) -> 0 | W22: =SUMIFS(Таблица1[10],Таблица1[партия],$AO$1,Таблица1[изд],$W$1,Таблица1[коэф],B22,Таблица1[р/р],D22,Таблица1[Ф. И. О.],C22) -> 0 | X22: =SUMIFS(Таблица14[10],Таблица14[партия],$AO$1,Таблица14[изд],$W$1,Таблица14[коэф],B22,Таблица14[р/р],D22,Таблица14[Ф. И. О.],C22) -> 0 | Y22: =SUMIFS(Таблица1[11],Таблица1[партия],$AO$1,Таблица1[изд],$W$1,Таблица1[коэф],B22,Таблица1[р/р],D22,Таблица1[Ф. И. О.],C22) -> 0 | Z22: =SUMIFS(Таблица14[11],Таблица14[партия],$AO$1,Таблица14[изд],$W$1,Таблица14[коэф],B22,Таблица14[р/р],D22,Таблица14[Ф. И. О.],C22) -> 0 | AA22: =SUMIFS(Таблица1[12],Таблица1[партия],$AO$1,Таблица1[изд],$W$1,Таблица1[коэф],B22,Таблица1[р/р],D22,Таблица1[Ф. И. О.],C22) -> 0 | AB22: =SUMIFS(Таблица14[12],Таблица14[партия],$AO$1,Таблица14[изд],$W$1,Таблица14[коэф],B22,Таблица14[р/р],D22,Таблица14[Ф. И. О.],C22) -> 0 | AC22: =SUMIFS(Таблица1[13],Таблица1[партия],$AO$1,Таблица1[изд],$W$1,Таблица1[коэф],B22,Таблица1[р/р],D22,Таблица1[Ф. И. О.],C22) -> 0 | AD22: =SUMIFS(Таблица14[13],Таблица14[партия],$AO$1,Таблица14[изд],$W$1,Таблица14[коэф],B22,Таблица14[р/р],D22,Таблица14[Ф. И. О.],C22) -> 0 | AE22: =SUMIFS(Таблица1[14],Таблица1[партия],$AO$1,Таблица1[изд],$W$1,Таблица1[коэф],B22,Таблица1[р/р],D22,Таблица1[Ф. И. О.],C22) -> 0 | AF22: =SUMIFS(Таблица14[14],Таблица14[партия],$AO$1,Таблица14[изд],$W$1,Таблица14[коэф],B22,Таблица14[р/р],D22,Таблица14[Ф. И. О.],C22) -> 0 | AG22: =SUMIFS(Таблица1[15],Таблица1[партия],$AO$1,Таблица1[изд],$W$1,Таблица1[коэф],B22,Таблица1[р/р],D22,Таблица1[Ф. И. О.],C22) -> 0 | AH22: =SUMIFS(Таблица14[15],Таблица14[партия],$AO$1,Таблица14[изд],$W$1,Таблица14[коэф],B22,Таблица14[р/р],D22,Таблица14[Ф. И. О.],C22) -> 0 | AI22: =SUMIFS(Таблица1[16],Таблица1[партия],$AO$1,Таблица1[изд],$W$1,Таблица1[коэф],B22,Таблица1[р/р],D22,Таблица1[Ф. И. О.],C22) -> 0 | AJ22: =SUMIFS(Таблица14[16],Таблица14[партия],$AO$1,Таблица14[изд],$W$1,Таблица14[коэф],B22,Таблица14[р/р],D22,Таблица14[Ф. И. О.],C22) -> 0 | AK22: =SUMIFS(Таблица1[17],Таблица1[партия],$AO$1,Таблица1[изд],$W$1,Таблица1[коэф],B22,Таблица1[р/р],D22,Таблица1[Ф. И. О.],C22) -> 0 | AL22: =SUMIFS(Таблица14[17],Таблица14[партия],$AO$1,Таблица14[изд],$W$1,Таблица14[коэф],B22,Таблица14[р/р],D22,Таблица14[Ф. И. О.],C22) -> 0 | AM22: =SUMIFS(Таблица1[18],Таблица1[партия],$AO$1,Таблица1[изд],$W$1,Таблица1[коэф],B22,Таблица1[р/р],D22,Таблица1[Ф. И. О.],C22) -> 0 | AN22: =SUMIFS(Таблица14[18],Таблица14[партия],$AO$1,Таблица14[изд],$W$1,Таблица14[коэф],B22,Таблица14[р/р],D22,Таблица14[Ф. И. О.],C22) -> 0 | AO22: =SUMIFS(Таблица1[19],Таблица1[партия],$AO$1,Таблица1[изд],$W$1,Таблица1[коэф],B22,Таблица1[р/р],D22,Таблица1[Ф. И. О.],C22) -> 0 | AP22: =SUMIFS(Таблица14[19],Таблица14[партия],$AO$1,Таблица14[изд],$W$1,Таблица14[коэф],B22,Таблица14[р/р],D22,Таблица14[Ф. И. О.],C22) -> 0 | AQ22: =SUMIFS(Таблица1[20],Таблица1[партия],$AO$1,Таблица1[изд],$W$1,Таблица1[коэф],B22,Таблица1[р/р],D22,Таблица1[Ф. И. О.],C22) -> 0 | AR22: =SUMIFS(Таблица14[20],Таблица14[партия],$AO$1,Таблица14[изд],$W$1,Таблица14[коэф],B22,Таблица14[р/р],D22,Таблица14[Ф. И. О.],C22) -> 0 | AS22: =SUMIFS(Таблица1[21],Таблица1[партия],$AO$1,Таблица1[изд],$W$1,Таблица1[коэф],B22,Таблица1[р/р],D22,Таблица1[Ф. И. О.],C22) -> 0 | AT22: =SUMIFS(Таблица14[21],Таблица14[партия],$AO$1,Таблица14[изд],$W$1,Таблица14[коэф],B22,Таблица14[р/р],D22,Таблица14[Ф. И. О.],C22) -> 0 | AU22: =SUMIFS(Таблица1[22],Таблица1[партия],$AO$1,Таблица1[изд],$W$1,Таблица1[коэф],B22,Таблица1[р/р],D22,Таблица1[Ф. И. О.],C22) -> 0 | AV22: =SUMIFS(Таблица14[22],Таблица14[партия],$AO$1,Таблица14[изд],$W$1,Таблица14[коэф],B22,Таблица14[р/р],D22,Таблица14[Ф. И. О.],C22) -> 0 | AW22: =SUMIFS(Таблица1[23],Таблица1[партия],$AO$1,Таблица1[изд],$W$1,Таблица1[коэф],B22,Таблица1[р/р],D22,Таблица1[Ф. И. О.],C22) -> 0 | AX22: =SUMIFS(Таблица14[23],Таблица14[партия],$AO$1,Таблица14[изд],$W$1,Таблица14[коэф],B22,Таблица14[р/р],D22,Таблица14[Ф. И. О.],C22) -> 0 | AY22: =SUMIFS(Таблица1[24],Таблица1[партия],$AO$1,Таблица1[изд],$W$1,Таблица1[коэф],B22,Таблица1[р/р],D22,Таблица1[Ф. И. О.],C22) -> 0 | AZ22: =SUMIFS(Таблица14[24],Таблица14[партия],$AO$1,Таблица14[изд],$W$1,Таблица14[коэф],B22,Таблица14[р/р],D22,Таблица14[Ф. И. О.],C22) -> 0 | BA22: =SUMIFS(Таблица1[25],Таблица1[партия],$AO$1,Таблица1[изд],$W$1,Таблица1[коэф],B22,Таблица1[р/р],D22,Таблица1[Ф. И. О.],C22) -> 0 | BB22: =SUMIFS(Таблица14[25],Таблица14[партия],$AO$1,Таблица14[изд],$W$1,Таблица14[коэф],B22,Таблица14[р/р],D22,Таблица14[Ф. И. О.],C22) -> 0 | BC22: =SUMIFS(Таблица1[26],Таблица1[партия],$AO$1,Таблица1[изд],$W$1,Таблица1[коэф],B22,Таблица1[р/р],D22,Таблица1[Ф. И. О.],C22) -> 0 | BD22: =SUMIFS(Таблица14[26],Таблица14[партия],$AO$1,Таблица14[изд],$W$1,Таблица14[коэф],B22,Таблица14[р/р],D22,Таблица14[Ф. И. О.],C22) -> 0 | BE22: =SUMIFS(Таблица1[27],Таблица1[партия],$AO$1,Таблица1[изд],$W$1,Таблица1[коэф],B22,Таблица1[р/р],D22,Таблица1[Ф. И. О.],C22) -> 0 | BF22: =SUMIFS(Таблица14[27],Таблица14[партия],$AO$1,Таблица14[изд],$W$1,Таблица14[коэф],B22,Таблица14[р/р],D22,Таблица14[Ф. И. О.],C22) -> 4 | BG22: =SUMIFS(Таблица1[28],Таблица1[партия],$AO$1,Таблица1[изд],$W$1,Таблица1[коэф],B22,Таблица1[р/р],D22,Таблица1[Ф. И. О.],C22) -> 0 | BH22: =SUMIFS(Таблица14[28],Таблица14[партия],$AO$1,Таблица14[изд],$W$1,Таблица14[коэф],B22,Таблица14[р/р],D22,Таблица14[Ф. И. О.],C22) -> 0 | BI22: =SUMIFS(Таблица1[29],Таблица1[партия],$AO$1,Таблица1[изд],$W$1,Таблица1[коэф],B22,Таблица1[р/р],D22,Таблица1[Ф. И. О.],C22) -> 0 | BJ22: =SUMIFS(Таблица14[29],Таблица14[партия],$AO$1,Таблица14[изд],$W$1,Таблица14[коэф],B22,Таблица14[р/р],D22,Таблица14[Ф. И. О.],C22) -> 4 | BK22: =SUMIFS(Таблица1[30],Таблица1[партия],$AO$1,Таблица1[изд],$W$1,Таблица1[коэф],B22,Таблица1[р/р],D22,Таблица1[Ф. И. О.],C22) -> 0 | BL22: =SUMIFS(Таблица14[30],Таблица14[партия],$AO$1,Таблица14[изд],$W$1,Таблица14[коэф],B22,Таблица14[р/р],D22,Таблица14[Ф. И. О.],C22) -> 4 | BM22: =SUMIFS(Таблица1[31],Таблица1[партия],$AO$1,Таблица1[изд],$W$1,Таблица1[коэф],B22,Таблица1[р/р],D22,Таблица1[Ф. И. О.],C22) -> 0 | BN22: =SUMIFS(Таблица14[31],Таблица14[партия],$AO$1,Таблица14[изд],$W$1,Таблица14[коэф],B22,Таблица14[р/р],D22,Таблица14[Ф. И. О.],C22) -> 0 | BO22: 12 | BP22: 0 | BQ22: 12
A23: 17 | B23: 1 | C23: Ложкина Елена Сергеевна | D23: 3/1 | E23: =SUMIFS(Таблица14[1],Таблица14[партия],$AO$1,Таблица14[изд],$W$1,Таблица14[коэф],B23,Таблица14[р/р],D23,Таблица14[Ф. И. О.],C23) -> 0 | F23: =SUMIFS(Таблица14[1],Таблица14[партия],$AO$1,Таблица14[изд],$W$1,Таблица14[коэф],B23,Таблица14[р/р],D23,Таблица14[Ф. И. О.],C23) -> 0 | G23: =SUMIFS(Таблица1[1],Таблица1[партия],$AO$1,Таблица1[изд],$W$1,Таблица1[коэф],B23,Таблица1[р/р],D23,Таблица1[Ф. И. О.],C23) -> 0 | H23: =SUMIFS(Таблица14[2],Таблица14[партия],$AO$1,Таблица14[изд],$W$1,Таблица14[коэф],B23,Таблица14[р/р],D23,Таблица14[Ф. И. О.],C23) -> 0 | I23: =SUMIFS(Таблица1[3],Таблица1[партия],$AO$1,Таблица1[изд],$W$1,Таблица1[коэф],B23,Таблица1[р/р],D23,Таблица1[Ф. И. О.],C23) -> 0 | J23: =SUMIFS(Таблица14[3],Таблица14[партия],$AO$1,Таблица14[изд],$W$1,Таблица14[коэф],B23,Таблица14[р/р],D23,Таблица14[Ф. И. О.],C23) -> 0 | K23: =SUMIFS(Таблица1[4],Таблица1[партия],$AO$1,Таблица1[изд],$W$1,Таблица1[коэф],B23,Таблица1[р/р],D23,Таблица1[Ф. И. О.],C23) -> 0 | L23: =SUMIFS(Таблица14[4],Таблица14[партия],$AO$1,Таблица14[изд],$W$1,Таблица14[коэф],B23,Таблица14[р/р],D23,Таблица14[Ф. И. О.],C23) -> 0 | M23: =SUMIFS(Таблица1[5],Таблица1[партия],$AO$1,Таблица1[изд],$W$1,Таблица1[коэф],B23,Таблица1[р/р],D23,Таблица1[Ф. И. О.],C23) -> 0 | N23: =SUMIFS(Таблица14[5],Таблица14[партия],$AO$1,Таблица14[изд],$W$1,Таблица14[коэф],B23,Таблица14[р/р],D23,Таблица14[Ф. И. О.],C23) -> 0 | O23: =SUMIFS(Таблица1[6],Таблица1[партия],$AO$1,Таблица1[изд],$W$1,Таблица1[коэф],B23,Таблица1[р/р],D23,Таблица1[Ф. И. О.],C23) -> 0 | P23: =SUMIFS(Таблица14[6],Таблица14[партия],$AO$1,Таблица14[изд],$W$1,Таблица14[коэф],B23,Таблица14[р/р],D23,Таблица14[Ф. И. О.],C23) -> 0 | Q23: =SUMIFS(Таблица1[7],Таблица1[партия],$AO$1,Таблица1[изд],$W$1,Таблица1[коэф],B23,Таблица1[р/р],D23,Таблица1[Ф. И. О.],C23) -> 0 | R23: =SUMIFS(Таблица14[7],Таблица14[партия],$AO$1,Таблица14[изд],$W$1,Таблица14[коэф],B23,Таблица14[р/р],D23,Таблица14[Ф. И. О.],C23) -> 0 | S23: =SUMIFS(Таблица1[8],Таблица1[партия],$AO$1,Таблица1[изд],$W$1,Таблица1[коэф],B23,Таблица1[р/р],D23,Таблица1[Ф. И. О.],C23) -> 0 | T23: =SUMIFS(Таблица14[8],Таблица14[партия],$AO$1,Таблица14[изд],$W$1,Таблица14[коэф],B23,Таблица14[р/р],D23,Таблица14[Ф. И. О.],C23) -> 0 | U23: =SUMIFS(Таблица1[9],Таблица1[партия],$AO$1,Таблица1[изд],$W$1,Таблица1[коэф],B23,Таблица1[р/р],D23,Таблица1[Ф. И. О.],C23) -> 0 | V23: =SUMIFS(Таблица14[9],Таблица14[партия],$AO$1,Таблица14[изд],$W$1,Таблица14[коэф],B23,Таблица14[р/р],D23,Таблица14[Ф. И. О.],C23) -> 0 | W23: =SUMIFS(Таблица1[10],Таблица1[партия],$AO$1,Таблица1[изд],$W$1,Таблица1[коэф],B23,Таблица1[р/р],D23,Таблица1[Ф. И. О.],C23) -> 0 | X23: =SUMIFS(Таблица14[10],Таблица14[партия],$AO$1,Таблица14[изд],$W$1,Таблица14[коэф],B23,Таблица14[р/р],D23,Таблица14[Ф. И. О.],C23) -> 0 | Y23: =SUMIFS(Таблица1[11],Таблица1[партия],$AO$1,Таблица1[изд],$W$1,Таблица1[коэф],B23,Таблица1[р/р],D23,Таблица1[Ф. И. О.],C23) -> 0 | Z23: =SUMIFS(Таблица14[11],Таблица14[партия],$AO$1,Таблица14[изд],$W$1,Таблица14[коэф],B23,Таблица14[р/р],D23,Таблица14[Ф. И. О.],C23) -> 0 | AA23: =SUMIFS(Таблица1[12],Таблица1[партия],$AO$1,Таблица1[изд],$W$1,Таблица1[коэф],B23,Таблица1[р/р],D23,Таблица1[Ф. И. О.],C23) -> 0 | AB23: =SUMIFS(Таблица14[12],Таблица14[партия],$AO$1,Таблица14[изд],$W$1,Таблица14[коэф],B23,Таблица14[р/р],D23,Таблица14[Ф. И. О.],C23) -> 0 | AC23: =SUMIFS(Таблица1[13],Таблица1[партия],$AO$1,Таблица1[изд],$W$1,Таблица1[коэф],B23,Таблица1[р/р],D23,Таблица1[Ф. И. О.],C23) -> 0 | AD23: =SUMIFS(Таблица14[13],Таблица14[партия],$AO$1,Таблица14[изд],$W$1,Таблица14[коэф],B23,Таблица14[р/р],D23,Таблица14[Ф. И. О.],C23) -> 0 | AE23: =SUMIFS(Таблица1[14],Таблица1[партия],$AO$1,Таблица1[изд],$W$1,Таблица1[коэф],B23,Таблица1[р/р],D23,Таблица1[Ф. И. О.],C23) -> 0 | AF23: =SUMIFS(Таблица14[14],Таблица14[партия],$AO$1,Таблица14[изд],$W$1,Таблица14[коэф],B23,Таблица14[р/р],D23,Таблица14[Ф. И. О.],C23) -> 0 | AG23: =SUMIFS(Таблица1[15],Таблица1[партия],$AO$1,Таблица1[изд],$W$1,Таблица1[коэф],B23,Таблица1[р/р],D23,Таблица1[Ф. И. О.],C23) -> 0 | AH23: =SUMIFS(Таблица14[15],Таблица14[партия],$AO$1,Таблица14[изд],$W$1,Таблица14[коэф],B23,Таблица14[р/р],D23,Таблица14[Ф. И. О.],C23) -> 0 | AI23: =SUMIFS(Таблица1[16],Таблица1[партия],$AO$1,Таблица1[изд],$W$1,Таблица1[коэф],B23,Таблица1[р/р],D23,Таблица1[Ф. И. О.],C23) -> 0 | AJ23: =SUMIFS(Таблица14[16],Таблица14[партия],$AO$1,Таблица14[изд],$W$1,Таблица14[коэф],B23,Таблица14[р/р],D23,Таблица14[Ф. И. О.],C23) -> 0 | AK23: =SUMIFS(Таблица1[17],Таблица1[партия],$AO$1,Таблица1[изд],$W$1,Таблица1[коэф],B23,Таблица1[р/р],D23,Таблица1[Ф. И. О.],C23) -> 0 | AL23: =SUMIFS(Таблица14[17],Таблица14[партия],$AO$1,Таблица14[изд],$W$1,Таблица14[коэф],B23,Таблица14[р/р],D23,Таблица14[Ф. И. О.],C23) -> 0 | AM23: =SUMIFS(Таблица1[18],Таблица1[партия],$AO$1,Таблица1[изд],$W$1,Таблица1[коэф],B23,Таблица1[р/р],D23,Таблица1[Ф. И. О.],C23) -> 0 | AN23: =SUMIFS(Таблица14[18],Таблица14[партия],$AO$1,Таблица14[изд],$W$1,Таблица14[коэф],B23,Таблица14[р/р],D23,Таблица14[Ф. И. О.],C23) -> 0 | AO23: =SUMIFS(Таблица1[19],Таблица1[партия],$AO$1,Таблица1[изд],$W$1,Таблица1[коэф],B23,Таблица1[р/р],D23,Таблица1[Ф. И. О.],C23) -> 0 | AP23: =SUMIFS(Таблица14[19],Таблица14[партия],$AO$1,Таблица14[изд],$W$1,Таблица14[коэф],B23,Таблица14[р/р],D23,Таблица14[Ф. И. О.],C23) -> 0 | AQ23: =SUMIFS(Таблица1[20],Таблица1[партия],$AO$1,Таблица1[изд],$W$1,Таблица1[коэф],B23,Таблица1[р/р],D23,Таблица1[Ф. И. О.],C23) -> 0 | AR23: =SUMIFS(Таблица14[20],Таблица14[партия],$AO$1,Таблица14[изд],$W$1,Таблица14[коэф],B23,Таблица14[р/р],D23,Таблица14[Ф. И. О.],C23) -> 0 | AS23: =SUMIFS(Таблица1[21],Таблица1[партия],$AO$1,Таблица1[изд],$W$1,Таблица1[коэф],B23,Таблица1[р/р],D23,Таблица1[Ф. И. О.],C23) -> 0 | AT23: =SUMIFS(Таблица14[21],Таблица14[партия],$AO$1,Таблица14[изд],$W$1,Таблица14[коэф],B23,Таблица14[р/р],D23,Таблица14[Ф. И. О.],C23) -> 0 | AU23: =SUMIFS(Таблица1[22],Таблица1[партия],$AO$1,Таблица1[изд],$W$1,Таблица1[коэф],B23,Таблица1[р/р],D23,Таблица1[Ф. И. О.],C23) -> 0 | AV23: =SUMIFS(Таблица14[22],Таблица14[партия],$AO$1,Таблица14[изд],$W$1,Таблица14[коэф],B23,Таблица14[р/р],D23,Таблица14[Ф. И. О.],C23) -> 0 | AW23: =SUMIFS(Таблица1[23],Таблица1[партия],$AO$1,Таблица1[изд],$W$1,Таблица1[коэф],B23,Таблица1[р/р],D23,Таблица1[Ф. И. О.],C23) -> 0 | AX23: =SUMIFS(Таблица14[23],Таблица14[партия],$AO$1,Таблица14[изд],$W$1,Таблица14[коэф],B23,Таблица14[р/р],D23,Таблица14[Ф. И. О.],C23) -> 0 | AY23: =SUMIFS(Таблица1[24],Таблица1[партия],$AO$1,Таблица1[изд],$W$1,Таблица1[коэф],B23,Таблица1[р/р],D23,Таблица1[Ф. И. О.],C23) -> 0 | AZ23: =SUMIFS(Таблица14[24],Таблица14[партия],$AO$1,Таблица14[изд],$W$1,Таблица14[коэф],B23,Таблица14[р/р],D23,Таблица14[Ф. И. О.],C23) -> 0 | BA23: =SUMIFS(Таблица1[25],Таблица1[партия],$AO$1,Таблица1[изд],$W$1,Таблица1[коэф],B23,Таблица1[р/р],D23,Таблица1[Ф. И. О.],C23) -> 0 | BB23: =SUMIFS(Таблица14[25],Таблица14[партия],$AO$1,Таблица14[изд],$W$1,Таблица14[коэф],B23,Таблица14[р/р],D23,Таблица14[Ф. И. О.],C23) -> 0 | BC23: =SUMIFS(Таблица1[26],Таблица1[партия],$AO$1,Таблица1[изд],$W$1,Таблица1[коэф],B23,Таблица1[р/р],D23,Таблица1[Ф. И. О.],C23) -> 7.2 | BD23: =SUMIFS(Таблица14[26],Таблица14[партия],$AO$1,Таблица14[изд],$W$1,Таблица14[коэф],B23,Таблица14[р/р],D23,Таблица14[Ф. И. О.],C23) -> 0 | BE23: =SUMIFS(Таблица1[27],Таблица1[партия],$AO$1,Таблица1[изд],$W$1,Таблица1[коэф],B23,Таблица1[р/р],D23,Таблица1[Ф. И. О.],C23) -> 4.2 | BF23: =SUMIFS(Таблица14[27],Таблица14[партия],$AO$1,Таблица14[изд],$W$1,Таблица14[коэф],B23,Таблица14[р/р],D23,Таблица14[Ф. И. О.],C23) -> 0 | BG23: =SUMIFS(Таблица1[28],Таблица1[партия],$AO$1,Таблица1[изд],$W$1,Таблица1[коэф],B23,Таблица1[р/р],D23,Таблица1[Ф. И. О.],C23) -> 7.2 | BH23: =SUMIFS(Таблица14[28],Таблица14[партия],$AO$1,Таблица14[изд],$W$1,Таблица14[коэф],B23,Таблица14[р/р],D23,Таблица14[Ф. И. О.],C23) -> 0 | BI23: =SUMIFS(Таблица1[29],Таблица1[партия],$AO$1,Таблица1[изд],$W$1,Таблица1[коэф],B23,Таблица1[р/р],D23,Таблица1[Ф. И. О.],C23) -> 4.2 | BJ23: =SUMIFS(Таблица14[29],Таблица14[партия],$AO$1,Таблица14[изд],$W$1,Таблица14[коэф],B23,Таблица14[р/р],D23,Таблица14[Ф. И. О.],C23) -> 0 | BK23: =SUMIFS(Таблица1[30],Таблица1[партия],$AO$1,Таблица1[изд],$W$1,Таблица1[коэф],B23,Таблица1[р/р],D23,Таблица1[Ф. И. О.],C23) -> 4.2 | BL23: =SUMIFS(Таблица14[30],Таблица14[партия],$AO$1,Таблица14[изд],$W$1,Таблица14[коэф],B23,Таблица14[р/р],D23,Таблица14[Ф. И. О.],C23) -> 0 | BM23: =SUMIFS(Таблица1[31],Таблица1[партия],$AO$1,Таблица1[изд],$W$1,Таблица1[коэф],B23,Таблица1[р/р],D23,Таблица1[Ф. И. О.],C23) -> 0 | BN23: =SUMIFS(Таблица14[31],Таблица14[партия],$AO$1,Таблица14[изд],$W$1,Таблица14[коэф],B23,Таблица14[р/р],D23,Таблица14[Ф. И. О.],C23) -> 0 | BO23: 27 | BP23: 27 | BQ23: 0
A24: 18 | B24: 1 | C24: Ложкина Елена Сергеевна | D24: 3/2 | E24: =SUMIFS(Таблица14[1],Таблица14[партия],$AO$1,Таблица14[изд],$W$1,Таблица14[коэф],B24,Таблица14[р/р],D24,Таблица14[Ф. И. О.],C24) -> 0 | F24: =SUMIFS(Таблица14[1],Таблица14[партия],$AO$1,Таблица14[изд],$W$1,Таблица14[коэф],B24,Таблица14[р/р],D24,Таблица14[Ф. И. О.],C24) -> 0 | G24: =SUMIFS(Таблица1[1],Таблица1[партия],$AO$1,Таблица1[изд],$W$1,Таблица1[коэф],B24,Таблица1[р/р],D24,Таблица1[Ф. И. О.],C24) -> 0 | H24: =SUMIFS(Таблица14[2],Таблица14[партия],$AO$1,Таблица14[изд],$W$1,Таблица14[коэф],B24,Таблица14[р/р],D24,Таблица14[Ф. И. О.],C24) -> 0 | I24: =SUMIFS(Таблица1[3],Таблица1[партия],$AO$1,Таблица1[изд],$W$1,Таблица1[коэф],B24,Таблица1[р/р],D24,Таблица1[Ф. И. О.],C24) -> 0 | J24: =SUMIFS(Таблица14[3],Таблица14[партия],$AO$1,Таблица14[изд],$W$1,Таблица14[коэф],B24,Таблица14[р/р],D24,Таблица14[Ф. И. О.],C24) -> 0 | K24: =SUMIFS(Таблица1[4],Таблица1[партия],$AO$1,Таблица1[изд],$W$1,Таблица1[коэф],B24,Таблица1[р/р],D24,Таблица1[Ф. И. О.],C24) -> 0 | L24: =SUMIFS(Таблица14[4],Таблица14[партия],$AO$1,Таблица14[изд],$W$1,Таблица14[коэф],B24,Таблица14[р/р],D24,Таблица14[Ф. И. О.],C24) -> 0 | M24: =SUMIFS(Таблица1[5],Таблица1[партия],$AO$1,Таблица1[изд],$W$1,Таблица1[коэф],B24,Таблица1[р/р],D24,Таблица1[Ф. И. О.],C24) -> 0 | N24: =SUMIFS(Таблица14[5],Таблица14[партия],$AO$1,Таблица14[изд],$W$1,Таблица14[коэф],B24,Таблица14[р/р],D24,Таблица14[Ф. И. О.],C24) -> 0 | O24: =SUMIFS(Таблица1[6],Таблица1[партия],$AO$1,Таблица1[изд],$W$1,Таблица1[коэф],B24,Таблица1[р/р],D24,Таблица1[Ф. И. О.],C24) -> 0 | P24: =SUMIFS(Таблица14[6],Таблица14[партия],$AO$1,Таблица14[изд],$W$1,Таблица14[коэф],B24,Таблица14[р/р],D24,Таблица14[Ф. И. О.],C24) -> 0 | Q24: =SUMIFS(Таблица1[7],Таблица1[партия],$AO$1,Таблица1[изд],$W$1,Таблица1[коэф],B24,Таблица1[р/р],D24,Таблица1[Ф. И. О.],C24) -> 0 | R24: =SUMIFS(Таблица14[7],Таблица14[партия],$AO$1,Таблица14[изд],$W$1,Таблица14[коэф],B24,Таблица14[р/р],D24,Таблица14[Ф. И. О.],C24) -> 0 | S24: =SUMIFS(Таблица1[8],Таблица1[партия],$AO$1,Таблица1[изд],$W$1,Таблица1[коэф],B24,Таблица1[р/р],D24,Таблица1[Ф. И. О.],C24) -> 0 | T24: =SUMIFS(Таблица14[8],Таблица14[партия],$AO$1,Таблица14[изд],$W$1,Таблица14[коэф],B24,Таблица14[р/р],D24,Таблица14[Ф. И. О.],C24) -> 0 | U24: =SUMIFS(Таблица1[9],Таблица1[партия],$AO$1,Таблица1[изд],$W$1,Таблица1[коэф],B24,Таблица1[р/р],D24,Таблица1[Ф. И. О.],C24) -> 0 | V24: =SUMIFS(Таблица14[9],Таблица14[партия],$AO$1,Таблица14[изд],$W$1,Таблица14[коэф],B24,Таблица14[р/р],D24,Таблица14[Ф. И. О.],C24) -> 0 | W24: =SUMIFS(Таблица1[10],Таблица1[партия],$AO$1,Таблица1[изд],$W$1,Таблица1[коэф],B24,Таблица1[р/р],D24,Таблица1[Ф. И. О.],C24) -> 0 | X24: =SUMIFS(Таблица14[10],Таблица14[партия],$AO$1,Таблица14[изд],$W$1,Таблица14[коэф],B24,Таблица14[р/р],D24,Таблица14[Ф. И. О.],C24) -> 0 | Y24: =SUMIFS(Таблица1[11],Таблица1[партия],$AO$1,Таблица1[изд],$W$1,Таблица1[коэф],B24,Таблица1[р/р],D24,Таблица1[Ф. И. О.],C24) -> 0 | Z24: =SUMIFS(Таблица14[11],Таблица14[партия],$AO$1,Таблица14[изд],$W$1,Таблица14[коэф],B24,Таблица14[р/р],D24,Таблица14[Ф. И. О.],C24) -> 0 | AA24: =SUMIFS(Таблица1[12],Таблица1[партия],$AO$1,Таблица1[изд],$W$1,Таблица1[коэф],B24,Таблица1[р/р],D24,Таблица1[Ф. И. О.],C24) -> 0 | AB24: =SUMIFS(Таблица14[12],Таблица14[партия],$AO$1,Таблица14[изд],$W$1,Таблица14[коэф],B24,Таблица14[р/р],D24,Таблица14[Ф. И. О.],C24) -> 0 | AC24: =SUMIFS(Таблица1[13],Таблица1[партия],$AO$1,Таблица1[изд],$W$1,Таблица1[коэф],B24,Таблица1[р/р],D24,Таблица1[Ф. И. О.],C24) -> 0 | AD24: =SUMIFS(Таблица14[13],Таблица14[партия],$AO$1,Таблица14[изд],$W$1,Таблица14[коэф],B24,Таблица14[р/р],D24,Таблица14[Ф. И. О.],C24) -> 0 | AE24: =SUMIFS(Таблица1[14],Таблица1[партия],$AO$1,Таблица1[изд],$W$1,Таблица1[коэф],B24,Таблица1[р/р],D24,Таблица1[Ф. И. О.],C24) -> 0 | AF24: =SUMIFS(Таблица14[14],Таблица14[партия],$AO$1,Таблица14[изд],$W$1,Таблица14[коэф],B24,Таблица14[р/р],D24,Таблица14[Ф. И. О.],C24) -> 0 | AG24: =SUMIFS(Таблица1[15],Таблица1[партия],$AO$1,Таблица1[изд],$W$1,Таблица1[коэф],B24,Таблица1[р/р],D24,Таблица1[Ф. И. О.],C24) -> 0 | AH24: =SUMIFS(Таблица14[15],Таблица14[партия],$AO$1,Таблица14[изд],$W$1,Таблица14[коэф],B24,Таблица14[р/р],D24,Таблица14[Ф. И. О.],C24) -> 0 | AI24: =SUMIFS(Таблица1[16],Таблица1[партия],$AO$1,Таблица1[изд],$W$1,Таблица1[коэф],B24,Таблица1[р/р],D24,Таблица1[Ф. И. О.],C24) -> 0 | AJ24: =SUMIFS(Таблица14[16],Таблица14[партия],$AO$1,Таблица14[изд],$W$1,Таблица14[коэф],B24,Таблица14[р/р],D24,Таблица14[Ф. И. О.],C24) -> 0 | AK24: =SUMIFS(Таблица1[17],Таблица1[партия],$AO$1,Таблица1[изд],$W$1,Таблица1[коэф],B24,Таблица1[р/р],D24,Таблица1[Ф. И. О.],C24) -> 0 | AL24: =SUMIFS(Таблица14[17],Таблица14[партия],$AO$1,Таблица14[изд],$W$1,Таблица14[коэф],B24,Таблица14[р/р],D24,Таблица14[Ф. И. О.],C24) -> 0 | AM24: =SUMIFS(Таблица1[18],Таблица1[партия],$AO$1,Таблица1[изд],$W$1,Таблица1[коэф],B24,Таблица1[р/р],D24,Таблица1[Ф. И. О.],C24) -> 0 | AN24: =SUMIFS(Таблица14[18],Таблица14[партия],$AO$1,Таблица14[изд],$W$1,Таблица14[коэф],B24,Таблица14[р/р],D24,Таблица14[Ф. И. О.],C24) -> 0 | AO24: =SUMIFS(Таблица1[19],Таблица1[партия],$AO$1,Таблица1[изд],$W$1,Таблица1[коэф],B24,Таблица1[р/р],D24,Таблица1[Ф. И. О.],C24) -> 0 | AP24: =SUMIFS(Таблица14[19],Таблица14[партия],$AO$1,Таблица14[изд],$W$1,Таблица14[коэф],B24,Таблица14[р/р],D24,Таблица14[Ф. И. О.],C24) -> 0 | AQ24: =SUMIFS(Таблица1[20],Таблица1[партия],$AO$1,Таблица1[изд],$W$1,Таблица1[коэф],B24,Таблица1[р/р],D24,Таблица1[Ф. И. О.],C24) -> 0 | AR24: =SUMIFS(Таблица14[20],Таблица14[партия],$AO$1,Таблица14[изд],$W$1,Таблица14[коэф],B24,Таблица14[р/р],D24,Таблица14[Ф. И. О.],C24) -> 0 | AS24: =SUMIFS(Таблица1[21],Таблица1[партия],$AO$1,Таблица1[изд],$W$1,Таблица1[коэф],B24,Таблица1[р/р],D24,Таблица1[Ф. И. О.],C24) -> 0 | AT24: =SUMIFS(Таблица14[21],Таблица14[партия],$AO$1,Таблица14[изд],$W$1,Таблица14[коэф],B24,Таблица14[р/р],D24,Таблица14[Ф. И. О.],C24) -> 0 | AU24: =SUMIFS(Таблица1[22],Таблица1[партия],$AO$1,Таблица1[изд],$W$1,Таблица1[коэф],B24,Таблица1[р/р],D24,Таблица1[Ф. И. О.],C24) -> 0 | AV24: =SUMIFS(Таблица14[22],Таблица14[партия],$AO$1,Таблица14[изд],$W$1,Таблица14[коэф],B24,Таблица14[р/р],D24,Таблица14[Ф. И. О.],C24) -> 0 | AW24: =SUMIFS(Таблица1[23],Таблица1[партия],$AO$1,Таблица1[изд],$W$1,Таблица1[коэф],B24,Таблица1[р/р],D24,Таблица1[Ф. И. О.],C24) -> 0 | AX24: =SUMIFS(Таблица14[23],Таблица14[партия],$AO$1,Таблица14[изд],$W$1,Таблица14[коэф],B24,Таблица14[р/р],D24,Таблица14[Ф. И. О.],C24) -> 0 | AY24: =SUMIFS(Таблица1[24],Таблица1[партия],$AO$1,Таблица1[изд],$W$1,Таблица1[коэф],B24,Таблица1[р/р],D24,Таблица1[Ф. И. О.],C24) -> 0 | AZ24: =SUMIFS(Таблица14[24],Таблица14[партия],$AO$1,Таблица14[изд],$W$1,Таблица14[коэф],B24,Таблица14[р/р],D24,Таблица14[Ф. И. О.],C24) -> 0 | BA24: =SUMIFS(Таблица1[25],Таблица1[партия],$AO$1,Таблица1[изд],$W$1,Таблица1[коэф],B24,Таблица1[р/р],D24,Таблица1[Ф. И. О.],C24) -> 0 | BB24: =SUMIFS(Таблица14[25],Таблица14[партия],$AO$1,Таблица14[изд],$W$1,Таблица14[коэф],B24,Таблица14[р/р],D24,Таблица14[Ф. И. О.],C24) -> 0 | BC24: =SUMIFS(Таблица1[26],Таблица1[партия],$AO$1,Таблица1[изд],$W$1,Таблица1[коэф],B24,Таблица1[р/р],D24,Таблица1[Ф. И. О.],C24) -> 0 | BD24: =SUMIFS(Таблица14[26],Таблица14[партия],$AO$1,Таблица14[изд],$W$1,Таблица14[коэф],B24,Таблица14[р/р],D24,Таблица14[Ф. И. О.],C24) -> 0 | BE24: =SUMIFS(Таблица1[27],Таблица1[партия],$AO$1,Таблица1[изд],$W$1,Таблица1[коэф],B24,Таблица1[р/р],D24,Таблица1[Ф. И. О.],C24) -> 0 | BF24: =SUMIFS(Таблица14[27],Таблица14[партия],$AO$1,Таблица14[изд],$W$1,Таблица14[коэф],B24,Таблица14[р/р],D24,Таблица14[Ф. И. О.],C24) -> 0 | BG24: =SUMIFS(Таблица1[28],Таблица1[партия],$AO$1,Таблица1[изд],$W$1,Таблица1[коэф],B24,Таблица1[р/р],D24,Таблица1[Ф. И. О.],C24) -> 0 | BH24: =SUMIFS(Таблица14[28],Таблица14[партия],$AO$1,Таблица14[изд],$W$1,Таблица14[коэф],B24,Таблица14[р/р],D24,Таблица14[Ф. И. О.],C24) -> 4 | BI24: =SUMIFS(Таблица1[29],Таблица1[партия],$AO$1,Таблица1[изд],$W$1,Таблица1[коэф],B24,Таблица1[р/р],D24,Таблица1[Ф. И. О.],C24) -> 0 | BJ24: =SUMIFS(Таблица14[29],Таблица14[партия],$AO$1,Таблица14[изд],$W$1,Таблица14[коэф],B24,Таблица14[р/р],D24,Таблица14[Ф. И. О.],C24) -> 0 | BK24: =SUMIFS(Таблица1[30],Таблица1[партия],$AO$1,Таблица1[изд],$W$1,Таблица1[коэф],B24,Таблица1[р/р],D24,Таблица1[Ф. И. О.],C24) -> 0 | BL24: =SUMIFS(Таблица14[30],Таблица14[партия],$AO$1,Таблица14[изд],$W$1,Таблица14[коэф],B24,Таблица14[р/р],D24,Таблица14[Ф. И. О.],C24) -> 0 | BM24: =SUMIFS(Таблица1[31],Таблица1[партия],$AO$1,Таблица1[изд],$W$1,Таблица1[коэф],B24,Таблица1[р/р],D24,Таблица1[Ф. И. О.],C24) -> 0 | BN24: =SUMIFS(Таблица14[31],Таблица14[партия],$AO$1,Таблица14[изд],$W$1,Таблица14[коэф],B24,Таблица14[р/р],D24,Таблица14[Ф. И. О.],C24) -> 0 | BO24: 4 | BP24: 0 | BQ24: 4
A25: 19 | B25: 1,4 | C25: Марко Ирина Вячеславовна | D25: 3/1 | E25: =SUMIFS(Таблица14[1],Таблица14[партия],$AO$1,Таблица14[изд],$W$1,Таблица14[коэф],B25,Таблица14[р/р],D25,Таблица14[Ф. И. О.],C25) -> 0 | F25: =SUMIFS(Таблица14[1],Таблица14[партия],$AO$1,Таблица14[изд],$W$1,Таблица14[коэф],B25,Таблица14[р/р],D25,Таблица14[Ф. И. О.],C25) -> 0 | G25: =SUMIFS(Таблица1[1],Таблица1[партия],$AO$1,Таблица1[изд],$W$1,Таблица1[коэф],B25,Таблица1[р/р],D25,Таблица1[Ф. И. О.],C25) -> 0 | H25: =SUMIFS(Таблица14[2],Таблица14[партия],$AO$1,Таблица14[изд],$W$1,Таблица14[коэф],B25,Таблица14[р/р],D25,Таблица14[Ф. И. О.],C25) -> 0 | I25: =SUMIFS(Таблица1[3],Таблица1[партия],$AO$1,Таблица1[изд],$W$1,Таблица1[коэф],B25,Таблица1[р/р],D25,Таблица1[Ф. И. О.],C25) -> 0 | J25: =SUMIFS(Таблица14[3],Таблица14[партия],$AO$1,Таблица14[изд],$W$1,Таблица14[коэф],B25,Таблица14[р/р],D25,Таблица14[Ф. И. О.],C25) -> 0 | K25: =SUMIFS(Таблица1[4],Таблица1[партия],$AO$1,Таблица1[изд],$W$1,Таблица1[коэф],B25,Таблица1[р/р],D25,Таблица1[Ф. И. О.],C25) -> 0 | L25: =SUMIFS(Таблица14[4],Таблица14[партия],$AO$1,Таблица14[изд],$W$1,Таблица14[коэф],B25,Таблица14[р/р],D25,Таблица14[Ф. И. О.],C25) -> 0 | M25: =SUMIFS(Таблица1[5],Таблица1[партия],$AO$1,Таблица1[изд],$W$1,Таблица1[коэф],B25,Таблица1[р/р],D25,Таблица1[Ф. И. О.],C25) -> 0 | N25: =SUMIFS(Таблица14[5],Таблица14[партия],$AO$1,Таблица14[изд],$W$1,Таблица14[коэф],B25,Таблица14[р/р],D25,Таблица14[Ф. И. О.],C25) -> 0 | O25: =SUMIFS(Таблица1[6],Таблица1[партия],$AO$1,Таблица1[изд],$W$1,Таблица1[коэф],B25,Таблица1[р/р],D25,Таблица1[Ф. И. О.],C25) -> 0 | P25: =SUMIFS(Таблица14[6],Таблица14[партия],$AO$1,Таблица14[изд],$W$1,Таблица14[коэф],B25,Таблица14[р/р],D25,Таблица14[Ф. И. О.],C25) -> 0 | Q25: =SUMIFS(Таблица1[7],Таблица1[партия],$AO$1,Таблица1[изд],$W$1,Таблица1[коэф],B25,Таблица1[р/р],D25,Таблица1[Ф. И. О.],C25) -> 0 | R25: =SUMIFS(Таблица14[7],Таблица14[партия],$AO$1,Таблица14[изд],$W$1,Таблица14[коэф],B25,Таблица14[р/р],D25,Таблица14[Ф. И. О.],C25) -> 0 | S25: =SUMIFS(Таблица1[8],Таблица1[партия],$AO$1,Таблица1[изд],$W$1,Таблица1[коэф],B25,Таблица1[р/р],D25,Таблица1[Ф. И. О.],C25) -> 0 | T25: =SUMIFS(Таблица14[8],Таблица14[партия],$AO$1,Таблица14[изд],$W$1,Таблица14[коэф],B25,Таблица14[р/р],D25,Таблица14[Ф. И. О.],C25) -> 0 | U25: =SUMIFS(Таблица1[9],Таблица1[партия],$AO$1,Таблица1[изд],$W$1,Таблица1[коэф],B25,Таблица1[р/р],D25,Таблица1[Ф. И. О.],C25) -> 0 | V25: =SUMIFS(Таблица14[9],Таблица14[партия],$AO$1,Таблица14[изд],$W$1,Таблица14[коэф],B25,Таблица14[р/р],D25,Таблица14[Ф. И. О.],C25) -> 0 | W25: =SUMIFS(Таблица1[10],Таблица1[партия],$AO$1,Таблица1[изд],$W$1,Таблица1[коэф],B25,Таблица1[р/р],D25,Таблица1[Ф. И. О.],C25) -> 0 | X25: =SUMIFS(Таблица14[10],Таблица14[партия],$AO$1,Таблица14[изд],$W$1,Таблица14[коэф],B25,Таблица14[р/р],D25,Таблица14[Ф. И. О.],C25) -> 0 | Y25: =SUMIFS(Таблица1[11],Таблица1[партия],$AO$1,Таблица1[изд],$W$1,Таблица1[коэф],B25,Таблица1[р/р],D25,Таблица1[Ф. И. О.],C25) -> 0 | Z25: =SUMIFS(Таблица14[11],Таблица14[партия],$AO$1,Таблица14[изд],$W$1,Таблица14[коэф],B25,Таблица14[р/р],D25,Таблица14[Ф. И. О.],C25) -> 0 | AA25: =SUMIFS(Таблица1[12],Таблица1[партия],$AO$1,Таблица1[изд],$W$1,Таблица1[коэф],B25,Таблица1[р/р],D25,Таблица1[Ф. И. О.],C25) -> 0 | AB25: =SUMIFS(Таблица14[12],Таблица14[партия],$AO$1,Таблица14[изд],$W$1,Таблица14[коэф],B25,Таблица14[р/р],D25,Таблица14[Ф. И. О.],C25) -> 0 | AC25: =SUMIFS(Таблица1[13],Таблица1[партия],$AO$1,Таблица1[изд],$W$1,Таблица1[коэф],B25,Таблица1[р/р],D25,Таблица1[Ф. И. О.],C25) -> 0 | AD25: =SUMIFS(Таблица14[13],Таблица14[партия],$AO$1,Таблица14[изд],$W$1,Таблица14[коэф],B25,Таблица14[р/р],D25,Таблица14[Ф. И. О.],C25) -> 0 | AE25: =SUMIFS(Таблица1[14],Таблица1[партия],$AO$1,Таблица1[изд],$W$1,Таблица1[коэф],B25,Таблица1[р/р],D25,Таблица1[Ф. И. О.],C25) -> 0 | AF25: =SUMIFS(Таблица14[14],Таблица14[партия],$AO$1,Таблица14[изд],$W$1,Таблица14[коэф],B25,Таблица14[р/р],D25,Таблица14[Ф. И. О.],C25) -> 0 | AG25: =SUMIFS(Таблица1[15],Таблица1[партия],$AO$1,Таблица1[изд],$W$1,Таблица1[коэф],B25,Таблица1[р/р],D25,Таблица1[Ф. И. О.],C25) -> 0 | AH25: =SUMIFS(Таблица14[15],Таблица14[партия],$AO$1,Таблица14[изд],$W$1,Таблица14[коэф],B25,Таблица14[р/р],D25,Таблица14[Ф. И. О.],C25) -> 0 | AI25: =SUMIFS(Таблица1[16],Таблица1[партия],$AO$1,Таблица1[изд],$W$1,Таблица1[коэф],B25,Таблица1[р/р],D25,Таблица1[Ф. И. О.],C25) -> 0 | AJ25: =SUMIFS(Таблица14[16],Таблица14[партия],$AO$1,Таблица14[изд],$W$1,Таблица14[коэф],B25,Таблица14[р/р],D25,Таблица14[Ф. И. О.],C25) -> 0 | AK25: =SUMIFS(Таблица1[17],Таблица1[партия],$AO$1,Таблица1[изд],$W$1,Таблица1[коэф],B25,Таблица1[р/р],D25,Таблица1[Ф. И. О.],C25) -> 0 | AL25: =SUMIFS(Таблица14[17],Таблица14[партия],$AO$1,Таблица14[изд],$W$1,Таблица14[коэф],B25,Таблица14[р/р],D25,Таблица14[Ф. И. О.],C25) -> 0 | AM25: =SUMIFS(Таблица1[18],Таблица1[партия],$AO$1,Таблица1[изд],$W$1,Таблица1[коэф],B25,Таблица1[р/р],D25,Таблица1[Ф. И. О.],C25) -> 0 | AN25: =SUMIFS(Таблица14[18],Таблица14[партия],$AO$1,Таблица14[изд],$W$1,Таблица14[коэф],B25,Таблица14[р/р],D25,Таблица14[Ф. И. О.],C25) -> 0 | AO25: =SUMIFS(Таблица1[19],Таблица1[партия],$AO$1,Таблица1[изд],$W$1,Таблица1[коэф],B25,Таблица1[р/р],D25,Таблица1[Ф. И. О.],C25) -> 0 | AP25: =SUMIFS(Таблица14[19],Таблица14[партия],$AO$1,Таблица14[изд],$W$1,Таблица14[коэф],B25,Таблица14[р/р],D25,Таблица14[Ф. И. О.],C25) -> 0 | AQ25: =SUMIFS(Таблица1[20],Таблица1[партия],$AO$1,Таблица1[изд],$W$1,Таблица1[коэф],B25,Таблица1[р/р],D25,Таблица1[Ф. И. О.],C25) -> 0 | AR25: =SUMIFS(Таблица14[20],Таблица14[партия],$AO$1,Таблица14[изд],$W$1,Таблица14[коэф],B25,Таблица14[р/р],D25,Таблица14[Ф. И. О.],C25) -> 0 | AS25: =SUMIFS(Таблица1[21],Таблица1[партия],$AO$1,Таблица1[изд],$W$1,Таблица1[коэф],B25,Таблица1[р/р],D25,Таблица1[Ф. И. О.],C25) -> 0 | AT25: =SUMIFS(Таблица14[21],Таблица14[партия],$AO$1,Таблица14[изд],$W$1,Таблица14[коэф],B25,Таблица14[р/р],D25,Таблица14[Ф. И. О.],C25) -> 0 | AU25: =SUMIFS(Таблица1[22],Таблица1[партия],$AO$1,Таблица1[изд],$W$1,Таблица1[коэф],B25,Таблица1[р/р],D25,Таблица1[Ф. И. О.],C25) -> 0 | AV25: =SUMIFS(Таблица14[22],Таблица14[партия],$AO$1,Таблица14[изд],$W$1,Таблица14[коэф],B25,Таблица14[р/р],D25,Таблица14[Ф. И. О.],C25) -> 0 | AW25: =SUMIFS(Таблица1[23],Таблица1[партия],$AO$1,Таблица1[изд],$W$1,Таблица1[коэф],B25,Таблица1[р/р],D25,Таблица1[Ф. И. О.],C25) -> 0 | AX25: =SUMIFS(Таблица14[23],Таблица14[партия],$AO$1,Таблица14[изд],$W$1,Таблица14[коэф],B25,Таблица14[р/р],D25,Таблица14[Ф. И. О.],C25) -> 0 | AY25: =SUMIFS(Таблица1[24],Таблица1[партия],$AO$1,Таблица1[изд],$W$1,Таблица1[коэф],B25,Таблица1[р/р],D25,Таблица1[Ф. И. О.],C25) -> 0 | AZ25: =SUMIFS(Таблица14[24],Таблица14[партия],$AO$1,Таблица14[изд],$W$1,Таблица14[коэф],B25,Таблица14[р/р],D25,Таблица14[Ф. И. О.],C25) -> 0 | BA25: =SUMIFS(Таблица1[25],Таблица1[партия],$AO$1,Таблица1[изд],$W$1,Таблица1[коэф],B25,Таблица1[р/р],D25,Таблица1[Ф. И. О.],C25) -> 0 | BB25: =SUMIFS(Таблица14[25],Таблица14[партия],$AO$1,Таблица14[изд],$W$1,Таблица14[коэф],B25,Таблица14[р/р],D25,Таблица14[Ф. И. О.],C25) -> 0 | BC25: =SUMIFS(Таблица1[26],Таблица1[партия],$AO$1,Таблица1[изд],$W$1,Таблица1[коэф],B25,Таблица1[р/р],D25,Таблица1[Ф. И. О.],C25) -> 0 | BD25: =SUMIFS(Таблица14[26],Таблица14[партия],$AO$1,Таблица14[изд],$W$1,Таблица14[коэф],B25,Таблица14[р/р],D25,Таблица14[Ф. И. О.],C25) -> 0 | BE25: =SUMIFS(Таблица1[27],Таблица1[партия],$AO$1,Таблица1[изд],$W$1,Таблица1[коэф],B25,Таблица1[р/р],D25,Таблица1[Ф. И. О.],C25) -> 0 | BF25: =SUMIFS(Таблица14[27],Таблица14[партия],$AO$1,Таблица14[изд],$W$1,Таблица14[коэф],B25,Таблица14[р/р],D25,Таблица14[Ф. И. О.],C25) -> 0 | BG25: =SUMIFS(Таблица1[28],Таблица1[партия],$AO$1,Таблица1[изд],$W$1,Таблица1[коэф],B25,Таблица1[р/р],D25,Таблица1[Ф. И. О.],C25) -> 0 | BH25: =SUMIFS(Таблица14[28],Таблица14[партия],$AO$1,Таблица14[изд],$W$1,Таблица14[коэф],B25,Таблица14[р/р],D25,Таблица14[Ф. И. О.],C25) -> 3.2 | BI25: =SUMIFS(Таблица1[29],Таблица1[партия],$AO$1,Таблица1[изд],$W$1,Таблица1[коэф],B25,Таблица1[р/р],D25,Таблица1[Ф. И. О.],C25) -> 0 | BJ25: =SUMIFS(Таблица14[29],Таблица14[партия],$AO$1,Таблица14[изд],$W$1,Таблица14[коэф],B25,Таблица14[р/р],D25,Таблица14[Ф. И. О.],C25) -> 3.1 | BK25: =SUMIFS(Таблица1[30],Таблица1[партия],$AO$1,Таблица1[изд],$W$1,Таблица1[коэф],B25,Таблица1[р/р],D25,Таблица1[Ф. И. О.],C25) -> 0 | BL25: =SUMIFS(Таблица14[30],Таблица14[партия],$AO$1,Таблица14[изд],$W$1,Таблица14[коэф],B25,Таблица14[р/р],D25,Таблица14[Ф. И. О.],C25) -> 1 | BM25: =SUMIFS(Таблица1[31],Таблица1[партия],$AO$1,Таблица1[изд],$W$1,Таблица1[коэф],B25,Таблица1[р/р],D25,Таблица1[Ф. И. О.],C25) -> 0 | BN25: =SUMIFS(Таблица14[31],Таблица14[партия],$AO$1,Таблица14[изд],$W$1,Таблица14[коэф],B25,Таблица14[р/р],D25,Таблица14[Ф. И. О.],C25) -> 6 | BO25: 13.3 | BP25: 0 | BQ25: 13.3
A26: 20 | B26: 1 | C26: Марко Ирина Вячеславовна | D26: 3/1 | E26: =SUMIFS(Таблица14[1],Таблица14[партия],$AO$1,Таблица14[изд],$W$1,Таблица14[коэф],B26,Таблица14[р/р],D26,Таблица14[Ф. И. О.],C26) -> 0 | F26: =SUMIFS(Таблица14[1],Таблица14[партия],$AO$1,Таблица14[изд],$W$1,Таблица14[коэф],B26,Таблица14[р/р],D26,Таблица14[Ф. И. О.],C26) -> 0 | G26: =SUMIFS(Таблица1[1],Таблица1[партия],$AO$1,Таблица1[изд],$W$1,Таблица1[коэф],B26,Таблица1[р/р],D26,Таблица1[Ф. И. О.],C26) -> 0 | H26: =SUMIFS(Таблица14[2],Таблица14[партия],$AO$1,Таблица14[изд],$W$1,Таблица14[коэф],B26,Таблица14[р/р],D26,Таблица14[Ф. И. О.],C26) -> 0 | I26: =SUMIFS(Таблица1[3],Таблица1[партия],$AO$1,Таблица1[изд],$W$1,Таблица1[коэф],B26,Таблица1[р/р],D26,Таблица1[Ф. И. О.],C26) -> 0 | J26: =SUMIFS(Таблица14[3],Таблица14[партия],$AO$1,Таблица14[изд],$W$1,Таблица14[коэф],B26,Таблица14[р/р],D26,Таблица14[Ф. И. О.],C26) -> 0 | K26: =SUMIFS(Таблица1[4],Таблица1[партия],$AO$1,Таблица1[изд],$W$1,Таблица1[коэф],B26,Таблица1[р/р],D26,Таблица1[Ф. И. О.],C26) -> 0 | L26: =SUMIFS(Таблица14[4],Таблица14[партия],$AO$1,Таблица14[изд],$W$1,Таблица14[коэф],B26,Таблица14[р/р],D26,Таблица14[Ф. И. О.],C26) -> 0 | M26: =SUMIFS(Таблица1[5],Таблица1[партия],$AO$1,Таблица1[изд],$W$1,Таблица1[коэф],B26,Таблица1[р/р],D26,Таблица1[Ф. И. О.],C26) -> 0 | N26: =SUMIFS(Таблица14[5],Таблица14[партия],$AO$1,Таблица14[изд],$W$1,Таблица14[коэф],B26,Таблица14[р/р],D26,Таблица14[Ф. И. О.],C26) -> 0 | O26: =SUMIFS(Таблица1[6],Таблица1[партия],$AO$1,Таблица1[изд],$W$1,Таблица1[коэф],B26,Таблица1[р/р],D26,Таблица1[Ф. И. О.],C26) -> 0 | P26: =SUMIFS(Таблица14[6],Таблица14[партия],$AO$1,Таблица14[изд],$W$1,Таблица14[коэф],B26,Таблица14[р/р],D26,Таблица14[Ф. И. О.],C26) -> 0 | Q26: =SUMIFS(Таблица1[7],Таблица1[партия],$AO$1,Таблица1[изд],$W$1,Таблица1[коэф],B26,Таблица1[р/р],D26,Таблица1[Ф. И. О.],C26) -> 0 | R26: =SUMIFS(Таблица14[7],Таблица14[партия],$AO$1,Таблица14[изд],$W$1,Таблица14[коэф],B26,Таблица14[р/р],D26,Таблица14[Ф. И. О.],C26) -> 0 | S26: =SUMIFS(Таблица1[8],Таблица1[партия],$AO$1,Таблица1[изд],$W$1,Таблица1[коэф],B26,Таблица1[р/р],D26,Таблица1[Ф. И. О.],C26) -> 0 | T26: =SUMIFS(Таблица14[8],Таблица14[партия],$AO$1,Таблица14[изд],$W$1,Таблица14[коэф],B26,Таблица14[р/р],D26,Таблица14[Ф. И. О.],C26) -> 0 | U26: =SUMIFS(Таблица1[9],Таблица1[партия],$AO$1,Таблица1[изд],$W$1,Таблица1[коэф],B26,Таблица1[р/р],D26,Таблица1[Ф. И. О.],C26) -> 0 | V26: =SUMIFS(Таблица14[9],Таблица14[партия],$AO$1,Таблица14[изд],$W$1,Таблица14[коэф],B26,Таблица14[р/р],D26,Таблица14[Ф. И. О.],C26) -> 0 | W26: =SUMIFS(Таблица1[10],Таблица1[партия],$AO$1,Таблица1[изд],$W$1,Таблица1[коэф],B26,Таблица1[р/р],D26,Таблица1[Ф. И. О.],C26) -> 0 | X26: =SUMIFS(Таблица14[10],Таблица14[партия],$AO$1,Таблица14[изд],$W$1,Таблица14[коэф],B26,Таблица14[р/р],D26,Таблица14[Ф. И. О.],C26) -> 0 | Y26: =SUMIFS(Таблица1[11],Таблица1[партия],$AO$1,Таблица1[изд],$W$1,Таблица1[коэф],B26,Таблица1[р/р],D26,Таблица1[Ф. И. О.],C26) -> 0 | Z26: =SUMIFS(Таблица14[11],Таблица14[партия],$AO$1,Таблица14[изд],$W$1,Таблица14[коэф],B26,Таблица14[р/р],D26,Таблица14[Ф. И. О.],C26) -> 0 | AA26: =SUMIFS(Таблица1[12],Таблица1[партия],$AO$1,Таблица1[изд],$W$1,Таблица1[коэф],B26,Таблица1[р/р],D26,Таблица1[Ф. И. О.],C26) -> 0 | AB26: =SUMIFS(Таблица14[12],Таблица14[партия],$AO$1,Таблица14[изд],$W$1,Таблица14[коэф],B26,Таблица14[р/р],D26,Таблица14[Ф. И. О.],C26) -> 0 | AC26: =SUMIFS(Таблица1[13],Таблица1[партия],$AO$1,Таблица1[изд],$W$1,Таблица1[коэф],B26,Таблица1[р/р],D26,Таблица1[Ф. И. О.],C26) -> 0 | AD26: =SUMIFS(Таблица14[13],Таблица14[партия],$AO$1,Таблица14[изд],$W$1,Таблица14[коэф],B26,Таблица14[р/р],D26,Таблица14[Ф. И. О.],C26) -> 0 | AE26: =SUMIFS(Таблица1[14],Таблица1[партия],$AO$1,Таблица1[изд],$W$1,Таблица1[коэф],B26,Таблица1[р/р],D26,Таблица1[Ф. И. О.],C26) -> 0 | AF26: =SUMIFS(Таблица14[14],Таблица14[партия],$AO$1,Таблица14[изд],$W$1,Таблица14[коэф],B26,Таблица14[р/р],D26,Таблица14[Ф. И. О.],C26) -> 0 | AG26: =SUMIFS(Таблица1[15],Таблица1[партия],$AO$1,Таблица1[изд],$W$1,Таблица1[коэф],B26,Таблица1[р/р],D26,Таблица1[Ф. И. О.],C26) -> 0 | AH26: =SUMIFS(Таблица14[15],Таблица14[партия],$AO$1,Таблица14[изд],$W$1,Таблица14[коэф],B26,Таблица14[р/р],D26,Таблица14[Ф. И. О.],C26) -> 0 | AI26: =SUMIFS(Таблица1[16],Таблица1[партия],$AO$1,Таблица1[изд],$W$1,Таблица1[коэф],B26,Таблица1[р/р],D26,Таблица1[Ф. И. О.],C26) -> 0 | AJ26: =SUMIFS(Таблица14[16],Таблица14[партия],$AO$1,Таблица14[изд],$W$1,Таблица14[коэф],B26,Таблица14[р/р],D26,Таблица14[Ф. И. О.],C26) -> 0 | AK26: =SUMIFS(Таблица1[17],Таблица1[партия],$AO$1,Таблица1[изд],$W$1,Таблица1[коэф],B26,Таблица1[р/р],D26,Таблица1[Ф. И. О.],C26) -> 0 | AL26: =SUMIFS(Таблица14[17],Таблица14[партия],$AO$1,Таблица14[изд],$W$1,Таблица14[коэф],B26,Таблица14[р/р],D26,Таблица14[Ф. И. О.],C26) -> 0 | AM26: =SUMIFS(Таблица1[18],Таблица1[партия],$AO$1,Таблица1[изд],$W$1,Таблица1[коэф],B26,Таблица1[р/р],D26,Таблица1[Ф. И. О.],C26) -> 0 | AN26: =SUMIFS(Таблица14[18],Таблица14[партия],$AO$1,Таблица14[изд],$W$1,Таблица14[коэф],B26,Таблица14[р/р],D26,Таблица14[Ф. И. О.],C26) -> 0 | AO26: =SUMIFS(Таблица1[19],Таблица1[партия],$AO$1,Таблица1[изд],$W$1,Таблица1[коэф],B26,Таблица1[р/р],D26,Таблица1[Ф. И. О.],C26) -> 0 | AP26: =SUMIFS(Таблица14[19],Таблица14[партия],$AO$1,Таблица14[изд],$W$1,Таблица14[коэф],B26,Таблица14[р/р],D26,Таблица14[Ф. И. О.],C26) -> 0 | AQ26: =SUMIFS(Таблица1[20],Таблица1[партия],$AO$1,Таблица1[изд],$W$1,Таблица1[коэф],B26,Таблица1[р/р],D26,Таблица1[Ф. И. О.],C26) -> 0 | AR26: =SUMIFS(Таблица14[20],Таблица14[партия],$AO$1,Таблица14[изд],$W$1,Таблица14[коэф],B26,Таблица14[р/р],D26,Таблица14[Ф. И. О.],C26) -> 0 | AS26: =SUMIFS(Таблица1[21],Таблица1[партия],$AO$1,Таблица1[изд],$W$1,Таблица1[коэф],B26,Таблица1[р/р],D26,Таблица1[Ф. И. О.],C26) -> 0 | AT26: =SUMIFS(Таблица14[21],Таблица14[партия],$AO$1,Таблица14[изд],$W$1,Таблица14[коэф],B26,Таблица14[р/р],D26,Таблица14[Ф. И. О.],C26) -> 0 | AU26: =SUMIFS(Таблица1[22],Таблица1[партия],$AO$1,Таблица1[изд],$W$1,Таблица1[коэф],B26,Таблица1[р/р],D26,Таблица1[Ф. И. О.],C26) -> 0 | AV26: =SUMIFS(Таблица14[22],Таблица14[партия],$AO$1,Таблица14[изд],$W$1,Таблица14[коэф],B26,Таблица14[р/р],D26,Таблица14[Ф. И. О.],C26) -> 0 | AW26: =SUMIFS(Таблица1[23],Таблица1[партия],$AO$1,Таблица1[изд],$W$1,Таблица1[коэф],B26,Таблица1[р/р],D26,Таблица1[Ф. И. О.],C26) -> 0 | AX26: =SUMIFS(Таблица14[23],Таблица14[партия],$AO$1,Таблица14[изд],$W$1,Таблица14[коэф],B26,Таблица14[р/р],D26,Таблица14[Ф. И. О.],C26) -> 0 | AY26: =SUMIFS(Таблица1[24],Таблица1[партия],$AO$1,Таблица1[изд],$W$1,Таблица1[коэф],B26,Таблица1[р/р],D26,Таблица1[Ф. И. О.],C26) -> 0 | AZ26: =SUMIFS(Таблица14[24],Таблица14[партия],$AO$1,Таблица14[изд],$W$1,Таблица14[коэф],B26,Таблица14[р/р],D26,Таблица14[Ф. И. О.],C26) -> 0 | BA26: =SUMIFS(Таблица1[25],Таблица1[партия],$AO$1,Таблица1[изд],$W$1,Таблица1[коэф],B26,Таблица1[р/р],D26,Таблица1[Ф. И. О.],C26) -> 0 | BB26: =SUMIFS(Таблица14[25],Таблица14[партия],$AO$1,Таблица14[изд],$W$1,Таблица14[коэф],B26,Таблица14[р/р],D26,Таблица14[Ф. И. О.],C26) -> 0 | BC26: =SUMIFS(Таблица1[26],Таблица1[партия],$AO$1,Таблица1[изд],$W$1,Таблица1[коэф],B26,Таблица1[р/р],D26,Таблица1[Ф. И. О.],C26) -> 0 | BD26: =SUMIFS(Таблица14[26],Таблица14[партия],$AO$1,Таблица14[изд],$W$1,Таблица14[коэф],B26,Таблица14[р/р],D26,Таблица14[Ф. И. О.],C26) -> 0 | BE26: =SUMIFS(Таблица1[27],Таблица1[партия],$AO$1,Таблица1[изд],$W$1,Таблица1[коэф],B26,Таблица1[р/р],D26,Таблица1[Ф. И. О.],C26) -> 0 | BF26: =SUMIFS(Таблица14[27],Таблица14[партия],$AO$1,Таблица14[изд],$W$1,Таблица14[коэф],B26,Таблица14[р/р],D26,Таблица14[Ф. И. О.],C26) -> 0 | BG26: =SUMIFS(Таблица1[28],Таблица1[партия],$AO$1,Таблица1[изд],$W$1,Таблица1[коэф],B26,Таблица1[р/р],D26,Таблица1[Ф. И. О.],C26) -> 7.2 | BH26: =SUMIFS(Таблица14[28],Таблица14[партия],$AO$1,Таблица14[изд],$W$1,Таблица14[коэф],B26,Таблица14[р/р],D26,Таблица14[Ф. И. О.],C26) -> 0 | BI26: =SUMIFS(Таблица1[29],Таблица1[партия],$AO$1,Таблица1[изд],$W$1,Таблица1[коэф],B26,Таблица1[р/р],D26,Таблица1[Ф. И. О.],C26) -> 7.2 | BJ26: =SUMIFS(Таблица14[29],Таблица14[партия],$AO$1,Таблица14[изд],$W$1,Таблица14[коэф],B26,Таблица14[р/р],D26,Таблица14[Ф. И. О.],C26) -> 0 | BK26: =SUMIFS(Таблица1[30],Таблица1[партия],$AO$1,Таблица1[изд],$W$1,Таблица1[коэф],B26,Таблица1[р/р],D26,Таблица1[Ф. И. О.],C26) -> 7.2 | BL26: =SUMIFS(Таблица14[30],Таблица14[партия],$AO$1,Таблица14[изд],$W$1,Таблица14[коэф],B26,Таблица14[р/р],D26,Таблица14[Ф. И. О.],C26) -> 0 | BM26: =SUMIFS(Таблица1[31],Таблица1[партия],$AO$1,Таблица1[изд],$W$1,Таблица1[коэф],B26,Таблица1[р/р],D26,Таблица1[Ф. И. О.],C26) -> 6 | BN26: =SUMIFS(Таблица14[31],Таблица14[партия],$AO$1,Таблица14[изд],$W$1,Таблица14[коэф],B26,Таблица14[р/р],D26,Таблица14[Ф. И. О.],C26) -> 0 | BO26: 27.6 | BP26: 27.6 | BQ26: 0
A27: 21 | B27: 1,4 | C27: Носова Мария Андреевна | D27: 3/1 | E27: =SUMIFS(Таблица14[1],Таблица14[партия],$AO$1,Таблица14[изд],$W$1,Таблица14[коэф],B27,Таблица14[р/р],D27,Таблица14[Ф. И. О.],C27) -> 0 | F27: =SUMIFS(Таблица14[1],Таблица14[партия],$AO$1,Таблица14[изд],$W$1,Таблица14[коэф],B27,Таблица14[р/р],D27,Таблица14[Ф. И. О.],C27) -> 0 | G27: =SUMIFS(Таблица1[1],Таблица1[партия],$AO$1,Таблица1[изд],$W$1,Таблица1[коэф],B27,Таблица1[р/р],D27,Таблица1[Ф. И. О.],C27) -> 0 | H27: =SUMIFS(Таблица14[2],Таблица14[партия],$AO$1,Таблица14[изд],$W$1,Таблица14[коэф],B27,Таблица14[р/р],D27,Таблица14[Ф. И. О.],C27) -> 0 | I27: =SUMIFS(Таблица1[3],Таблица1[партия],$AO$1,Таблица1[изд],$W$1,Таблица1[коэф],B27,Таблица1[р/р],D27,Таблица1[Ф. И. О.],C27) -> 0 | J27: =SUMIFS(Таблица14[3],Таблица14[партия],$AO$1,Таблица14[изд],$W$1,Таблица14[коэф],B27,Таблица14[р/р],D27,Таблица14[Ф. И. О.],C27) -> 0 | K27: =SUMIFS(Таблица1[4],Таблица1[партия],$AO$1,Таблица1[изд],$W$1,Таблица1[коэф],B27,Таблица1[р/р],D27,Таблица1[Ф. И. О.],C27) -> 0 | L27: =SUMIFS(Таблица14[4],Таблица14[партия],$AO$1,Таблица14[изд],$W$1,Таблица14[коэф],B27,Таблица14[р/р],D27,Таблица14[Ф. И. О.],C27) -> 0 | M27: =SUMIFS(Таблица1[5],Таблица1[партия],$AO$1,Таблица1[изд],$W$1,Таблица1[коэф],B27,Таблица1[р/р],D27,Таблица1[Ф. И. О.],C27) -> 0 | N27: =SUMIFS(Таблица14[5],Таблица14[партия],$AO$1,Таблица14[изд],$W$1,Таблица14[коэф],B27,Таблица14[р/р],D27,Таблица14[Ф. И. О.],C27) -> 0 | O27: =SUMIFS(Таблица1[6],Таблица1[партия],$AO$1,Таблица1[изд],$W$1,Таблица1[коэф],B27,Таблица1[р/р],D27,Таблица1[Ф. И. О.],C27) -> 0 | P27: =SUMIFS(Таблица14[6],Таблица14[партия],$AO$1,Таблица14[изд],$W$1,Таблица14[коэф],B27,Таблица14[р/р],D27,Таблица14[Ф. И. О.],C27) -> 0 | Q27: =SUMIFS(Таблица1[7],Таблица1[партия],$AO$1,Таблица1[изд],$W$1,Таблица1[коэф],B27,Таблица1[р/р],D27,Таблица1[Ф. И. О.],C27) -> 0 | R27: =SUMIFS(Таблица14[7],Таблица14[партия],$AO$1,Таблица14[изд],$W$1,Таблица14[коэф],B27,Таблица14[р/р],D27,Таблица14[Ф. И. О.],C27) -> 0 | S27: =SUMIFS(Таблица1[8],Таблица1[партия],$AO$1,Таблица1[изд],$W$1,Таблица1[коэф],B27,Таблица1[р/р],D27,Таблица1[Ф. И. О.],C27) -> 0 | T27: =SUMIFS(Таблица14[8],Таблица14[партия],$AO$1,Таблица14[изд],$W$1,Таблица14[коэф],B27,Таблица14[р/р],D27,Таблица14[Ф. И. О.],C27) -> 0 | U27: =SUMIFS(Таблица1[9],Таблица1[партия],$AO$1,Таблица1[изд],$W$1,Таблица1[коэф],B27,Таблица1[р/р],D27,Таблица1[Ф. И. О.],C27) -> 0 | V27: =SUMIFS(Таблица14[9],Таблица14[партия],$AO$1,Таблица14[изд],$W$1,Таблица14[коэф],B27,Таблица14[р/р],D27,Таблица14[Ф. И. О.],C27) -> 0 | W27: =SUMIFS(Таблица1[10],Таблица1[партия],$AO$1,Таблица1[изд],$W$1,Таблица1[коэф],B27,Таблица1[р/р],D27,Таблица1[Ф. И. О.],C27) -> 0 | X27: =SUMIFS(Таблица14[10],Таблица14[партия],$AO$1,Таблица14[изд],$W$1,Таблица14[коэф],B27,Таблица14[р/р],D27,Таблица14[Ф. И. О.],C27) -> 0 | Y27: =SUMIFS(Таблица1[11],Таблица1[партия],$AO$1,Таблица1[изд],$W$1,Таблица1[коэф],B27,Таблица1[р/р],D27,Таблица1[Ф. И. О.],C27) -> 0 | Z27: =SUMIFS(Таблица14[11],Таблица14[партия],$AO$1,Таблица14[изд],$W$1,Таблица14[коэф],B27,Таблица14[р/р],D27,Таблица14[Ф. И. О.],C27) -> 0 | AA27: =SUMIFS(Таблица1[12],Таблица1[партия],$AO$1,Таблица1[изд],$W$1,Таблица1[коэф],B27,Таблица1[р/р],D27,Таблица1[Ф. И. О.],C27) -> 0 | AB27: =SUMIFS(Таблица14[12],Таблица14[партия],$AO$1,Таблица14[изд],$W$1,Таблица14[коэф],B27,Таблица14[р/р],D27,Таблица14[Ф. И. О.],C27) -> 0 | AC27: =SUMIFS(Таблица1[13],Таблица1[партия],$AO$1,Таблица1[изд],$W$1,Таблица1[коэф],B27,Таблица1[р/р],D27,Таблица1[Ф. И. О.],C27) -> 0 | AD27: =SUMIFS(Таблица14[13],Таблица14[партия],$AO$1,Таблица14[изд],$W$1,Таблица14[коэф],B27,Таблица14[р/р],D27,Таблица14[Ф. И. О.],C27) -> 0 | AE27: =SUMIFS(Таблица1[14],Таблица1[партия],$AO$1,Таблица1[изд],$W$1,Таблица1[коэф],B27,Таблица1[р/р],D27,Таблица1[Ф. И. О.],C27) -> 0 | AF27: =SUMIFS(Таблица14[14],Таблица14[партия],$AO$1,Таблица14[изд],$W$1,Таблица14[коэф],B27,Таблица14[р/р],D27,Таблица14[Ф. И. О.],C27) -> 0 | AG27: =SUMIFS(Таблица1[15],Таблица1[партия],$AO$1,Таблица1[изд],$W$1,Таблица1[коэф],B27,Таблица1[р/р],D27,Таблица1[Ф. И. О.],C27) -> 3.2 | AH27: =SUMIFS(Таблица14[15],Таблица14[партия],$AO$1,Таблица14[изд],$W$1,Таблица14[коэф],B27,Таблица14[р/р],D27,Таблица14[Ф. И. О.],C27) -> 4 | AI27: =SUMIFS(Таблица1[16],Таблица1[партия],$AO$1,Таблица1[изд],$W$1,Таблица1[коэф],B27,Таблица1[р/р],D27,Таблица1[Ф. И. О.],C27) -> 3.4 | AJ27: =SUMIFS(Таблица14[16],Таблица14[партия],$AO$1,Таблица14[изд],$W$1,Таблица14[коэф],B27,Таблица14[р/р],D27,Таблица14[Ф. И. О.],C27) -> 3.8 | AK27: =SUMIFS(Таблица1[17],Таблица1[партия],$AO$1,Таблица1[изд],$W$1,Таблица1[коэф],B27,Таблица1[р/р],D27,Таблица1[Ф. И. О.],C27) -> 0 | AL27: =SUMIFS(Таблица14[17],Таблица14[партия],$AO$1,Таблица14[изд],$W$1,Таблица14[коэф],B27,Таблица14[р/р],D27,Таблица14[Ф. И. О.],C27) -> 0 | AM27: =SUMIFS(Таблица1[18],Таблица1[партия],$AO$1,Таблица1[изд],$W$1,Таблица1[коэф],B27,Таблица1[р/р],D27,Таблица1[Ф. И. О.],C27) -> 0 | AN27: =SUMIFS(Таблица14[18],Таблица14[партия],$AO$1,Таблица14[изд],$W$1,Таблица14[коэф],B27,Таблица14[р/р],D27,Таблица14[Ф. И. О.],C27) -> 0 | AO27: =SUMIFS(Таблица1[19],Таблица1[партия],$AO$1,Таблица1[изд],$W$1,Таблица1[коэф],B27,Таблица1[р/р],D27,Таблица1[Ф. И. О.],C27) -> 7.2 | AP27: =SUMIFS(Таблица14[19],Таблица14[партия],$AO$1,Таблица14[изд],$W$1,Таблица14[коэф],B27,Таблица14[р/р],D27,Таблица14[Ф. И. О.],C27) -> 0 | AQ27: =SUMIFS(Таблица1[20],Таблица1[партия],$AO$1,Таблица1[изд],$W$1,Таблица1[коэф],B27,Таблица1[р/р],D27,Таблица1[Ф. И. О.],C27) -> 7.2 | AR27: =SUMIFS(Таблица14[20],Таблица14[партия],$AO$1,Таблица14[изд],$W$1,Таблица14[коэф],B27,Таблица14[р/р],D27,Таблица14[Ф. И. О.],C27) -> 0 | AS27: =SUMIFS(Таблица1[21],Таблица1[партия],$AO$1,Таблица1[изд],$W$1,Таблица1[коэф],B27,Таблица1[р/р],D27,Таблица1[Ф. И. О.],C27) -> 0 | AT27: =SUMIFS(Таблица14[21],Таблица14[партия],$AO$1,Таблица14[изд],$W$1,Таблица14[коэф],B27,Таблица14[р/р],D27,Таблица14[Ф. И. О.],C27) -> 0 | AU27: =SUMIFS(Таблица1[22],Таблица1[партия],$AO$1,Таблица1[изд],$W$1,Таблица1[коэф],B27,Таблица1[р/р],D27,Таблица1[Ф. И. О.],C27) -> 7.2 | AV27: =SUMIFS(Таблица14[22],Таблица14[партия],$AO$1,Таблица14[изд],$W$1,Таблица14[коэф],B27,Таблица14[р/р],D27,Таблица14[Ф. И. О.],C27) -> 0 | AW27: =SUMIFS(Таблица1[23],Таблица1[партия],$AO$1,Таблица1[изд],$W$1,Таблица1[коэф],B27,Таблица1[р/р],D27,Таблица1[Ф. И. О.],C27) -> 7.2 | AX27: =SUMIFS(Таблица14[23],Таблица14[партия],$AO$1,Таблица14[изд],$W$1,Таблица14[коэф],B27,Таблица14[р/р],D27,Таблица14[Ф. И. О.],C27) -> 0 | AY27: =SUMIFS(Таблица1[24],Таблица1[партия],$AO$1,Таблица1[изд],$W$1,Таблица1[коэф],B27,Таблица1[р/р],D27,Таблица1[Ф. И. О.],C27) -> 0 | AZ27: =SUMIFS(Таблица14[24],Таблица14[партия],$AO$1,Таблица14[изд],$W$1,Таблица14[коэф],B27,Таблица14[р/р],D27,Таблица14[Ф. И. О.],C27) -> 0 | BA27: =SUMIFS(Таблица1[25],Таблица1[партия],$AO$1,Таблица1[изд],$W$1,Таблица1[коэф],B27,Таблица1[р/р],D27,Таблица1[Ф. И. О.],C27) -> 0 | BB27: =SUMIFS(Таблица14[25],Таблица14[партия],$AO$1,Таблица14[изд],$W$1,Таблица14[коэф],B27,Таблица14[р/р],D27,Таблица14[Ф. И. О.],C27) -> 0 | BC27: =SUMIFS(Таблица1[26],Таблица1[партия],$AO$1,Таблица1[изд],$W$1,Таблица1[коэф],B27,Таблица1[р/р],D27,Таблица1[Ф. И. О.],C27) -> 3.3 | BD27: =SUMIFS(Таблица14[26],Таблица14[партия],$AO$1,Таблица14[изд],$W$1,Таблица14[коэф],B27,Таблица14[р/р],D27,Таблица14[Ф. И. О.],C27) -> 3.9 | BE27: =SUMIFS(Таблица1[27],Таблица1[партия],$AO$1,Таблица1[изд],$W$1,Таблица1[коэф],B27,Таблица1[р/р],D27,Таблица1[Ф. И. О.],C27) -> 3.2 | BF27: =SUMIFS(Таблица14[27],Таблица14[партия],$AO$1,Таблица14[изд],$W$1,Таблица14[коэф],B27,Таблица14[р/р],D27,Таблица14[Ф. И. О.],C27) -> 4 | BG27: =SUMIFS(Таблица1[28],Таблица1[партия],$AO$1,Таблица1[изд],$W$1,Таблица1[коэф],B27,Таблица1[р/р],D27,Таблица1[Ф. И. О.],C27) -> 7.2 | BH27: =SUMIFS(Таблица14[28],Таблица14[партия],$AO$1,Таблица14[изд],$W$1,Таблица14[коэф],B27,Таблица14[р/р],D27,Таблица14[Ф. И. О.],C27) -> 0 | BI27: =SUMIFS(Таблица1[29],Таблица1[партия],$AO$1,Таблица1[изд],$W$1,Таблица1[коэф],B27,Таблица1[р/р],D27,Таблица1[Ф. И. О.],C27) -> 3.2 | BJ27: =SUMIFS(Таблица14[29],Таблица14[партия],$AO$1,Таблица14[изд],$W$1,Таблица14[коэф],B27,Таблица14[р/р],D27,Таблица14[Ф. И. О.],C27) -> 0 | BK27: =SUMIFS(Таблица1[30],Таблица1[партия],$AO$1,Таблица1[изд],$W$1,Таблица1[коэф],B27,Таблица1[р/р],D27,Таблица1[Ф. И. О.],C27) -> 7.2 | BL27: =SUMIFS(Таблица14[30],Таблица14[партия],$AO$1,Таблица14[изд],$W$1,Таблица14[коэф],B27,Таблица14[р/р],D27,Таблица14[Ф. И. О.],C27) -> 0 | BM27: =SUMIFS(Таблица1[31],Таблица1[партия],$AO$1,Таблица1[изд],$W$1,Таблица1[коэф],B27,Таблица1[р/р],D27,Таблица1[Ф. И. О.],C27) -> 7 | BN27: =SUMIFS(Таблица14[31],Таблица14[партия],$AO$1,Таблица14[изд],$W$1,Таблица14[коэф],B27,Таблица14[р/р],D27,Таблица14[Ф. И. О.],C27) -> 0 | BO27: 82.2 | BP27: 66.5 | BQ27: 15.7
A28: 22 | B28: 1 | C28: Носова Мария Андреевна | D28: 3/1 | E28: =SUMIFS(Таблица14[1],Таблица14[партия],$AO$1,Таблица14[изд],$W$1,Таблица14[коэф],B28,Таблица14[р/р],D28,Таблица14[Ф. И. О.],C28) -> 0 | F28: =SUMIFS(Таблица14[1],Таблица14[партия],$AO$1,Таблица14[изд],$W$1,Таблица14[коэф],B28,Таблица14[р/р],D28,Таблица14[Ф. И. О.],C28) -> 0 | G28: =SUMIFS(Таблица1[1],Таблица1[партия],$AO$1,Таблица1[изд],$W$1,Таблица1[коэф],B28,Таблица1[р/р],D28,Таблица1[Ф. И. О.],C28) -> 0 | H28: =SUMIFS(Таблица14[2],Таблица14[партия],$AO$1,Таблица14[изд],$W$1,Таблица14[коэф],B28,Таблица14[р/р],D28,Таблица14[Ф. И. О.],C28) -> 0 | I28: =SUMIFS(Таблица1[3],Таблица1[партия],$AO$1,Таблица1[изд],$W$1,Таблица1[коэф],B28,Таблица1[р/р],D28,Таблица1[Ф. И. О.],C28) -> 0 | J28: =SUMIFS(Таблица14[3],Таблица14[партия],$AO$1,Таблица14[изд],$W$1,Таблица14[коэф],B28,Таблица14[р/р],D28,Таблица14[Ф. И. О.],C28) -> 0 | K28: =SUMIFS(Таблица1[4],Таблица1[партия],$AO$1,Таблица1[изд],$W$1,Таблица1[коэф],B28,Таблица1[р/р],D28,Таблица1[Ф. И. О.],C28) -> 0 | L28: =SUMIFS(Таблица14[4],Таблица14[партия],$AO$1,Таблица14[изд],$W$1,Таблица14[коэф],B28,Таблица14[р/р],D28,Таблица14[Ф. И. О.],C28) -> 0 | M28: =SUMIFS(Таблица1[5],Таблица1[партия],$AO$1,Таблица1[изд],$W$1,Таблица1[коэф],B28,Таблица1[р/р],D28,Таблица1[Ф. И. О.],C28) -> 0 | N28: =SUMIFS(Таблица14[5],Таблица14[партия],$AO$1,Таблица14[изд],$W$1,Таблица14[коэф],B28,Таблица14[р/р],D28,Таблица14[Ф. И. О.],C28) -> 0 | O28: =SUMIFS(Таблица1[6],Таблица1[партия],$AO$1,Таблица1[изд],$W$1,Таблица1[коэф],B28,Таблица1[р/р],D28,Таблица1[Ф. И. О.],C28) -> 0 | P28: =SUMIFS(Таблица14[6],Таблица14[партия],$AO$1,Таблица14[изд],$W$1,Таблица14[коэф],B28,Таблица14[р/р],D28,Таблица14[Ф. И. О.],C28) -> 0 | Q28: =SUMIFS(Таблица1[7],Таблица1[партия],$AO$1,Таблица1[изд],$W$1,Таблица1[коэф],B28,Таблица1[р/р],D28,Таблица1[Ф. И. О.],C28) -> 0 | R28: =SUMIFS(Таблица14[7],Таблица14[партия],$AO$1,Таблица14[изд],$W$1,Таблица14[коэф],B28,Таблица14[р/р],D28,Таблица14[Ф. И. О.],C28) -> 0 | S28: =SUMIFS(Таблица1[8],Таблица1[партия],$AO$1,Таблица1[изд],$W$1,Таблица1[коэф],B28,Таблица1[р/р],D28,Таблица1[Ф. И. О.],C28) -> 0 | T28: =SUMIFS(Таблица14[8],Таблица14[партия],$AO$1,Таблица14[изд],$W$1,Таблица14[коэф],B28,Таблица14[р/р],D28,Таблица14[Ф. И. О.],C28) -> 0 | U28: =SUMIFS(Таблица1[9],Таблица1[партия],$AO$1,Таблица1[изд],$W$1,Таблица1[коэф],B28,Таблица1[р/р],D28,Таблица1[Ф. И. О.],C28) -> 0 | V28: =SUMIFS(Таблица14[9],Таблица14[партия],$AO$1,Таблица14[изд],$W$1,Таблица14[коэф],B28,Таблица14[р/р],D28,Таблица14[Ф. И. О.],C28) -> 0 | W28: =SUMIFS(Таблица1[10],Таблица1[партия],$AO$1,Таблица1[изд],$W$1,Таблица1[коэф],B28,Таблица1[р/р],D28,Таблица1[Ф. И. О.],C28) -> 0 | X28: =SUMIFS(Таблица14[10],Таблица14[партия],$AO$1,Таблица14[изд],$W$1,Таблица14[коэф],B28,Таблица14[р/р],D28,Таблица14[Ф. И. О.],C28) -> 0 | Y28: =SUMIFS(Таблица1[11],Таблица1[партия],$AO$1,Таблица1[изд],$W$1,Таблица1[коэф],B28,Таблица1[р/р],D28,Таблица1[Ф. И. О.],C28) -> 0 | Z28: =SUMIFS(Таблица14[11],Таблица14[партия],$AO$1,Таблица14[изд],$W$1,Таблица14[коэф],B28,Таблица14[р/р],D28,Таблица14[Ф. И. О.],C28) -> 0 | AA28: =SUMIFS(Таблица1[12],Таблица1[партия],$AO$1,Таблица1[изд],$W$1,Таблица1[коэф],B28,Таблица1[р/р],D28,Таблица1[Ф. И. О.],C28) -> 0 | AB28: =SUMIFS(Таблица14[12],Таблица14[партия],$AO$1,Таблица14[изд],$W$1,Таблица14[коэф],B28,Таблица14[р/р],D28,Таблица14[Ф. И. О.],C28) -> 0 | AC28: =SUMIFS(Таблица1[13],Таблица1[партия],$AO$1,Таблица1[изд],$W$1,Таблица1[коэф],B28,Таблица1[р/р],D28,Таблица1[Ф. И. О.],C28) -> 0 | AD28: =SUMIFS(Таблица14[13],Таблица14[партия],$AO$1,Таблица14[изд],$W$1,Таблица14[коэф],B28,Таблица14[р/р],D28,Таблица14[Ф. И. О.],C28) -> 0 | AE28: =SUMIFS(Таблица1[14],Таблица1[партия],$AO$1,Таблица1[изд],$W$1,Таблица1[коэф],B28,Таблица1[р/р],D28,Таблица1[Ф. И. О.],C28) -> 0 | AF28: =SUMIFS(Таблица14[14],Таблица14[партия],$AO$1,Таблица14[изд],$W$1,Таблица14[коэф],B28,Таблица14[р/р],D28,Таблица14[Ф. И. О.],C28) -> 0 | AG28: =SUMIFS(Таблица1[15],Таблица1[партия],$AO$1,Таблица1[изд],$W$1,Таблица1[коэф],B28,Таблица1[р/р],D28,Таблица1[Ф. И. О.],C28) -> 0 | AH28: =SUMIFS(Таблица14[15],Таблица14[партия],$AO$1,Таблица14[изд],$W$1,Таблица14[коэф],B28,Таблица14[р/р],D28,Таблица14[Ф. И. О.],C28) -> 0 | AI28: =SUMIFS(Таблица1[16],Таблица1[партия],$AO$1,Таблица1[изд],$W$1,Таблица1[коэф],B28,Таблица1[р/р],D28,Таблица1[Ф. И. О.],C28) -> 0 | AJ28: =SUMIFS(Таблица14[16],Таблица14[партия],$AO$1,Таблица14[изд],$W$1,Таблица14[коэф],B28,Таблица14[р/р],D28,Таблица14[Ф. И. О.],C28) -> 0 | AK28: =SUMIFS(Таблица1[17],Таблица1[партия],$AO$1,Таблица1[изд],$W$1,Таблица1[коэф],B28,Таблица1[р/р],D28,Таблица1[Ф. И. О.],C28) -> 0 | AL28: =SUMIFS(Таблица14[17],Таблица14[партия],$AO$1,Таблица14[изд],$W$1,Таблица14[коэф],B28,Таблица14[р/р],D28,Таблица14[Ф. И. О.],C28) -> 0 | AM28: =SUMIFS(Таблица1[18],Таблица1[партия],$AO$1,Таблица1[изд],$W$1,Таблица1[коэф],B28,Таблица1[р/р],D28,Таблица1[Ф. И. О.],C28) -> 0 | AN28: =SUMIFS(Таблица14[18],Таблица14[партия],$AO$1,Таблица14[изд],$W$1,Таблица14[коэф],B28,Таблица14[р/р],D28,Таблица14[Ф. И. О.],C28) -> 0 | AO28: =SUMIFS(Таблица1[19],Таблица1[партия],$AO$1,Таблица1[изд],$W$1,Таблица1[коэф],B28,Таблица1[р/р],D28,Таблица1[Ф. И. О.],C28) -> 0 | AP28: =SUMIFS(Таблица14[19],Таблица14[партия],$AO$1,Таблица14[изд],$W$1,Таблица14[коэф],B28,Таблица14[р/р],D28,Таблица14[Ф. И. О.],C28) -> 0 | AQ28: =SUMIFS(Таблица1[20],Таблица1[партия],$AO$1,Таблица1[изд],$W$1,Таблица1[коэф],B28,Таблица1[р/р],D28,Таблица1[Ф. И. О.],C28) -> 0 | AR28: =SUMIFS(Таблица14[20],Таблица14[партия],$AO$1,Таблица14[изд],$W$1,Таблица14[коэф],B28,Таблица14[р/р],D28,Таблица14[Ф. И. О.],C28) -> 0 | AS28: =SUMIFS(Таблица1[21],Таблица1[партия],$AO$1,Таблица1[изд],$W$1,Таблица1[коэф],B28,Таблица1[р/р],D28,Таблица1[Ф. И. О.],C28) -> 0 | AT28: =SUMIFS(Таблица14[21],Таблица14[партия],$AO$1,Таблица14[изд],$W$1,Таблица14[коэф],B28,Таблица14[р/р],D28,Таблица14[Ф. И. О.],C28) -> 0 | AU28: =SUMIFS(Таблица1[22],Таблица1[партия],$AO$1,Таблица1[изд],$W$1,Таблица1[коэф],B28,Таблица1[р/р],D28,Таблица1[Ф. И. О.],C28) -> 0 | AV28: =SUMIFS(Таблица14[22],Таблица14[партия],$AO$1,Таблица14[изд],$W$1,Таблица14[коэф],B28,Таблица14[р/р],D28,Таблица14[Ф. И. О.],C28) -> 0 | AW28: =SUMIFS(Таблица1[23],Таблица1[партия],$AO$1,Таблица1[изд],$W$1,Таблица1[коэф],B28,Таблица1[р/р],D28,Таблица1[Ф. И. О.],C28) -> 0 | AX28: =SUMIFS(Таблица14[23],Таблица14[партия],$AO$1,Таблица14[изд],$W$1,Таблица14[коэф],B28,Таблица14[р/р],D28,Таблица14[Ф. И. О.],C28) -> 0 | AY28: =SUMIFS(Таблица1[24],Таблица1[партия],$AO$1,Таблица1[изд],$W$1,Таблица1[коэф],B28,Таблица1[р/р],D28,Таблица1[Ф. И. О.],C28) -> 0 | AZ28: =SUMIFS(Таблица14[24],Таблица14[партия],$AO$1,Таблица14[изд],$W$1,Таблица14[коэф],B28,Таблица14[р/р],D28,Таблица14[Ф. И. О.],C28) -> 0 | BA28: =SUMIFS(Таблица1[25],Таблица1[партия],$AO$1,Таблица1[изд],$W$1,Таблица1[коэф],B28,Таблица1[р/р],D28,Таблица1[Ф. И. О.],C28) -> 0 | BB28: =SUMIFS(Таблица14[25],Таблица14[партия],$AO$1,Таблица14[изд],$W$1,Таблица14[коэф],B28,Таблица14[р/р],D28,Таблица14[Ф. И. О.],C28) -> 0 | BC28: =SUMIFS(Таблица1[26],Таблица1[партия],$AO$1,Таблица1[изд],$W$1,Таблица1[коэф],B28,Таблица1[р/р],D28,Таблица1[Ф. И. О.],C28) -> 0 | BD28: =SUMIFS(Таблица14[26],Таблица14[партия],$AO$1,Таблица14[изд],$W$1,Таблица14[коэф],B28,Таблица14[р/р],D28,Таблица14[Ф. И. О.],C28) -> 0 | BE28: =SUMIFS(Таблица1[27],Таблица1[партия],$AO$1,Таблица1[изд],$W$1,Таблица1[коэф],B28,Таблица1[р/р],D28,Таблица1[Ф. И. О.],C28) -> 0 | BF28: =SUMIFS(Таблица14[27],Таблица14[партия],$AO$1,Таблица14[изд],$W$1,Таблица14[коэф],B28,Таблица14[р/р],D28,Таблица14[Ф. И. О.],C28) -> 0 | BG28: =SUMIFS(Таблица1[28],Таблица1[партия],$AO$1,Таблица1[изд],$W$1,Таблица1[коэф],B28,Таблица1[р/р],D28,Таблица1[Ф. И. О.],C28) -> 0 | BH28: =SUMIFS(Таблица14[28],Таблица14[партия],$AO$1,Таблица14[изд],$W$1,Таблица14[коэф],B28,Таблица14[р/р],D28,Таблица14[Ф. И. О.],C28) -> 0 | BI28: =SUMIFS(Таблица1[29],Таблица1[партия],$AO$1,Таблица1[изд],$W$1,Таблица1[коэф],B28,Таблица1[р/р],D28,Таблица1[Ф. И. О.],C28) -> 4 | BJ28: =SUMIFS(Таблица14[29],Таблица14[партия],$AO$1,Таблица14[изд],$W$1,Таблица14[коэф],B28,Таблица14[р/р],D28,Таблица14[Ф. И. О.],C28) -> 0 | BK28: =SUMIFS(Таблица1[30],Таблица1[партия],$AO$1,Таблица1[изд],$W$1,Таблица1[коэф],B28,Таблица1[р/р],D28,Таблица1[Ф. И. О.],C28) -> 0 | BL28: =SUMIFS(Таблица14[30],Таблица14[партия],$AO$1,Таблица14[изд],$W$1,Таблица14[коэф],B28,Таблица14[р/р],D28,Таблица14[Ф. И. О.],C28) -> 0 | BM28: =SUMIFS(Таблица1[31],Таблица1[партия],$AO$1,Таблица1[изд],$W$1,Таблица1[коэф],B28,Таблица1[р/р],D28,Таблица1[Ф. И. О.],C28) -> 0 | BN28: =SUMIFS(Таблица14[31],Таблица14[партия],$AO$1,Таблица14[изд],$W$1,Таблица14[коэф],B28,Таблица14[р/р],D28,Таблица14[Ф. И. О.],C28) -> 0 | BO28: 4 | BP28: 4 | BQ28: 0
A29: 23 | B29: 1 | C29: Носова Мария Андреевна | D29: 3/2 | E29: =SUMIFS(Таблица14[1],Таблица14[партия],$AO$1,Таблица14[изд],$W$1,Таблица14[коэф],B29,Таблица14[р/р],D29,Таблица14[Ф. И. О.],C29) -> 0 | F29: =SUMIFS(Таблица14[1],Таблица14[партия],$AO$1,Таблица14[изд],$W$1,Таблица14[коэф],B29,Таблица14[р/р],D29,Таблица14[Ф. И. О.],C29) -> 0 | G29: =SUMIFS(Таблица1[1],Таблица1[партия],$AO$1,Таблица1[изд],$W$1,Таблица1[коэф],B29,Таблица1[р/р],D29,Таблица1[Ф. И. О.],C29) -> 0 | H29: =SUMIFS(Таблица14[2],Таблица14[партия],$AO$1,Таблица14[изд],$W$1,Таблица14[коэф],B29,Таблица14[р/р],D29,Таблица14[Ф. И. О.],C29) -> 0 | I29: =SUMIFS(Таблица1[3],Таблица1[партия],$AO$1,Таблица1[изд],$W$1,Таблица1[коэф],B29,Таблица1[р/р],D29,Таблица1[Ф. И. О.],C29) -> 0 | J29: =SUMIFS(Таблица14[3],Таблица14[партия],$AO$1,Таблица14[изд],$W$1,Таблица14[коэф],B29,Таблица14[р/р],D29,Таблица14[Ф. И. О.],C29) -> 0 | K29: =SUMIFS(Таблица1[4],Таблица1[партия],$AO$1,Таблица1[изд],$W$1,Таблица1[коэф],B29,Таблица1[р/р],D29,Таблица1[Ф. И. О.],C29) -> 0 | L29: =SUMIFS(Таблица14[4],Таблица14[партия],$AO$1,Таблица14[изд],$W$1,Таблица14[коэф],B29,Таблица14[р/р],D29,Таблица14[Ф. И. О.],C29) -> 0 | M29: =SUMIFS(Таблица1[5],Таблица1[партия],$AO$1,Таблица1[изд],$W$1,Таблица1[коэф],B29,Таблица1[р/р],D29,Таблица1[Ф. И. О.],C29) -> 0 | N29: =SUMIFS(Таблица14[5],Таблица14[партия],$AO$1,Таблица14[изд],$W$1,Таблица14[коэф],B29,Таблица14[р/р],D29,Таблица14[Ф. И. О.],C29) -> 0 | O29: =SUMIFS(Таблица1[6],Таблица1[партия],$AO$1,Таблица1[изд],$W$1,Таблица1[коэф],B29,Таблица1[р/р],D29,Таблица1[Ф. И. О.],C29) -> 0 | P29: =SUMIFS(Таблица14[6],Таблица14[партия],$AO$1,Таблица14[изд],$W$1,Таблица14[коэф],B29,Таблица14[р/р],D29,Таблица14[Ф. И. О.],C29) -> 0 | Q29: =SUMIFS(Таблица1[7],Таблица1[партия],$AO$1,Таблица1[изд],$W$1,Таблица1[коэф],B29,Таблица1[р/р],D29,Таблица1[Ф. И. О.],C29) -> 0 | R29: =SUMIFS(Таблица14[7],Таблица14[партия],$AO$1,Таблица14[изд],$W$1,Таблица14[коэф],B29,Таблица14[р/р],D29,Таблица14[Ф. И. О.],C29) -> 0 | S29: =SUMIFS(Таблица1[8],Таблица1[партия],$AO$1,Таблица1[изд],$W$1,Таблица1[коэф],B29,Таблица1[р/р],D29,Таблица1[Ф. И. О.],C29) -> 0 | T29: =SUMIFS(Таблица14[8],Таблица14[партия],$AO$1,Таблица14[изд],$W$1,Таблица14[коэф],B29,Таблица14[р/р],D29,Таблица14[Ф. И. О.],C29) -> 0 | U29: =SUMIFS(Таблица1[9],Таблица1[партия],$AO$1,Таблица1[изд],$W$1,Таблица1[коэф],B29,Таблица1[р/р],D29,Таблица1[Ф. И. О.],C29) -> 0 | V29: =SUMIFS(Таблица14[9],Таблица14[партия],$AO$1,Таблица14[изд],$W$1,Таблица14[коэф],B29,Таблица14[р/р],D29,Таблица14[Ф. И. О.],C29) -> 0 | W29: =SUMIFS(Таблица1[10],Таблица1[партия],$AO$1,Таблица1[изд],$W$1,Таблица1[коэф],B29,Таблица1[р/р],D29,Таблица1[Ф. И. О.],C29) -> 0 | X29: =SUMIFS(Таблица14[10],Таблица14[партия],$AO$1,Таблица14[изд],$W$1,Таблица14[коэф],B29,Таблица14[р/р],D29,Таблица14[Ф. И. О.],C29) -> 0 | Y29: =SUMIFS(Таблица1[11],Таблица1[партия],$AO$1,Таблица1[изд],$W$1,Таблица1[коэф],B29,Таблица1[р/р],D29,Таблица1[Ф. И. О.],C29) -> 0 | Z29: =SUMIFS(Таблица14[11],Таблица14[партия],$AO$1,Таблица14[изд],$W$1,Таблица14[коэф],B29,Таблица14[р/р],D29,Таблица14[Ф. И. О.],C29) -> 0 | AA29: =SUMIFS(Таблица1[12],Таблица1[партия],$AO$1,Таблица1[изд],$W$1,Таблица1[коэф],B29,Таблица1[р/р],D29,Таблица1[Ф. И. О.],C29) -> 0 | AB29: =SUMIFS(Таблица14[12],Таблица14[партия],$AO$1,Таблица14[изд],$W$1,Таблица14[коэф],B29,Таблица14[р/р],D29,Таблица14[Ф. И. О.],C29) -> 0 | AC29: =SUMIFS(Таблица1[13],Таблица1[партия],$AO$1,Таблица1[изд],$W$1,Таблица1[коэф],B29,Таблица1[р/р],D29,Таблица1[Ф. И. О.],C29) -> 0 | AD29: =SUMIFS(Таблица14[13],Таблица14[партия],$AO$1,Таблица14[изд],$W$1,Таблица14[коэф],B29,Таблица14[р/р],D29,Таблица14[Ф. И. О.],C29) -> 0 | AE29: =SUMIFS(Таблица1[14],Таблица1[партия],$AO$1,Таблица1[изд],$W$1,Таблица1[коэф],B29,Таблица1[р/р],D29,Таблица1[Ф. И. О.],C29) -> 0 | AF29: =SUMIFS(Таблица14[14],Таблица14[партия],$AO$1,Таблица14[изд],$W$1,Таблица14[коэф],B29,Таблица14[р/р],D29,Таблица14[Ф. И. О.],C29) -> 0 | AG29: =SUMIFS(Таблица1[15],Таблица1[партия],$AO$1,Таблица1[изд],$W$1,Таблица1[коэф],B29,Таблица1[р/р],D29,Таблица1[Ф. И. О.],C29) -> 0 | AH29: =SUMIFS(Таблица14[15],Таблица14[партия],$AO$1,Таблица14[изд],$W$1,Таблица14[коэф],B29,Таблица14[р/р],D29,Таблица14[Ф. И. О.],C29) -> 0 | AI29: =SUMIFS(Таблица1[16],Таблица1[партия],$AO$1,Таблица1[изд],$W$1,Таблица1[коэф],B29,Таблица1[р/р],D29,Таблица1[Ф. И. О.],C29) -> 0 | AJ29: =SUMIFS(Таблица14[16],Таблица14[партия],$AO$1,Таблица14[изд],$W$1,Таблица14[коэф],B29,Таблица14[р/р],D29,Таблица14[Ф. И. О.],C29) -> 0 | AK29: =SUMIFS(Таблица1[17],Таблица1[партия],$AO$1,Таблица1[изд],$W$1,Таблица1[коэф],B29,Таблица1[р/р],D29,Таблица1[Ф. И. О.],C29) -> 0 | AL29: =SUMIFS(Таблица14[17],Таблица14[партия],$AO$1,Таблица14[изд],$W$1,Таблица14[коэф],B29,Таблица14[р/р],D29,Таблица14[Ф. И. О.],C29) -> 0 | AM29: =SUMIFS(Таблица1[18],Таблица1[партия],$AO$1,Таблица1[изд],$W$1,Таблица1[коэф],B29,Таблица1[р/р],D29,Таблица1[Ф. И. О.],C29) -> 0 | AN29: =SUMIFS(Таблица14[18],Таблица14[партия],$AO$1,Таблица14[изд],$W$1,Таблица14[коэф],B29,Таблица14[р/р],D29,Таблица14[Ф. И. О.],C29) -> 0 | AO29: =SUMIFS(Таблица1[19],Таблица1[партия],$AO$1,Таблица1[изд],$W$1,Таблица1[коэф],B29,Таблица1[р/р],D29,Таблица1[Ф. И. О.],C29) -> 0 | AP29: =SUMIFS(Таблица14[19],Таблица14[партия],$AO$1,Таблица14[изд],$W$1,Таблица14[коэф],B29,Таблица14[р/р],D29,Таблица14[Ф. И. О.],C29) -> 0 | AQ29: =SUMIFS(Таблица1[20],Таблица1[партия],$AO$1,Таблица1[изд],$W$1,Таблица1[коэф],B29,Таблица1[р/р],D29,Таблица1[Ф. И. О.],C29) -> 0 | AR29: =SUMIFS(Таблица14[20],Таблица14[партия],$AO$1,Таблица14[изд],$W$1,Таблица14[коэф],B29,Таблица14[р/р],D29,Таблица14[Ф. И. О.],C29) -> 0 | AS29: =SUMIFS(Таблица1[21],Таблица1[партия],$AO$1,Таблица1[изд],$W$1,Таблица1[коэф],B29,Таблица1[р/р],D29,Таблица1[Ф. И. О.],C29) -> 0 | AT29: =SUMIFS(Таблица14[21],Таблица14[партия],$AO$1,Таблица14[изд],$W$1,Таблица14[коэф],B29,Таблица14[р/р],D29,Таблица14[Ф. И. О.],C29) -> 0 | AU29: =SUMIFS(Таблица1[22],Таблица1[партия],$AO$1,Таблица1[изд],$W$1,Таблица1[коэф],B29,Таблица1[р/р],D29,Таблица1[Ф. И. О.],C29) -> 0 | AV29: =SUMIFS(Таблица14[22],Таблица14[партия],$AO$1,Таблица14[изд],$W$1,Таблица14[коэф],B29,Таблица14[р/р],D29,Таблица14[Ф. И. О.],C29) -> 0 | AW29: =SUMIFS(Таблица1[23],Таблица1[партия],$AO$1,Таблица1[изд],$W$1,Таблица1[коэф],B29,Таблица1[р/р],D29,Таблица1[Ф. И. О.],C29) -> 0 | AX29: =SUMIFS(Таблица14[23],Таблица14[партия],$AO$1,Таблица14[изд],$W$1,Таблица14[коэф],B29,Таблица14[р/р],D29,Таблица14[Ф. И. О.],C29) -> 0 | AY29: =SUMIFS(Таблица1[24],Таблица1[партия],$AO$1,Таблица1[изд],$W$1,Таблица1[коэф],B29,Таблица1[р/р],D29,Таблица1[Ф. И. О.],C29) -> 0 | AZ29: =SUMIFS(Таблица14[24],Таблица14[партия],$AO$1,Таблица14[изд],$W$1,Таблица14[коэф],B29,Таблица14[р/р],D29,Таблица14[Ф. И. О.],C29) -> 0 | BA29: =SUMIFS(Таблица1[25],Таблица1[партия],$AO$1,Таблица1[изд],$W$1,Таблица1[коэф],B29,Таблица1[р/р],D29,Таблица1[Ф. И. О.],C29) -> 0 | BB29: =SUMIFS(Таблица14[25],Таблица14[партия],$AO$1,Таблица14[изд],$W$1,Таблица14[коэф],B29,Таблица14[р/р],D29,Таблица14[Ф. И. О.],C29) -> 0 | BC29: =SUMIFS(Таблица1[26],Таблица1[партия],$AO$1,Таблица1[изд],$W$1,Таблица1[коэф],B29,Таблица1[р/р],D29,Таблица1[Ф. И. О.],C29) -> 0 | BD29: =SUMIFS(Таблица14[26],Таблица14[партия],$AO$1,Таблица14[изд],$W$1,Таблица14[коэф],B29,Таблица14[р/р],D29,Таблица14[Ф. И. О.],C29) -> 0 | BE29: =SUMIFS(Таблица1[27],Таблица1[партия],$AO$1,Таблица1[изд],$W$1,Таблица1[коэф],B29,Таблица1[р/р],D29,Таблица1[Ф. И. О.],C29) -> 0 | BF29: =SUMIFS(Таблица14[27],Таблица14[партия],$AO$1,Таблица14[изд],$W$1,Таблица14[коэф],B29,Таблица14[р/р],D29,Таблица14[Ф. И. О.],C29) -> 0 | BG29: =SUMIFS(Таблица1[28],Таблица1[партия],$AO$1,Таблица1[изд],$W$1,Таблица1[коэф],B29,Таблица1[р/р],D29,Таблица1[Ф. И. О.],C29) -> 0 | BH29: =SUMIFS(Таблица14[28],Таблица14[партия],$AO$1,Таблица14[изд],$W$1,Таблица14[коэф],B29,Таблица14[р/р],D29,Таблица14[Ф. И. О.],C29) -> 4 | BI29: =SUMIFS(Таблица1[29],Таблица1[партия],$AO$1,Таблица1[изд],$W$1,Таблица1[коэф],B29,Таблица1[р/р],D29,Таблица1[Ф. И. О.],C29) -> 0 | BJ29: =SUMIFS(Таблица14[29],Таблица14[партия],$AO$1,Таблица14[изд],$W$1,Таблица14[коэф],B29,Таблица14[р/р],D29,Таблица14[Ф. И. О.],C29) -> 0 | BK29: =SUMIFS(Таблица1[30],Таблица1[партия],$AO$1,Таблица1[изд],$W$1,Таблица1[коэф],B29,Таблица1[р/р],D29,Таблица1[Ф. И. О.],C29) -> 0 | BL29: =SUMIFS(Таблица14[30],Таблица14[партия],$AO$1,Таблица14[изд],$W$1,Таблица14[коэф],B29,Таблица14[р/р],D29,Таблица14[Ф. И. О.],C29) -> 4 | BM29: =SUMIFS(Таблица1[31],Таблица1[партия],$AO$1,Таблица1[изд],$W$1,Таблица1[коэф],B29,Таблица1[р/р],D29,Таблица1[Ф. И. О.],C29) -> 0 | BN29: =SUMIFS(Таблица14[31],Таблица14[партия],$AO$1,Таблица14[изд],$W$1,Таблица14[коэф],B29,Таблица14[р/р],D29,Таблица14[Ф. И. О.],C29) -> 0 | BO29: 8 | BP29: 0 | BQ29: 8
A30: 24 | B30: 1 | C30: Попова Виктория | D30: 2а | E30: =SUMIFS(Таблица14[1],Таблица14[партия],$AO$1,Таблица14[изд],$W$1,Таблица14[коэф],B30,Таблица14[р/р],D30,Таблица14[Ф. И. О.],C30) -> 0 | F30: =SUMIFS(Таблица14[1],Таблица14[партия],$AO$1,Таблица14[изд],$W$1,Таблица14[коэф],B30,Таблица14[р/р],D30,Таблица14[Ф. И. О.],C30) -> 0 | G30: =SUMIFS(Таблица1[1],Таблица1[партия],$AO$1,Таблица1[изд],$W$1,Таблица1[коэф],B30,Таблица1[р/р],D30,Таблица1[Ф. И. О.],C30) -> 0 | H30: =SUMIFS(Таблица14[2],Таблица14[партия],$AO$1,Таблица14[изд],$W$1,Таблица14[коэф],B30,Таблица14[р/р],D30,Таблица14[Ф. И. О.],C30) -> 0 | I30: =SUMIFS(Таблица1[3],Таблица1[партия],$AO$1,Таблица1[изд],$W$1,Таблица1[коэф],B30,Таблица1[р/р],D30,Таблица1[Ф. И. О.],C30) -> 0 | J30: =SUMIFS(Таблица14[3],Таблица14[партия],$AO$1,Таблица14[изд],$W$1,Таблица14[коэф],B30,Таблица14[р/р],D30,Таблица14[Ф. И. О.],C30) -> 0 | K30: =SUMIFS(Таблица1[4],Таблица1[партия],$AO$1,Таблица1[изд],$W$1,Таблица1[коэф],B30,Таблица1[р/р],D30,Таблица1[Ф. И. О.],C30) -> 0 | L30: =SUMIFS(Таблица14[4],Таблица14[партия],$AO$1,Таблица14[изд],$W$1,Таблица14[коэф],B30,Таблица14[р/р],D30,Таблица14[Ф. И. О.],C30) -> 0 | M30: =SUMIFS(Таблица1[5],Таблица1[партия],$AO$1,Таблица1[изд],$W$1,Таблица1[коэф],B30,Таблица1[р/р],D30,Таблица1[Ф. И. О.],C30) -> 0 | N30: =SUMIFS(Таблица14[5],Таблица14[партия],$AO$1,Таблица14[изд],$W$1,Таблица14[коэф],B30,Таблица14[р/р],D30,Таблица14[Ф. И. О.],C30) -> 0 | O30: =SUMIFS(Таблица1[6],Таблица1[партия],$AO$1,Таблица1[изд],$W$1,Таблица1[коэф],B30,Таблица1[р/р],D30,Таблица1[Ф. И. О.],C30) -> 0 | P30: =SUMIFS(Таблица14[6],Таблица14[партия],$AO$1,Таблица14[изд],$W$1,Таблица14[коэф],B30,Таблица14[р/р],D30,Таблица14[Ф. И. О.],C30) -> 0 | Q30: =SUMIFS(Таблица1[7],Таблица1[партия],$AO$1,Таблица1[изд],$W$1,Таблица1[коэф],B30,Таблица1[р/р],D30,Таблица1[Ф. И. О.],C30) -> 0 | R30: =SUMIFS(Таблица14[7],Таблица14[партия],$AO$1,Таблица14[изд],$W$1,Таблица14[коэф],B30,Таблица14[р/р],D30,Таблица14[Ф. И. О.],C30) -> 0 | S30: =SUMIFS(Таблица1[8],Таблица1[партия],$AO$1,Таблица1[изд],$W$1,Таблица1[коэф],B30,Таблица1[р/р],D30,Таблица1[Ф. И. О.],C30) -> 0 | T30: =SUMIFS(Таблица14[8],Таблица14[партия],$AO$1,Таблица14[изд],$W$1,Таблица14[коэф],B30,Таблица14[р/р],D30,Таблица14[Ф. И. О.],C30) -> 0 | U30: =SUMIFS(Таблица1[9],Таблица1[партия],$AO$1,Таблица1[изд],$W$1,Таблица1[коэф],B30,Таблица1[р/р],D30,Таблица1[Ф. И. О.],C30) -> 3 | V30: =SUMIFS(Таблица14[9],Таблица14[партия],$AO$1,Таблица14[изд],$W$1,Таблица14[коэф],B30,Таблица14[р/р],D30,Таблица14[Ф. И. О.],C30) -> 0 | W30: =SUMIFS(Таблица1[10],Таблица1[партия],$AO$1,Таблица1[изд],$W$1,Таблица1[коэф],B30,Таблица1[р/р],D30,Таблица1[Ф. И. О.],C30) -> 7 | X30: =SUMIFS(Таблица14[10],Таблица14[партия],$AO$1,Таблица14[изд],$W$1,Таблица14[коэф],B30,Таблица14[р/р],D30,Таблица14[Ф. И. О.],C30) -> 0 | Y30: =SUMIFS(Таблица1[11],Таблица1[партия],$AO$1,Таблица1[изд],$W$1,Таблица1[коэф],B30,Таблица1[р/р],D30,Таблица1[Ф. И. О.],C30) -> 0 | Z30: =SUMIFS(Таблица14[11],Таблица14[партия],$AO$1,Таблица14[изд],$W$1,Таблица14[коэф],B30,Таблица14[р/р],D30,Таблица14[Ф. И. О.],C30) -> 0 | AA30: =SUMIFS(Таблица1[12],Таблица1[партия],$AO$1,Таблица1[изд],$W$1,Таблица1[коэф],B30,Таблица1[р/р],D30,Таблица1[Ф. И. О.],C30) -> 7.2 | AB30: =SUMIFS(Таблица14[12],Таблица14[партия],$AO$1,Таблица14[изд],$W$1,Таблица14[коэф],B30,Таблица14[р/р],D30,Таблица14[Ф. И. О.],C30) -> 0 | AC30: =SUMIFS(Таблица1[13],Таблица1[партия],$AO$1,Таблица1[изд],$W$1,Таблица1[коэф],B30,Таблица1[р/р],D30,Таблица1[Ф. И. О.],C30) -> 0 | AD30: =SUMIFS(Таблица14[13],Таблица14[партия],$AO$1,Таблица14[изд],$W$1,Таблица14[коэф],B30,Таблица14[р/р],D30,Таблица14[Ф. И. О.],C30) -> 0 | AE30: =SUMIFS(Таблица1[14],Таблица1[партия],$AO$1,Таблица1[изд],$W$1,Таблица1[коэф],B30,Таблица1[р/р],D30,Таблица1[Ф. И. О.],C30) -> 0 | AF30: =SUMIFS(Таблица14[14],Таблица14[партия],$AO$1,Таблица14[изд],$W$1,Таблица14[коэф],B30,Таблица14[р/р],D30,Таблица14[Ф. И. О.],C30) -> 0 | AG30: =SUMIFS(Таблица1[15],Таблица1[партия],$AO$1,Таблица1[изд],$W$1,Таблица1[коэф],B30,Таблица1[р/р],D30,Таблица1[Ф. И. О.],C30) -> 0 | AH30: =SUMIFS(Таблица14[15],Таблица14[партия],$AO$1,Таблица14[изд],$W$1,Таблица14[коэф],B30,Таблица14[р/р],D30,Таблица14[Ф. И. О.],C30) -> 0 | AI30: =SUMIFS(Таблица1[16],Таблица1[партия],$AO$1,Таблица1[изд],$W$1,Таблица1[коэф],B30,Таблица1[р/р],D30,Таблица1[Ф. И. О.],C30) -> 0 | AJ30: =SUMIFS(Таблица14[16],Таблица14[партия],$AO$1,Таблица14[изд],$W$1,Таблица14[коэф],B30,Таблица14[р/р],D30,Таблица14[Ф. И. О.],C30) -> 0 | AK30: =SUMIFS(Таблица1[17],Таблица1[партия],$AO$1,Таблица1[изд],$W$1,Таблица1[коэф],B30,Таблица1[р/р],D30,Таблица1[Ф. И. О.],C30) -> 0 | AL30: =SUMIFS(Таблица14[17],Таблица14[партия],$AO$1,Таблица14[изд],$W$1,Таблица14[коэф],B30,Таблица14[р/р],D30,Таблица14[Ф. И. О.],C30) -> 0 | AM30: =SUMIFS(Таблица1[18],Таблица1[партия],$AO$1,Таблица1[изд],$W$1,Таблица1[коэф],B30,Таблица1[р/р],D30,Таблица1[Ф. И. О.],C30) -> 0 | AN30: =SUMIFS(Таблица14[18],Таблица14[партия],$AO$1,Таблица14[изд],$W$1,Таблица14[коэф],B30,Таблица14[р/р],D30,Таблица14[Ф. И. О.],C30) -> 0 | AO30: =SUMIFS(Таблица1[19],Таблица1[партия],$AO$1,Таблица1[изд],$W$1,Таблица1[коэф],B30,Таблица1[р/р],D30,Таблица1[Ф. И. О.],C30) -> 0 | AP30: =SUMIFS(Таблица14[19],Таблица14[партия],$AO$1,Таблица14[изд],$W$1,Таблица14[коэф],B30,Таблица14[р/р],D30,Таблица14[Ф. И. О.],C30) -> 0 | AQ30: =SUMIFS(Таблица1[20],Таблица1[партия],$AO$1,Таблица1[изд],$W$1,Таблица1[коэф],B30,Таблица1[р/р],D30,Таблица1[Ф. И. О.],C30) -> 0 | AR30: =SUMIFS(Таблица14[20],Таблица14[партия],$AO$1,Таблица14[изд],$W$1,Таблица14[коэф],B30,Таблица14[р/р],D30,Таблица14[Ф. И. О.],C30) -> 0 | AS30: =SUMIFS(Таблица1[21],Таблица1[партия],$AO$1,Таблица1[изд],$W$1,Таблица1[коэф],B30,Таблица1[р/р],D30,Таблица1[Ф. И. О.],C30) -> 0 | AT30: =SUMIFS(Таблица14[21],Таблица14[партия],$AO$1,Таблица14[изд],$W$1,Таблица14[коэф],B30,Таблица14[р/р],D30,Таблица14[Ф. И. О.],C30) -> 0 | AU30: =SUMIFS(Таблица1[22],Таблица1[партия],$AO$1,Таблица1[изд],$W$1,Таблица1[коэф],B30,Таблица1[р/р],D30,Таблица1[Ф. И. О.],C30) -> 0 | AV30: =SUMIFS(Таблица14[22],Таблица14[партия],$AO$1,Таблица14[изд],$W$1,Таблица14[коэф],B30,Таблица14[р/р],D30,Таблица14[Ф. И. О.],C30) -> 0 | AW30: =SUMIFS(Таблица1[23],Таблица1[партия],$AO$1,Таблица1[изд],$W$1,Таблица1[коэф],B30,Таблица1[р/р],D30,Таблица1[Ф. И. О.],C30) -> 0 | AX30: =SUMIFS(Таблица14[23],Таблица14[партия],$AO$1,Таблица14[изд],$W$1,Таблица14[коэф],B30,Таблица14[р/р],D30,Таблица14[Ф. И. О.],C30) -> 0 | AY30: =SUMIFS(Таблица1[24],Таблица1[партия],$AO$1,Таблица1[изд],$W$1,Таблица1[коэф],B30,Таблица1[р/р],D30,Таблица1[Ф. И. О.],C30) -> 0 | AZ30: =SUMIFS(Таблица14[24],Таблица14[партия],$AO$1,Таблица14[изд],$W$1,Таблица14[коэф],B30,Таблица14[р/р],D30,Таблица14[Ф. И. О.],C30) -> 0 | BA30: =SUMIFS(Таблица1[25],Таблица1[партия],$AO$1,Таблица1[изд],$W$1,Таблица1[коэф],B30,Таблица1[р/р],D30,Таблица1[Ф. И. О.],C30) -> 0 | BB30: =SUMIFS(Таблица14[25],Таблица14[партия],$AO$1,Таблица14[изд],$W$1,Таблица14[коэф],B30,Таблица14[р/р],D30,Таблица14[Ф. И. О.],C30) -> 0 | BC30: =SUMIFS(Таблица1[26],Таблица1[партия],$AO$1,Таблица1[изд],$W$1,Таблица1[коэф],B30,Таблица1[р/р],D30,Таблица1[Ф. И. О.],C30) -> 0 | BD30: =SUMIFS(Таблица14[26],Таблица14[партия],$AO$1,Таблица14[изд],$W$1,Таблица14[коэф],B30,Таблица14[р/р],D30,Таблица14[Ф. И. О.],C30) -> 0 | BE30: =SUMIFS(Таблица1[27],Таблица1[партия],$AO$1,Таблица1[изд],$W$1,Таблица1[коэф],B30,Таблица1[р/р],D30,Таблица1[Ф. И. О.],C30) -> 0 | BF30: =SUMIFS(Таблица14[27],Таблица14[партия],$AO$1,Таблица14[изд],$W$1,Таблица14[коэф],B30,Таблица14[р/р],D30,Таблица14[Ф. И. О.],C30) -> 0 | BG30: =SUMIFS(Таблица1[28],Таблица1[партия],$AO$1,Таблица1[изд],$W$1,Таблица1[коэф],B30,Таблица1[р/р],D30,Таблица1[Ф. И. О.],C30) -> 0 | BH30: =SUMIFS(Таблица14[28],Таблица14[партия],$AO$1,Таблица14[изд],$W$1,Таблица14[коэф],B30,Таблица14[р/р],D30,Таблица14[Ф. И. О.],C30) -> 0 | BI30: =SUMIFS(Таблица1[29],Таблица1[партия],$AO$1,Таблица1[изд],$W$1,Таблица1[коэф],B30,Таблица1[р/р],D30,Таблица1[Ф. И. О.],C30) -> 0 | BJ30: =SUMIFS(Таблица14[29],Таблица14[партия],$AO$1,Таблица14[изд],$W$1,Таблица14[коэф],B30,Таблица14[р/р],D30,Таблица14[Ф. И. О.],C30) -> 0 | BK30: =SUMIFS(Таблица1[30],Таблица1[партия],$AO$1,Таблица1[изд],$W$1,Таблица1[коэф],B30,Таблица1[р/р],D30,Таблица1[Ф. И. О.],C30) -> 0 | BL30: =SUMIFS(Таблица14[30],Таблица14[партия],$AO$1,Таблица14[изд],$W$1,Таблица14[коэф],B30,Таблица14[р/р],D30,Таблица14[Ф. И. О.],C30) -> 0 | BM30: =SUMIFS(Таблица1[31],Таблица1[партия],$AO$1,Таблица1[изд],$W$1,Таблица1[коэф],B30,Таблица1[р/р],D30,Таблица1[Ф. И. О.],C30) -> 0 | BN30: =SUMIFS(Таблица14[31],Таблица14[партия],$AO$1,Таблица14[изд],$W$1,Таблица14[коэф],B30,Таблица14[р/р],D30,Таблица14[Ф. И. О.],C30) -> 0 | BO30: 17.2 | BP30: 17.2 | BQ30: 0
A31: 25 | B31: 1 | C31: Попова Виктория | D31: 3/1 | E31: =SUMIFS(Таблица14[1],Таблица14[партия],$AO$1,Таблица14[изд],$W$1,Таблица14[коэф],B31,Таблица14[р/р],D31,Таблица14[Ф. И. О.],C31) -> 0 | F31: =SUMIFS(Таблица14[1],Таблица14[партия],$AO$1,Таблица14[изд],$W$1,Таблица14[коэф],B31,Таблица14[р/р],D31,Таблица14[Ф. И. О.],C31) -> 0 | G31: =SUMIFS(Таблица1[1],Таблица1[партия],$AO$1,Таблица1[изд],$W$1,Таблица1[коэф],B31,Таблица1[р/р],D31,Таблица1[Ф. И. О.],C31) -> 0 | H31: =SUMIFS(Таблица14[2],Таблица14[партия],$AO$1,Таблица14[изд],$W$1,Таблица14[коэф],B31,Таблица14[р/р],D31,Таблица14[Ф. И. О.],C31) -> 0 | I31: =SUMIFS(Таблица1[3],Таблица1[партия],$AO$1,Таблица1[изд],$W$1,Таблица1[коэф],B31,Таблица1[р/р],D31,Таблица1[Ф. И. О.],C31) -> 0 | J31: =SUMIFS(Таблица14[3],Таблица14[партия],$AO$1,Таблица14[изд],$W$1,Таблица14[коэф],B31,Таблица14[р/р],D31,Таблица14[Ф. И. О.],C31) -> 0 | K31: =SUMIFS(Таблица1[4],Таблица1[партия],$AO$1,Таблица1[изд],$W$1,Таблица1[коэф],B31,Таблица1[р/р],D31,Таблица1[Ф. И. О.],C31) -> 0 | L31: =SUMIFS(Таблица14[4],Таблица14[партия],$AO$1,Таблица14[изд],$W$1,Таблица14[коэф],B31,Таблица14[р/р],D31,Таблица14[Ф. И. О.],C31) -> 0 | M31: =SUMIFS(Таблица1[5],Таблица1[партия],$AO$1,Таблица1[изд],$W$1,Таблица1[коэф],B31,Таблица1[р/р],D31,Таблица1[Ф. И. О.],C31) -> 0 | N31: =SUMIFS(Таблица14[5],Таблица14[партия],$AO$1,Таблица14[изд],$W$1,Таблица14[коэф],B31,Таблица14[р/р],D31,Таблица14[Ф. И. О.],C31) -> 0 | O31: =SUMIFS(Таблица1[6],Таблица1[партия],$AO$1,Таблица1[изд],$W$1,Таблица1[коэф],B31,Таблица1[р/р],D31,Таблица1[Ф. И. О.],C31) -> 0 | P31: =SUMIFS(Таблица14[6],Таблица14[партия],$AO$1,Таблица14[изд],$W$1,Таблица14[коэф],B31,Таблица14[р/р],D31,Таблица14[Ф. И. О.],C31) -> 0 | Q31: =SUMIFS(Таблица1[7],Таблица1[партия],$AO$1,Таблица1[изд],$W$1,Таблица1[коэф],B31,Таблица1[р/р],D31,Таблица1[Ф. И. О.],C31) -> 0 | R31: =SUMIFS(Таблица14[7],Таблица14[партия],$AO$1,Таблица14[изд],$W$1,Таблица14[коэф],B31,Таблица14[р/р],D31,Таблица14[Ф. И. О.],C31) -> 0 | S31: =SUMIFS(Таблица1[8],Таблица1[партия],$AO$1,Таблица1[изд],$W$1,Таблица1[коэф],B31,Таблица1[р/р],D31,Таблица1[Ф. И. О.],C31) -> 0 | T31: =SUMIFS(Таблица14[8],Таблица14[партия],$AO$1,Таблица14[изд],$W$1,Таблица14[коэф],B31,Таблица14[р/р],D31,Таблица14[Ф. И. О.],C31) -> 0 | U31: =SUMIFS(Таблица1[9],Таблица1[партия],$AO$1,Таблица1[изд],$W$1,Таблица1[коэф],B31,Таблица1[р/р],D31,Таблица1[Ф. И. О.],C31) -> 0 | V31: =SUMIFS(Таблица14[9],Таблица14[партия],$AO$1,Таблица14[изд],$W$1,Таблица14[коэф],B31,Таблица14[р/р],D31,Таблица14[Ф. И. О.],C31) -> 0 | W31: =SUMIFS(Таблица1[10],Таблица1[партия],$AO$1,Таблица1[изд],$W$1,Таблица1[коэф],B31,Таблица1[р/р],D31,Таблица1[Ф. И. О.],C31) -> 0 | X31: =SUMIFS(Таблица14[10],Таблица14[партия],$AO$1,Таблица14[изд],$W$1,Таблица14[коэф],B31,Таблица14[р/р],D31,Таблица14[Ф. И. О.],C31) -> 0 | Y31: =SUMIFS(Таблица1[11],Таблица1[партия],$AO$1,Таблица1[изд],$W$1,Таблица1[коэф],B31,Таблица1[р/р],D31,Таблица1[Ф. И. О.],C31) -> 0 | Z31: =SUMIFS(Таблица14[11],Таблица14[партия],$AO$1,Таблица14[изд],$W$1,Таблица14[коэф],B31,Таблица14[р/р],D31,Таблица14[Ф. И. О.],C31) -> 0 | AA31: =SUMIFS(Таблица1[12],Таблица1[партия],$AO$1,Таблица1[изд],$W$1,Таблица1[коэф],B31,Таблица1[р/р],D31,Таблица1[Ф. И. О.],C31) -> 0 | AB31: =SUMIFS(Таблица14[12],Таблица14[партия],$AO$1,Таблица14[изд],$W$1,Таблица14[коэф],B31,Таблица14[р/р],D31,Таблица14[Ф. И. О.],C31) -> 4 | AC31: =SUMIFS(Таблица1[13],Таблица1[партия],$AO$1,Таблица1[изд],$W$1,Таблица1[коэф],B31,Таблица1[р/р],D31,Таблица1[Ф. И. О.],C31) -> 0 | AD31: =SUMIFS(Таблица14[13],Таблица14[партия],$AO$1,Таблица14[изд],$W$1,Таблица14[коэф],B31,Таблица14[р/р],D31,Таблица14[Ф. И. О.],C31) -> 0 | AE31: =SUMIFS(Таблица1[14],Таблица1[партия],$AO$1,Таблица1[изд],$W$1,Таблица1[коэф],B31,Таблица1[р/р],D31,Таблица1[Ф. И. О.],C31) -> 0 | AF31: =SUMIFS(Таблица14[14],Таблица14[партия],$AO$1,Таблица14[изд],$W$1,Таблица14[коэф],B31,Таблица14[р/р],D31,Таблица14[Ф. И. О.],C31) -> 0 | AG31: =SUMIFS(Таблица1[15],Таблица1[партия],$AO$1,Таблица1[изд],$W$1,Таблица1[коэф],B31,Таблица1[р/р],D31,Таблица1[Ф. И. О.],C31) -> 0 | AH31: =SUMIFS(Таблица14[15],Таблица14[партия],$AO$1,Таблица14[изд],$W$1,Таблица14[коэф],B31,Таблица14[р/р],D31,Таблица14[Ф. И. О.],C31) -> 0 | AI31: =SUMIFS(Таблица1[16],Таблица1[партия],$AO$1,Таблица1[изд],$W$1,Таблица1[коэф],B31,Таблица1[р/р],D31,Таблица1[Ф. И. О.],C31) -> 0 | AJ31: =SUMIFS(Таблица14[16],Таблица14[партия],$AO$1,Таблица14[изд],$W$1,Таблица14[коэф],B31,Таблица14[р/р],D31,Таблица14[Ф. И. О.],C31) -> 0 | AK31: =SUMIFS(Таблица1[17],Таблица1[партия],$AO$1,Таблица1[изд],$W$1,Таблица1[коэф],B31,Таблица1[р/р],D31,Таблица1[Ф. И. О.],C31) -> 0 | AL31: =SUMIFS(Таблица14[17],Таблица14[партия],$AO$1,Таблица14[изд],$W$1,Таблица14[коэф],B31,Таблица14[р/р],D31,Таблица14[Ф. И. О.],C31) -> 0 | AM31: =SUMIFS(Таблица1[18],Таблица1[партия],$AO$1,Таблица1[изд],$W$1,Таблица1[коэф],B31,Таблица1[р/р],D31,Таблица1[Ф. И. О.],C31) -> 0 | AN31: =SUMIFS(Таблица14[18],Таблица14[партия],$AO$1,Таблица14[изд],$W$1,Таблица14[коэф],B31,Таблица14[р/р],D31,Таблица14[Ф. И. О.],C31) -> 0 | AO31: =SUMIFS(Таблица1[19],Таблица1[партия],$AO$1,Таблица1[изд],$W$1,Таблица1[коэф],B31,Таблица1[р/р],D31,Таблица1[Ф. И. О.],C31) -> 0 | AP31: =SUMIFS(Таблица14[19],Таблица14[партия],$AO$1,Таблица14[изд],$W$1,Таблица14[коэф],B31,Таблица14[р/р],D31,Таблица14[Ф. И. О.],C31) -> 0 | AQ31: =SUMIFS(Таблица1[20],Таблица1[партия],$AO$1,Таблица1[изд],$W$1,Таблица1[коэф],B31,Таблица1[р/р],D31,Таблица1[Ф. И. О.],C31) -> 0 | AR31: =SUMIFS(Таблица14[20],Таблица14[партия],$AO$1,Таблица14[изд],$W$1,Таблица14[коэф],B31,Таблица14[р/р],D31,Таблица14[Ф. И. О.],C31) -> 0 | AS31: =SUMIFS(Таблица1[21],Таблица1[партия],$AO$1,Таблица1[изд],$W$1,Таблица1[коэф],B31,Таблица1[р/р],D31,Таблица1[Ф. И. О.],C31) -> 0 | AT31: =SUMIFS(Таблица14[21],Таблица14[партия],$AO$1,Таблица14[изд],$W$1,Таблица14[коэф],B31,Таблица14[р/р],D31,Таблица14[Ф. И. О.],C31) -> 0 | AU31: =SUMIFS(Таблица1[22],Таблица1[партия],$AO$1,Таблица1[изд],$W$1,Таблица1[коэф],B31,Таблица1[р/р],D31,Таблица1[Ф. И. О.],C31) -> 0 | AV31: =SUMIFS(Таблица14[22],Таблица14[партия],$AO$1,Таблица14[изд],$W$1,Таблица14[коэф],B31,Таблица14[р/р],D31,Таблица14[Ф. И. О.],C31) -> 0 | AW31: =SUMIFS(Таблица1[23],Таблица1[партия],$AO$1,Таблица1[изд],$W$1,Таблица1[коэф],B31,Таблица1[р/р],D31,Таблица1[Ф. И. О.],C31) -> 0 | AX31: =SUMIFS(Таблица14[23],Таблица14[партия],$AO$1,Таблица14[изд],$W$1,Таблица14[коэф],B31,Таблица14[р/р],D31,Таблица14[Ф. И. О.],C31) -> 0 | AY31: =SUMIFS(Таблица1[24],Таблица1[партия],$AO$1,Таблица1[изд],$W$1,Таблица1[коэф],B31,Таблица1[р/р],D31,Таблица1[Ф. И. О.],C31) -> 0 | AZ31: =SUMIFS(Таблица14[24],Таблица14[партия],$AO$1,Таблица14[изд],$W$1,Таблица14[коэф],B31,Таблица14[р/р],D31,Таблица14[Ф. И. О.],C31) -> 0 | BA31: =SUMIFS(Таблица1[25],Таблица1[партия],$AO$1,Таблица1[изд],$W$1,Таблица1[коэф],B31,Таблица1[р/р],D31,Таблица1[Ф. И. О.],C31) -> 0 | BB31: =SUMIFS(Таблица14[25],Таблица14[партия],$AO$1,Таблица14[изд],$W$1,Таблица14[коэф],B31,Таблица14[р/р],D31,Таблица14[Ф. И. О.],C31) -> 0 | BC31: =SUMIFS(Таблица1[26],Таблица1[партия],$AO$1,Таблица1[изд],$W$1,Таблица1[коэф],B31,Таблица1[р/р],D31,Таблица1[Ф. И. О.],C31) -> 0 | BD31: =SUMIFS(Таблица14[26],Таблица14[партия],$AO$1,Таблица14[изд],$W$1,Таблица14[коэф],B31,Таблица14[р/р],D31,Таблица14[Ф. И. О.],C31) -> 0 | BE31: =SUMIFS(Таблица1[27],Таблица1[партия],$AO$1,Таблица1[изд],$W$1,Таблица1[коэф],B31,Таблица1[р/р],D31,Таблица1[Ф. И. О.],C31) -> 0 | BF31: =SUMIFS(Таблица14[27],Таблица14[партия],$AO$1,Таблица14[изд],$W$1,Таблица14[коэф],B31,Таблица14[р/р],D31,Таблица14[Ф. И. О.],C31) -> 0 | BG31: =SUMIFS(Таблица1[28],Таблица1[партия],$AO$1,Таблица1[изд],$W$1,Таблица1[коэф],B31,Таблица1[р/р],D31,Таблица1[Ф. И. О.],C31) -> 0 | BH31: =SUMIFS(Таблица14[28],Таблица14[партия],$AO$1,Таблица14[изд],$W$1,Таблица14[коэф],B31,Таблица14[р/р],D31,Таблица14[Ф. И. О.],C31) -> 0 | BI31: =SUMIFS(Таблица1[29],Таблица1[партия],$AO$1,Таблица1[изд],$W$1,Таблица1[коэф],B31,Таблица1[р/р],D31,Таблица1[Ф. И. О.],C31) -> 0 | BJ31: =SUMIFS(Таблица14[29],Таблица14[партия],$AO$1,Таблица14[изд],$W$1,Таблица14[коэф],B31,Таблица14[р/р],D31,Таблица14[Ф. И. О.],C31) -> 0 | BK31: =SUMIFS(Таблица1[30],Таблица1[партия],$AO$1,Таблица1[изд],$W$1,Таблица1[коэф],B31,Таблица1[р/р],D31,Таблица1[Ф. И. О.],C31) -> 0 | BL31: =SUMIFS(Таблица14[30],Таблица14[партия],$AO$1,Таблица14[изд],$W$1,Таблица14[коэф],B31,Таблица14[р/р],D31,Таблица14[Ф. И. О.],C31) -> 0 | BM31: =SUMIFS(Таблица1[31],Таблица1[партия],$AO$1,Таблица1[изд],$W$1,Таблица1[коэф],B31,Таблица1[р/р],D31,Таблица1[Ф. И. О.],C31) -> 0 | BN31: =SUMIFS(Таблица14[31],Таблица14[партия],$AO$1,Таблица14[изд],$W$1,Таблица14[коэф],B31,Таблица14[р/р],D31,Таблица14[Ф. И. О.],C31) -> 0 | BO31: 4 | BP31: 0 | BQ31: 4
A32: 26 | B32: 1 | C32: Шишина Наталья Александровна | D32: 3/1 | E32: =SUMIFS(Таблица14[1],Таблица14[партия],$AO$1,Таблица14[изд],$W$1,Таблица14[коэф],B32,Таблица14[р/р],D32,Таблица14[Ф. И. О.],C32) -> 0 | F32: =SUMIFS(Таблица14[1],Таблица14[партия],$AO$1,Таблица14[изд],$W$1,Таблица14[коэф],B32,Таблица14[р/р],D32,Таблица14[Ф. И. О.],C32) -> 0 | G32: =SUMIFS(Таблица1[1],Таблица1[партия],$AO$1,Таблица1[изд],$W$1,Таблица1[коэф],B32,Таблица1[р/р],D32,Таблица1[Ф. И. О.],C32) -> 0 | H32: =SUMIFS(Таблица14[2],Таблица14[партия],$AO$1,Таблица14[изд],$W$1,Таблица14[коэф],B32,Таблица14[р/р],D32,Таблица14[Ф. И. О.],C32) -> 0 | I32: =SUMIFS(Таблица1[3],Таблица1[партия],$AO$1,Таблица1[изд],$W$1,Таблица1[коэф],B32,Таблица1[р/р],D32,Таблица1[Ф. И. О.],C32) -> 0 | J32: =SUMIFS(Таблица14[3],Таблица14[партия],$AO$1,Таблица14[изд],$W$1,Таблица14[коэф],B32,Таблица14[р/р],D32,Таблица14[Ф. И. О.],C32) -> 0 | K32: =SUMIFS(Таблица1[4],Таблица1[партия],$AO$1,Таблица1[изд],$W$1,Таблица1[коэф],B32,Таблица1[р/р],D32,Таблица1[Ф. И. О.],C32) -> 0 | L32: =SUMIFS(Таблица14[4],Таблица14[партия],$AO$1,Таблица14[изд],$W$1,Таблица14[коэф],B32,Таблица14[р/р],D32,Таблица14[Ф. И. О.],C32) -> 0 | M32: =SUMIFS(Таблица1[5],Таблица1[партия],$AO$1,Таблица1[изд],$W$1,Таблица1[коэф],B32,Таблица1[р/р],D32,Таблица1[Ф. И. О.],C32) -> 0 | N32: =SUMIFS(Таблица14[5],Таблица14[партия],$AO$1,Таблица14[изд],$W$1,Таблица14[коэф],B32,Таблица14[р/р],D32,Таблица14[Ф. И. О.],C32) -> 0 | O32: =SUMIFS(Таблица1[6],Таблица1[партия],$AO$1,Таблица1[изд],$W$1,Таблица1[коэф],B32,Таблица1[р/р],D32,Таблица1[Ф. И. О.],C32) -> 0 | P32: =SUMIFS(Таблица14[6],Таблица14[партия],$AO$1,Таблица14[изд],$W$1,Таблица14[коэф],B32,Таблица14[р/р],D32,Таблица14[Ф. И. О.],C32) -> 0 | Q32: =SUMIFS(Таблица1[7],Таблица1[партия],$AO$1,Таблица1[изд],$W$1,Таблица1[коэф],B32,Таблица1[р/р],D32,Таблица1[Ф. И. О.],C32) -> 0 | R32: =SUMIFS(Таблица14[7],Таблица14[партия],$AO$1,Таблица14[изд],$W$1,Таблица14[коэф],B32,Таблица14[р/р],D32,Таблица14[Ф. И. О.],C32) -> 0 | S32: =SUMIFS(Таблица1[8],Таблица1[партия],$AO$1,Таблица1[изд],$W$1,Таблица1[коэф],B32,Таблица1[р/р],D32,Таблица1[Ф. И. О.],C32) -> 0 | T32: =SUMIFS(Таблица14[8],Таблица14[партия],$AO$1,Таблица14[изд],$W$1,Таблица14[коэф],B32,Таблица14[р/р],D32,Таблица14[Ф. И. О.],C32) -> 0 | U32: =SUMIFS(Таблица1[9],Таблица1[партия],$AO$1,Таблица1[изд],$W$1,Таблица1[коэф],B32,Таблица1[р/р],D32,Таблица1[Ф. И. О.],C32) -> 0 | V32: =SUMIFS(Таблица14[9],Таблица14[партия],$AO$1,Таблица14[изд],$W$1,Таблица14[коэф],B32,Таблица14[р/р],D32,Таблица14[Ф. И. О.],C32) -> 0 | W32: =SUMIFS(Таблица1[10],Таблица1[партия],$AO$1,Таблица1[изд],$W$1,Таблица1[коэф],B32,Таблица1[р/р],D32,Таблица1[Ф. И. О.],C32) -> 0 | X32: =SUMIFS(Таблица14[10],Таблица14[партия],$AO$1,Таблица14[изд],$W$1,Таблица14[коэф],B32,Таблица14[р/р],D32,Таблица14[Ф. И. О.],C32) -> 0 | Y32: =SUMIFS(Таблица1[11],Таблица1[партия],$AO$1,Таблица1[изд],$W$1,Таблица1[коэф],B32,Таблица1[р/р],D32,Таблица1[Ф. И. О.],C32) -> 0 | Z32: =SUMIFS(Таблица14[11],Таблица14[партия],$AO$1,Таблица14[изд],$W$1,Таблица14[коэф],B32,Таблица14[р/р],D32,Таблица14[Ф. И. О.],C32) -> 0 | AA32: =SUMIFS(Таблица1[12],Таблица1[партия],$AO$1,Таблица1[изд],$W$1,Таблица1[коэф],B32,Таблица1[р/р],D32,Таблица1[Ф. И. О.],C32) -> 0 | AB32: =SUMIFS(Таблица14[12],Таблица14[партия],$AO$1,Таблица14[изд],$W$1,Таблица14[коэф],B32,Таблица14[р/р],D32,Таблица14[Ф. И. О.],C32) -> 0 | AC32: =SUMIFS(Таблица1[13],Таблица1[партия],$AO$1,Таблица1[изд],$W$1,Таблица1[коэф],B32,Таблица1[р/р],D32,Таблица1[Ф. И. О.],C32) -> 0 | AD32: =SUMIFS(Таблица14[13],Таблица14[партия],$AO$1,Таблица14[изд],$W$1,Таблица14[коэф],B32,Таблица14[р/р],D32,Таблица14[Ф. И. О.],C32) -> 0 | AE32: =SUMIFS(Таблица1[14],Таблица1[партия],$AO$1,Таблица1[изд],$W$1,Таблица1[коэф],B32,Таблица1[р/р],D32,Таблица1[Ф. И. О.],C32) -> 0 | AF32: =SUMIFS(Таблица14[14],Таблица14[партия],$AO$1,Таблица14[изд],$W$1,Таблица14[коэф],B32,Таблица14[р/р],D32,Таблица14[Ф. И. О.],C32) -> 0 | AG32: =SUMIFS(Таблица1[15],Таблица1[партия],$AO$1,Таблица1[изд],$W$1,Таблица1[коэф],B32,Таблица1[р/р],D32,Таблица1[Ф. И. О.],C32) -> 0 | AH32: =SUMIFS(Таблица14[15],Таблица14[партия],$AO$1,Таблица14[изд],$W$1,Таблица14[коэф],B32,Таблица14[р/р],D32,Таблица14[Ф. И. О.],C32) -> 0 | AI32: =SUMIFS(Таблица1[16],Таблица1[партия],$AO$1,Таблица1[изд],$W$1,Таблица1[коэф],B32,Таблица1[р/р],D32,Таблица1[Ф. И. О.],C32) -> 0 | AJ32: =SUMIFS(Таблица14[16],Таблица14[партия],$AO$1,Таблица14[изд],$W$1,Таблица14[коэф],B32,Таблица14[р/р],D32,Таблица14[Ф. И. О.],C32) -> 0 | AK32: =SUMIFS(Таблица1[17],Таблица1[партия],$AO$1,Таблица1[изд],$W$1,Таблица1[коэф],B32,Таблица1[р/р],D32,Таблица1[Ф. И. О.],C32) -> 0 | AL32: =SUMIFS(Таблица14[17],Таблица14[партия],$AO$1,Таблица14[изд],$W$1,Таблица14[коэф],B32,Таблица14[р/р],D32,Таблица14[Ф. И. О.],C32) -> 0 | AM32: =SUMIFS(Таблица1[18],Таблица1[партия],$AO$1,Таблица1[изд],$W$1,Таблица1[коэф],B32,Таблица1[р/р],D32,Таблица1[Ф. И. О.],C32) -> 0 | AN32: =SUMIFS(Таблица14[18],Таблица14[партия],$AO$1,Таблица14[изд],$W$1,Таблица14[коэф],B32,Таблица14[р/р],D32,Таблица14[Ф. И. О.],C32) -> 0 | AO32: =SUMIFS(Таблица1[19],Таблица1[партия],$AO$1,Таблица1[изд],$W$1,Таблица1[коэф],B32,Таблица1[р/р],D32,Таблица1[Ф. И. О.],C32) -> 0 | AP32: =SUMIFS(Таблица14[19],Таблица14[партия],$AO$1,Таблица14[изд],$W$1,Таблица14[коэф],B32,Таблица14[р/р],D32,Таблица14[Ф. И. О.],C32) -> 0 | AQ32: =SUMIFS(Таблица1[20],Таблица1[партия],$AO$1,Таблица1[изд],$W$1,Таблица1[коэф],B32,Таблица1[р/р],D32,Таблица1[Ф. И. О.],C32) -> 0 | AR32: =SUMIFS(Таблица14[20],Таблица14[партия],$AO$1,Таблица14[изд],$W$1,Таблица14[коэф],B32,Таблица14[р/р],D32,Таблица14[Ф. И. О.],C32) -> 0 | AS32: =SUMIFS(Таблица1[21],Таблица1[партия],$AO$1,Таблица1[изд],$W$1,Таблица1[коэф],B32,Таблица1[р/р],D32,Таблица1[Ф. И. О.],C32) -> 7.2 | AT32: =SUMIFS(Таблица14[21],Таблица14[партия],$AO$1,Таблица14[изд],$W$1,Таблица14[коэф],B32,Таблица14[р/р],D32,Таблица14[Ф. И. О.],C32) -> 4 | AU32: =SUMIFS(Таблица1[22],Таблица1[партия],$AO$1,Таблица1[изд],$W$1,Таблица1[коэф],B32,Таблица1[р/р],D32,Таблица1[Ф. И. О.],C32) -> 7.2 | AV32: =SUMIFS(Таблица14[22],Таблица14[партия],$AO$1,Таблица14[изд],$W$1,Таблица14[коэф],B32,Таблица14[р/р],D32,Таблица14[Ф. И. О.],C32) -> 0 | AW32: =SUMIFS(Таблица1[23],Таблица1[партия],$AO$1,Таблица1[изд],$W$1,Таблица1[коэф],B32,Таблица1[р/р],D32,Таблица1[Ф. И. О.],C32) -> 0 | AX32: =SUMIFS(Таблица14[23],Таблица14[партия],$AO$1,Таблица14[изд],$W$1,Таблица14[коэф],B32,Таблица14[р/р],D32,Таблица14[Ф. И. О.],C32) -> 0 | AY32: =SUMIFS(Таблица1[24],Таблица1[партия],$AO$1,Таблица1[изд],$W$1,Таблица1[коэф],B32,Таблица1[р/р],D32,Таблица1[Ф. И. О.],C32) -> 0 | AZ32: =SUMIFS(Таблица14[24],Таблица14[партия],$AO$1,Таблица14[изд],$W$1,Таблица14[коэф],B32,Таблица14[р/р],D32,Таблица14[Ф. И. О.],C32) -> 0 | BA32: =SUMIFS(Таблица1[25],Таблица1[партия],$AO$1,Таблица1[изд],$W$1,Таблица1[коэф],B32,Таблица1[р/р],D32,Таблица1[Ф. И. О.],C32) -> 0 | BB32: =SUMIFS(Таблица14[25],Таблица14[партия],$AO$1,Таблица14[изд],$W$1,Таблица14[коэф],B32,Таблица14[р/р],D32,Таблица14[Ф. И. О.],C32) -> 0 | BC32: =SUMIFS(Таблица1[26],Таблица1[партия],$AO$1,Таблица1[изд],$W$1,Таблица1[коэф],B32,Таблица1[р/р],D32,Таблица1[Ф. И. О.],C32) -> 0 | BD32: =SUMIFS(Таблица14[26],Таблица14[партия],$AO$1,Таблица14[изд],$W$1,Таблица14[коэф],B32,Таблица14[р/р],D32,Таблица14[Ф. И. О.],C32) -> 0 | BE32: =SUMIFS(Таблица1[27],Таблица1[партия],$AO$1,Таблица1[изд],$W$1,Таблица1[коэф],B32,Таблица1[р/р],D32,Таблица1[Ф. И. О.],C32) -> 0 | BF32: =SUMIFS(Таблица14[27],Таблица14[партия],$AO$1,Таблица14[изд],$W$1,Таблица14[коэф],B32,Таблица14[р/р],D32,Таблица14[Ф. И. О.],C32) -> 0 | BG32: =SUMIFS(Таблица1[28],Таблица1[партия],$AO$1,Таблица1[изд],$W$1,Таблица1[коэф],B32,Таблица1[р/р],D32,Таблица1[Ф. И. О.],C32) -> 0 | BH32: =SUMIFS(Таблица14[28],Таблица14[партия],$AO$1,Таблица14[изд],$W$1,Таблица14[коэф],B32,Таблица14[р/р],D32,Таблица14[Ф. И. О.],C32) -> 0 | BI32: =SUMIFS(Таблица1[29],Таблица1[партия],$AO$1,Таблица1[изд],$W$1,Таблица1[коэф],B32,Таблица1[р/р],D32,Таблица1[Ф. И. О.],C32) -> 0 | BJ32: =SUMIFS(Таблица14[29],Таблица14[партия],$AO$1,Таблица14[изд],$W$1,Таблица14[коэф],B32,Таблица14[р/р],D32,Таблица14[Ф. И. О.],C32) -> 0 | BK32: =SUMIFS(Таблица1[30],Таблица1[партия],$AO$1,Таблица1[изд],$W$1,Таблица1[коэф],B32,Таблица1[р/р],D32,Таблица1[Ф. И. О.],C32) -> 0 | BL32: =SUMIFS(Таблица14[30],Таблица14[партия],$AO$1,Таблица14[изд],$W$1,Таблица14[коэф],B32,Таблица14[р/р],D32,Таблица14[Ф. И. О.],C32) -> 0 | BM32: =SUMIFS(Таблица1[31],Таблица1[партия],$AO$1,Таблица1[изд],$W$1,Таблица1[коэф],B32,Таблица1[р/р],D32,Таблица1[Ф. И. О.],C32) -> 0 | BN32: =SUMIFS(Таблица14[31],Таблица14[партия],$AO$1,Таблица14[изд],$W$1,Таблица14[коэф],B32,Таблица14[р/р],D32,Таблица14[Ф. И. О.],C32) -> 0 | BO32: 18.4 | BP32: 14.4 | BQ32: 4
A33: 27 | E33: =SUMIFS(Таблица14[1],Таблица14[партия],$AO$1,Таблица14[изд],$W$1,Таблица14[коэф],B33,Таблица14[р/р],D33,Таблица14[Ф. И. О.],C33) -> 0 | F33: =SUMIFS(Таблица14[1],Таблица14[партия],$AO$1,Таблица14[изд],$W$1,Таблица14[коэф],B33,Таблица14[р/р],D33,Таблица14[Ф. И. О.],C33) -> 0 | G33: =SUMIFS(Таблица1[1],Таблица1[партия],$AO$1,Таблица1[изд],$W$1,Таблица1[коэф],B33,Таблица1[р/р],D33,Таблица1[Ф. И. О.],C33) -> 0 | H33: =SUMIFS(Таблица14[2],Таблица14[партия],$AO$1,Таблица14[изд],$W$1,Таблица14[коэф],B33,Таблица14[р/р],D33,Таблица14[Ф. И. О.],C33) -> 0 | I33: =SUMIFS(Таблица1[3],Таблица1[партия],$AO$1,Таблица1[изд],$W$1,Таблица1[коэф],B33,Таблица1[р/р],D33,Таблица1[Ф. И. О.],C33) -> 0 | J33: =SUMIFS(Таблица14[3],Таблица14[партия],$AO$1,Таблица14[изд],$W$1,Таблица14[коэф],B33,Таблица14[р/р],D33,Таблица14[Ф. И. О.],C33) -> 0 | K33: =SUMIFS(Таблица1[4],Таблица1[партия],$AO$1,Таблица1[изд],$W$1,Таблица1[коэф],B33,Таблица1[р/р],D33,Таблица1[Ф. И. О.],C33) -> 0 | L33: =SUMIFS(Таблица14[4],Таблица14[партия],$AO$1,Таблица14[изд],$W$1,Таблица14[коэф],B33,Таблица14[р/р],D33,Таблица14[Ф. И. О.],C33) -> 0 | M33: =SUMIFS(Таблица1[5],Таблица1[партия],$AO$1,Таблица1[изд],$W$1,Таблица1[коэф],B33,Таблица1[р/р],D33,Таблица1[Ф. И. О.],C33) -> 0 | N33: =SUMIFS(Таблица14[5],Таблица14[партия],$AO$1,Таблица14[изд],$W$1,Таблица14[коэф],B33,Таблица14[р/р],D33,Таблица14[Ф. И. О.],C33) -> 0 | O33: =SUMIFS(Таблица1[6],Таблица1[партия],$AO$1,Таблица1[изд],$W$1,Таблица1[коэф],B33,Таблица1[р/р],D33,Таблица1[Ф. И. О.],C33) -> 0 | P33: =SUMIFS(Таблица14[6],Таблица14[партия],$AO$1,Таблица14[изд],$W$1,Таблица14[коэф],B33,Таблица14[р/р],D33,Таблица14[Ф. И. О.],C33) -> 0 | Q33: =SUMIFS(Таблица1[7],Таблица1[партия],$AO$1,Таблица1[изд],$W$1,Таблица1[коэф],B33,Таблица1[р/р],D33,Таблица1[Ф. И. О.],C33) -> 0 | R33: =SUMIFS(Таблица14[7],Таблица14[партия],$AO$1,Таблица14[изд],$W$1,Таблица14[коэф],B33,Таблица14[р/р],D33,Таблица14[Ф. И. О.],C33) -> 0 | S33: =SUMIFS(Таблица1[8],Таблица1[партия],$AO$1,Таблица1[изд],$W$1,Таблица1[коэф],B33,Таблица1[р/р],D33,Таблица1[Ф. И. О.],C33) -> 0 | T33: =SUMIFS(Таблица14[8],Таблица14[партия],$AO$1,Таблица14[изд],$W$1,Таблица14[коэф],B33,Таблица14[р/р],D33,Таблица14[Ф. И. О.],C33) -> 0 | U33: =SUMIFS(Таблица1[9],Таблица1[партия],$AO$1,Таблица1[изд],$W$1,Таблица1[коэф],B33,Таблица1[р/р],D33,Таблица1[Ф. И. О.],C33) -> 0 | V33: =SUMIFS(Таблица14[9],Таблица14[партия],$AO$1,Таблица14[изд],$W$1,Таблица14[коэф],B33,Таблица14[р/р],D33,Таблица14[Ф. И. О.],C33) -> 0 | W33: =SUMIFS(Таблица1[10],Таблица1[партия],$AO$1,Таблица1[изд],$W$1,Таблица1[коэф],B33,Таблица1[р/р],D33,Таблица1[Ф. И. О.],C33) -> 0 | X33: =SUMIFS(Таблица14[10],Таблица14[партия],$AO$1,Таблица14[изд],$W$1,Таблица14[коэф],B33,Таблица14[р/р],D33,Таблица14[Ф. И. О.],C33) -> 0 | Y33: =SUMIFS(Таблица1[11],Таблица1[партия],$AO$1,Таблица1[изд],$W$1,Таблица1[коэф],B33,Таблица1[р/р],D33,Таблица1[Ф. И. О.],C33) -> 0 | Z33: =SUMIFS(Таблица14[11],Таблица14[партия],$AO$1,Таблица14[изд],$W$1,Таблица14[коэф],B33,Таблица14[р/р],D33,Таблица14[Ф. И. О.],C33) -> 0 | AA33: =SUMIFS(Таблица1[12],Таблица1[партия],$AO$1,Таблица1[изд],$W$1,Таблица1[коэф],B33,Таблица1[р/р],D33,Таблица1[Ф. И. О.],C33) -> 0 | AB33: =SUMIFS(Таблица14[12],Таблица14[партия],$AO$1,Таблица14[изд],$W$1,Таблица14[коэф],B33,Таблица14[р/р],D33,Таблица14[Ф. И. О.],C33) -> 0 | AC33: =SUMIFS(Таблица1[13],Таблица1[партия],$AO$1,Таблица1[изд],$W$1,Таблица1[коэф],B33,Таблица1[р/р],D33,Таблица1[Ф. И. О.],C33) -> 0 | AD33: =SUMIFS(Таблица14[13],Таблица14[партия],$AO$1,Таблица14[изд],$W$1,Таблица14[коэф],B33,Таблица14[р/р],D33,Таблица14[Ф. И. О.],C33) -> 0 | AE33: =SUMIFS(Таблица1[14],Таблица1[партия],$AO$1,Таблица1[изд],$W$1,Таблица1[коэф],B33,Таблица1[р/р],D33,Таблица1[Ф. И. О.],C33) -> 0 | AF33: =SUMIFS(Таблица14[14],Таблица14[партия],$AO$1,Таблица14[изд],$W$1,Таблица14[коэф],B33,Таблица14[р/р],D33,Таблица14[Ф. И. О.],C33) -> 0 | AG33: =SUMIFS(Таблица1[15],Таблица1[партия],$AO$1,Таблица1[изд],$W$1,Таблица1[коэф],B33,Таблица1[р/р],D33,Таблица1[Ф. И. О.],C33) -> 0 | AH33: =SUMIFS(Таблица14[15],Таблица14[партия],$AO$1,Таблица14[изд],$W$1,Таблица14[коэф],B33,Таблица14[р/р],D33,Таблица14[Ф. И. О.],C33) -> 0 | AI33: =SUMIFS(Таблица1[16],Таблица1[партия],$AO$1,Таблица1[изд],$W$1,Таблица1[коэф],B33,Таблица1[р/р],D33,Таблица1[Ф. И. О.],C33) -> 0 | AJ33: =SUMIFS(Таблица14[16],Таблица14[партия],$AO$1,Таблица14[изд],$W$1,Таблица14[коэф],B33,Таблица14[р/р],D33,Таблица14[Ф. И. О.],C33) -> 0 | AK33: =SUMIFS(Таблица1[17],Таблица1[партия],$AO$1,Таблица1[изд],$W$1,Таблица1[коэф],B33,Таблица1[р/р],D33,Таблица1[Ф. И. О.],C33) -> 0 | AL33: =SUMIFS(Таблица14[17],Таблица14[партия],$AO$1,Таблица14[изд],$W$1,Таблица14[коэф],B33,Таблица14[р/р],D33,Таблица14[Ф. И. О.],C33) -> 0 | AM33: =SUMIFS(Таблица1[18],Таблица1[партия],$AO$1,Таблица1[изд],$W$1,Таблица1[коэф],B33,Таблица1[р/р],D33,Таблица1[Ф. И. О.],C33) -> 0 | AN33: =SUMIFS(Таблица14[18],Таблица14[партия],$AO$1,Таблица14[изд],$W$1,Таблица14[коэф],B33,Таблица14[р/р],D33,Таблица14[Ф. И. О.],C33) -> 0 | AO33: =SUMIFS(Таблица1[19],Таблица1[партия],$AO$1,Таблица1[изд],$W$1,Таблица1[коэф],B33,Таблица1[р/р],D33,Таблица1[Ф. И. О.],C33) -> 0 | AP33: =SUMIFS(Таблица14[19],Таблица14[партия],$AO$1,Таблица14[изд],$W$1,Таблица14[коэф],B33,Таблица14[р/р],D33,Таблица14[Ф. И. О.],C33) -> 0 | AQ33: =SUMIFS(Таблица1[20],Таблица1[партия],$AO$1,Таблица1[изд],$W$1,Таблица1[коэф],B33,Таблица1[р/р],D33,Таблица1[Ф. И. О.],C33) -> 0 | AR33: =SUMIFS(Таблица14[20],Таблица14[партия],$AO$1,Таблица14[изд],$W$1,Таблица14[коэф],B33,Таблица14[р/р],D33,Таблица14[Ф. И. О.],C33) -> 0 | AS33: =SUMIFS(Таблица1[21],Таблица1[партия],$AO$1,Таблица1[изд],$W$1,Таблица1[коэф],B33,Таблица1[р/р],D33,Таблица1[Ф. И. О.],C33) -> 0 | AT33: =SUMIFS(Таблица14[21],Таблица14[партия],$AO$1,Таблица14[изд],$W$1,Таблица14[коэф],B33,Таблица14[р/р],D33,Таблица14[Ф. И. О.],C33) -> 0 | AU33: =SUMIFS(Таблица1[22],Таблица1[партия],$AO$1,Таблица1[изд],$W$1,Таблица1[коэф],B33,Таблица1[р/р],D33,Таблица1[Ф. И. О.],C33) -> 0 | AV33: =SUMIFS(Таблица14[22],Таблица14[партия],$AO$1,Таблица14[изд],$W$1,Таблица14[коэф],B33,Таблица14[р/р],D33,Таблица14[Ф. И. О.],C33) -> 0 | AW33: =SUMIFS(Таблица1[23],Таблица1[партия],$AO$1,Таблица1[изд],$W$1,Таблица1[коэф],B33,Таблица1[р/р],D33,Таблица1[Ф. И. О.],C33) -> 0 | AX33: =SUMIFS(Таблица14[23],Таблица14[партия],$AO$1,Таблица14[изд],$W$1,Таблица14[коэф],B33,Таблица14[р/р],D33,Таблица14[Ф. И. О.],C33) -> 0 | AY33: =SUMIFS(Таблица1[24],Таблица1[партия],$AO$1,Таблица1[изд],$W$1,Таблица1[коэф],B33,Таблица1[р/р],D33,Таблица1[Ф. И. О.],C33) -> 0 | AZ33: =SUMIFS(Таблица14[24],Таблица14[партия],$AO$1,Таблица14[изд],$W$1,Таблица14[коэф],B33,Таблица14[р/р],D33,Таблица14[Ф. И. О.],C33) -> 0 | BA33: =SUMIFS(Таблица1[25],Таблица1[партия],$AO$1,Таблица1[изд],$W$1,Таблица1[коэф],B33,Таблица1[р/р],D33,Таблица1[Ф. И. О.],C33) -> 0 | BB33: =SUMIFS(Таблица14[25],Таблица14[партия],$AO$1,Таблица14[изд],$W$1,Таблица14[коэф],B33,Таблица14[р/р],D33,Таблица14[Ф. И. О.],C33) -> 0 | BC33: =SUMIFS(Таблица1[26],Таблица1[партия],$AO$1,Таблица1[изд],$W$1,Таблица1[коэф],B33,Таблица1[р/р],D33,Таблица1[Ф. И. О.],C33) -> 0 | BD33: =SUMIFS(Таблица14[26],Таблица14[партия],$AO$1,Таблица14[изд],$W$1,Таблица14[коэф],B33,Таблица14[р/р],D33,Таблица14[Ф. И. О.],C33) -> 0 | BE33: =SUMIFS(Таблица1[27],Таблица1[партия],$AO$1,Таблица1[изд],$W$1,Таблица1[коэф],B33,Таблица1[р/р],D33,Таблица1[Ф. И. О.],C33) -> 0 | BF33: =SUMIFS(Таблица14[27],Таблица14[партия],$AO$1,Таблица14[изд],$W$1,Таблица14[коэф],B33,Таблица14[р/р],D33,Таблица14[Ф. И. О.],C33) -> 0 | BG33: =SUMIFS(Таблица1[28],Таблица1[партия],$AO$1,Таблица1[изд],$W$1,Таблица1[коэф],B33,Таблица1[р/р],D33,Таблица1[Ф. И. О.],C33) -> 0 | BH33: =SUMIFS(Таблица14[28],Таблица14[партия],$AO$1,Таблица14[изд],$W$1,Таблица14[коэф],B33,Таблица14[р/р],D33,Таблица14[Ф. И. О.],C33) -> 0 | BI33: =SUMIFS(Таблица1[29],Таблица1[партия],$AO$1,Таблица1[изд],$W$1,Таблица1[коэф],B33,Таблица1[р/р],D33,Таблица1[Ф. И. О.],C33) -> 0 | BJ33: =SUMIFS(Таблица14[29],Таблица14[партия],$AO$1,Таблица14[изд],$W$1,Таблица14[коэф],B33,Таблица14[р/р],D33,Таблица14[Ф. И. О.],C33) -> 0 | BK33: =SUMIFS(Таблица1[30],Таблица1[партия],$AO$1,Таблица1[изд],$W$1,Таблица1[коэф],B33,Таблица1[р/р],D33,Таблица1[Ф. И. О.],C33) -> 0 | BL33: =SUMIFS(Таблица14[30],Таблица14[партия],$AO$1,Таблица14[изд],$W$1,Таблица14[коэф],B33,Таблица14[р/р],D33,Таблица14[Ф. И. О.],C33) -> 0 | BM33: =SUMIFS(Таблица1[31],Таблица1[партия],$AO$1,Таблица1[изд],$W$1,Таблица1[коэф],B33,Таблица1[р/р],D33,Таблица1[Ф. И. О.],C33) -> 0 | BN33: =SUMIFS(Таблица14[31],Таблица14[партия],$AO$1,Таблица14[изд],$W$1,Таблица14[коэф],B33,Таблица14[р/р],D33,Таблица14[Ф. И. О.],C33) -> 0 | BO33: 0 | BP33: 0 | BQ33: 0
